Workbook

Sheet Overview
A2: CDCM Annual Review Pack
A4: Company: | B4: ='CDCM Forecast Data'!E3 -> WPD West Midlands
A5: Date of Issue: | B5: ='CDCM Forecast Data'!E4 -> 2017-01-01
A7: ="Although every effort has been made to ensure the accuracy of the information provided in this annual review pack, " & 'CDCM Forecast Data'!E3 & " does not accept any liability for the accuracy of the information contained herein and, in particular, " & 'CDCM Forecast Data'!E3 & " or any of its employees, shall not be held liable for any misstatement or opinion on which the recipient of this statement relies or seeks to rely." -> Although every effort has been made to ensure the accuracy of the information provided in this annual review pack, WPD West Midlands does not accept any liability for the accuracy of the information contained herein and, in particular, WPD West Midlands or any of its employees, shall not be held liable for any misstatement or opinion on which the recipient of this statement relies or seeks to rely.
A12: Contents:
A14: Sheet Name | B14: Detail
A15: Commentary | B15: This sheet contains the DNO's commentary on the forecast input CDCM data for the forecast over the 5 year period.
A16: CDCM Forecast Data | B16: This sheet contains historical and forecast data for all CDCM inputs except for volume data (table 1053) and matrix of applicability data (table 1025 - 1028). The RPI forecast is seperated out and listed as a standalone assumption. Any forecasts that relate to RPI will be linked to this row. Comments are provided alongside each forecast explaining any assumptions made by the DNO.
A17: Table 1 | B17: This sheet contains the DNO's table 1 produced in accordance with DCUSA Schedule 15 "cost information table".
A18: Mat of App | B18: This sheet contains the forecast CDCM matrix of applicability data (table 1025 - 1028). The default value is that the same matrix will be used for each of the five years.
A19: CDCM Volume Forecasts | B19: This sheet contains forecast CDCM volume data (table 1053). The matrix at the top can be used to apply different growth rates to groups of customers.
A20: CDCM Timebands | B20: Contains the time bands that the DNO plans to use for the coming year and advance warning of any changes.
A21: CDCM Input Sheet (Y) | B21: This sheet contains the CDCM input sheet for base year 0 (Y) in a format that can be copy and pasted (paste-value) into the CDCM spreadsheet model.
A22: CDCM Input Sheet (Y + 1) | B22: This sheet contains the CDCM input sheet for base year +1 (Y+1) in a format that can be copy and pasted (paste-value) into the CDCM spreadsheet model.
A23: CDCM Input Sheet (Y + 2) | B23: This sheet contains the CDCM input sheet for base year +2 (Y+2) in a format that can be copy and pasted (paste-value) into the CDCM spreadsheet model.
A24: CDCM Input Sheet (Y + 3) | B24: This sheet contains the CDCM input sheet for base year +3 (Y+3) in a format that can be copy and pasted (paste-value) into the CDCM spreadsheet model.
A25: CDCM Input Sheet (Y + 4) | B25: This sheet contains the CDCM input sheet for base year +4 (Y+4) in a format that can be copy and pasted (paste-value) into the CDCM spreadsheet model.
A26: Tariffs ARP | B26: This sheet contains the CDCM tariffs that are produced from the CDCM input data, after the Macro on this sheet has been run. It contains the tariffs for each of the 5 years.
A29: This document, model or dataset has been prepared by or for Reckon LLP on the instructions of the DCUSA Panel or
A30: one of its working groups. Only the DCUSA Panel and its working groups have authority to approve this
A31: material as meeting their requirements. Reckon LLP makes no representation about the suitability of this
A32: material for the purposes of complying with any licence conditions or furthering any relevant objective.

Sheet Commentary
B3: ='CDCM Forecast Data'!E3 -> WPD West Midlands

Sheet CDCM Forecast Data
D3: Company: | E3: ='[2]CDCM Forecast Data'!E3:F3 -> WPD West Midlands
D4: Date of Issue: | E4: ='[2]CDCM Forecast Data'!E4:F4 -> 2017-01-01
D5: Status | E5: ='[2]CDCM Forecast Data'!E5:F5 -> ARP
C9: Historical CDCM Input Data (Actuals) | E9: ="CDCM Values - "&E5 -> CDCM Values - ARP | F9: Forecast CDCM Values
B10: Year Ref -> | C10: Y-2 | D10: Y-1 | E10: Y | F10: Y+1 | G10: Y+2 | H10: Y+3 | I10: Y+4
B11: Charging Year -> | C11: 2016/17 | D11: 2017/18 | E11: 2018/19 | F11: 2019/20 | G11: 2020/21 | H11: 2021/22 | I11: 2022/23
B12: DPCR -> | C12: RIIO - ED1 | D12: RIIO - ED1 | E12: RIIO - ED1 | F12: RIIO - ED1 | G12: RIIO - ED1 | H12: RIIO - ED1 | I12: RIIO - ED1 | J12: Assumptions
B13: RPI Forecast: | D13: ='[3]Table 1'!E3 -> 0.03127874885 | E13: ='[3]Table 1'!F3 -> 0.03033006244 | F13: ='[3]Table 1'!G3 -> 0.0303030303 | G13: ='[3]Table 1'!H3 -> 0.03109243697 | H13: ='[3]Table 1'!I3 -> 0.0293398533 | I13: ='[3]Table 1'!J3 -> 0.03087885986
A14: 1 | B14: 1000 Company name, charging year and model version
A15: 2 | B15: Company | C15: ='[2]CDCM Forecast Data'!C15 -> 0
A16: 3 | B16: Year
A17: 4 | B17: Version
A18: 5 | B18: 1010 Financial and general assumptions
A19: 6 | B19: Rate of return | C19: ='[2]CDCM Forecast Data'!C19 -> 0.0435 | D19: ='[2]CDCM Forecast Data'!D19 -> 0.0431 | E19: ='[2]CDCM Forecast Data'!E19 -> 0.0421 | F19: ='[2]CDCM Forecast Data'!F19 -> 0.0421 | G19: ='[2]CDCM Forecast Data'!G19 -> 0.0421 | H19: ='[2]CDCM Forecast Data'!H19 -> 0.0421 | I19: ='[2]CDCM Forecast Data'!I19 -> 0.0421
A20: 7 | B20: Annualisation period (years) | C20: ='[2]CDCM Forecast Data'!C20 -> 40 | D20: ='[2]CDCM Forecast Data'!D20 -> 40 | E20: ='[2]CDCM Forecast Data'!E20 -> 40 | F20: ='[2]CDCM Forecast Data'!F20 -> 40 | G20: ='[2]CDCM Forecast Data'!G20 -> 40 | H20: ='[2]CDCM Forecast Data'!H20 -> 40 | I20: ='[2]CDCM Forecast Data'!I20 -> 40
A21: 8 | B21: Power factor | C21: ='[2]CDCM Forecast Data'!C21 -> 0.95 | D21: ='[2]CDCM Forecast Data'!D21 -> 0.95 | E21: ='[2]CDCM Forecast Data'!E21 -> 0.95 | F21: ='[2]CDCM Forecast Data'!F21 -> 0.95 | G21: ='[2]CDCM Forecast Data'!G21 -> 0.95 | H21: ='[2]CDCM Forecast Data'!H21 -> 0.95 | I21: ='[2]CDCM Forecast Data'!I21 -> 0.95
A22: 9 | B22: Days in the charging period | C22: ='[2]CDCM Forecast Data'!C22 -> 365 | D22: ='[2]CDCM Forecast Data'!D22 -> 365 | E22: ='[2]CDCM Forecast Data'!E22 -> 365 | F22: ='[2]CDCM Forecast Data'!F22 -> 365 | G22: ='[2]CDCM Forecast Data'!G22 -> 366 | H22: ='[2]CDCM Forecast Data'!H22 -> 365 | I22: ='[2]CDCM Forecast Data'!I22 -> 365
A23: 10 | B23: 1017 Diversity allowance between top and bottom of network level
A24: 11 | B24: GSPs | C24: ='[2]CDCM Forecast Data'!C24 -> 0.05649040832 | D24: ='[2]CDCM Forecast Data'!D24 -> 0.05649040832 | E24: ='[2]CDCM Forecast Data'!E24 -> 0.05649040832 | F24: ='[2]CDCM Forecast Data'!F24 -> 0.05649040832 | G24: ='[2]CDCM Forecast Data'!G24 -> 0.05649040832 | H24: ='[2]CDCM Forecast Data'!H24 -> 0.05649040832 | I24: ='[2]CDCM Forecast Data'!I24 -> 0.05649040832
A25: 12 | B25: 132kV | C25: ='[2]CDCM Forecast Data'!C25 -> 0.0255686825 | D25: ='[2]CDCM Forecast Data'!D25 -> 0.0255686825 | E25: ='[2]CDCM Forecast Data'!E25 -> 0.0255686825 | F25: ='[2]CDCM Forecast Data'!F25 -> 0.0255686825 | G25: ='[2]CDCM Forecast Data'!G25 -> 0.0255686825 | H25: ='[2]CDCM Forecast Data'!H25 -> 0.0255686825 | I25: ='[2]CDCM Forecast Data'!I25 -> 0.0255686825
A26: 13 | B26: EHV | C26: ='[2]CDCM Forecast Data'!C26 -> 0.02663159667 | D26: ='[2]CDCM Forecast Data'!D26 -> 0.02663159667 | E26: ='[2]CDCM Forecast Data'!E26 -> 0.02663159667 | F26: ='[2]CDCM Forecast Data'!F26 -> 0.02663159667 | G26: ='[2]CDCM Forecast Data'!G26 -> 0.02663159667 | H26: ='[2]CDCM Forecast Data'!H26 -> 0.02663159667 | I26: ='[2]CDCM Forecast Data'!I26 -> 0.02663159667
A27: 14 | B27: HV | C27: ='[2]CDCM Forecast Data'!C27 -> 0.34 | D27: ='[2]CDCM Forecast Data'!D27 -> 0.34 | E27: ='[2]CDCM Forecast Data'!E27 -> 0.34 | F27: ='[2]CDCM Forecast Data'!F27 -> 0.34 | G27: ='[2]CDCM Forecast Data'!G27 -> 0.34 | H27: ='[2]CDCM Forecast Data'!H27 -> 0.34 | I27: ='[2]CDCM Forecast Data'!I27 -> 0.34
A28: 15 | B28: 1018 Proportion of relevant load going through 132kV/HV direct transformation | C28: ='[2]CDCM Forecast Data'!C28 -> 0.6925656292 | D28: ='[2]CDCM Forecast Data'!D28 -> 0.6925656292 | E28: ='[2]CDCM Forecast Data'!E28 -> 0.6925656292 | F28: ='[2]CDCM Forecast Data'!F28 -> 0.6925656292 | G28: ='[2]CDCM Forecast Data'!G28 -> 0.6925656292 | H28: ='[2]CDCM Forecast Data'!H28 -> 0.6925656292 | I28: ='[2]CDCM Forecast Data'!I28 -> 0.6925656292
A29: 16 | B29: 1019 Network model GSP demand (MW) | C29: ='[2]CDCM Forecast Data'!C29 -> 500 | D29: ='[2]CDCM Forecast Data'!D29 -> 500 | E29: ='[2]CDCM Forecast Data'!E29 -> 500 | F29: ='[2]CDCM Forecast Data'!F29 -> 500 | G29: ='[2]CDCM Forecast Data'!G29 -> 500 | H29: ='[2]CDCM Forecast Data'!H29 -> 500 | I29: ='[2]CDCM Forecast Data'!I29 -> 500
A30: 17 | B30: 1020 Gross asset cost by network level (£)
A31: 18 | B31: 132kV | C31: ='[2]CDCM Forecast Data'!C31 -> 47746530.91 | D31: ='[2]CDCM Forecast Data'!D31 -> 49214736.73 | E31: ='[2]CDCM Forecast Data'!E31 -> 50728089.89 | F31: =E31*(1+F$13) -> 52265304.73 | G31: 53890360.43 | H31: 55471495.69 | I31: 57184392.24
A32: 19 | B32: 132kV/EHV | C32: ='[2]CDCM Forecast Data'!C32 -> 10929842.8 | D32: ='[2]CDCM Forecast Data'!D32 -> 11265935.47 | E32: ='[2]CDCM Forecast Data'!E32 -> 11612362.98 | F32: 11964252.77 | G32: 12336250.54 | H32: 12698194.33 | I32: 13090300.09
A33: 20 | B33: EHV | C33: ='[2]CDCM Forecast Data'!C33 -> 11262392.61 | D33: ='[2]CDCM Forecast Data'!D33 -> 11608711.18 | E33: ='[2]CDCM Forecast Data'!E33 -> 11965679.05 | F33: 12328275.38 | G33: 12711591.51 | H33: 13084547.74 | I33: 13488583.65
A34: 21 | B34: EHV/HV | C34: ='[2]CDCM Forecast Data'!C34 -> 21282686 | D34: ='[2]CDCM Forecast Data'!D34 -> 21937128.59 | E34: ='[2]CDCM Forecast Data'!E34 -> 22611695.3 | F34: 23296898.18 | G34: 24021255.52 | H34: 24726035.63 | I34: 25489547.42
A35: 22 | B35: 132kV/HV | C35: ='[2]CDCM Forecast Data'!C35 -> 22688479.51 | D35: ='[2]CDCM Forecast Data'!D35 -> 23386150.26 | E35: ='[2]CDCM Forecast Data'!E35 -> 24105274.38 | F35: 24835737.24 | G35: 25607940.83 | H35: 26359274.06 | I35: 27173218.39
A36: 23 | B36: HV | C36: ='[2]CDCM Forecast Data'!C36 -> 147329180.7 | D36: ='[2]CDCM Forecast Data'!D36 -> 151859553 | E36: ='[2]CDCM Forecast Data'!E36 -> 156529234.2 | F36: 161272544.4 | G36: 166286900.8 | H36: 171165734.1 | I36: 176451136.8
A37: 24 | B37: HV/LV | C37: ='[2]CDCM Forecast Data'!C37 -> 66476256.91 | D37: ='[2]CDCM Forecast Data'!D37 -> 68520401.81 | E37: ='[2]CDCM Forecast Data'!E37 -> 70627404.17 | F37: 72767628.54 | G37: 75030151.44 | H37: 77231525.08 | I37: 79616346.52
A38: 25 | B38: LV circuits | C38: ='[2]CDCM Forecast Data'!C38 -> 151471703.8 | D38: ='[2]CDCM Forecast Data'!D38 -> 156129458.6 | E38: ='[2]CDCM Forecast Data'!E38 -> 160930439.5 | F38: 165807119.5 | G38: 170962466.9 | H38: 175978480.6 | I38: 181412495.4
A39: 26 | B39: 1022 LV service model asset cost (£)
A40: 27 | B40: LV service model 1 | C40: ='[2]CDCM Forecast Data'!C40 -> 5105.17672 | D40: ='[2]CDCM Forecast Data'!D40 -> 5262.160904 | E40: ='[2]CDCM Forecast Data'!E40 -> 5423.972352 | F40: =E40*(1+F$13) -> 5588.33515 | G40: 5762.090109 | H40: 5931.148987 | I40: 6114.296106
A41: 28 | B41: LV service model 2 | C41: ='[2]CDCM Forecast Data'!C41 -> 574.28134 | D41: ='[2]CDCM Forecast Data'!D41 -> 591.9404912 | E41: ='[2]CDCM Forecast Data'!E41 -> 610.1426613 | F41: 628.6318329 | G41: 648.1775285 | H41: 667.1949621 | I41: 687.7971818
A42: 29 | B42: LV service model 3 | C42: ='[2]CDCM Forecast Data'!C42 -> 699.18344 | D42: ='[2]CDCM Forecast Data'!D42 -> 720.6833308 | E42: ='[2]CDCM Forecast Data'!E42 -> 742.8443432 | F42: 765.3547778 | G42: 789.151523 | H42: 812.305113 | I42: 837.3881687
A43: 30 | B43: LV service model 4 | C43: ='[2]CDCM Forecast Data'!C43 -> 518.5284 | D43: ='[2]CDCM Forecast Data'!D43 -> 534.4731483 | E43: ='[2]CDCM Forecast Data'!E43 -> 550.9081976 | F43: 567.6023854 | G43: 585.2505268 | H43: 602.4216914 | I43: 621.0237864
A44: 31 | B44: LV service model 5 | C44: ='[2]CDCM Forecast Data'!C44 -> 1178.730448 | D44: ='[2]CDCM Forecast Data'!D44 -> 1214.976409 | E44: ='[2]CDCM Forecast Data'!E44 -> 1252.336934 | F44: 1290.286538 | G44: 1330.404691 | H44: 1369.438569 | I44: 1411.725271
A45: 32 | B45: LV service model 6 | C45: ='[2]CDCM Forecast Data'!C45 -> 907.87362 | D45: ='[2]CDCM Forecast Data'!D45 -> 935.7907338 | E45: ='[2]CDCM Forecast Data'!E45 -> 964.5662989 | F45: 993.7955807 | G45: 1024.695107 | H45: 1054.759511 | I45: 1087.329282
A46: 33 | B46: LV service model 7 | C46: ='[2]CDCM Forecast Data'!C46 -> 0 | D46: ='[2]CDCM Forecast Data'!D46 -> 0 | E46: ='[2]CDCM Forecast Data'!E46 -> 0 | F46: 0 | G46: 0 | H46: 0 | I46: 0
A47: 34 | B47: LV service model 8 | C47: ='[2]CDCM Forecast Data'!C47 -> 474.8232 | D47: ='[2]CDCM Forecast Data'!D47 -> 489.4240134 | E47: ='[2]CDCM Forecast Data'!E47 -> 504.4738018 | F47: 519.7608867 | G47: 535.9215193 | H47: 551.6453781 | I47: 568.6795584
A48: 35 | B48: 1023 HV service model asset cost (£)
A49: 36 | B49: HV service model 1 | C49: ='[2]CDCM Forecast Data'!C49 -> 9007.159776 | D49: ='[2]CDCM Forecast Data'!D49 -> 9284.129939 | E49: ='[2]CDCM Forecast Data'!E49 -> 9569.616935 | F49: =E49*(1+F$13) -> 9859.605327 | G49: 10166.16448 | H49: 10464.43826 | I49: 10787.56818
A50: 37 | B50: HV service model 2 | C50: ='[2]CDCM Forecast Data'!C50 -> 4342.656 | D50: ='[2]CDCM Forecast Data'!D50 -> 4476.192672 | E50: ='[2]CDCM Forecast Data'!E50 -> 4613.835597 | F50: 4753.648797 | G50: 4901.451322 | H50: 5045.259185 | I50: 5201.051036
A51: 38 | B51: HV service model 3 | C51: ='[2]CDCM Forecast Data'!C51 -> 0 | D51: ='[2]CDCM Forecast Data'!D51 -> 0 | E51: ='[2]CDCM Forecast Data'!E51 -> 0 | F51: 0 | G51: 0 | H51: 0 | I51: 0
A52: 39 | B52: HV service model 4 | C52: ='[2]CDCM Forecast Data'!C52 -> 0 | D52: ='[2]CDCM Forecast Data'!D52 -> 0 | E52: ='[2]CDCM Forecast Data'!E52 -> 0 | F52: 0 | G52: 0 | H52: 0 | I52: 0
A53: 40 | B53: HV service model 5 | C53: ='[2]CDCM Forecast Data'!C53 -> 0 | D53: ='[2]CDCM Forecast Data'!D53 -> 0 | E53: ='[2]CDCM Forecast Data'!E53 -> 0 | F53: 0 | G53: 0 | H53: 0 | I53: 0
A54: 41 | B54: 1025 Matrix of applicability of LV service models to tariffs with fixed charges
A55: 42 | B55: 1026 Matrix of applicability of LV service models to unmetered tariffs
A56: 43 | B56: 1028 Matrix of applicability of HV service models to tariffs with fixed charges
A57: 44 | B57: 1032 Loss adjustment factors to transmission
A58: 45 | B58: 132kV | C58: ='[2]CDCM Forecast Data'!C58 -> 1.002 | D58: ='[2]CDCM Forecast Data'!D58 -> 1.002 | E58: ='[2]CDCM Forecast Data'!E58 -> 1.002 | F58: ='[2]CDCM Forecast Data'!F58 -> 1.002 | G58: ='[2]CDCM Forecast Data'!G58 -> 1.002 | H58: ='[2]CDCM Forecast Data'!H58 -> 1.002 | I58: ='[2]CDCM Forecast Data'!I58 -> 1.002
A59: 46 | B59: 132kV/EHV | C59: ='[2]CDCM Forecast Data'!C59 -> 1.007 | D59: ='[2]CDCM Forecast Data'!D59 -> 1.007 | E59: ='[2]CDCM Forecast Data'!E59 -> 1.007 | F59: ='[2]CDCM Forecast Data'!F59 -> 1.007 | G59: ='[2]CDCM Forecast Data'!G59 -> 1.007 | H59: ='[2]CDCM Forecast Data'!H59 -> 1.007 | I59: ='[2]CDCM Forecast Data'!I59 -> 1.007
A60: 47 | B60: EHV | C60: ='[2]CDCM Forecast Data'!C60 -> 1.016 | D60: ='[2]CDCM Forecast Data'!D60 -> 1.016 | E60: ='[2]CDCM Forecast Data'!E60 -> 1.016 | F60: ='[2]CDCM Forecast Data'!F60 -> 1.016 | G60: ='[2]CDCM Forecast Data'!G60 -> 1.016 | H60: ='[2]CDCM Forecast Data'!H60 -> 1.016 | I60: ='[2]CDCM Forecast Data'!I60 -> 1.016
A61: 48 | B61: EHV/HV | C61: ='[2]CDCM Forecast Data'!C61 -> 1.023 | D61: ='[2]CDCM Forecast Data'!D61 -> 1.023 | E61: ='[2]CDCM Forecast Data'!E61 -> 1.023 | F61: ='[2]CDCM Forecast Data'!F61 -> 1.023 | G61: ='[2]CDCM Forecast Data'!G61 -> 1.023 | H61: ='[2]CDCM Forecast Data'!H61 -> 1.023 | I61: ='[2]CDCM Forecast Data'!I61 -> 1.023
A62: 49 | B62: HV | C62: ='[2]CDCM Forecast Data'!C62 -> 1.051 | D62: ='[2]CDCM Forecast Data'!D62 -> 1.051 | E62: ='[2]CDCM Forecast Data'!E62 -> 1.051 | F62: ='[2]CDCM Forecast Data'!F62 -> 1.051 | G62: ='[2]CDCM Forecast Data'!G62 -> 1.051 | H62: ='[2]CDCM Forecast Data'!H62 -> 1.051 | I62: ='[2]CDCM Forecast Data'!I62 -> 1.051
A63: 50 | B63: HV/LV | C63: ='[2]CDCM Forecast Data'!C63 -> 1.07 | D63: ='[2]CDCM Forecast Data'!D63 -> 1.07 | E63: ='[2]CDCM Forecast Data'!E63 -> 1.07 | F63: ='[2]CDCM Forecast Data'!F63 -> 1.07 | G63: ='[2]CDCM Forecast Data'!G63 -> 1.07 | H63: ='[2]CDCM Forecast Data'!H63 -> 1.07 | I63: ='[2]CDCM Forecast Data'!I63 -> 1.07
A64: 51 | B64: LV circuits | C64: ='[2]CDCM Forecast Data'!C64 -> 1.087 | D64: ='[2]CDCM Forecast Data'!D64 -> 1.087 | E64: ='[2]CDCM Forecast Data'!E64 -> 1.087 | F64: ='[2]CDCM Forecast Data'!F64 -> 1.087 | G64: ='[2]CDCM Forecast Data'!G64 -> 1.087 | H64: ='[2]CDCM Forecast Data'!H64 -> 1.087 | I64: ='[2]CDCM Forecast Data'!I64 -> 1.087
A65: 52 | B65: 1037 Embedded network (LDNO) discounts
A66: 53 | B66: LDNO LV: LV user | C66: ='[2]CDCM Forecast Data'!C66 -> 0.3135873804 | D66: ='[2]CDCM Forecast Data'!D66 -> 0.3306425405 | E66: ='[2]CDCM Forecast Data'!E66 -> 0.3329917567 | F66: ='[2]CDCM Forecast Data'!F66 -> 0.3329917567 | G66: ='[2]CDCM Forecast Data'!G66 -> 0.3329917567 | H66: ='[2]CDCM Forecast Data'!H66 -> 0.3329917567 | I66: ='[2]CDCM Forecast Data'!I66 -> 0.3329917567
A67: 54 | B67: LDNO HV: LV user | C67: ='[2]CDCM Forecast Data'!C67 -> 0.5073714784 | D67: ='[2]CDCM Forecast Data'!D67 -> 0.514170102 | E67: ='[2]CDCM Forecast Data'!E67 -> 0.5129546512 | F67: ='[2]CDCM Forecast Data'!F67 -> 0.5129546512 | G67: ='[2]CDCM Forecast Data'!G67 -> 0.5129546512 | H67: ='[2]CDCM Forecast Data'!H67 -> 0.5129546512 | I67: ='[2]CDCM Forecast Data'!I67 -> 0.5129546512
A68: 55 | B68: LDNO HV: LV sub user | C68: ='[2]CDCM Forecast Data'!C68 -> 0.2586280066 | D68: ='[2]CDCM Forecast Data'!D68 -> 0.2583364875 | E68: ='[2]CDCM Forecast Data'!E68 -> 0.2532516803 | F68: ='[2]CDCM Forecast Data'!F68 -> 0.2532516803 | G68: ='[2]CDCM Forecast Data'!G68 -> 0.2532516803 | H68: ='[2]CDCM Forecast Data'!H68 -> 0.2532516803 | I68: ='[2]CDCM Forecast Data'!I68 -> 0.2532516803
A69: 56 | B69: LDNO HV: HV user | C69: ='[2]CDCM Forecast Data'!C69 -> 0.1546241098 | D69: ='[2]CDCM Forecast Data'!D69 -> 0.1507851012 | E69: ='[2]CDCM Forecast Data'!E69 -> 0.1433961861 | F69: ='[2]CDCM Forecast Data'!F69 -> 0.1433961861 | G69: ='[2]CDCM Forecast Data'!G69 -> 0.1433961861 | H69: ='[2]CDCM Forecast Data'!H69 -> 0.1433961861 | I69: ='[2]CDCM Forecast Data'!I69 -> 0.1433961861
A70: 57 | B70: 1041 Load profile data for demand users: coincidence factor
A71: 58 | B71: Domestic Unrestricted | C71: ='[2]CDCM Forecast Data'!C71 -> 0.8973881974 | D71: ='[2]CDCM Forecast Data'!D71 -> 0.8973881974 | E71: ='Smoothed Input Details'!E15 -> 0.924290325 | F71: =E71 -> 0.924290325 | G71: =F71 -> 0.924290325 | H71: =G71 -> 0.924290325 | I71: =H71 -> 0.924290325
A72: 59 | B72: Domestic Two Rate | C72: ='[2]CDCM Forecast Data'!C72 -> 0.4159751671 | D72: ='[2]CDCM Forecast Data'!D72 -> 0.4159751671 | E72: ='Smoothed Input Details'!E16 -> 0.4479462839 | F72: =E72 -> 0.4479462839 | G72: 0.4479462839 | H72: 0.4479462839 | I72: 0.4479462839
A73: 60 | B73: Domestic Off Peak (related MPAN) | C73: ='[2]CDCM Forecast Data'!C73 -> 0 | D73: ='[2]CDCM Forecast Data'!D73 -> 0
A74: 61 | B74: Small Non Domestic Unrestricted | C74: ='[2]CDCM Forecast Data'!C74 -> 0.6949220614 | D74: ='[2]CDCM Forecast Data'!D74 -> 0.6949220614 | E74: ='Smoothed Input Details'!E18 -> 0.6367467464 | F74: =E74 -> 0.6367467464 | G74: =F74 -> 0.6367467464 | H74: =G74 -> 0.6367467464 | I74: =H74 -> 0.6367467464
A75: 62 | B75: Small Non Domestic Two Rate | C75: ='[2]CDCM Forecast Data'!C75 -> 0.7484644716 | D75: ='[2]CDCM Forecast Data'!D75 -> 0.7484644716 | E75: ='Smoothed Input Details'!E19 -> 0.749844377 | F75: 0.749844377 | G75: 0.749844377 | H75: 0.749844377 | I75: 0.749844377
A76: 63 | B76: Small Non Domestic Off Peak (related MPAN) | C76: ='[2]CDCM Forecast Data'!C76 -> 0 | D76: ='[2]CDCM Forecast Data'!D76 -> 0
A77: 64 | B77: LV Medium Non-Domestic | C77: ='[2]CDCM Forecast Data'!C77 -> 0.8380101234 | D77: ='[2]CDCM Forecast Data'!D77 -> 0.8380101234 | E77: ='Smoothed Input Details'!E21 -> 0.8260462352 | F77: =E77 -> 0.8260462352 | G77: =F77 -> 0.8260462352 | H77: =G77 -> 0.8260462352 | I77: =H77 -> 0.8260462352
A78: 65 | B78: LV Sub Medium Non-Domestic | C78: ='[2]CDCM Forecast Data'!C78 -> 0.8380101234 | D78: ='[2]CDCM Forecast Data'!D78 -> 0.8380101234 | E78: ='Smoothed Input Details'!E22 -> 0.8260462352 | F78: 0.8260462352 | G78: 0.8260462352 | H78: 0.8260462352 | I78: 0.8260462352
A79: 66 | B79: HV Medium Non-Domestic | C79: ='[2]CDCM Forecast Data'!C79 -> 0.6404392903 | D79: ='[2]CDCM Forecast Data'!D79 -> 0.6404392903 | E79: ='Smoothed Input Details'!E23 -> 0.6841202482 | F79: 0.6841202482 | G79: 0.6841202482 | H79: 0.6841202482 | I79: 0.6841202482
A80: 67 | B80: LV Network Domestic | C80: ='[2]CDCM Forecast Data'!C80 -> 0.832730403 | D80: ='[2]CDCM Forecast Data'!D80 -> 0.832730403 | E80: ='Smoothed Input Details'!E24 -> 0.8603133383 | F80: 0.8603133383 | G80: 0.8603133383 | H80: 0.8603133383 | I80: 0.8603133383
A81: 68 | B81: LV Network Non-Domestic Non-CT | C81: ='[2]CDCM Forecast Data'!C81 -> 0.7054225532 | D81: ='[2]CDCM Forecast Data'!D81 -> 0.7054225532 | E81: ='Smoothed Input Details'!E25 -> 0.6589269349 | F81: 0.6589269349 | G81: 0.6589269349 | H81: 0.6589269349 | I81: 0.6589269349
A82: 69 | B82: LV HH Metered | C82: ='[2]CDCM Forecast Data'!C82 -> 0.7938568622 | D82: ='[2]CDCM Forecast Data'!D82 -> 0.7938568622 | E82: ='Smoothed Input Details'!E26 -> 0.7544906485 | F82: 0.7544906485 | G82: 0.7544906485 | H82: 0.7544906485 | I82: 0.7544906485
A83: 70 | B83: LV Sub HH Metered | C83: ='[2]CDCM Forecast Data'!C83 -> 0.8079377985 | D83: ='[2]CDCM Forecast Data'!D83 -> 0.8079377985 | E83: ='Smoothed Input Details'!E27 -> 0.7877409445 | F83: 0.7877409445 | G83: 0.7877409445 | H83: 0.7877409445 | I83: 0.7877409445
A84: 71 | B84: HV HH Metered | C84: ='[2]CDCM Forecast Data'!C84 -> 0.7889297845 | D84: ='[2]CDCM Forecast Data'!D84 -> 0.7889297845 | E84: ='Smoothed Input Details'!E28 -> 0.7715753997 | F84: 0.7715753997 | G84: 0.7715753997 | H84: 0.7715753997 | I84: 0.7715753997
A85: 72 | B85: NHH UMS category A | C85: ='[2]CDCM Forecast Data'!C85 -> 1 | D85: ='[2]CDCM Forecast Data'!D85 -> 1 | E85: ='Smoothed Input Details'!E29 -> 1 | F85: 1 | G85: 1 | H85: 1 | I85: 1
A86: 73 | B86: NHH UMS category B | C86: ='[2]CDCM Forecast Data'!C86 -> 0.9930142079 | D86: ='[2]CDCM Forecast Data'!D86 -> 0.9930142079 | E86: ='Smoothed Input Details'!E30 -> 0.9930142079 | F86: 0.9930142079 | G86: 0.9930142079 | H86: 0.9930142079 | I86: 0.9930142079
A87: 74 | B87: NHH UMS category C | C87: ='[2]CDCM Forecast Data'!C87 -> 0.9521347884 | D87: ='[2]CDCM Forecast Data'!D87 -> 0.9521347884 | E87: ='Smoothed Input Details'!E31 -> 0.9521347884 | F87: 0.9521347884 | G87: 0.9521347884 | H87: 0.9521347884 | I87: 0.9521347884
A88: 75 | B88: NHH UMS category D | C88: ='[2]CDCM Forecast Data'!C88 -> 0 | D88: ='[2]CDCM Forecast Data'!D88 -> 0 | E88: ='Smoothed Input Details'!E32 -> 0.001286764706 | F88: 0.001286764706 | G88: 0.001286764706 | H88: 0.001286764706 | I88: 0.001286764706
A89: 76 | B89: LV UMS (Pseudo HH Metered) | C89: ='[2]CDCM Forecast Data'!C89 -> 0.9439806229 | D89: ='[2]CDCM Forecast Data'!D89 -> 0.9439806229 | E89: ='Smoothed Input Details'!E33 -> 0.93763764 | F89: 0.93763764 | G89: 0.93763764 | H89: 0.93763764 | I89: 0.93763764
A90: 77 | B90: 1041 Load profile data for demand users: load factor
A91: 78 | B91: Domestic Unrestricted | C91: ='[2]CDCM Forecast Data'!C91 -> 0.4341107688 | D91: ='[2]CDCM Forecast Data'!D91 -> 0.4341107688 | E91: ='Smoothed Input Details'!E42 -> 0.4311592511 | F91: =E91 -> 0.4311592511 | G91: 0.4311592511 | H91: 0.4311592511 | I91: 0.4311592511
A92: 79 | B92: Domestic Two Rate | C92: ='[2]CDCM Forecast Data'!C92 -> 0.3006975187 | D92: ='[2]CDCM Forecast Data'!D92 -> 0.3006975187 | E92: ='Smoothed Input Details'!E43 -> 0.3074209847 | F92: 0.3074209847 | G92: 0.3074209847 | H92: 0.3074209847 | I92: 0.3074209847
A93: 80 | B93: Domestic Off Peak (related MPAN) | C93: ='[2]CDCM Forecast Data'!C93 -> 0.1796193961 | D93: ='[2]CDCM Forecast Data'!D93 -> 0.1796193961 | E93: ='Smoothed Input Details'!E44 -> 0.1798757717 | F93: 0.1798757717 | G93: 0.1798757717 | H93: 0.1798757717 | I93: 0.1798757717
A94: 81 | B94: Small Non Domestic Unrestricted | C94: ='[2]CDCM Forecast Data'!C94 -> 0.397975345 | D94: ='[2]CDCM Forecast Data'!D94 -> 0.397975345 | E94: ='Smoothed Input Details'!E45 -> 0.3976203328 | F94: 0.3976203328 | G94: 0.3976203328 | H94: 0.3976203328 | I94: 0.3976203328
A95: 82 | B95: Small Non Domestic Two Rate | C95: ='[2]CDCM Forecast Data'!C95 -> 0.5202452171 | D95: ='[2]CDCM Forecast Data'!D95 -> 0.5202452171 | E95: ='Smoothed Input Details'!E46 -> 0.5330198646 | F95: 0.5330198646 | G95: 0.5330198646 | H95: 0.5330198646 | I95: 0.5330198646
A96: 83 | B96: Small Non Domestic Off Peak (related MPAN) | C96: ='[2]CDCM Forecast Data'!C96 -> 0.2112099236 | D96: ='[2]CDCM Forecast Data'!D96 -> 0.2112099236 | E96: ='Smoothed Input Details'!E47 -> 0.2128151592 | F96: 0.2128151592 | G96: 0.2128151592 | H96: 0.2128151592 | I96: 0.2128151592
A97: 84 | B97: LV Medium Non-Domestic | C97: ='[2]CDCM Forecast Data'!C97 -> 0.5357441685 | D97: ='[2]CDCM Forecast Data'!D97 -> 0.5357441685 | E97: ='Smoothed Input Details'!E48 -> 0.5355232849 | F97: 0.5355232849 | G97: 0.5355232849 | H97: 0.5355232849 | I97: 0.5355232849
A98: 85 | B98: LV Sub Medium Non-Domestic | C98: ='[2]CDCM Forecast Data'!C98 -> 0.5357441685 | D98: ='[2]CDCM Forecast Data'!D98 -> 0.5357441685 | E98: ='Smoothed Input Details'!E49 -> 0.5355232849 | F98: 0.5355232849 | G98: 0.5355232849 | H98: 0.5355232849 | I98: 0.5355232849
A99: 86 | B99: HV Medium Non-Domestic | C99: ='[2]CDCM Forecast Data'!C99 -> 0.4344667524 | D99: ='[2]CDCM Forecast Data'!D99 -> 0.4344667524 | E99: ='Smoothed Input Details'!E50 -> 0.479986234 | F99: 0.479986234 | G99: 0.479986234 | H99: 0.479986234 | I99: 0.479986234
A100: 87 | B100: LV Network Domestic | C100: ='[2]CDCM Forecast Data'!C100 -> 0.4151066987 | D100: ='[2]CDCM Forecast Data'!D100 -> 0.4151066987 | E100: ='Smoothed Input Details'!E51 -> 0.4134633694 | F100: 0.4134633694 | G100: 0.4134633694 | H100: 0.4134633694 | I100: 0.4134633694
A101: 88 | B101: LV Network Non-Domestic Non-CT | C101: ='[2]CDCM Forecast Data'!C101 -> 0.4208675651 | D101: ='[2]CDCM Forecast Data'!D101 -> 0.4208675651 | E101: ='Smoothed Input Details'!E52 -> 0.4230843118 | F101: 0.4230843118 | G101: 0.4230843118 | H101: 0.4230843118 | I101: 0.4230843118
A102: 89 | B102: LV HH Metered | C102: ='[2]CDCM Forecast Data'!C102 -> 0.5373645882 | D102: ='[2]CDCM Forecast Data'!D102 -> 0.5373645882 | E102: ='Smoothed Input Details'!E53 -> 0.5362840031 | F102: 0.5362840031 | G102: 0.5362840031 | H102: 0.5362840031 | I102: 0.5362840031
A103: 90 | B103: LV Sub HH Metered | C103: ='[2]CDCM Forecast Data'!C103 -> 0.5270240528 | D103: ='[2]CDCM Forecast Data'!D103 -> 0.5270240528 | E103: ='Smoothed Input Details'!E54 -> 0.5181753998 | F103: 0.5181753998 | G103: 0.5181753998 | H103: 0.5181753998 | I103: 0.5181753998
A104: 91 | B104: HV HH Metered | C104: ='[2]CDCM Forecast Data'!C104 -> 0.6615831906 | D104: ='[2]CDCM Forecast Data'!D104 -> 0.6615831906 | E104: ='Smoothed Input Details'!E55 -> 0.6647478958 | F104: 0.6647478958 | G104: 0.6647478958 | H104: 0.6647478958 | I104: 0.6647478958
A105: 92 | B105: NHH UMS category A | C105: ='[2]CDCM Forecast Data'!C105 -> 1 | D105: ='[2]CDCM Forecast Data'!D105 -> 1 | E105: ='Smoothed Input Details'!E56 -> 1 | F105: 1 | G105: 1 | H105: 1 | I105: 1
A106: 93 | B106: NHH UMS category B | C106: ='[2]CDCM Forecast Data'!C106 -> 0.4696008087 | D106: ='[2]CDCM Forecast Data'!D106 -> 0.4696008087 | E106: ='Smoothed Input Details'!E57 -> 0.46831761 | F106: 0.46831761 | G106: 0.46831761 | H106: 0.46831761 | I106: 0.46831761
A107: 94 | B107: NHH UMS category C | C107: ='[2]CDCM Forecast Data'!C107 -> 0.2541703963 | D107: ='[2]CDCM Forecast Data'!D107 -> 0.2541703963 | E107: ='Smoothed Input Details'!E58 -> 0.2508349656 | F107: =E107 -> 0.2508349656 | G107: 0.2508349656 | H107: 0.2508349656 | I107: 0.2508349656
A108: 95 | B108: NHH UMS category D | C108: ='[2]CDCM Forecast Data'!C108 -> 0.5158722999 | D108: ='[2]CDCM Forecast Data'!D108 -> 0.5158722999 | E108: ='Smoothed Input Details'!E59 -> 0.5162235966 | F108: 0.5162235966 | G108: 0.5162235966 | H108: 0.5162235966 | I108: 0.5162235966
A109: 96 | B109: LV UMS (Pseudo HH Metered) | C109: ='[2]CDCM Forecast Data'!C109 -> 0.4763012872 | D109: ='[2]CDCM Forecast Data'!D109 -> 0.4763012872 | E109: ='Smoothed Input Details'!E60 -> 0.4686694612 | F109: 0.4686694612 | G109: 0.4686694612 | H109: 0.4686694612 | I109: 0.4686694612
A110: 97 | B110: 1053. Volume forecasts for the charging year
A111: 98 | B111: 1055 Transmission exit charges (£/year) | C111: ='[2]CDCM Forecast Data'!C111 -> 11499193.37 | D111: ='[2]CDCM Forecast Data'!D111 -> 11976273.12 | E111: ='[2]CDCM Forecast Data'!E111 -> 13478564.12 | F111: ='[2]CDCM Forecast Data'!F111 -> 14705734.51 | G111: ='[2]CDCM Forecast Data'!G111 -> 15815347.7 | H111: ='[2]CDCM Forecast Data'!H111 -> 16294993.49 | I111: ='[2]CDCM Forecast Data'!I111 -> 16774639.28
A112: 99 | B112: 1059 Other Expenditure (£/year)
A113: 100 | B113: Direct cost (£/year) | C113: ='[2]CDCM Forecast Data'!C113 -> 25580490.78 | D113: ='[2]CDCM Forecast Data'!D113 -> 26093896.11 | E113: ='[2]CDCM Forecast Data'!E113 -> 35781165.4 | F113: ='[2]CDCM Forecast Data'!F113 -> 36865443.14 | G113: ='[2]CDCM Forecast Data'!G113 -> 38011679.61 | H113: ='[2]CDCM Forecast Data'!H113 -> 39126936.71 | I113: ='[2]CDCM Forecast Data'!I113 -> 40335131.91
A114: 101 | B114: Indirect cost (£/year) | C114: ='[2]CDCM Forecast Data'!C114 -> 112907941.8 | D114: ='[2]CDCM Forecast Data'!D114 -> 108802306.5 | E114: ='[2]CDCM Forecast Data'!E114 -> 115243804.8 | F114: ='[2]CDCM Forecast Data'!F114 -> 118736041.3 | G114: ='[2]CDCM Forecast Data'!G114 -> 122427834.2 | H114: ='[2]CDCM Forecast Data'!H114 -> 126019848.9 | I114: ='[2]CDCM Forecast Data'!I114 -> 129911198.1
A115: 102 | B115: Indirect cost proportion | C115: ='[2]CDCM Forecast Data'!C115 -> 0.6 | D115: ='[2]CDCM Forecast Data'!D115 -> 0.6 | E115: ='[2]CDCM Forecast Data'!E115 -> 0.6 | F115: ='[2]CDCM Forecast Data'!F115 -> 0.6 | G115: ='[2]CDCM Forecast Data'!G115 -> 0.6 | H115: ='[2]CDCM Forecast Data'!H115 -> 0.6 | I115: ='[2]CDCM Forecast Data'!I115 -> 0.6
A116: 103 | B116: Network rates (£/year) | C116: ='[2]CDCM Forecast Data'!C116 -> 28019599 | D116: ='[2]CDCM Forecast Data'!D116 -> 32558777.8 | E116: ='[2]CDCM Forecast Data'!E116 -> 30222980 | F116: ='[2]CDCM Forecast Data'!F116 -> 31079824 | G116: ='[2]CDCM Forecast Data'!G116 -> 31997818 | H116: ='[2]CDCM Forecast Data'!H116 -> 32610062 | I116: ='[2]CDCM Forecast Data'!I116 -> 33617023.53
A117: 104 | B117: 1060 Customer contributions under current connection charging policy
A118: 105 | B118: LV network
A119: 106 | B119: Assets 132kV | C119: ='[2]CDCM Forecast Data'!C119 -> 0 | D119: ='[2]CDCM Forecast Data'!D119 -> 0 | E119: ='[2]CDCM Forecast Data'!E119 -> 0 | F119: ='[2]CDCM Forecast Data'!F119 -> 0 | G119: ='[2]CDCM Forecast Data'!G119 -> 0 | H119: ='[2]CDCM Forecast Data'!H119 -> 0 | I119: ='[2]CDCM Forecast Data'!I119 -> 0
A120: 107 | B120: Assets 132kV/EHV | C120: ='[2]CDCM Forecast Data'!C120 -> 0 | D120: ='[2]CDCM Forecast Data'!D120 -> 0 | E120: ='[2]CDCM Forecast Data'!E120 -> 0 | F120: ='[2]CDCM Forecast Data'!F120 -> 0 | G120: ='[2]CDCM Forecast Data'!G120 -> 0 | H120: ='[2]CDCM Forecast Data'!H120 -> 0 | I120: ='[2]CDCM Forecast Data'!I120 -> 0
A121: 108 | B121: Assets EHV | C121: ='[2]CDCM Forecast Data'!C121 -> 0 | D121: ='[2]CDCM Forecast Data'!D121 -> 0 | E121: ='[2]CDCM Forecast Data'!E121 -> 0 | F121: ='[2]CDCM Forecast Data'!F121 -> 0 | G121: ='[2]CDCM Forecast Data'!G121 -> 0 | H121: ='[2]CDCM Forecast Data'!H121 -> 0 | I121: ='[2]CDCM Forecast Data'!I121 -> 0
A122: 109 | B122: Assets EHV/HV | C122: ='[2]CDCM Forecast Data'!C122 -> 0 | D122: ='[2]CDCM Forecast Data'!D122 -> 0 | E122: ='[2]CDCM Forecast Data'!E122 -> 0 | F122: ='[2]CDCM Forecast Data'!F122 -> 0 | G122: ='[2]CDCM Forecast Data'!G122 -> 0 | H122: ='[2]CDCM Forecast Data'!H122 -> 0 | I122: ='[2]CDCM Forecast Data'!I122 -> 0
A123: 110 | B123: Assets 132kV/HV | C123: ='[2]CDCM Forecast Data'!C123 -> 0 | D123: ='[2]CDCM Forecast Data'!D123 -> 0 | E123: ='[2]CDCM Forecast Data'!E123 -> 0 | F123: ='[2]CDCM Forecast Data'!F123 -> 0 | G123: ='[2]CDCM Forecast Data'!G123 -> 0 | H123: ='[2]CDCM Forecast Data'!H123 -> 0 | I123: ='[2]CDCM Forecast Data'!I123 -> 0
A124: 111 | B124: Assets HV | C124: ='[2]CDCM Forecast Data'!C124 -> 0.386849697 | D124: ='[2]CDCM Forecast Data'!D124 -> 0.386849697 | E124: ='[2]CDCM Forecast Data'!E124 -> 0.386849697 | F124: ='[2]CDCM Forecast Data'!F124 -> 0.386849697 | G124: ='[2]CDCM Forecast Data'!G124 -> 0.386849697 | H124: ='[2]CDCM Forecast Data'!H124 -> 0.386849697 | I124: ='[2]CDCM Forecast Data'!I124 -> 0.386849697
A125: 112 | B125: Assets HV/LV | C125: ='[2]CDCM Forecast Data'!C125 -> 0.6412482557 | D125: ='[2]CDCM Forecast Data'!D125 -> 0.6412482557 | E125: ='[2]CDCM Forecast Data'!E125 -> 0.6412482557 | F125: ='[2]CDCM Forecast Data'!F125 -> 0.6412482557 | G125: ='[2]CDCM Forecast Data'!G125 -> 0.6412482557 | H125: ='[2]CDCM Forecast Data'!H125 -> 0.6412482557 | I125: ='[2]CDCM Forecast Data'!I125 -> 0.6412482557
A126: 113 | B126: Assets LV circuits | C126: ='[2]CDCM Forecast Data'!C126 -> 0.8956468145 | D126: ='[2]CDCM Forecast Data'!D126 -> 0.8956468145 | E126: ='[2]CDCM Forecast Data'!E126 -> 0.8956468145 | F126: ='[2]CDCM Forecast Data'!F126 -> 0.8956468145 | G126: ='[2]CDCM Forecast Data'!G126 -> 0.8956468145 | H126: ='[2]CDCM Forecast Data'!H126 -> 0.8956468145 | I126: ='[2]CDCM Forecast Data'!I126 -> 0.8956468145
A127: 114 | B127: LV substation
A128: 115 | B128: Assets 132kV | C128: ='[2]CDCM Forecast Data'!C128 -> 0 | D128: ='[2]CDCM Forecast Data'!D128 -> 0 | E128: ='[2]CDCM Forecast Data'!E128 -> 0 | F128: ='[2]CDCM Forecast Data'!F128 -> 0 | G128: ='[2]CDCM Forecast Data'!G128 -> 0 | H128: ='[2]CDCM Forecast Data'!H128 -> 0 | I128: ='[2]CDCM Forecast Data'!I128 -> 0
A129: 116 | B129: Assets 132kV/EHV | C129: ='[2]CDCM Forecast Data'!C129 -> 0 | D129: ='[2]CDCM Forecast Data'!D129 -> 0 | E129: ='[2]CDCM Forecast Data'!E129 -> 0 | F129: ='[2]CDCM Forecast Data'!F129 -> 0 | G129: ='[2]CDCM Forecast Data'!G129 -> 0 | H129: ='[2]CDCM Forecast Data'!H129 -> 0 | I129: ='[2]CDCM Forecast Data'!I129 -> 0
A130: 117 | B130: Assets EHV | C130: ='[2]CDCM Forecast Data'!C130 -> 0 | D130: ='[2]CDCM Forecast Data'!D130 -> 0 | E130: ='[2]CDCM Forecast Data'!E130 -> 0 | F130: ='[2]CDCM Forecast Data'!F130 -> 0 | G130: ='[2]CDCM Forecast Data'!G130 -> 0 | H130: ='[2]CDCM Forecast Data'!H130 -> 0 | I130: ='[2]CDCM Forecast Data'!I130 -> 0
A131: 118 | B131: Assets EHV/HV | C131: ='[2]CDCM Forecast Data'!C131 -> 0 | D131: ='[2]CDCM Forecast Data'!D131 -> 0 | E131: ='[2]CDCM Forecast Data'!E131 -> 0 | F131: ='[2]CDCM Forecast Data'!F131 -> 0 | G131: ='[2]CDCM Forecast Data'!G131 -> 0 | H131: ='[2]CDCM Forecast Data'!H131 -> 0 | I131: ='[2]CDCM Forecast Data'!I131 -> 0
A132: 119 | B132: Assets 132kV/HV | C132: ='[2]CDCM Forecast Data'!C132 -> 0 | D132: ='[2]CDCM Forecast Data'!D132 -> 0 | E132: ='[2]CDCM Forecast Data'!E132 -> 0 | F132: ='[2]CDCM Forecast Data'!F132 -> 0 | G132: ='[2]CDCM Forecast Data'!G132 -> 0 | H132: ='[2]CDCM Forecast Data'!H132 -> 0 | I132: ='[2]CDCM Forecast Data'!I132 -> 0
A133: 120 | B133: Assets HV | C133: ='[2]CDCM Forecast Data'!C133 -> 0.386849697 | D133: ='[2]CDCM Forecast Data'!D133 -> 0.386849697 | E133: ='[2]CDCM Forecast Data'!E133 -> 0.386849697 | F133: ='[2]CDCM Forecast Data'!F133 -> 0.386849697 | G133: ='[2]CDCM Forecast Data'!G133 -> 0.386849697 | H133: ='[2]CDCM Forecast Data'!H133 -> 0.386849697 | I133: ='[2]CDCM Forecast Data'!I133 -> 0.386849697
A134: 121 | B134: Assets HV/LV | C134: ='[2]CDCM Forecast Data'!C134 -> 0.6412482557 | D134: ='[2]CDCM Forecast Data'!D134 -> 0.6412482557 | E134: ='[2]CDCM Forecast Data'!E134 -> 0.6412482557 | F134: ='[2]CDCM Forecast Data'!F134 -> 0.6412482557 | G134: ='[2]CDCM Forecast Data'!G134 -> 0.6412482557 | H134: ='[2]CDCM Forecast Data'!H134 -> 0.6412482557 | I134: ='[2]CDCM Forecast Data'!I134 -> 0.6412482557
A135: 122 | B135: HV network
A136: 123 | B136: Assets 132kV | C136: ='[2]CDCM Forecast Data'!C136 -> 0 | D136: ='[2]CDCM Forecast Data'!D136 -> 0 | E136: ='[2]CDCM Forecast Data'!E136 -> 0 | F136: ='[2]CDCM Forecast Data'!F136 -> 0 | G136: ='[2]CDCM Forecast Data'!G136 -> 0 | H136: ='[2]CDCM Forecast Data'!H136 -> 0 | I136: ='[2]CDCM Forecast Data'!I136 -> 0
A137: 124 | B137: Assets 132kV/EHV | C137: ='[2]CDCM Forecast Data'!C137 -> 0 | D137: ='[2]CDCM Forecast Data'!D137 -> 0 | E137: ='[2]CDCM Forecast Data'!E137 -> 0 | F137: ='[2]CDCM Forecast Data'!F137 -> 0 | G137: ='[2]CDCM Forecast Data'!G137 -> 0 | H137: ='[2]CDCM Forecast Data'!H137 -> 0 | I137: ='[2]CDCM Forecast Data'!I137 -> 0
A138: 125 | B138: Assets EHV | C138: ='[2]CDCM Forecast Data'!C138 -> 0 | D138: ='[2]CDCM Forecast Data'!D138 -> 0 | E138: ='[2]CDCM Forecast Data'!E138 -> 0 | F138: ='[2]CDCM Forecast Data'!F138 -> 0 | G138: ='[2]CDCM Forecast Data'!G138 -> 0 | H138: ='[2]CDCM Forecast Data'!H138 -> 0 | I138: ='[2]CDCM Forecast Data'!I138 -> 0
A139: 126 | B139: Assets EHV/HV | C139: ='[2]CDCM Forecast Data'!C139 -> 0.2576410695 | D139: ='[2]CDCM Forecast Data'!D139 -> 0.2576410695 | E139: ='[2]CDCM Forecast Data'!E139 -> 0.2576410695 | F139: ='[2]CDCM Forecast Data'!F139 -> 0.2576410695 | G139: ='[2]CDCM Forecast Data'!G139 -> 0.2576410695 | H139: ='[2]CDCM Forecast Data'!H139 -> 0.2576410695 | I139: ='[2]CDCM Forecast Data'!I139 -> 0.2576410695
A140: 127 | B140: Assets 132kV/HV | C140: ='[2]CDCM Forecast Data'!C140 -> 0.2576410695 | D140: ='[2]CDCM Forecast Data'!D140 -> 0.2576410695 | E140: ='[2]CDCM Forecast Data'!E140 -> 0.2576410695 | F140: ='[2]CDCM Forecast Data'!F140 -> 0.2576410695 | G140: ='[2]CDCM Forecast Data'!G140 -> 0.2576410695 | H140: ='[2]CDCM Forecast Data'!H140 -> 0.2576410695 | I140: ='[2]CDCM Forecast Data'!I140 -> 0.2576410695
A141: 128 | B141: Assets HV | C141: ='[2]CDCM Forecast Data'!C141 -> 0.515282139 | D141: ='[2]CDCM Forecast Data'!D141 -> 0.515282139 | E141: ='[2]CDCM Forecast Data'!E141 -> 0.515282139 | F141: ='[2]CDCM Forecast Data'!F141 -> 0.515282139 | G141: ='[2]CDCM Forecast Data'!G141 -> 0.515282139 | H141: ='[2]CDCM Forecast Data'!H141 -> 0.515282139 | I141: ='[2]CDCM Forecast Data'!I141 -> 0.515282139
A142: 129 | B142: HV substation
A143: 130 | B143: Assets 132kV | C143: ='[2]CDCM Forecast Data'!C143 -> 0 | D143: ='[2]CDCM Forecast Data'!D143 -> 0 | E143: ='[2]CDCM Forecast Data'!E143 -> 0 | F143: ='[2]CDCM Forecast Data'!F143 -> 0 | G143: ='[2]CDCM Forecast Data'!G143 -> 0 | H143: ='[2]CDCM Forecast Data'!H143 -> 0 | I143: ='[2]CDCM Forecast Data'!I143 -> 0
A144: 131 | B144: Assets 132kV/EHV | C144: ='[2]CDCM Forecast Data'!C144 -> 0 | D144: ='[2]CDCM Forecast Data'!D144 -> 0 | E144: ='[2]CDCM Forecast Data'!E144 -> 0 | F144: ='[2]CDCM Forecast Data'!F144 -> 0 | G144: ='[2]CDCM Forecast Data'!G144 -> 0 | H144: ='[2]CDCM Forecast Data'!H144 -> 0 | I144: ='[2]CDCM Forecast Data'!I144 -> 0
A145: 132 | B145: Assets EHV | C145: ='[2]CDCM Forecast Data'!C145 -> 0 | D145: ='[2]CDCM Forecast Data'!D145 -> 0 | E145: ='[2]CDCM Forecast Data'!E145 -> 0 | F145: ='[2]CDCM Forecast Data'!F145 -> 0 | G145: ='[2]CDCM Forecast Data'!G145 -> 0 | H145: ='[2]CDCM Forecast Data'!H145 -> 0 | I145: ='[2]CDCM Forecast Data'!I145 -> 0
A146: 133 | B146: Assets EHV/HV | C146: ='[2]CDCM Forecast Data'!C146 -> 0.2576410695 | D146: ='[2]CDCM Forecast Data'!D146 -> 0.2576410695 | E146: ='[2]CDCM Forecast Data'!E146 -> 0.2576410695 | F146: ='[2]CDCM Forecast Data'!F146 -> 0.2576410695 | G146: ='[2]CDCM Forecast Data'!G146 -> 0.2576410695 | H146: ='[2]CDCM Forecast Data'!H146 -> 0.2576410695 | I146: ='[2]CDCM Forecast Data'!I146 -> 0.2576410695
A147: 134 | B147: 1061 Average split of rate 1 units by distribution time band
A148: 135 | B148: RED
A149: 136 | B149: Domestic Unrestricted | C149: ='[2]CDCM Forecast Data'!C149 -> 0.1516373585 | D149: ='[2]CDCM Forecast Data'!D149 -> 0.1516373585 | E149: ='Smoothed Input Details'!K70 -> 0.1521276924 | F149: =E149 -> 0.1521276924 | G149: 0.1521276924 | H149: 0.1521276924 | I149: 0.1521276924
A150: 137 | B150: Domestic Two Rate | C150: ='[2]CDCM Forecast Data'!C150 -> 0.1479445699 | D150: ='[2]CDCM Forecast Data'!D150 -> 0.1479445699 | E150: ='Smoothed Input Details'!K71 -> 0.1494388952 | F150: 0.1494388952 | G150: 0.1494388952 | H150: 0.1494388952 | I150: 0.1494388952
A151: 138 | B151: Domestic Off Peak (related MPAN) | C151: ='[2]CDCM Forecast Data'!C151 -> 0.002821327361 | D151: ='[2]CDCM Forecast Data'!D151 -> 0.002821327361 | E151: ='Smoothed Input Details'!K72 -> 0.002987858073 | F151: 0.002987858073 | G151: 0.002987858073 | H151: 0.002987858073 | I151: 0.002987858073
A152: 139 | B152: Small Non Domestic Unrestricted | C152: ='[2]CDCM Forecast Data'!C152 -> 0.1316649128 | D152: ='[2]CDCM Forecast Data'!D152 -> 0.1316649128 | E152: ='Smoothed Input Details'!K73 -> 0.1322302257 | F152: 0.1322302257 | G152: 0.1322302257 | H152: 0.1322302257 | I152: 0.1322302257
A153: 140 | B153: Small Non Domestic Two Rate | C153: ='[2]CDCM Forecast Data'!C153 -> 0.1309726768 | D153: ='[2]CDCM Forecast Data'!D153 -> 0.1309726768 | E153: ='Smoothed Input Details'!K74 -> 0.1318981478 | F153: 0.1318981478 | G153: 0.1318981478 | H153: 0.1318981478 | I153: 0.1318981478
A154: 141 | B154: Small Non Domestic Off Peak (related MPAN) | C154: ='[2]CDCM Forecast Data'!C154 -> 0.02118094371 | D154: ='[2]CDCM Forecast Data'!D154 -> 0.02118094371 | E154: ='Smoothed Input Details'!K75 -> 0.02192388032 | F154: 0.02192388032 | G154: 0.02192388032 | H154: 0.02192388032 | I154: 0.02192388032
A155: 142 | B155: LV Medium Non-Domestic | C155: ='[2]CDCM Forecast Data'!C155 -> 0.1367575165 | D155: ='[2]CDCM Forecast Data'!D155 -> 0.1367575165 | E155: ='Smoothed Input Details'!K76 -> 0.1372135616 | F155: 0.1372135616 | G155: 0.1372135616 | H155: 0.1372135616 | I155: 0.1372135616
A156: 143 | B156: LV Sub Medium Non-Domestic | C156: ='[2]CDCM Forecast Data'!C156 -> 0.1324668255 | D156: ='[2]CDCM Forecast Data'!D156 -> 0.1324668255 | E156: ='Smoothed Input Details'!K77 -> 0.1308428714 | F156: 0.1308428714 | G156: 0.1308428714 | H156: 0.1308428714 | I156: 0.1308428714
A157: 144 | B157: HV Medium Non-Domestic | C157: ='[2]CDCM Forecast Data'!C157 -> 0.1306740458 | D157: ='[2]CDCM Forecast Data'!D157 -> 0.1306740458 | E157: ='Smoothed Input Details'!K78 -> 0.1308256039 | F157: 0.1308256039 | G157: 0.1308256039 | H157: 0.1308256039 | I157: 0.1308256039
A158: 145 | B158: AMBER
A159: 146 | B159: Domestic Unrestricted | C159: ='[2]CDCM Forecast Data'!C159 -> 0.4190900551 | D159: ='[2]CDCM Forecast Data'!D159 -> 0.4190900551 | E159: ='Smoothed Input Details'!L70 -> 0.4206931097 | F159: =E159 -> 0.4206931097 | G159: 0.4206931097 | H159: 0.4206931097 | I159: 0.4206931097
A160: 147 | B160: Domestic Two Rate | C160: ='[2]CDCM Forecast Data'!C160 -> 0.4159184741 | D160: ='[2]CDCM Forecast Data'!D160 -> 0.4159184741 | E160: ='Smoothed Input Details'!L71 -> 0.4193943485 | F160: 0.4193943485 | G160: 0.4193943485 | H160: 0.4193943485 | I160: 0.4193943485
A161: 148 | B161: Domestic Off Peak (related MPAN) | C161: ='[2]CDCM Forecast Data'!C161 -> 0.2090685143 | D161: ='[2]CDCM Forecast Data'!D161 -> 0.2090685143 | E161: ='Smoothed Input Details'!L72 -> 0.2135206975 | F161: 0.2135206975 | G161: 0.2135206975 | H161: 0.2135206975 | I161: 0.2135206975
A162: 149 | B162: Small Non Domestic Unrestricted | C162: ='[2]CDCM Forecast Data'!C162 -> 0.5841815075 | D162: ='[2]CDCM Forecast Data'!D162 -> 0.5841815075 | E162: ='Smoothed Input Details'!L73 -> 0.5824062361 | F162: 0.5824062361 | G162: 0.5824062361 | H162: 0.5824062361 | I162: 0.5824062361
A163: 150 | B163: Small Non Domestic Two Rate | C163: ='[2]CDCM Forecast Data'!C163 -> 0.5362498745 | D163: ='[2]CDCM Forecast Data'!D163 -> 0.5362498745 | E163: ='Smoothed Input Details'!L74 -> 0.5357440906 | F163: 0.5357440906 | G163: 0.5357440906 | H163: 0.5357440906 | I163: 0.5357440906
A164: 151 | B164: Small Non Domestic Off Peak (related MPAN) | C164: ='[2]CDCM Forecast Data'!C164 -> 0.1746175576 | D164: ='[2]CDCM Forecast Data'!D164 -> 0.1746175576 | E164: ='Smoothed Input Details'!L75 -> 0.1731223603 | F164: 0.1731223603 | G164: 0.1731223603 | H164: 0.1731223603 | I164: 0.1731223603
A165: 152 | B165: LV Medium Non-Domestic | C165: ='[2]CDCM Forecast Data'!C165 -> 0.5264329969 | D165: ='[2]CDCM Forecast Data'!D165 -> 0.5264329969 | E165: ='Smoothed Input Details'!L76 -> 0.5263864947 | F165: 0.5263864947 | G165: 0.5263864947 | H165: 0.5263864947 | I165: 0.5263864947
A166: 153 | B166: LV Sub Medium Non-Domestic | C166: ='[2]CDCM Forecast Data'!C166 -> 0.541902133 | D166: ='[2]CDCM Forecast Data'!D166 -> 0.541902133 | E166: ='Smoothed Input Details'!L77 -> 0.5517795385 | F166: 0.5517795385 | G166: 0.5517795385 | H166: 0.5517795385 | I166: 0.5517795385
A167: 154 | B167: HV Medium Non-Domestic | C167: ='[2]CDCM Forecast Data'!C167 -> 0.5537545453 | D167: ='[2]CDCM Forecast Data'!D167 -> 0.5537545453 | E167: ='Smoothed Input Details'!L78 -> 0.5530160591 | F167: 0.5530160591 | G167: 0.5530160591 | H167: 0.5530160591 | I167: 0.5530160591
A168: 155 | B168: GREEN
A169: 156 | B169: Domestic Unrestricted | C169: ='[2]CDCM Forecast Data'!C169 -> 0.4292725863 | D169: ='[2]CDCM Forecast Data'!D169 -> 0.4292725863 | E169: ='Smoothed Input Details'!M70 -> 0.4271791979 | F169: =E169 -> 0.4271791979 | G169: 0.4271791979 | H169: 0.4271791979 | I169: 0.4271791979
A170: 157 | B170: Domestic Two Rate | C170: ='[2]CDCM Forecast Data'!C170 -> 0.436136956 | D170: ='[2]CDCM Forecast Data'!D170 -> 0.436136956 | E170: ='Smoothed Input Details'!M71 -> 0.4311667562 | F170: 0.4311667562 | G170: 0.4311667562 | H170: 0.4311667562 | I170: 0.4311667562
A171: 158 | B171: Domestic Off Peak (related MPAN) | C171: ='[2]CDCM Forecast Data'!C171 -> 0.7881101584 | D171: ='[2]CDCM Forecast Data'!D171 -> 0.7881101584 | E171: ='Smoothed Input Details'!M72 -> 0.7834914445 | F171: 0.7834914445 | G171: 0.7834914445 | H171: 0.7834914445 | I171: 0.7834914445
A172: 159 | B172: Small Non Domestic Unrestricted | C172: ='[2]CDCM Forecast Data'!C172 -> 0.2841535796 | D172: ='[2]CDCM Forecast Data'!D172 -> 0.2841535796 | E172: ='Smoothed Input Details'!M73 -> 0.2853635382 | F172: 0.2853635382 | G172: 0.2853635382 | H172: 0.2853635382 | I172: 0.2853635382
A173: 160 | B173: Small Non Domestic Two Rate | C173: ='[2]CDCM Forecast Data'!C173 -> 0.3327774488 | D173: ='[2]CDCM Forecast Data'!D173 -> 0.3327774488 | E173: ='Smoothed Input Details'!M74 -> 0.3323577616 | F173: 0.3323577616 | G173: 0.3323577616 | H173: 0.3323577616 | I173: 0.3323577616
A174: 161 | B174: Small Non Domestic Off Peak (related MPAN) | C174: ='[2]CDCM Forecast Data'!C174 -> 0.8042014987 | D174: ='[2]CDCM Forecast Data'!D174 -> 0.8042014987 | E174: ='Smoothed Input Details'!M75 -> 0.8049537594 | F174: 0.8049537594 | G174: 0.8049537594 | H174: 0.8049537594 | I174: 0.8049537594
A175: 162 | B175: LV Medium Non-Domestic | C175: ='[2]CDCM Forecast Data'!C175 -> 0.3368094866 | D175: ='[2]CDCM Forecast Data'!D175 -> 0.3368094866 | E175: ='Smoothed Input Details'!M76 -> 0.3363999437 | F175: 0.3363999437 | G175: 0.3363999437 | H175: 0.3363999437 | I175: 0.3363999437
A176: 163 | B176: LV Sub Medium Non-Domestic | C176: ='[2]CDCM Forecast Data'!C176 -> 0.3256310415 | D176: ='[2]CDCM Forecast Data'!D176 -> 0.3256310415 | E176: ='Smoothed Input Details'!M77 -> 0.3173775901 | F176: 0.3173775901 | G176: 0.3173775901 | H176: 0.3173775901 | I176: 0.3173775901
A177: 164 | B177: HV Medium Non-Domestic | C177: ='[2]CDCM Forecast Data'!C177 -> 0.3155714089 | D177: ='[2]CDCM Forecast Data'!D177 -> 0.3155714089 | E177: ='Smoothed Input Details'!M78 -> 0.316158337 | F177: 0.316158337 | G177: 0.316158337 | H177: 0.316158337 | I177: 0.316158337
A178: 165 | B178: 1062 Average split of rate 2 units by distribution time band
A179: 166 | B179: RED
A180: 167 | B180: Domestic Two Rate | C180: ='[2]CDCM Forecast Data'!C180 -> 0 | D180: ='[2]CDCM Forecast Data'!D180 -> 0 | E180: ='Smoothed Input Details'!K88 -> 0 | F180: =E180 -> 0 | G180: 0 | H180: 0 | I180: 0
A181: 168 | B181: Small Non Domestic Two Rate | C181: ='[2]CDCM Forecast Data'!C181 -> 0 | D181: ='[2]CDCM Forecast Data'!D181 -> 0 | E181: ='Smoothed Input Details'!K89 -> 0 | F181: 0 | G181: 0 | H181: 0 | I181: 0
A182: 169 | B182: LV Medium Non-Domestic | C182: ='[2]CDCM Forecast Data'!C182 -> 0 | D182: ='[2]CDCM Forecast Data'!D182 -> 0 | E182: ='Smoothed Input Details'!K90 -> 0 | F182: 0 | G182: 0 | H182: 0 | I182: 0
A183: 170 | B183: LV Sub Medium Non-Domestic | C183: ='[2]CDCM Forecast Data'!C183 -> 0 | D183: ='[2]CDCM Forecast Data'!D183 -> 0 | E183: ='Smoothed Input Details'!K91 -> 0 | F183: 0 | G183: 0 | H183: 0 | I183: 0
A184: 171 | B184: HV Medium Non-Domestic | C184: ='[2]CDCM Forecast Data'!C184 -> 0 | D184: ='[2]CDCM Forecast Data'!D184 -> 0 | E184: ='Smoothed Input Details'!K92 -> 0 | F184: 0 | G184: 0 | H184: 0 | I184: 0
A185: 172 | B185: AMBER
A186: 173 | B186: Domestic Two Rate | C186: ='[2]CDCM Forecast Data'!C186 -> 0 | D186: ='[2]CDCM Forecast Data'!D186 -> 0 | E186: ='Smoothed Input Details'!L88 -> 0 | F186: =E186 -> 0 | G186: 0 | H186: 0 | I186: 0
A187: 174 | B187: Small Non Domestic Two Rate | C187: ='[2]CDCM Forecast Data'!C187 -> 0 | D187: ='[2]CDCM Forecast Data'!D187 -> 0 | E187: ='Smoothed Input Details'!L89 -> 0 | F187: 0 | G187: 0 | H187: 0 | I187: 0
A188: 175 | B188: LV Medium Non-Domestic | C188: ='[2]CDCM Forecast Data'!C188 -> 0 | D188: ='[2]CDCM Forecast Data'!D188 -> 0 | E188: ='Smoothed Input Details'!L90 -> 0 | F188: 0 | G188: 0 | H188: 0 | I188: 0
A189: 176 | B189: LV Sub Medium Non-Domestic | C189: ='[2]CDCM Forecast Data'!C189 -> 0 | D189: ='[2]CDCM Forecast Data'!D189 -> 0 | E189: ='Smoothed Input Details'!L91 -> 0 | F189: 0 | G189: 0 | H189: 0 | I189: 0
A190: 177 | B190: HV Medium Non-Domestic | C190: ='[2]CDCM Forecast Data'!C190 -> 0 | D190: ='[2]CDCM Forecast Data'!D190 -> 0 | E190: ='Smoothed Input Details'!L92 -> 0 | F190: 0 | G190: 0 | H190: 0 | I190: 0
A191: 178 | B191: GREEN
A192: 179 | B192: Domestic Two Rate | C192: ='[2]CDCM Forecast Data'!C192 -> 1 | D192: ='[2]CDCM Forecast Data'!D192 -> 1 | E192: ='Smoothed Input Details'!M88 -> 1 | F192: =E192 -> 1 | G192: 1 | H192: 1 | I192: 1
A193: 180 | B193: Small Non Domestic Two Rate | C193: ='[2]CDCM Forecast Data'!C193 -> 1 | D193: ='[2]CDCM Forecast Data'!D193 -> 1 | E193: ='Smoothed Input Details'!M89 -> 1 | F193: 1 | G193: 1 | H193: 1 | I193: 1
A194: 181 | B194: LV Medium Non-Domestic | C194: ='[2]CDCM Forecast Data'!C194 -> 1 | D194: ='[2]CDCM Forecast Data'!D194 -> 1 | E194: ='Smoothed Input Details'!M90 -> 1 | F194: 1 | G194: 1 | H194: 1 | I194: 1
A195: 182 | B195: LV Sub Medium Non-Domestic | C195: ='[2]CDCM Forecast Data'!C195 -> 1 | D195: ='[2]CDCM Forecast Data'!D195 -> 1 | E195: ='Smoothed Input Details'!M91 -> 1 | F195: 1 | G195: 1 | H195: 1 | I195: 1
A196: 183 | B196: HV Medium Non-Domestic | C196: ='[2]CDCM Forecast Data'!C196 -> 1 | D196: ='[2]CDCM Forecast Data'!D196 -> 1 | E196: ='Smoothed Input Details'!M92 -> 1 | F196: 1 | G196: 1 | H196: 1 | I196: 1
A197: 184 | B197: 1064. Average split of rate 1 units by special distribution time band
A198: 185 | B198: BLACK
A199: 186 | B199: NHH UMS category A | C199: ='[2]CDCM Forecast Data'!C199 -> 0.02933789954 | D199: ='[2]CDCM Forecast Data'!D199 -> 0.02933789954 | E199: ='Smoothed Input Details'!K102 -> 0.02931107618 | F199: =E199 -> 0.02931107618 | G199: 0.02931107618 | H199: 0.02931107618 | I199: 0.02931107618
A200: 187 | B200: NHH UMS category B | C200: ='[2]CDCM Forecast Data'!C200 -> 0.04891355254 | D200: ='[2]CDCM Forecast Data'!D200 -> 0.04891355254 | E200: ='Smoothed Input Details'!K103 -> 0.04869930322 | F200: 0.04869930322 | G200: 0.04869930322 | H200: 0.04869930322 | I200: 0.04869930322
A201: 188 | B201: NHH UMS category C | C201: ='[2]CDCM Forecast Data'!C201 -> 0.08937375194 | D201: ='[2]CDCM Forecast Data'!D201 -> 0.08937375194 | E201: ='Smoothed Input Details'!K104 -> 0.09008096169 | F201: 0.09008096169 | G201: 0.09008096169 | H201: 0.09008096169 | I201: 0.09008096169
A202: 189 | B202: NHH UMS category D | C202: ='[2]CDCM Forecast Data'!C202 -> 0.009866217603 | D202: ='[2]CDCM Forecast Data'!D202 -> 0.009866217603 | E202: ='Smoothed Input Details'!K105 -> 0.009935307601 | F202: 0.009935307601 | G202: 0.009935307601 | H202: 0.009935307601 | I202: 0.009935307601
A203: 190 | B203: YELLOW
A204: 191 | B204: NHH UMS category A | C204: ='[2]CDCM Forecast Data'!C204 -> 0.3723744292 | D204: ='[2]CDCM Forecast Data'!D204 -> 0.3723744292 | E204: ='Smoothed Input Details'!L102 -> 0.3730609202 | F204: =E204 -> 0.3730609202 | G204: 0.3730609202 | H204: 0.3730609202 | I204: 0.3730609202
A205: 192 | B205: NHH UMS category B | C205: ='[2]CDCM Forecast Data'!C205 -> 0.08863901725 | D205: ='[2]CDCM Forecast Data'!D205 -> 0.08863901725 | E205: ='Smoothed Input Details'!L103 -> 0.08856691114 | F205: 0.08856691114 | G205: 0.08856691114 | H205: 0.08856691114 | I205: 0.08856691114
... 66 more rows

Sheet Table 1
A1: Schedule 15 table 1
A2: ="Company Name: "&'CDCM Forecast Data'!E3 -> Company Name: WPD West Midlands
A3: Date:
A5: Description | B5: Licence Term | C5: CRC | K5: Assumptions
A6: Regulatory Year | D6: t-2 | E6: t-1 | F6: t | G6: t+1 | H6: t+2 | I6: t+3 | J6: t+4
A7: Regulatory Year | D7: ='CDCM Forecast Data'!C11 -> 2016/17 | E7: ='CDCM Forecast Data'!D11 -> 2017/18 | F7: ='CDCM Forecast Data'!E11 -> 2018/19 | G7: ='CDCM Forecast Data'!F11 -> 2019/20 | H7: ='CDCM Forecast Data'!G11 -> 2020/21 | I7: ='CDCM Forecast Data'!H11 -> 2021/22 | J7: ='CDCM Forecast Data'!I11 -> 2022/23
A8: Base Demand Revenue Before Inflation (A1) | B8: PU | C8: CRC2A | D8: ='[2]Table 1'!D8 -> 398.1 | E8: ='[2]Table 1'!E8 -> 409.2 | F8: ='[2]Table 1'!F8 -> 413.3 | G8: ='[2]Table 1'!G8 -> 417.4 | H8: ='[2]Table 1'!H8 -> 421.6 | I8: ='[2]Table 1'!I8 -> 425.8 | J8: ='[2]Table 1'!J8 -> 430.1
A9: Annual Iteration adjustment before inflation (A2) | B9: MOD | C9: CRC2A | D9: ='[2]Table 1'!D9 -> 0.7877506574 | E9: ='[2]Table 1'!E9 -> -2.805999018 | F9: ='[2]Table 1'!F9 -> -6.370126196 | G9: ='[2]Table 1'!G9 -> -10.61511121 | H9: ='[2]Table 1'!H9 -> -19.03793877 | I9: ='[2]Table 1'!I9 -> -23.43003067 | J9: ='[2]Table 1'!J9 -> -27.69836796
A10: RPI True-up before inflation (A3) | B10: TRU | C10: CRC2A | D10: ='[2]Table 1'!D10 -> 0 | E10: ='[2]Table 1'!E10 -> -8.507444057 | F10: ='[2]Table 1'!F10 -> -1.224154903 | G10: ='[2]Table 1'!G10 -> 0 | H10: ='[2]Table 1'!H10 -> 0 | I10: ='[2]Table 1'!I10 -> 0 | J10: ='[2]Table 1'!J10 -> 0
A11: Price index adjustment (RPI index) (A4) | B11: RPIF | C11: CRC2A | D11: ='[2]Table 1'!D11 -> 1.087 | E11: ='[2]Table 1'!E11 -> 1.121 | F11: ='[2]Table 1'!F11 -> 1.155 | G11: ='[2]Table 1'!G11 -> 1.19 | H11: ='[2]Table 1'!H11 -> 1.227 | I11: ='[2]Table 1'!I11 -> 1.263 | J11: ='[2]Table 1'!J11 -> 1.302
A12: Base Demand Revenue (A): [A = (A1 + A2 + A3) * A4] | B12: BR | C12: CRC2A | D12: =(D8+D9+D10)*D11 -> 433.590985 | E12: =(E8+E9+E10)*E11 -> 446.0308303 | F12: 468.5901053 | G12: 484.0740177 | H12: 493.9436491 | I12: 508.1932713 | J12: 523.9269249 | K12: A = (A1 + A2 + A3) * A4
A13: Pass-Through Licence Fees (B1) | B13: LF | C13: CRC2B | D13: ='[2]Table 1'!D13 -> 0 | E13: ='[2]Table 1'!E13 -> 0.2576705202 | F13: ='[2]Table 1'!F13 -> -0.03438937114 | G13: ='[2]Table 1'!G13 -> -0.03532740164 | H13: ='[2]Table 1'!H13 -> -0.03627327391 | I13: ='[2]Table 1'!I13 -> -0.03714193065 | J13: ='[2]Table 1'!J13 -> -0.03810925163
A14: Pass-Through Business Rates (B2) | B14: RB | C14: CRC2B | D14: ='[2]Table 1'!D14 -> 0 | E14: ='[2]Table 1'!E14 -> 0.375823375 | F14: ='[2]Table 1'!F14 -> -0.06225291775 | G14: ='[2]Table 1'!G14 -> -3.553198398 | H14: ='[2]Table 1'!H14 -> -10.26877374 | I14: ='[2]Table 1'!I14 -> -19.17242275 | J14: ='[2]Table 1'!J14 -> -19.72602528
A15: Pass-Through Transmission Connection Point Charges (B3) | B15: TB | C15: CRC2B | D15: ='[2]Table 1'!D15 -> 0 | E15: ='[2]Table 1'!E15 -> -2.037039757 | F15: ='[2]Table 1'!F15 -> -1.751636977 | G15: ='[2]Table 1'!G15 -> -1.957355972 | H15: ='[2]Table 1'!H15 -> -2.006119051 | I15: ='[2]Table 1'!I15 -> -1.533310352 | J15: ='[2]Table 1'!J15 -> -1.667337792
A16: Pass-through Smart Meter Communication Licence Costs (B4) | B16: SMC | C16: CRC2B | D16: ='[2]Table 1'!D16 -> 0 | E16: ='[2]Table 1'!E16 -> -0.05953457291 | F16: ='[2]Table 1'!F16 -> 0.4814571816 | G16: ='[2]Table 1'!G16 -> 0.3753835146 | H16: ='[2]Table 1'!H16 -> 0.3796384615 | I16: ='[2]Table 1'!I16 -> 0.2589987455 | J16: ='[2]Table 1'!J16 -> 0.2958738445
A17: Pass-through Smart Meter IT Costs (B5) | B17: SMIT | C17: CRC2B | D17: ='[2]Table 1'!D17 -> 0 | E17: ='[2]Table 1'!E17 -> -0.07785302042 | F17: ='[2]Table 1'!F17 -> -0.1776820935 | G17: ='[2]Table 1'!G17 -> 0.1912339708 | H17: ='[2]Table 1'!H17 -> -0.1821747035 | I17: ='[2]Table 1'!I17 -> 0.5651497017 | J17: ='[2]Table 1'!J17 -> -0.6176105518
A18: Pass-through Ring Fence Costs | B18: RF | C18: CRC2B | D18: ='[2]Table 1'!D18 -> 0 | E18: ='[2]Table 1'!E18 -> 0.02929889029 | F18: ='[2]Table 1'!F18 -> 0.03012520426 | G18: ='[2]Table 1'!G18 -> 0.03094692212 | H18: ='[2]Table 1'!H18 -> 0.03177550939 | I18: ='[2]Table 1'!I18 -> 0.0325364556 | J18: ='[2]Table 1'!J18 -> 0.03338383203
A19: Pass-Through Others (B5) | B19: HB, SEC, UNC | C19: CRC2B | D19: ='[2]Table 1'!D19 -> 0 | E19: ='[2]Table 1'!E19 -> 0 | F19: ='[2]Table 1'!F19 -> 0 | G19: ='[2]Table 1'!G19 -> 0 | H19: ='[2]Table 1'!H19 -> 0 | I19: ='[2]Table 1'!I19 -> 0 | J19: ='[2]Table 1'!J19 -> 0
A20: Allowed Pass-Through Items (B): [B = B1 + B2 + B3 +B4 + B5 + B6 + B7] | B20: PT | C20: CRC2B | D20: =SUM(D13:D19) -> 0 | E20: =SUM(E13:E19) -> -1.511634565 | F20: -1.514378973 | G20: -4.948317365 | H20: -12.0819268 | I20: -19.88619013 | J20: -21.7198252 | K20: B = B1 + B2 + B3 +B4 + B5 + B6 + B7
A21: Broad Measure of Customer Service incentive (C1) | B21: BM | C21: CRC2C | D21: ='[2]Table 1'!D21 -> 2.774941675 | E21: ='[2]Table 1'!E21 -> 5.61839817 | F21: ='[2]Table 1'!F21 -> 5.743407529 | G21: ='[2]Table 1'!G21 -> 5.939946123 | H21: ='[2]Table 1'!H21 -> 6.120105059 | I21: ='[2]Table 1'!I21 -> 6.305562788 | J21: ='[2]Table 1'!J21 -> 6.501618102
A22: Quality of Service incentive (C2) | B22: IQ | C22: CRC2D | D22: ='[2]Table 1'!D22 -> 36.02863006 | E22: ='[2]Table 1'!E22 -> 21.39572145 | F22: ='[2]Table 1'!F22 -> 21.99914306 | G22: ='[2]Table 1'!G22 -> 22.59920833 | H22: ='[2]Table 1'!H22 -> 23.20429004 | I22: ='[2]Table 1'!I22 -> 23.75997638 | J22: ='[2]Table 1'!J22 -> 24.37877899
A23: Connections Engagement incentive (C3) | B23: ICE | C23: CRC2E | D23: ='[2]Table 1'!D23 -> 0 | E23: ='[2]Table 1'!E23 -> 0 | F23: ='[2]Table 1'!F23 -> 0 | G23: ='[2]Table 1'!G23 -> 0 | H23: ='[2]Table 1'!H23 -> 0 | I23: ='[2]Table 1'!I23 -> 0 | J23: ='[2]Table 1'!J23 -> 0
A24: Time to Connect incentive (C4) | B24: TTC | C24: CRC2F | D24: ='[2]Table 1'!D24 -> 0 | E24: ='[2]Table 1'!E24 -> 1.428670785 | F24: ='[2]Table 1'!F24 -> 1.460458709 | G24: ='[2]Table 1'!G24 -> 1.5104354 | H24: ='[2]Table 1'!H24 -> 1.556247 | I24: ='[2]Table 1'!I24 -> 0 | J24: ='[2]Table 1'!J24 -> 0
A25: Losses Discretionary Reward incentive (C5) | B25: LDR | C25: CRC2G | D25: ='[2]Table 1'!D25 -> 0 | E25: ='[2]Table 1'!E25 -> 0.04484 | F25: ='[2]Table 1'!F25 -> 0 | G25: ='[2]Table 1'!G25 -> 0.0476 | H25: ='[2]Table 1'!H25 -> 0 | I25: ='[2]Table 1'!I25 -> 0.05052 | J25: ='[2]Table 1'!J25 -> 0
A26: Network Innovation Allowance (C6) | B26: NIA | C26: CRC2H | D26: ='[2]Table 1'!D26 -> 0.781838462 | E26: ='[2]Table 1'!E26 -> 0.9026400006 | F26: ='[2]Table 1'!F26 -> 1.173432001 | G26: ='[2]Table 1'!G26 -> 1.489243841 | H26: ='[2]Table 1'!H26 -> 1.471953102 | I26: ='[2]Table 1'!I26 -> 1.648587474 | J26: ='[2]Table 1'!J26 -> 1.483728727
A27: Low Carbon Network Fund - Tier 1 unrecoverable (C7) | B27: LCN1 | C27: CRC2J | D27: ='[2]Table 1'!D27 -> 0 | E27: ='[2]Table 1'!E27 -> 0 | F27: ='[2]Table 1'!F27 -> 0 | G27: ='[2]Table 1'!G27 -> 0 | H27: ='[2]Table 1'!H27 -> 0 | I27: ='[2]Table 1'!I27 -> 0 | J27: ='[2]Table 1'!J27 -> 0
A28: Low Carbon Network Fund - Tier 2 & Discretionary Funding (C7) | B28: LCN2 | C28: CRC2J | D28: ='[2]Table 1'!D28 -> 0.09016662 | E28: ='[2]Table 1'!E28 -> 0.361570637 | F28: ='[2]Table 1'!F28 -> 0.361570637 | G28: ='[2]Table 1'!G28 -> 0.361570637 | H28: ='[2]Table 1'!H28 -> 0.361570637 | I28: ='[2]Table 1'!I28 -> 0.361570637 | J28: ='[2]Table 1'!J28 -> 0.361570637
A29: Connection Guaranteed Standards Systems & Processes penalty (C8) | B29: AUM, CGSRA | C29: CRC2K-L | D29: ='[2]Table 1'!D29 -> 0 | E29: ='[2]Table 1'!E29 -> 0 | F29: ='[2]Table 1'!F29 -> 0 | G29: ='[2]Table 1'!G29 -> 0 | H29: ='[2]Table 1'!H29 -> 0 | I29: ='[2]Table 1'!I29 -> 0 | J29: ='[2]Table 1'!J29 -> 0
A30: Residual Losses and Growth Incentive - Losses (C9) | B30: PPL | C30: CRC2M | D30: ='[2]Table 1'!D30 -> -9.535263961 | E30: ='[2]Table 1'!E30 -> 0 | F30: ='[2]Table 1'!F30 -> 0 | G30: ='[2]Table 1'!G30 -> 0 | H30: ='[2]Table 1'!H30 -> 0 | I30: ='[2]Table 1'!I30 -> 0 | J30: ='[2]Table 1'!J30 -> 0
A31: Residual Losses and Growth Incentive - Growth (C9) | B31: GTA | C31: CRC2M | D31: ='[2]Table 1'!D31 -> 0 | E31: ='[2]Table 1'!E31 -> 0 | F31: ='[2]Table 1'!F31 -> 0 | G31: ='[2]Table 1'!G31 -> 0 | H31: ='[2]Table 1'!H31 -> 0 | I31: ='[2]Table 1'!I31 -> 0 | J31: ='[2]Table 1'!J31 -> 0
A32: Incentive Revenue and Other Adjustments (C): [C = C1 + C2 + C3 + C4 + C5 + C6 + C7 + C8 + C9] | D32: =SUM(D21:D31) -> 30.14031285 | E32: 29.75184105 | F32: 30.73801194 | G32: 31.94800433 | H32: 32.71416583 | I32: 32.12621728 | J32: 32.72569646 | K32: C = C1 + C2 + C3 + C4 + C5 + C6 + C7 + C8 + C9
A33: Correction Factor (D) | B33: -K | C33: CRC2A | D33: ='[2]Table 1'!D33 -> 29.50414861 | E33: ='[2]Table 1'!E33 -> -1.607308076 | F33: ='[2]Table 1'!F33 -> 2.527355156 | G33: ='[2]Table 1'!G33 -> 1.169501751 | H33: ='[2]Table 1'!H33 -> 0 | I33: ='[2]Table 1'!I33 -> 0 | J33: ='[2]Table 1'!J33 -> 0
A34: Total allowed Revenue (E): [E = A + B + C + D] | B34: AR | C34: CRC2A | D34: =D12+D20+D32+D33 -> 493.2354464 | E34: =E12+E20+E32+E33 -> 472.6637287 | F34: 500.3410935 | G34: 512.2432064 | H34: 514.5758882 | I34: 520.4332984 | J34: 534.9327962 | K34: E = A + B + C + D
A35: Other 1. Excluded services - Top-up, standby, and enhanced system security (F1) (see note 1) | B35: DRS4 | C35: CRC5C | D35: ='[2]Table 1'!D35 -> 0 | E35: ='[2]Table 1'!E35 -> 0 | F35: ='[2]Table 1'!F35 -> 0 | G35: ='[2]Table 1'!G35 -> 0 | H35: ='[2]Table 1'!H35 -> 0 | I35: ='[2]Table 1'!I35 -> 0 | J35: ='[2]Table 1'!J35 -> 0
A36: Other 2. Excluded services - Revenue protection services (F2) (see note 1) | B36: DRS5 | C36: CRC5C | D36: ='[2]Table 1'!D36 -> 0 | E36: ='[2]Table 1'!E36 -> 0 | F36: ='[2]Table 1'!F36 -> 0 | G36: ='[2]Table 1'!G36 -> 0 | H36: ='[2]Table 1'!H36 -> 0 | I36: ='[2]Table 1'!I36 -> 0 | J36: ='[2]Table 1'!J36 -> 0
A37: Other 3. Excluded services - Miscellaneous (F3) (see note 1) | B37: DRS9 | C37: CRC5C | D37: ='[2]Table 1'!D37 -> 0 | E37: ='[2]Table 1'!E37 -> 0 | F37: ='[2]Table 1'!F37 -> 0 | G37: ='[2]Table 1'!G37 -> 0 | H37: ='[2]Table 1'!H37 -> 0 | I37: ='[2]Table 1'!I37 -> 0 | J37: ='[2]Table 1'!J37 -> 0
A38: Other 4. - blank or if required please provide description (F4) | D38: ='[2]Table 1'!D38 -> 0 | E38: ='[2]Table 1'!E38 -> 0 | F38: ='[2]Table 1'!F38 -> 0 | G38: ='[2]Table 1'!G38 -> 0 | H38: ='[2]Table 1'!H38 -> 0 | I38: ='[2]Table 1'!I38 -> 0 | J38: ='[2]Table 1'!J38 -> 0
A39: Other 5. - blank or if required please provide description (F5) | D39: ='[2]Table 1'!D39 -> 0 | E39: ='[2]Table 1'!E39 -> 0 | F39: ='[2]Table 1'!F39 -> 0 | G39: ='[2]Table 1'!G39 -> 0 | H39: ='[2]Table 1'!H39 -> 0 | I39: ='[2]Table 1'!I39 -> 0 | J39: ='[2]Table 1'!J39 -> 0
A40: Total Other Revenue to be recovered by Use of System Charges (F): [F = F1 + F2 + F3 + F4 +F5] | D40: =SUM(D35:D39) -> 0 | E40: =SUM(E35:E39) -> 0 | F40: 0 | G40: 0 | H40: 0 | I40: 0 | J40: 0 | K40: F = F1 + F2 + F3 + F4 +F5
A41: Total Revenue for Use of System Charges (G): [G=E + F] | D41: =D34+D40 -> 493.2354464 | E41: =E34+E40 -> 472.6637287 | F41: 500.3410935 | G41: 512.2432064 | H41: 514.5758882 | I41: 520.4332984 | J41: 534.9327962 | K41: G = E + F
A42: 1. Revenue raised outside CDCM - EDCM and Certain Interconnector Revenue (H1) | D42: ='[2]Table 1'!D42 -> 3.807063283 | E42: ='[2]Table 1'!E42 -> 4.221342848 | F42: ='[2]Table 1'!F42 -> 5.021154021 | G42: ='[2]Table 1'!G42 -> 5.140597223 | H42: ='[2]Table 1'!H42 -> 5.164006762 | I42: ='[2]Table 1'!I42 -> 5.22278858 | J42: ='[2]Table 1'!J42 -> 5.368297739
A43: 2. Revenue raised outside CDCM - Voluntary under-recovery (H2) | D43: ='[2]Table 1'!D43 -> 0 | E43: ='[2]Table 1'!E43 -> 0 | F43: ='[2]Table 1'!F43 -> 0 | G43: ='[2]Table 1'!G43 -> 0 | H43: ='[2]Table 1'!H43 -> 0 | I43: ='[2]Table 1'!I43 -> 0 | J43: ='[2]Table 1'!J43 -> 0
A44: 3. Revenue raised outside CDCM - blank or if required please provide description (H3) | D44: ='[2]Table 1'!D44 -> 0 | E44: ='[2]Table 1'!E44 -> 0 | F44: ='[2]Table 1'!F44 -> 0 | G44: ='[2]Table 1'!G44 -> 0 | H44: ='[2]Table 1'!H44 -> 0 | I44: ='[2]Table 1'!I44 -> 0 | J44: ='[2]Table 1'!J44 -> 0
A45: 4. Revenue raised outside CDCM - blank or if required please provide description (H4) | D45: ='[2]Table 1'!D45 -> 11.9484794 | E45: ='[2]Table 1'!E45 -> 0 | F45: ='[2]Table 1'!F45 -> 0 | G45: ='[2]Table 1'!G45 -> 0 | H45: ='[2]Table 1'!H45 -> 0 | I45: ='[2]Table 1'!I45 -> 0 | J45: ='[2]Table 1'!J45 -> 0
A46: Total Revenue to be raised outside the CDCM (H): [H = H1 + H2 + H3 + H4] | D46: =D42+D43+D44+D45 -> 15.75554268 | E46: =E42+E43+E44+E45 -> 4.221342848 | F46: 5.021154021 | G46: 5.140597223 | H46: 5.164006762 | I46: 5.22278858 | J46: 5.368297739 | K46: H = H1 + H2 + H3 + H4
A47: Latest forecast of CDCM Revenue (I): [I = G - H] | D47: =D41-D46 -> 477.4799038 | E47: 468.4423859 | F47: 495.3199394 | G47: 507.1026092 | H47: 509.4118814 | I47: 515.2105098 | J47: 529.5644984 | K47: I = G - H
A48: CDCM Revenue Used in Charging Model [Equal to I] | D48: =D47 -> 477.4799038 | E48: =E47 -> 468.4423859 | F48: 495.3199394 | G48: 507.1026092 | H48: 509.4118814 | I48: 515.2105098 | J48: 529.5644984 | K48: Equal to I
A49: Final Collected Revenue Forecast (J) | D49: ='[2]Table 1'!D49 -> 490.7962774 | E49: ='[2]Table 1'!E49 -> 471.5341096 | F49: ='[2]Table 1'!F49 -> 500.3410935 | G49: ='[2]Table 1'!G49 -> 512.2432064 | H49: ='[2]Table 1'!H49 -> 514.5758882 | I49: ='[2]Table 1'!I49 -> 520.4332984 | J49: ='[2]Table 1'!J49 -> 534.9327962
A50: Forecast Over / (Under) Recovery [being (J - F - E + H2] | D50: =D49-D40-D34+D43 -> -2.439169032 | E50: -1.129619136 | F50: 0 | G50: 0 | H50: 1.136868377e-13 | I50: 0 | J50: 1.136868377e-13 | K50: J - F - E + H2
A51: Forecast overall percentage change to Allowed Revenue (K) | E51: =E34/D34-1 -> -0.04170770341 | F51: =F34/E34-1 -> 0.05855614268 | G51: 0.02378799799 | H51: 0.004553855965 | I51: 0.01138298623 | J51: 0.02786043438
A52: Overall % change to Use of System Charges effective 1st April of Regulatory Year to balance (L) | E52: =E49/D49-1 -> -0.03924676837 | F52: 0.06109204676 | G52: 0.02378799799 | H52: 0.004553855965 | I52: 0.01138298623 | J52: 0.02786043438
A53: Note 1: Cost categories associated with excluded services should only be populated if the Company recovers the costs of providing these services from Use of System Charges

Sheet Smoothed Input Details
A1: DNO | B1: =+'CDCM Forecast Data'!E3 -> WPD West Midlands
A2: Charges for (year Y) | B2: =+'CDCM Forecast Data'!E11 -> 2018/19
A4: Year charges are set (year Y - 2) | B4: =+'CDCM Forecast Data'!C11 -> 2016/17
A6: Year to which input data relates
A7: Year Y - 3 | B7: ='[2]Smoothed Input Details'!B7 -> 2015/16
A8: Year Y - 4 | B8: ='[2]Smoothed Input Details'!B8 -> 2014/15
A9: Year Y - 5 | B9: ='[2]Smoothed Input Details'!B9 -> 2013/14
A11: 1041 - load profile for demand users - coincidence factors
A12: Charges for year Y are set in Y-2 using historical data for the previous three years
B14: Y - 5 | C14: Y - 4 | D14: Y - 3 | E14: Information to be used calculating tariffs in year t
A15: Domestic Unrestricted | B15: ='[2]Smoothed Input Details'!B15 -> 0.8747551854 | C15: ='[2]Smoothed Input Details'!C15 -> 0.9732161064 | D15: ='[2]Smoothed Input Details'!D15 -> 0.9248996832 | E15: =AVERAGE(B15:D15) -> 0.924290325
A16: Domestic Two Rate | B16: ='[2]Smoothed Input Details'!B16 -> 0.4135918714 | C16: ='[2]Smoothed Input Details'!C16 -> 0.4694808902 | D16: ='[2]Smoothed Input Details'!D16 -> 0.4607660902 | E16: =AVERAGE(B16:D16) -> 0.4479462839
A17: Domestic Off Peak (related MPAN) | B17: ='[2]Smoothed Input Details'!B17 -> 0 | C17: ='[2]Smoothed Input Details'!C17 -> 0 | D17: ='[2]Smoothed Input Details'!D17 -> 0
A18: Small Non Domestic Unrestricted | B18: ='[2]Smoothed Input Details'!B18 -> 0.685736876 | C18: ='[2]Smoothed Input Details'!C18 -> 0.623203014 | D18: ='[2]Smoothed Input Details'!D18 -> 0.6013003492 | E18: =AVERAGE(B18:D18) -> 0.6367467464
A19: Small Non Domestic Two Rate | B19: ='[2]Smoothed Input Details'!B19 -> 0.7666806863 | C19: ='[2]Smoothed Input Details'!C19 -> 0.7129278056 | D19: ='[2]Smoothed Input Details'!D19 -> 0.7699246391 | E19: =AVERAGE(B19:D19) -> 0.749844377
A20: Small Non Domestic Off Peak (related MPAN) | B20: ='[2]Smoothed Input Details'!B20 -> 0 | C20: ='[2]Smoothed Input Details'!C20 -> 0 | D20: ='[2]Smoothed Input Details'!D20 -> 0
A21: LV Medium Non-Domestic | B21: ='[2]Smoothed Input Details'!B21 -> 0.8547749488 | C21: ='[2]Smoothed Input Details'!C21 -> 0.7986448009 | D21: ='[2]Smoothed Input Details'!D21 -> 0.8247189559 | E21: =AVERAGE(B21:D21) -> 0.8260462352
A22: LV Sub Medium Non-Domestic | B22: ='[2]Smoothed Input Details'!B22 -> 0.8547749488 | C22: ='[2]Smoothed Input Details'!C22 -> 0.7986448009 | D22: ='[2]Smoothed Input Details'!D22 -> 0.8247189559 | E22: 0.8260462352
A23: HV Medium Non-Domestic | B23: ='[2]Smoothed Input Details'!B23 -> 0.7602708661 | C23: ='[2]Smoothed Input Details'!C23 -> 0.6620550399 | D23: ='[2]Smoothed Input Details'!D23 -> 0.6300348386 | E23: 0.6841202482
A24: LV Network Domestic | B24: ='[2]Smoothed Input Details'!B24 -> 0.8128170973 | C24: ='[2]Smoothed Input Details'!C24 -> 0.9055602559 | D24: ='[2]Smoothed Input Details'!D24 -> 0.8625626617 | E24: =AVERAGE(B24:D24) -> 0.8603133383
A25: LV Network Non-Domestic Non-CT | B25: ='[2]Smoothed Input Details'!B25 -> 0.7016112047 | C25: ='[2]Smoothed Input Details'!C25 -> 0.6407994285 | D25: ='[2]Smoothed Input Details'!D25 -> 0.6343701714 | E25: 0.6589269349
A26: LV HH Metered | B26: ='[2]Smoothed Input Details'!B26 -> 0.7895742058 | C26: ='[2]Smoothed Input Details'!C26 -> 0.7411782622 | D26: ='[2]Smoothed Input Details'!D26 -> 0.7327194776 | E26: 0.7544906485
A27: LV Sub HH Metered | B27: ='[2]Smoothed Input Details'!B27 -> 0.7895742058 | C27: ='[2]Smoothed Input Details'!C27 -> 0.7834210711 | D27: ='[2]Smoothed Input Details'!D27 -> 0.7902275565 | E27: 0.7877409445
A28: HV HH Metered | B28: ='[2]Smoothed Input Details'!B28 -> 0.7797024441 | C28: ='[2]Smoothed Input Details'!C28 -> 0.7711220909 | D28: ='[2]Smoothed Input Details'!D28 -> 0.763901664 | E28: 0.7715753997
A29: NHH UMS category A | B29: ='[2]Smoothed Input Details'!B29 -> 1 | C29: ='[2]Smoothed Input Details'!C29 -> 1 | D29: ='[2]Smoothed Input Details'!D29 -> 1 | E29: =AVERAGE(B29:D29) -> 1
A30: NHH UMS category B | B30: ='[2]Smoothed Input Details'!B30 -> 0.9790426236 | C30: ='[2]Smoothed Input Details'!C30 -> 1 | D30: ='[2]Smoothed Input Details'!D30 -> 1 | E30: 0.9930142079
A31: NHH UMS category C | B31: ='[2]Smoothed Input Details'!B31 -> 0.8564043653 | C31: ='[2]Smoothed Input Details'!C31 -> 1 | D31: ='[2]Smoothed Input Details'!D31 -> 1 | E31: =AVERAGE(B31:D31) -> 0.9521347884
A32: NHH UMS category D | B32: ='[2]Smoothed Input Details'!B32 -> 0 | C32: ='[2]Smoothed Input Details'!C32 -> 0 | D32: ='[2]Smoothed Input Details'!D32 -> 0.003860294118 | E32: 0.001286764706
A33: LV UMS (Pseudo HH Metered) | B33: ='[2]Smoothed Input Details'!B33 -> 0.8504636062 | C33: ='[2]Smoothed Input Details'!C33 -> 0.9929249916 | D33: ='[2]Smoothed Input Details'!D33 -> 0.9695243223 | E33: 0.93763764
A37: 1041 - load profile for demand users - load factors
A38: Charges for year Y are set in Y-2 using historical data for the previous three years
B41: Y - 5 | C41: Y - 4 | D41: Y - 3 | E41: Information to be used calculating tariffs in year t
A42: Domestic Unrestricted | B42: ='[2]Smoothed Input Details'!B42 -> 0.4396787868 | C42: ='[2]Smoothed Input Details'!C42 -> 0.431696926 | D42: ='[2]Smoothed Input Details'!D42 -> 0.4221020403 | E42: =AVERAGE(B42:D42) -> 0.4311592511
A43: Domestic Two Rate | B43: ='[2]Smoothed Input Details'!B43 -> 0.3122681238 | C43: ='[2]Smoothed Input Details'!C43 -> 0.3016361716 | D43: ='[2]Smoothed Input Details'!D43 -> 0.3083586586 | E43: 0.3074209847
A44: Domestic Off Peak (related MPAN) | B44: ='[2]Smoothed Input Details'!B44 -> 0.1858701739 | C44: ='[2]Smoothed Input Details'!C44 -> 0.1749041516 | D44: ='[2]Smoothed Input Details'!D44 -> 0.1788529895 | E44: 0.1798757717
A45: Small Non Domestic Unrestricted | B45: ='[2]Smoothed Input Details'!B45 -> 0.4010962515 | C45: ='[2]Smoothed Input Details'!C45 -> 0.400478286 | D45: ='[2]Smoothed Input Details'!D45 -> 0.391286461 | E45: 0.3976203328
A46: Small Non Domestic Two Rate | B46: ='[2]Smoothed Input Details'!B46 -> 0.5441226792 | C46: ='[2]Smoothed Input Details'!C46 -> 0.512797933 | D46: ='[2]Smoothed Input Details'!D46 -> 0.5421389815 | E46: 0.5330198646
A47: Small Non Domestic Off Peak (related MPAN) | B47: ='[2]Smoothed Input Details'!B47 -> 0.2094680062 | C47: ='[2]Smoothed Input Details'!C47 -> 0.2042072464 | D47: ='[2]Smoothed Input Details'!D47 -> 0.2247702251 | E47: 0.2128151592
A48: LV Medium Non-Domestic | B48: ='[2]Smoothed Input Details'!B48 -> 0.5355741984 | C48: ='[2]Smoothed Input Details'!C48 -> 0.532921721 | D48: ='[2]Smoothed Input Details'!D48 -> 0.5380739351 | E48: 0.5355232849
A49: LV Sub Medium Non-Domestic | B49: ='[2]Smoothed Input Details'!B49 -> 0.5355741984 | C49: ='[2]Smoothed Input Details'!C49 -> 0.532921721 | D49: ='[2]Smoothed Input Details'!D49 -> 0.5380739351 | E49: 0.5355232849
A50: HV Medium Non-Domestic | B50: ='[2]Smoothed Input Details'!B50 -> 0.4713180454 | C50: ='[2]Smoothed Input Details'!C50 -> 0.4998721752 | D50: ='[2]Smoothed Input Details'!D50 -> 0.4687684815 | E50: 0.479986234
A51: LV Network Domestic | B51: ='[2]Smoothed Input Details'!B51 -> 0.4214803479 | C51: ='[2]Smoothed Input Details'!C51 -> 0.4131304976 | D51: ='[2]Smoothed Input Details'!D51 -> 0.4057792628 | E51: =AVERAGE(B51:D51) -> 0.4134633694
A52: LV Network Non-Domestic Non-CT | B52: ='[2]Smoothed Input Details'!B52 -> 0.428013083 | C52: ='[2]Smoothed Input Details'!C52 -> 0.4213801573 | D52: ='[2]Smoothed Input Details'!D52 -> 0.4198596949 | E52: 0.4230843118
A53: LV HH Metered | B53: ='[2]Smoothed Input Details'!B53 -> 0.545952826 | C53: ='[2]Smoothed Input Details'!C53 -> 0.5349732041 | D53: ='[2]Smoothed Input Details'!D53 -> 0.5279259791 | E53: 0.5362840031
A54: LV Sub HH Metered | B54: ='[2]Smoothed Input Details'!B54 -> 0.545952826 | C54: ='[2]Smoothed Input Details'!C54 -> 0.5039515978 | D54: ='[2]Smoothed Input Details'!D54 -> 0.5046217757 | E54: 0.5181753998
A55: HV HH Metered | B55: ='[2]Smoothed Input Details'!B55 -> 0.6658785972 | C55: ='[2]Smoothed Input Details'!C55 -> 0.6627110859 | D55: ='[2]Smoothed Input Details'!D55 -> 0.6656540043 | E55: 0.6647478958
A56: NHH UMS category A | B56: ='[2]Smoothed Input Details'!B56 -> 1 | C56: ='[2]Smoothed Input Details'!C56 -> 1 | D56: ='[2]Smoothed Input Details'!D56 -> 1 | E56: 1
A57: NHH UMS category B | B57: ='[2]Smoothed Input Details'!B57 -> 0.4722440316 | C57: ='[2]Smoothed Input Details'!C57 -> 0.4643143628 | D57: ='[2]Smoothed Input Details'!D57 -> 0.4683944356 | E57: 0.46831761
A58: NHH UMS category C | B58: ='[2]Smoothed Input Details'!B58 -> 0.2566463141 | C58: ='[2]Smoothed Input Details'!C58 -> 0.2492185606 | D58: ='[2]Smoothed Input Details'!D58 -> 0.2466400222 | E58: 0.2508349656
A59: NHH UMS category D | B59: ='[2]Smoothed Input Details'!B59 -> 0.5158125359 | C59: ='[2]Smoothed Input Details'!C59 -> 0.5159918279 | D59: ='[2]Smoothed Input Details'!D59 -> 0.5168664262 | E59: 0.5162235966
A60: LV UMS (Pseudo HH Metered) | B60: ='[2]Smoothed Input Details'!B60 -> 0.4757038933 | C60: ='[2]Smoothed Input Details'!C60 -> 0.4703210021 | D60: ='[2]Smoothed Input Details'!D60 -> 0.4599834882 | E60: 0.4686694612
A64: 1061 - Average split of rate 1 units by distribution time band
A65: Charges for year Y are set in Y-2 using historical data for the previous three years
B68: Y - 5 | E68: Y - 4 | H68: Y - 3 | K68: Information to be used calculating tariffs in year t
B69: Red | C69: Amber | D69: Green | E69: Red | F69: Amber | G69: Green | H69: Red | I69: Amber | J69: Green | K69: Red | L69: Amber | M69: Green
A70: Domestic Unrestricted | B70: ='[2]Smoothed Input Details'!B70 -> 0.1517410895 | C70: ='[2]Smoothed Input Details'!C70 -> 0.4194570027 | D70: ='[2]Smoothed Input Details'!D70 -> 0.4288019078 | E70: ='[2]Smoothed Input Details'!E70 -> 0.152455624 | F70: ='[2]Smoothed Input Details'!F70 -> 0.4214598513 | G70: ='[2]Smoothed Input Details'!G70 -> 0.4260845247 | H70: ='[2]Smoothed Input Details'!H70 -> 0.1521863637 | I70: ='[2]Smoothed Input Details'!I70 -> 0.4211624751 | J70: ='[2]Smoothed Input Details'!J70 -> 0.4266511612 | K70: =AVERAGE(B70,E70,H70) -> 0.1521276924 | L70: 0.4206931097 | M70: 0.4271791979
A71: Domestic Two Rate | B71: ='[2]Smoothed Input Details'!B71 -> 0.1483379919 | C71: ='[2]Smoothed Input Details'!C71 -> 0.4158311309 | D71: ='[2]Smoothed Input Details'!D71 -> 0.4358308772 | E71: ='[2]Smoothed Input Details'!E71 -> 0.1493347408 | F71: ='[2]Smoothed Input Details'!F71 -> 0.4193576744 | G71: ='[2]Smoothed Input Details'!G71 -> 0.4313075848 | H71: ='[2]Smoothed Input Details'!H71 -> 0.150643953 | I71: ='[2]Smoothed Input Details'!I71 -> 0.4229942404 | J71: ='[2]Smoothed Input Details'!J71 -> 0.4263618066 | K71: =AVERAGE(B71,E71,H71) -> 0.1494388952 | L71: =AVERAGE(C71,F71,I71) -> 0.4193943485 | M71: =AVERAGE(D71,G71,J71) -> 0.4311667562
A72: Domestic Off Peak (related MPAN) | B72: ='[2]Smoothed Input Details'!B72 -> 0.002720483128 | C72: ='[2]Smoothed Input Details'!C72 -> 0.2107518922 | D72: ='[2]Smoothed Input Details'!D72 -> 0.7865276247 | E72: ='[2]Smoothed Input Details'!E72 -> 0.00301788599 | F72: ='[2]Smoothed Input Details'!F72 -> 0.2126371173 | G72: ='[2]Smoothed Input Details'!G72 -> 0.7843449968 | H72: ='[2]Smoothed Input Details'!H72 -> 0.003225205101 | I72: ='[2]Smoothed Input Details'!I72 -> 0.2171730829 | J72: ='[2]Smoothed Input Details'!J72 -> 0.779601712 | K72: 0.002987858073 | L72: 0.2135206975 | M72: 0.7834914445
A73: Small Non Domestic Unrestricted | B73: ='[2]Smoothed Input Details'!B73 -> 0.1323053138 | C73: ='[2]Smoothed Input Details'!C73 -> 0.5860091033 | D73: ='[2]Smoothed Input Details'!D73 -> 0.2816855829 | E73: ='[2]Smoothed Input Details'!E73 -> 0.131767885 | F73: ='[2]Smoothed Input Details'!F73 -> 0.5802130761 | G73: ='[2]Smoothed Input Details'!G73 -> 0.2880190389 | H73: ='[2]Smoothed Input Details'!H73 -> 0.1326174782 | I73: ='[2]Smoothed Input Details'!I73 -> 0.5809965289 | J73: ='[2]Smoothed Input Details'!J73 -> 0.2863859929 | K73: 0.1322302257 | L73: 0.5824062361 | M73: 0.2853635382
A74: Small Non Domestic Two Rate | B74: ='[2]Smoothed Input Details'!B74 -> 0.1310731054 | C74: ='[2]Smoothed Input Details'!C74 -> 0.5373915775 | D74: ='[2]Smoothed Input Details'!D74 -> 0.3315353171 | E74: ='[2]Smoothed Input Details'!E74 -> 0.1316309967 | F74: ='[2]Smoothed Input Details'!F74 -> 0.5368041105 | G74: ='[2]Smoothed Input Details'!G74 -> 0.3315648928 | H74: ='[2]Smoothed Input Details'!H74 -> 0.1329903413 | I74: ='[2]Smoothed Input Details'!I74 -> 0.5330365838 | J74: ='[2]Smoothed Input Details'!J74 -> 0.3339730749 | K74: 0.1318981478 | L74: 0.5357440906 | M74: 0.3323577616
A75: Small Non Domestic Off Peak (related MPAN) | B75: ='[2]Smoothed Input Details'!B75 -> 0.02314506492 | C75: ='[2]Smoothed Input Details'!C75 -> 0.1792316169 | D75: ='[2]Smoothed Input Details'!D75 -> 0.7976233182 | E75: ='[2]Smoothed Input Details'!E75 -> 0.0202285775 | F75: ='[2]Smoothed Input Details'!F75 -> 0.1692839774 | G75: ='[2]Smoothed Input Details'!G75 -> 0.8104874451 | H75: ='[2]Smoothed Input Details'!H75 -> 0.02239799855 | I75: ='[2]Smoothed Input Details'!I75 -> 0.1708514866 | J75: ='[2]Smoothed Input Details'!J75 -> 0.8067505148 | K75: 0.02192388032 | L75: 0.1731223603 | M75: 0.8049537594
A76: LV Medium Non-Domestic | B76: ='[2]Smoothed Input Details'!B76 -> 0.136829307 | C76: ='[2]Smoothed Input Details'!C76 -> 0.5268203847 | D76: ='[2]Smoothed Input Details'!D76 -> 0.3363503083 | E76: ='[2]Smoothed Input Details'!E76 -> 0.136691141 | F76: ='[2]Smoothed Input Details'!F76 -> 0.5264012586 | G76: ='[2]Smoothed Input Details'!G76 -> 0.3369076004 | H76: ='[2]Smoothed Input Details'!H76 -> 0.1381202369 | I76: ='[2]Smoothed Input Details'!I76 -> 0.5259378407 | J76: ='[2]Smoothed Input Details'!J76 -> 0.3359419224 | K76: 0.1372135616 | L76: 0.5263864947 | M76: 0.3363999437
A77: LV Sub Medium Non-Domestic | B77: ='[2]Smoothed Input Details'!B77 -> 0.1296647718 | C77: ='[2]Smoothed Input Details'!C77 -> 0.5524559735 | D77: ='[2]Smoothed Input Details'!D77 -> 0.3178792547 | E77: ='[2]Smoothed Input Details'!E77 -> 0.1309836034 | F77: ='[2]Smoothed Input Details'!F77 -> 0.547173078 | G77: ='[2]Smoothed Input Details'!G77 -> 0.3218433186 | H77: ='[2]Smoothed Input Details'!H77 -> 0.131880239 | I77: ='[2]Smoothed Input Details'!I77 -> 0.5557095639 | J77: ='[2]Smoothed Input Details'!J77 -> 0.312410197 | K77: 0.1308428714 | L77: 0.5517795385 | M77: 0.3173775901
A78: HV Medium Non-Domestic | B78: ='[2]Smoothed Input Details'!B78 -> 0.1314039319 | C78: ='[2]Smoothed Input Details'!C78 -> 0.5591502996 | D78: ='[2]Smoothed Input Details'!D78 -> 0.3094457686 | E78: ='[2]Smoothed Input Details'!E78 -> 0.1305722119 | F78: ='[2]Smoothed Input Details'!F78 -> 0.5504045303 | G78: ='[2]Smoothed Input Details'!G78 -> 0.3190232579 | H78: ='[2]Smoothed Input Details'!H78 -> 0.1305006681 | I78: ='[2]Smoothed Input Details'!I78 -> 0.5494933474 | J78: ='[2]Smoothed Input Details'!J78 -> 0.3200059844 | K78: 0.1308256039 | L78: 0.5530160591 | M78: 0.316158337
A82: 1062 - Average split of rate 2 units by distribution time band
A83: Charges for year Y are set in Y-2 using historical data for the previous three years
B86: Y - 5 | E86: Y - 4 | H86: Y - 3 | K86: Information to be used calculating tariffs in year t
B87: Red | C87: Amber | D87: Green | E87: Red | F87: Amber | G87: Green | H87: Red | I87: Amber | J87: Green | K87: Red | L87: Amber | M87: Green
A88: Domestic Two Rate | B88: ='[2]Smoothed Input Details'!B88 -> 0 | C88: ='[2]Smoothed Input Details'!C88 -> 0 | D88: ='[2]Smoothed Input Details'!D88 -> 1 | E88: ='[2]Smoothed Input Details'!E88 -> 0 | F88: ='[2]Smoothed Input Details'!F88 -> 0 | G88: ='[2]Smoothed Input Details'!G88 -> 1 | H88: ='[2]Smoothed Input Details'!H88 -> 0 | I88: ='[2]Smoothed Input Details'!I88 -> 0 | J88: ='[2]Smoothed Input Details'!J88 -> 1 | K88: =AVERAGE(B88,E88,H88) -> 0 | L88: 0 | M88: 1
A89: Small Non Domestic Two Rate | B89: ='[2]Smoothed Input Details'!B89 -> 0 | C89: ='[2]Smoothed Input Details'!C89 -> 0 | D89: ='[2]Smoothed Input Details'!D89 -> 1 | E89: ='[2]Smoothed Input Details'!E89 -> 0 | F89: ='[2]Smoothed Input Details'!F89 -> 0 | G89: ='[2]Smoothed Input Details'!G89 -> 1 | H89: ='[2]Smoothed Input Details'!H89 -> 0 | I89: ='[2]Smoothed Input Details'!I89 -> 0 | J89: ='[2]Smoothed Input Details'!J89 -> 1 | K89: 0 | L89: 0 | M89: 1
A90: LV Medium Non-Domestic | B90: ='[2]Smoothed Input Details'!B90 -> 0 | C90: ='[2]Smoothed Input Details'!C90 -> 0 | D90: ='[2]Smoothed Input Details'!D90 -> 1 | E90: ='[2]Smoothed Input Details'!E90 -> 0 | F90: ='[2]Smoothed Input Details'!F90 -> 0 | G90: ='[2]Smoothed Input Details'!G90 -> 1 | H90: ='[2]Smoothed Input Details'!H90 -> 0 | I90: ='[2]Smoothed Input Details'!I90 -> 0 | J90: ='[2]Smoothed Input Details'!J90 -> 1 | K90: 0 | L90: 0 | M90: 1
A91: LV Sub Medium Non-Domestic | B91: ='[2]Smoothed Input Details'!B91 -> 0 | C91: ='[2]Smoothed Input Details'!C91 -> 0 | D91: ='[2]Smoothed Input Details'!D91 -> 1 | E91: ='[2]Smoothed Input Details'!E91 -> 0 | F91: ='[2]Smoothed Input Details'!F91 -> 0 | G91: ='[2]Smoothed Input Details'!G91 -> 1 | H91: ='[2]Smoothed Input Details'!H91 -> 0 | I91: ='[2]Smoothed Input Details'!I91 -> 0 | J91: ='[2]Smoothed Input Details'!J91 -> 1 | K91: 0 | L91: 0 | M91: 1
A92: HV Medium Non-Domestic | B92: ='[2]Smoothed Input Details'!B92 -> 0 | C92: ='[2]Smoothed Input Details'!C92 -> 0 | D92: ='[2]Smoothed Input Details'!D92 -> 1 | E92: ='[2]Smoothed Input Details'!E92 -> 0 | F92: ='[2]Smoothed Input Details'!F92 -> 0 | G92: ='[2]Smoothed Input Details'!G92 -> 1 | H92: ='[2]Smoothed Input Details'!H92 -> 0 | I92: ='[2]Smoothed Input Details'!I92 -> 0 | J92: ='[2]Smoothed Input Details'!J92 -> 1 | K92: 0 | L92: 0 | M92: 1
A96: 1064. Average split of rate 1 units by special distribution time band
A97: Charges for year Y are set in Y-2 using historical data for the previous three years
B100: Y - 5 | E100: Y - 4 | H100: Y - 3 | K100: Information to be used calculating tariffs in year t
B101: Black | C101: Yellow | D101: Green | E101: Black | F101: Yellow | G101: Green | H101: Black | I101: Yellow | J101: Green | K101: Red | L101: Amber | M101: Green
A102: NHH UMS category A | B102: ='[2]Smoothed Input Details'!B102 -> 0.02945205479 | C102: ='[2]Smoothed Input Details'!C102 -> 0.3727739726 | D102: ='[2]Smoothed Input Details'!D102 -> 0.5977739726 | E102: ='[2]Smoothed Input Details'!E102 -> 0.02910958904 | F102: ='[2]Smoothed Input Details'!F102 -> 0.3731164384 | G102: ='[2]Smoothed Input Details'!G102 -> 0.5977739726 | H102: ='[2]Smoothed Input Details'!H102 -> 0.0293715847 | I102: ='[2]Smoothed Input Details'!I102 -> 0.3732923497 | J102: ='[2]Smoothed Input Details'!J102 -> 0.5973360656 | K102: =AVERAGE(B102,E102,H102) -> 0.02931107618 | L102: =AVERAGE(C102,F102,I102) -> 0.3730609202 | M102: =AVERAGE(D102,G102,J102) -> 0.5976280036
A103: NHH UMS category B | B103: ='[2]Smoothed Input Details'!B103 -> 0.04902029584 | C103: ='[2]Smoothed Input Details'!C103 -> 0.08874317926 | D103: ='[2]Smoothed Input Details'!D103 -> 0.8622365249 | E103: ='[2]Smoothed Input Details'!E103 -> 0.04863163049 | F103: ='[2]Smoothed Input Details'!F103 -> 0.0887456185 | G103: ='[2]Smoothed Input Details'!G103 -> 0.862622751 | H103: ='[2]Smoothed Input Details'!H103 -> 0.04844598333 | I103: ='[2]Smoothed Input Details'!I103 -> 0.08821193565 | J103: ='[2]Smoothed Input Details'!J103 -> 0.863342081 | K103: 0.04869930322 | L103: 0.08856691114 | M103: 0.8627337856
A104: NHH UMS category C | B104: ='[2]Smoothed Input Details'!B104 -> 0.0894282647 | C104: ='[2]Smoothed Input Details'!C104 -> 0.1633490915 | D104: ='[2]Smoothed Input Details'!D104 -> 0.7472226438 | E104: ='[2]Smoothed Input Details'!E104 -> 0.08913787908 | F104: ='[2]Smoothed Input Details'!F104 -> 0.1273908587 | G104: ='[2]Smoothed Input Details'!G104 -> 0.7834712622 | H104: ='[2]Smoothed Input Details'!H104 -> 0.09167674128 | I104: ='[2]Smoothed Input Details'!I104 -> 0.1660945421 | J104: ='[2]Smoothed Input Details'!J104 -> 0.7422287166 | K104: 0.09008096169 | L104: 0.1522781641 | M104: 0.7576408742
A105: NHH UMS category D | B105: ='[2]Smoothed Input Details'!B105 -> 0.009966909252 | C105: ='[2]Smoothed Input Details'!C105 -> 0.6360797323 | D105: ='[2]Smoothed Input Details'!D105 -> 0.3539533584 | E105: ='[2]Smoothed Input Details'!E105 -> 0.009725784343 | F105: ='[2]Smoothed Input Details'!F105 -> 0.636341067 | G105: ='[2]Smoothed Input Details'!G105 -> 0.3539331487 | H105: ='[2]Smoothed Input Details'!H105 -> 0.01011322921 | I105: ='[2]Smoothed Input Details'!I105 -> 0.6356522738 | J105: ='[2]Smoothed Input Details'!J105 -> 0.3542344969 | K105: 0.009935307601 | L105: 0.6360243577 | M105: 0.3540403347
A109: 1069 - Peaking probabilities by network level
A110: Charges for year Y are set in Y-2 using historical data for the previous three years
B113: Y - 5 | F113: Y - 4 | J113: Y - 3 | N113: Information to be used calculating tariffs in year t
B114: Red | C114: Amber | D114: Green | E114: Black | F114: Red | G114: Amber | H114: Green | I114: Black | J114: Red | K114: Amber | L114: Green | M114: Black | N114: Red | O114: Amber | P114: Green | Q114: Black
A115: GSPs | B115: ='[2]Smoothed Input Details'!B115 -> 0.8832470536 | C115: ='[2]Smoothed Input Details'!C115 -> 0.1167529464 | D115: ='[2]Smoothed Input Details'!D115 -> 0 | E115: ='[2]Smoothed Input Details'!E115 -> 0.8832470536 | F115: ='[2]Smoothed Input Details'!F115 -> 0.8245575657 | G115: ='[2]Smoothed Input Details'!G115 -> 0.1754424343 | H115: ='[2]Smoothed Input Details'!H115 -> 0 | I115: ='[2]Smoothed Input Details'!I115 -> 0.8047382583 | J115: ='[2]Smoothed Input Details'!J115 -> 0.8449171183 | K115: ='[2]Smoothed Input Details'!K115 -> 0.1550828817 | L115: ='[2]Smoothed Input Details'!L115 -> 0 | M115: ='[2]Smoothed Input Details'!M115 -> 0.8255062473 | N115: =AVERAGE(B115,F115,J115) -> 0.8509072459 | O115: =AVERAGE(C115,G115,K115) -> 0.1490927541 | P115: =AVERAGE(D115,H115,L115) -> 0 | Q115: =AVERAGE(E115,I115,M115) -> 0.8378305197
A116: 132kV | B116: ='[2]Smoothed Input Details'!B116 -> 0.7674769377 | C116: ='[2]Smoothed Input Details'!C116 -> 0.2044478175 | D116: ='[2]Smoothed Input Details'!D116 -> 0.02807524485 | E116: ='[2]Smoothed Input Details'!E116 -> 0.7548799698 | F116: ='[2]Smoothed Input Details'!F116 -> 0.6812839775 | G116: ='[2]Smoothed Input Details'!G116 -> 0.275184515 | H116: ='[2]Smoothed Input Details'!H116 -> 0.0435315075 | I116: ='[2]Smoothed Input Details'!I116 -> 0.6607463648 | J116: ='[2]Smoothed Input Details'!J116 -> 0.6836070064 | K116: ='[2]Smoothed Input Details'!K116 -> 0.2763238659 | L116: ='[2]Smoothed Input Details'!L116 -> 0.04006912762 | M116: ='[2]Smoothed Input Details'!M116 -> 0.6640867799 | N116: 0.7107893072 | O116: 0.2519853995 | P116: 0.03722529332 | Q116: 0.6932377048
A117: 132kV/EHV | B117: ='[2]Smoothed Input Details'!B117 -> 0.7674769377 | C117: ='[2]Smoothed Input Details'!C117 -> 0.2044478175 | D117: ='[2]Smoothed Input Details'!D117 -> 0.02807524485 | E117: ='[2]Smoothed Input Details'!E117 -> 0.7548799698 | F117: ='[2]Smoothed Input Details'!F117 -> 0.6812839775 | G117: ='[2]Smoothed Input Details'!G117 -> 0.275184515 | H117: ='[2]Smoothed Input Details'!H117 -> 0.0435315075 | I117: ='[2]Smoothed Input Details'!I117 -> 0.6607463648 | J117: ='[2]Smoothed Input Details'!J117 -> 0.6836070064 | K117: ='[2]Smoothed Input Details'!K117 -> 0.2763238659 | L117: ='[2]Smoothed Input Details'!L117 -> 0.04006912762 | M117: ='[2]Smoothed Input Details'!M117 -> 0.6640867799 | N117: 0.7107893072 | O117: 0.2519853995 | P117: 0.03722529332 | Q117: 0.6932377048
A118: EHV | B118: ='[2]Smoothed Input Details'!B118 -> 0.7461010164 | C118: ='[2]Smoothed Input Details'!C118 -> 0.1879168968 | D118: ='[2]Smoothed Input Details'!D118 -> 0.06598208683 | E118: ='[2]Smoothed Input Details'!E118 -> 0.7461010164 | F118: ='[2]Smoothed Input Details'!F118 -> 0.694794456 | G118: ='[2]Smoothed Input Details'!G118 -> 0.2316174998 | H118: ='[2]Smoothed Input Details'!H118 -> 0.07358804417 | I118: ='[2]Smoothed Input Details'!I118 -> 0.688832845 | J118: ='[2]Smoothed Input Details'!J118 -> 0.7471810652 | K118: ='[2]Smoothed Input Details'!K118 -> 0.1853231173 | L118: ='[2]Smoothed Input Details'!L118 -> 0.06749581749 | M118: ='[2]Smoothed Input Details'!M118 -> 0.7411214316 | N118: 0.7293588459 | O118: 0.2016191713 | P118: 0.06902198283 | Q118: 0.7253517643
A119: EHV/HV | B119: ='[2]Smoothed Input Details'!B119 -> 0.7461010164 | C119: ='[2]Smoothed Input Details'!C119 -> 0.1879168968 | D119: ='[2]Smoothed Input Details'!D119 -> 0.06598208683 | E119: ='[2]Smoothed Input Details'!E119 -> 0.7461010164 | F119: ='[2]Smoothed Input Details'!F119 -> 0.694794456 | G119: ='[2]Smoothed Input Details'!G119 -> 0.2316174998 | H119: ='[2]Smoothed Input Details'!H119 -> 0.07358804417 | I119: ='[2]Smoothed Input Details'!I119 -> 0.688832845 | J119: ='[2]Smoothed Input Details'!J119 -> 0.7471810652 | K119: ='[2]Smoothed Input Details'!K119 -> 0.1853231173 | L119: ='[2]Smoothed Input Details'!L119 -> 0.06749581749 | M119: ='[2]Smoothed Input Details'!M119 -> 0.7411214316 | N119: 0.7293588459 | O119: 0.2016191713 | P119: 0.06902198283 | Q119: 0.7253517643
A120: 132kV/HV | B120: ='[2]Smoothed Input Details'!B120 -> 0.7674769377 | C120: ='[2]Smoothed Input Details'!C120 -> 0.2044478175 | D120: ='[2]Smoothed Input Details'!D120 -> 0.02807524485 | E120: ='[2]Smoothed Input Details'!E120 -> 0.7548799698 | F120: ='[2]Smoothed Input Details'!F120 -> 0.6812839775 | G120: ='[2]Smoothed Input Details'!G120 -> 0.275184515 | H120: ='[2]Smoothed Input Details'!H120 -> 0.0435315075 | I120: ='[2]Smoothed Input Details'!I120 -> 0.6607463648 | J120: ='[2]Smoothed Input Details'!J120 -> 0.6836070064 | K120: ='[2]Smoothed Input Details'!K120 -> 0.2763238659 | L120: ='[2]Smoothed Input Details'!L120 -> 0.04006912762 | M120: ='[2]Smoothed Input Details'!M120 -> 0.6640867799 | N120: 0.7107893072 | O120: 0.2519853995 | P120: 0.03722529332 | Q120: 0.6932377048
A121: HV | B121: ='[2]Smoothed Input Details'!B121 -> 0.7461010164 | C121: ='[2]Smoothed Input Details'!C121 -> 0.1879168968 | D121: ='[2]Smoothed Input Details'!D121 -> 0.06598208683 | E121: ='[2]Smoothed Input Details'!E121 -> 0.7461010164 | F121: ='[2]Smoothed Input Details'!F121 -> 0.694794456 | G121: ='[2]Smoothed Input Details'!G121 -> 0.2316174998 | H121: ='[2]Smoothed Input Details'!H121 -> 0.07358804417 | I121: ='[2]Smoothed Input Details'!I121 -> 0.688832845 | J121: ='[2]Smoothed Input Details'!J121 -> 0.7471810652 | K121: ='[2]Smoothed Input Details'!K121 -> 0.1853231173 | L121: ='[2]Smoothed Input Details'!L121 -> 0.06749581749 | M121: ='[2]Smoothed Input Details'!M121 -> 0.7411214316 | N121: 0.7293588459 | O121: 0.2016191713 | P121: 0.06902198283 | Q121: 0.7253517643
A122: HV/LV | B122: ='[2]Smoothed Input Details'!B122 -> 0.7461010164 | C122: ='[2]Smoothed Input Details'!C122 -> 0.1879168968 | D122: ='[2]Smoothed Input Details'!D122 -> 0.06598208683 | E122: ='[2]Smoothed Input Details'!E122 -> 0.7461010164 | F122: ='[2]Smoothed Input Details'!F122 -> 0.694794456 | G122: ='[2]Smoothed Input Details'!G122 -> 0.2316174998 | H122: ='[2]Smoothed Input Details'!H122 -> 0.07358804417 | I122: ='[2]Smoothed Input Details'!I122 -> 0.688832845 | J122: ='[2]Smoothed Input Details'!J122 -> 0.7471810652 | K122: ='[2]Smoothed Input Details'!K122 -> 0.1853231173 | L122: ='[2]Smoothed Input Details'!L122 -> 0.06749581749 | M122: ='[2]Smoothed Input Details'!M122 -> 0.7411214316 | N122: 0.7293588459 | O122: 0.2016191713 | P122: 0.06902198283 | Q122: 0.7253517643
A123: LV circuits | B123: ='[2]Smoothed Input Details'!B123 -> 0.7461010164 | C123: ='[2]Smoothed Input Details'!C123 -> 0.1879168968 | D123: ='[2]Smoothed Input Details'!D123 -> 0.06598208683 | E123: ='[2]Smoothed Input Details'!E123 -> 0.7461010164 | F123: ='[2]Smoothed Input Details'!F123 -> 0.694794456 | G123: ='[2]Smoothed Input Details'!G123 -> 0.2316174998 | H123: ='[2]Smoothed Input Details'!H123 -> 0.07358804417 | I123: ='[2]Smoothed Input Details'!I123 -> 0.688832845 | J123: ='[2]Smoothed Input Details'!J123 -> 0.7471810652 | K123: ='[2]Smoothed Input Details'!K123 -> 0.1853231173 | L123: ='[2]Smoothed Input Details'!L123 -> 0.06749581749 | M123: ='[2]Smoothed Input Details'!M123 -> 0.7411214316 | N123: 0.7293588459 | O123: 0.2016191713 | P123: 0.06902198283 | Q123: 0.7253517643

Sheet Mat of App
B3: 1025. Matrix of applicability of LV service models to tariffs with fixed charges
C5: ='CDCM Forecast Data'!$E$11 -> 2018/19 | K5: ='CDCM Forecast Data'!$F$11 -> 2019/20 | S5: ='CDCM Forecast Data'!$G$11 -> 2020/21 | AA5: ='CDCM Forecast Data'!$H$11 -> 2021/22 | AI5: ='CDCM Forecast Data'!$I$11 -> 2022/23
C6: LV service model 1 | D6: LV service model 2 | E6: LV service model 3 | F6: LV service model 4 | G6: LV service model 5 | H6: LV service model 6 | I6: LV service model 7 | J6: LV service model 8 | K6: LV service model 1 | L6: LV service model 2 | M6: LV service model 3 | N6: LV service model 4 | O6: LV service model 5 | P6: LV service model 6 | Q6: LV service model 7 | R6: LV service model 8 | S6: LV service model 1 | T6: LV service model 2 | U6: LV service model 3 | V6: LV service model 4 | W6: LV service model 5 | X6: LV service model 6 | Y6: LV service model 7 | Z6: LV service model 8 | AA6: LV service model 1 | AB6: LV service model 2 | AC6: LV service model 3 | AD6: LV service model 4 | AE6: LV service model 5 | AF6: LV service model 6 | AG6: LV service model 7 | AH6: LV service model 8 | AI6: LV service model 1 | AJ6: LV service model 2 | AK6: LV service model 3 | AL6: LV service model 4 | AM6: LV service model 5 | AN6: LV service model 6 | AO6: LV service model 7 | AP6: LV service model 8
B7: Domestic Unrestricted | C7: ='[2]Mat of App'!C7 -> 0.05 | D7: ='[2]Mat of App'!D7 -> 0 | E7: ='[2]Mat of App'!E7 -> 0 | F7: ='[2]Mat of App'!F7 -> 0 | G7: ='[2]Mat of App'!G7 -> 0 | H7: ='[2]Mat of App'!H7 -> 0 | I7: ='[2]Mat of App'!I7 -> 0 | J7: ='[2]Mat of App'!J7 -> 0 | K7: =C7 -> 0.05 | L7: =D7 -> 0 | M7: =E7 -> 0 | N7: =F7 -> 0 | O7: =G7 -> 0 | P7: =H7 -> 0 | Q7: =I7 -> 0 | R7: =J7 -> 0 | S7: =K7 -> 0.05 | T7: =L7 -> 0 | U7: =M7 -> 0 | V7: =N7 -> 0 | W7: =O7 -> 0 | X7: =P7 -> 0 | Y7: =Q7 -> 0 | Z7: =R7 -> 0 | AA7: =S7 -> 0.05 | AB7: =T7 -> 0 | AC7: =U7 -> 0 | AD7: =V7 -> 0 | AE7: =W7 -> 0 | AF7: =X7 -> 0 | AG7: =Y7 -> 0 | AH7: =Z7 -> 0 | AI7: =AA7 -> 0.05 | AJ7: =AB7 -> 0 | AK7: =AC7 -> 0 | AL7: =AD7 -> 0 | AM7: =AE7 -> 0 | AN7: =AF7 -> 0 | AO7: =AG7 -> 0 | AP7: =AH7 -> 0
B8: Domestic Two Rate | C8: ='[2]Mat of App'!C8 -> 0.05 | D8: ='[2]Mat of App'!D8 -> 0 | E8: ='[2]Mat of App'!E8 -> 0 | F8: ='[2]Mat of App'!F8 -> 0 | G8: ='[2]Mat of App'!G8 -> 0 | H8: ='[2]Mat of App'!H8 -> 0 | I8: ='[2]Mat of App'!I8 -> 0 | J8: ='[2]Mat of App'!J8 -> 0 | K8: =C8 -> 0.05 | L8: =D8 -> 0 | M8: =E8 -> 0 | N8: =F8 -> 0 | O8: =G8 -> 0 | P8: =H8 -> 0 | Q8: =I8 -> 0 | R8: =J8 -> 0 | S8: =K8 -> 0.05 | T8: =L8 -> 0 | U8: =M8 -> 0 | V8: =N8 -> 0 | W8: =O8 -> 0 | X8: =P8 -> 0 | Y8: =Q8 -> 0 | Z8: =R8 -> 0 | AA8: =S8 -> 0.05 | AB8: =T8 -> 0 | AC8: =U8 -> 0 | AD8: =V8 -> 0 | AE8: =W8 -> 0 | AF8: =X8 -> 0 | AG8: =Y8 -> 0 | AH8: =Z8 -> 0 | AI8: =AA8 -> 0.05 | AJ8: =AB8 -> 0 | AK8: =AC8 -> 0 | AL8: =AD8 -> 0 | AM8: =AE8 -> 0 | AN8: =AF8 -> 0 | AO8: =AG8 -> 0 | AP8: =AH8 -> 0
B9: Small Non Domestic Unrestricted | C9: ='[2]Mat of App'!C9 -> 0 | D9: ='[2]Mat of App'!D9 -> 1 | E9: ='[2]Mat of App'!E9 -> 0 | F9: ='[2]Mat of App'!F9 -> 0 | G9: ='[2]Mat of App'!G9 -> 0 | H9: ='[2]Mat of App'!H9 -> 0 | I9: ='[2]Mat of App'!I9 -> 0 | J9: ='[2]Mat of App'!J9 -> 0 | K9: 0 | L9: 1 | M9: 0 | N9: 0 | O9: 0 | P9: 0 | Q9: 0 | R9: 0 | S9: 0 | T9: 1 | U9: 0 | V9: 0 | W9: 0 | X9: 0 | Y9: 0 | Z9: 0 | AA9: 0 | AB9: 1 | AC9: 0 | AD9: 0 | AE9: 0 | AF9: 0 | AG9: 0 | AH9: 0 | AI9: 0 | AJ9: 1 | AK9: 0 | AL9: 0 | AM9: 0 | AN9: 0 | AO9: 0 | AP9: 0
B10: Small Non Domestic Two Rate | C10: ='[2]Mat of App'!C10 -> 0 | D10: ='[2]Mat of App'!D10 -> 1 | E10: ='[2]Mat of App'!E10 -> 0 | F10: ='[2]Mat of App'!F10 -> 0 | G10: ='[2]Mat of App'!G10 -> 0 | H10: ='[2]Mat of App'!H10 -> 0 | I10: ='[2]Mat of App'!I10 -> 0 | J10: ='[2]Mat of App'!J10 -> 0 | K10: 0 | L10: 1 | M10: 0 | N10: 0 | O10: 0 | P10: 0 | Q10: 0 | R10: 0 | S10: 0 | T10: 1 | U10: 0 | V10: 0 | W10: 0 | X10: 0 | Y10: 0 | Z10: 0 | AA10: 0 | AB10: 1 | AC10: 0 | AD10: 0 | AE10: 0 | AF10: 0 | AG10: 0 | AH10: 0 | AI10: 0 | AJ10: 1 | AK10: 0 | AL10: 0 | AM10: 0 | AN10: 0 | AO10: 0 | AP10: 0
B11: LV Medium Non-Domestic | C11: ='[2]Mat of App'!C11 -> 0 | D11: ='[2]Mat of App'!D11 -> 0 | E11: ='[2]Mat of App'!E11 -> 1 | F11: ='[2]Mat of App'!F11 -> 0 | G11: ='[2]Mat of App'!G11 -> 0 | H11: ='[2]Mat of App'!H11 -> 0 | I11: ='[2]Mat of App'!I11 -> 0 | J11: ='[2]Mat of App'!J11 -> 0 | K11: 0 | L11: 0 | M11: 1 | N11: 0 | O11: 0 | P11: 0 | Q11: 0 | R11: 0 | S11: 0 | T11: 0 | U11: 1 | V11: 0 | W11: 0 | X11: 0 | Y11: 0 | Z11: 0 | AA11: 0 | AB11: 0 | AC11: 1 | AD11: 0 | AE11: 0 | AF11: 0 | AG11: 0 | AH11: 0 | AI11: 0 | AJ11: 0 | AK11: 1 | AL11: 0 | AM11: 0 | AN11: 0 | AO11: 0 | AP11: 0
B12: LV Sub Medium Non-Domestic | C12: ='[2]Mat of App'!C12 -> 0 | D12: ='[2]Mat of App'!D12 -> 0 | E12: ='[2]Mat of App'!E12 -> 0 | F12: ='[2]Mat of App'!F12 -> 1 | G12: ='[2]Mat of App'!G12 -> 0 | H12: ='[2]Mat of App'!H12 -> 0 | I12: ='[2]Mat of App'!I12 -> 0 | J12: ='[2]Mat of App'!J12 -> 0 | K12: 0 | L12: 0 | M12: 0 | N12: 1 | O12: 0 | P12: 0 | Q12: 0 | R12: 0 | S12: 0 | T12: 0 | U12: 0 | V12: 1 | W12: 0 | X12: 0 | Y12: 0 | Z12: 0 | AA12: 0 | AB12: 0 | AC12: 0 | AD12: 1 | AE12: 0 | AF12: 0 | AG12: 0 | AH12: 0 | AI12: 0 | AJ12: 0 | AK12: 0 | AL12: 1 | AM12: 0 | AN12: 0 | AO12: 0 | AP12: 0
B13: LV Network Domestic | C13: ='[2]Mat of App'!C13 -> 0.05 | D13: ='[2]Mat of App'!D13 -> 0 | E13: ='[2]Mat of App'!E13 -> 0 | F13: ='[2]Mat of App'!F13 -> 0 | G13: ='[2]Mat of App'!G13 -> 0 | H13: ='[2]Mat of App'!H13 -> 0 | I13: ='[2]Mat of App'!I13 -> 0 | J13: ='[2]Mat of App'!J13 -> 0 | K13: 0.05 | L13: 0 | M13: 0 | N13: 0 | O13: 0 | P13: 0 | Q13: 0 | R13: 0 | S13: 0.05 | T13: 0 | U13: 0 | V13: 0 | W13: 0 | X13: 0 | Y13: 0 | Z13: 0 | AA13: 0.05 | AB13: 0 | AC13: 0 | AD13: 0 | AE13: 0 | AF13: 0 | AG13: 0 | AH13: 0 | AI13: 0.05 | AJ13: 0 | AK13: 0 | AL13: 0 | AM13: 0 | AN13: 0 | AO13: 0 | AP13: 0
B14: LV Network Non-Domestic Non-CT | C14: ='[2]Mat of App'!C14 -> 0 | D14: ='[2]Mat of App'!D14 -> 1 | E14: ='[2]Mat of App'!E14 -> 0 | F14: ='[2]Mat of App'!F14 -> 0 | G14: ='[2]Mat of App'!G14 -> 0 | H14: ='[2]Mat of App'!H14 -> 0 | I14: ='[2]Mat of App'!I14 -> 0 | J14: ='[2]Mat of App'!J14 -> 0 | K14: 0 | L14: 1 | M14: 0 | N14: 0 | O14: 0 | P14: 0 | Q14: 0 | R14: 0 | S14: 0 | T14: 1 | U14: 0 | V14: 0 | W14: 0 | X14: 0 | Y14: 0 | Z14: 0 | AA14: 0 | AB14: 1 | AC14: 0 | AD14: 0 | AE14: 0 | AF14: 0 | AG14: 0 | AH14: 0 | AI14: 0 | AJ14: 1 | AK14: 0 | AL14: 0 | AM14: 0 | AN14: 0 | AO14: 0 | AP14: 0
B15: LV HH Metered | C15: ='[2]Mat of App'!C15 -> 0 | D15: ='[2]Mat of App'!D15 -> 0 | E15: ='[2]Mat of App'!E15 -> 0 | F15: ='[2]Mat of App'!F15 -> 0 | G15: ='[2]Mat of App'!G15 -> 1 | H15: ='[2]Mat of App'!H15 -> 0 | I15: ='[2]Mat of App'!I15 -> 0 | J15: ='[2]Mat of App'!J15 -> 0 | K15: 0 | L15: 0 | M15: 0 | N15: 0 | O15: 1 | P15: 0 | Q15: 0 | R15: 0 | S15: 0 | T15: 0 | U15: 0 | V15: 0 | W15: 1 | X15: 0 | Y15: 0 | Z15: 0 | AA15: 0 | AB15: 0 | AC15: 0 | AD15: 0 | AE15: 1 | AF15: 0 | AG15: 0 | AH15: 0 | AI15: 0 | AJ15: 0 | AK15: 0 | AL15: 0 | AM15: 1 | AN15: 0 | AO15: 0 | AP15: 0
B16: LV Sub HH Metered | C16: ='[2]Mat of App'!C16 -> 0 | D16: ='[2]Mat of App'!D16 -> 0 | E16: ='[2]Mat of App'!E16 -> 0 | F16: ='[2]Mat of App'!F16 -> 0 | G16: ='[2]Mat of App'!G16 -> 0 | H16: ='[2]Mat of App'!H16 -> 1 | I16: ='[2]Mat of App'!I16 -> 0 | J16: ='[2]Mat of App'!J16 -> 0 | K16: 0 | L16: 0 | M16: 0 | N16: 0 | O16: 0 | P16: 1 | Q16: 0 | R16: 0 | S16: 0 | T16: 0 | U16: 0 | V16: 0 | W16: 0 | X16: 1 | Y16: 0 | Z16: 0 | AA16: 0 | AB16: 0 | AC16: 0 | AD16: 0 | AE16: 0 | AF16: 1 | AG16: 0 | AH16: 0 | AI16: 0 | AJ16: 0 | AK16: 0 | AL16: 0 | AM16: 0 | AN16: 1 | AO16: 0 | AP16: 0
B17: LV Generation NHH or Aggregate HH | C17: ='[2]Mat of App'!C17 -> 0 | D17: ='[2]Mat of App'!D17 -> 0 | E17: ='[2]Mat of App'!E17 -> 0 | F17: ='[2]Mat of App'!F17 -> 0 | G17: ='[2]Mat of App'!G17 -> 0 | H17: ='[2]Mat of App'!H17 -> 0 | I17: ='[2]Mat of App'!I17 -> 1 | J17: ='[2]Mat of App'!J17 -> 0 | K17: 0 | L17: 0 | M17: 0 | N17: 0 | O17: 0 | P17: 0 | Q17: 1 | R17: 0 | S17: 0 | T17: 0 | U17: 0 | V17: 0 | W17: 0 | X17: 0 | Y17: 1 | Z17: 0 | AA17: 0 | AB17: 0 | AC17: 0 | AD17: 0 | AE17: 0 | AF17: 0 | AG17: 1 | AH17: 0 | AI17: 0 | AJ17: 0 | AK17: 0 | AL17: 0 | AM17: 0 | AN17: 0 | AO17: 1 | AP17: 0
B18: LV Sub Generation NHH | C18: ='[2]Mat of App'!C18 -> 0 | D18: ='[2]Mat of App'!D18 -> 0 | E18: ='[2]Mat of App'!E18 -> 0 | F18: ='[2]Mat of App'!F18 -> 0 | G18: ='[2]Mat of App'!G18 -> 0 | H18: ='[2]Mat of App'!H18 -> 0 | I18: ='[2]Mat of App'!I18 -> 1 | J18: ='[2]Mat of App'!J18 -> 0 | K18: 0 | L18: 0 | M18: 0 | N18: 0 | O18: 0 | P18: 0 | Q18: 1 | R18: 0 | S18: 0 | T18: 0 | U18: 0 | V18: 0 | W18: 0 | X18: 0 | Y18: 1 | Z18: 0 | AA18: 0 | AB18: 0 | AC18: 0 | AD18: 0 | AE18: 0 | AF18: 0 | AG18: 1 | AH18: 0 | AI18: 0 | AJ18: 0 | AK18: 0 | AL18: 0 | AM18: 0 | AN18: 0 | AO18: 1 | AP18: 0
B19: LV Generation Intermittent | C19: ='[2]Mat of App'!C19 -> 0 | D19: ='[2]Mat of App'!D19 -> 0 | E19: ='[2]Mat of App'!E19 -> 0 | F19: ='[2]Mat of App'!F19 -> 0 | G19: ='[2]Mat of App'!G19 -> 0 | H19: ='[2]Mat of App'!H19 -> 0 | I19: ='[2]Mat of App'!I19 -> 1 | J19: ='[2]Mat of App'!J19 -> 0 | K19: 0 | L19: 0 | M19: 0 | N19: 0 | O19: 0 | P19: 0 | Q19: 1 | R19: 0 | S19: 0 | T19: 0 | U19: 0 | V19: 0 | W19: 0 | X19: 0 | Y19: 1 | Z19: 0 | AA19: 0 | AB19: 0 | AC19: 0 | AD19: 0 | AE19: 0 | AF19: 0 | AG19: 1 | AH19: 0 | AI19: 0 | AJ19: 0 | AK19: 0 | AL19: 0 | AM19: 0 | AN19: 0 | AO19: 1 | AP19: 0
B20: LV Generation Intermittent no RP charge | C20: ='[2]Mat of App'!C20 -> 0 | D20: ='[2]Mat of App'!D20 -> 0 | E20: ='[2]Mat of App'!E20 -> 0 | F20: ='[2]Mat of App'!F20 -> 0 | G20: ='[2]Mat of App'!G20 -> 0 | H20: ='[2]Mat of App'!H20 -> 0 | I20: ='[2]Mat of App'!I20 -> 1 | J20: ='[2]Mat of App'!J20 -> 0 | K20: 0 | L20: 0 | M20: 0 | N20: 0 | O20: 0 | P20: 0 | Q20: 1 | R20: 0 | S20: 0 | T20: 0 | U20: 0 | V20: 0 | W20: 0 | X20: 0 | Y20: 1 | Z20: 0 | AA20: 0 | AB20: 0 | AC20: 0 | AD20: 0 | AE20: 0 | AF20: 0 | AG20: 1 | AH20: 0 | AI20: 0 | AJ20: 0 | AK20: 0 | AL20: 0 | AM20: 0 | AN20: 0 | AO20: 1 | AP20: 0
B21: LV Generation Non-Intermittent | C21: ='[2]Mat of App'!C21 -> 0 | D21: ='[2]Mat of App'!D21 -> 0 | E21: ='[2]Mat of App'!E21 -> 0 | F21: ='[2]Mat of App'!F21 -> 0 | G21: ='[2]Mat of App'!G21 -> 0 | H21: ='[2]Mat of App'!H21 -> 0 | I21: ='[2]Mat of App'!I21 -> 0 | J21: ='[2]Mat of App'!J21 -> 0 | K21: 0 | L21: 0 | M21: 0 | N21: 0 | O21: 0 | P21: 0 | Q21: 0 | R21: 0 | S21: 0 | T21: 0 | U21: 0 | V21: 0 | W21: 0 | X21: 0 | Y21: 0 | Z21: 0 | AA21: 0 | AB21: 0 | AC21: 0 | AD21: 0 | AE21: 0 | AF21: 0 | AG21: 0 | AH21: 0 | AI21: 0 | AJ21: 0 | AK21: 0 | AL21: 0 | AM21: 0 | AN21: 0 | AO21: 0 | AP21: 0
B22: LV Generation Non-Intermittent no RP charge | C22: ='[2]Mat of App'!C22 -> 0 | D22: ='[2]Mat of App'!D22 -> 0 | E22: ='[2]Mat of App'!E22 -> 0 | F22: ='[2]Mat of App'!F22 -> 0 | G22: ='[2]Mat of App'!G22 -> 0 | H22: ='[2]Mat of App'!H22 -> 0 | I22: ='[2]Mat of App'!I22 -> 0 | J22: ='[2]Mat of App'!J22 -> 0 | K22: 0 | L22: 0 | M22: 0 | N22: 0 | O22: 0 | P22: 0 | Q22: 0 | R22: 0 | S22: 0 | T22: 0 | U22: 0 | V22: 0 | W22: 0 | X22: 0 | Y22: 0 | Z22: 0 | AA22: 0 | AB22: 0 | AC22: 0 | AD22: 0 | AE22: 0 | AF22: 0 | AG22: 0 | AH22: 0 | AI22: 0 | AJ22: 0 | AK22: 0 | AL22: 0 | AM22: 0 | AN22: 0 | AO22: 0 | AP22: 0
B23: LV Sub Generation Intermittent | C23: ='[2]Mat of App'!C23 -> 0 | D23: ='[2]Mat of App'!D23 -> 0 | E23: ='[2]Mat of App'!E23 -> 0 | F23: ='[2]Mat of App'!F23 -> 0 | G23: ='[2]Mat of App'!G23 -> 0 | H23: ='[2]Mat of App'!H23 -> 0 | I23: ='[2]Mat of App'!I23 -> 0 | J23: ='[2]Mat of App'!J23 -> 0 | K23: 0 | L23: 0 | M23: 0 | N23: 0 | O23: 0 | P23: 0 | Q23: 0 | R23: 0 | S23: 0 | T23: 0 | U23: 0 | V23: 0 | W23: 0 | X23: 0 | Y23: 0 | Z23: 0 | AA23: 0 | AB23: 0 | AC23: 0 | AD23: 0 | AE23: 0 | AF23: 0 | AG23: 0 | AH23: 0 | AI23: 0 | AJ23: 0 | AK23: 0 | AL23: 0 | AM23: 0 | AN23: 0 | AO23: 0 | AP23: 0
B24: LV Sub Generation Intermittent no RP charge | C24: ='[2]Mat of App'!C24 -> 0 | D24: ='[2]Mat of App'!D24 -> 0 | E24: ='[2]Mat of App'!E24 -> 0 | F24: ='[2]Mat of App'!F24 -> 0 | G24: ='[2]Mat of App'!G24 -> 0 | H24: ='[2]Mat of App'!H24 -> 0 | I24: ='[2]Mat of App'!I24 -> 0 | J24: ='[2]Mat of App'!J24 -> 0 | K24: 0 | L24: 0 | M24: 0 | N24: 0 | O24: 0 | P24: 0 | Q24: 0 | R24: 0 | S24: 0 | T24: 0 | U24: 0 | V24: 0 | W24: 0 | X24: 0 | Y24: 0 | Z24: 0 | AA24: 0 | AB24: 0 | AC24: 0 | AD24: 0 | AE24: 0 | AF24: 0 | AG24: 0 | AH24: 0 | AI24: 0 | AJ24: 0 | AK24: 0 | AL24: 0 | AM24: 0 | AN24: 0 | AO24: 0 | AP24: 0
B25: LV Sub Generation Non-Intermittent | C25: ='[2]Mat of App'!C25 -> 0 | D25: ='[2]Mat of App'!D25 -> 0 | E25: ='[2]Mat of App'!E25 -> 0 | F25: ='[2]Mat of App'!F25 -> 0 | G25: ='[2]Mat of App'!G25 -> 0 | H25: ='[2]Mat of App'!H25 -> 0 | I25: ='[2]Mat of App'!I25 -> 0 | J25: ='[2]Mat of App'!J25 -> 0 | K25: 0 | L25: 0 | M25: 0 | N25: 0 | O25: 0 | P25: 0 | Q25: 0 | R25: 0 | S25: 0 | T25: 0 | U25: 0 | V25: 0 | W25: 0 | X25: 0 | Y25: 0 | Z25: 0 | AA25: 0 | AB25: 0 | AC25: 0 | AD25: 0 | AE25: 0 | AF25: 0 | AG25: 0 | AH25: 0 | AI25: 0 | AJ25: 0 | AK25: 0 | AL25: 0 | AM25: 0 | AN25: 0 | AO25: 0 | AP25: 0
B26: LV Sub Generation Non-Intermittent no RP charge | C26: ='[2]Mat of App'!C26 -> 0 | D26: ='[2]Mat of App'!D26 -> 0 | E26: ='[2]Mat of App'!E26 -> 0 | F26: ='[2]Mat of App'!F26 -> 0 | G26: ='[2]Mat of App'!G26 -> 0 | H26: ='[2]Mat of App'!H26 -> 0 | I26: ='[2]Mat of App'!I26 -> 0 | J26: ='[2]Mat of App'!J26 -> 0 | K26: 0 | L26: 0 | M26: 0 | N26: 0 | O26: 0 | P26: 0 | Q26: 0 | R26: 0 | S26: 0 | T26: 0 | U26: 0 | V26: 0 | W26: 0 | X26: 0 | Y26: 0 | Z26: 0 | AA26: 0 | AB26: 0 | AC26: 0 | AD26: 0 | AE26: 0 | AF26: 0 | AG26: 0 | AH26: 0 | AI26: 0 | AJ26: 0 | AK26: 0 | AL26: 0 | AM26: 0 | AN26: 0 | AO26: 0 | AP26: 0
B28: 1026. Matrix of applicability of LV service models to unmetered tariffs
B30: Source: service models
B31: Proportion of service model involved in connecting load of 1 MWh/year | C31: ='CDCM Forecast Data'!$E$11 -> 2018/19 | K31: ='CDCM Forecast Data'!$F$11 -> 2019/20 | S31: ='CDCM Forecast Data'!$G$11 -> 2020/21 | AA31: ='CDCM Forecast Data'!$H$11 -> 2021/22 | AI31: ='CDCM Forecast Data'!$I$11 -> 2022/23
C32: LV service model 1 | D32: LV service model 2 | E32: LV service model 3 | F32: LV service model 4 | G32: LV service model 5 | H32: LV service model 6 | I32: LV service model 7 | J32: LV service model 8 | K32: LV service model 1 | L32: LV service model 2 | M32: LV service model 3 | N32: LV service model 4 | O32: LV service model 5 | P32: LV service model 6 | Q32: LV service model 7 | R32: LV service model 8 | S32: LV service model 1 | T32: LV service model 2 | U32: LV service model 3 | V32: LV service model 4 | W32: LV service model 5 | X32: LV service model 6 | Y32: LV service model 7 | Z32: LV service model 8 | AA32: LV service model 1 | AB32: LV service model 2 | AC32: LV service model 3 | AD32: LV service model 4 | AE32: LV service model 5 | AF32: LV service model 6 | AG32: LV service model 7 | AH32: LV service model 8 | AI32: LV service model 1 | AJ32: LV service model 2 | AK32: LV service model 3 | AL32: LV service model 4 | AM32: LV service model 5 | AN32: LV service model 6 | AO32: LV service model 7 | AP32: LV service model 8
B33: All LV unmetered tariffs | C33: ='[2]Mat of App'!C33 -> 0 | D33: ='[2]Mat of App'!D33 -> 0 | E33: ='[2]Mat of App'!E33 -> 0 | F33: ='[2]Mat of App'!F33 -> 0 | G33: ='[2]Mat of App'!G33 -> 0 | H33: ='[2]Mat of App'!H33 -> 0 | I33: ='[2]Mat of App'!I33 -> 0 | J33: ='[2]Mat of App'!J33 -> 0.488 | K33: =C33 -> 0 | L33: 0 | M33: 0 | N33: 0 | O33: 0 | P33: 0 | Q33: 0 | R33: 0.488 | S33: =K33 -> 0 | T33: =L33 -> 0 | U33: =M33 -> 0 | V33: =N33 -> 0 | W33: =O33 -> 0 | X33: =P33 -> 0 | Y33: =Q33 -> 0 | Z33: =R33 -> 0.488 | AA33: =S33 -> 0 | AB33: =T33 -> 0 | AC33: =U33 -> 0 | AD33: =V33 -> 0 | AE33: =W33 -> 0 | AF33: =X33 -> 0 | AG33: =Y33 -> 0 | AH33: =Z33 -> 0.488 | AI33: =AA33 -> 0 | AJ33: =AB33 -> 0 | AK33: =AC33 -> 0 | AL33: =AD33 -> 0 | AM33: =AE33 -> 0 | AN33: =AF33 -> 0 | AO33: =AG33 -> 0 | AP33: =AH33 -> 0.488
B35: 1028. Matrix of applicability of HV service models to tariffs with fixed charges
C36: ='CDCM Forecast Data'!$E$11 -> 2018/19 | H36: =+'CDCM Forecast Data'!F11 -> 2019/20 | M36: =+'CDCM Forecast Data'!G11 -> 2020/21 | R36: =+'CDCM Forecast Data'!H11 -> 2021/22 | W36: =+'CDCM Forecast Data'!I11 -> 2022/23
C37: HV service model 1 | D37: HV service model 2 | E37: HV service model 3 | F37: HV service model 4 | G37: HV service model 5 | H37: HV service model 1 | I37: HV service model 2 | J37: HV service model 3 | K37: HV service model 4 | L37: HV service model 5 | M37: HV service model 1 | N37: HV service model 2 | O37: HV service model 3 | P37: HV service model 4 | Q37: HV service model 5 | R37: HV service model 1 | S37: HV service model 2 | T37: HV service model 3 | U37: HV service model 4 | V37: HV service model 5 | W37: HV service model 1 | X37: HV service model 2 | Y37: HV service model 3 | Z37: HV service model 4 | AA37: HV service model 5
B38: HV Medium Non-Domestic | C38: ='[2]Mat of App'!C38 -> 1 | D38: ='[2]Mat of App'!D38 -> 0 | E38: ='[2]Mat of App'!E38 -> 0 | F38: ='[2]Mat of App'!F38 -> 0 | G38: ='[2]Mat of App'!G38 -> 0 | H38: =C38 -> 1 | I38: =D38 -> 0 | J38: =E38 -> 0 | K38: =F38 -> 0 | L38: =G38 -> 0 | M38: =H38 -> 1 | N38: =I38 -> 0 | O38: =J38 -> 0 | P38: =K38 -> 0 | Q38: =L38 -> 0 | R38: =M38 -> 1 | S38: =N38 -> 0 | T38: =O38 -> 0 | U38: =P38 -> 0 | V38: =Q38 -> 0 | W38: =R38 -> 1 | X38: =S38 -> 0 | Y38: =T38 -> 0 | Z38: =U38 -> 0 | AA38: =V38 -> 0
B39: HV HH Metered | C39: ='[2]Mat of App'!C39 -> 1 | D39: ='[2]Mat of App'!D39 -> 0 | E39: ='[2]Mat of App'!E39 -> 0 | F39: ='[2]Mat of App'!F39 -> 0 | G39: ='[2]Mat of App'!G39 -> 0 | H39: =C39 -> 1 | I39: =D39 -> 0 | J39: =E39 -> 0 | K39: =F39 -> 0 | L39: =G39 -> 0 | M39: =H39 -> 1 | N39: =I39 -> 0 | O39: =J39 -> 0 | P39: =K39 -> 0 | Q39: =L39 -> 0 | R39: =M39 -> 1 | S39: =N39 -> 0 | T39: =O39 -> 0 | U39: =P39 -> 0 | V39: =Q39 -> 0 | W39: =R39 -> 1 | X39: =S39 -> 0 | Y39: =T39 -> 0 | Z39: =U39 -> 0 | AA39: =V39 -> 0
B40: HV Generation Intermittent | C40: ='[2]Mat of App'!C40 -> 0 | D40: ='[2]Mat of App'!D40 -> 1 | E40: ='[2]Mat of App'!E40 -> 0 | F40: ='[2]Mat of App'!F40 -> 0 | G40: ='[2]Mat of App'!G40 -> 0 | H40: 0 | I40: 1 | J40: 0 | K40: 0 | L40: 0 | M40: 0 | N40: 1 | O40: 0 | P40: 0 | Q40: 0 | R40: 0 | S40: 1 | T40: 0 | U40: 0 | V40: 0 | W40: 0 | X40: 1 | Y40: 0 | Z40: 0 | AA40: 0
B41: HV Generation Intermittent no RP charge | C41: ='[2]Mat of App'!C41 -> 0 | D41: ='[2]Mat of App'!D41 -> 1 | E41: ='[2]Mat of App'!E41 -> 0 | F41: ='[2]Mat of App'!F41 -> 0 | G41: ='[2]Mat of App'!G41 -> 0 | H41: 0 | I41: 1 | J41: 0 | K41: 0 | L41: 0 | M41: 0 | N41: 1 | O41: 0 | P41: 0 | Q41: 0 | R41: 0 | S41: 1 | T41: 0 | U41: 0 | V41: 0 | W41: 0 | X41: 1 | Y41: 0 | Z41: 0 | AA41: 0
B42: HV Generation Non-Intermittent | C42: ='[2]Mat of App'!C42 -> 0 | D42: ='[2]Mat of App'!D42 -> 1 | E42: ='[2]Mat of App'!E42 -> 0 | F42: ='[2]Mat of App'!F42 -> 0 | G42: ='[2]Mat of App'!G42 -> 0 | H42: 0 | I42: 1 | J42: 0 | K42: 0 | L42: 0 | M42: 0 | N42: 1 | O42: 0 | P42: 0 | Q42: 0 | R42: 0 | S42: 1 | T42: 0 | U42: 0 | V42: 0 | W42: 0 | X42: 1 | Y42: 0 | Z42: 0 | AA42: 0
B43: HV Generation Non-Intermittent no RP charge | C43: ='[2]Mat of App'!C43 -> 0 | D43: ='[2]Mat of App'!D43 -> 1 | E43: ='[2]Mat of App'!E43 -> 0 | F43: ='[2]Mat of App'!F43 -> 0 | G43: ='[2]Mat of App'!G43 -> 0 | H43: 0 | I43: 1 | J43: 0 | K43: 0 | L43: 0 | M43: 0 | N43: 1 | O43: 0 | P43: 0 | Q43: 0 | R43: 0 | S43: 1 | T43: 0 | U43: 0 | V43: 0 | W43: 0 | X43: 1 | Y43: 0 | Z43: 0 | AA43: 0

Sheet CDCM Volume Forecasts
G3: Growth Rates (%)
G4: VOLUME - RED BAND | L4: VOLUME - AMBER BAND | P4: VOLUME - GREEN BAND | T4: CUSTOMER NUMBERS | X4: IMPORT CAPACITY | AB4: EXCEEDED CAPACITY | AF4: REACTIVE POWER
G5: Y | H5: Y + 1 | I5: Y + 2 | J5: Y + 3 | K5: Y + 4 | L5: Y + 1 | M5: Y + 2 | N5: Y + 3 | O5: Y + 4 | P5: Y + 1 | Q5: Y + 2 | R5: Y + 3 | S5: Y + 4 | T5: Y + 1 | U5: Y + 2 | V5: Y + 3 | W5: Y + 4 | X5: Y + 1 | Y5: Y + 2 | Z5: Y + 3 | AA5: Y + 4 | AB5: Y + 1 | AC5: Y + 2 | AD5: Y + 3 | AE5: Y + 4 | AF5: Y + 1 | AG5: Y + 2 | AH5: Y + 3 | AI5: Y + 4
E6: Customer Category | F6: Description | G6: =+'CDCM Forecast Data'!E11 -> 2018/19 | H6: =+'CDCM Forecast Data'!F11 -> 2019/20 | I6: =+'CDCM Forecast Data'!G11 -> 2020/21 | J6: =+'CDCM Forecast Data'!H11 -> 2021/22 | K6: =+'CDCM Forecast Data'!I11 -> 2022/23 | L6: =+H6 -> 2019/20 | M6: 2020/21 | N6: 2021/22 | O6: 2022/23 | P6: 2019/20 | Q6: 2020/21 | R6: 2021/22 | S6: 2022/23 | T6: 2019/20 | U6: 2020/21 | V6: 2021/22 | W6: 2022/23 | X6: 2019/20 | Y6: 2020/21 | Z6: 2021/22 | AA6: 2022/23 | AB6: =+T6 -> 2019/20 | AC6: 2020/21 | AD6: 2021/22 | AE6: 2022/23 | AF6: 2019/20 | AG6: 2020/21 | AH6: 2021/22 | AI6: 2022/23 | AJ6: Assumptions
E7: 1 | F7: Aggregated demand
E8: 2 | F8: Site-specific demand
E9: 3 | F9: Not used
E10: 4 | F10: Generation
E11: 5 | F11: Not used
E12: 6 | F12: Not used
E13: 7 | F13: Not used
E14: 8 | F14: Not used
E15: 9 | F15: Not used
E16: 10 | F16: Not used
E18: Summary Data | F18: Year | G18: =G6 -> 2018/19 | H18: =H6 -> 2019/20 | I18: =I6 -> 2020/21 | J18: =J6 -> 2021/22 | K18: =K6 -> 2022/23
F19: Total Volume | G19: =SUM(D29:F136) -> 23433374.26 | H19: =SUM(K29:M136) -> 23433374.26 | I19: =SUM(R29:T136) -> 23433374.26 | J19: =SUM(Y29:AA136) -> 23433374.26 | K19: =SUM(AF29:AH136) -> 23433374.26
F20: No. of MPANs | G20: =SUM(G29:G136) -> 2540349.846 | H20: =SUM(N29:N136) -> 2540349.846 | I20: =SUM(U29:U136) -> 2540349.846 | J20: =SUM(AB29:AB136) -> 2540349.846 | K20: =SUM(AI29:AI136) -> 2540349.846
F21: Total Import Capacity | G21: =SUM(H29:H136) -> 4533049.58 | H21: =SUM(O29:O136) -> 4533049.58 | I21: =SUM(V29:V136) -> 4533049.58 | J21: =SUM(AC29:AC136) -> 4533049.58 | K21: =SUM(AJ29:AJ136) -> 4533049.58
F22: Total exceeded capacity | G22: =SUM(I29:I136) -> 81508.05671 | H22: =SUM(P29:P136) -> 81508.05671 | I22: =SUM(W29:W136) -> 81508.05671 | J22: =SUM(AD29:AD136) -> 81508.05671 | K22: =SUM(AK29:AK136) -> 81508.05671
F23: Total Reactive | G23: =SUM(J29:J136) -> 1177748.497 | H23: =SUM(Q29:Q136) -> 1177748.497 | I23: =SUM(X29:X136) -> 1177748.497 | J23: =SUM(AE29:AE136) -> 1177748.497 | K23: =SUM(AL29:AL136) -> 1177748.497
C26: 1053. Volume forecasts for the charging year: | D26: =G6& " - ("&G5&")" -> 2018/19 - (Y) | K26: =H6& " - ("&H5&")" -> 2019/20 - (Y + 1) | R26: =I6& " - ("&I5&")" -> 2020/21 - (Y + 2) | Y26: =J6& " - ("&J5&")" -> 2021/22 - (Y + 3) | AF26: =K6& " - ("&K5&")" -> 2022/23 - (Y + 4)
B27: Customer Category | C27: Tariff | D27: Rate 1 units (MWh) | E27: Rate 2 units (MWh) | F27: Rate 3 units (MWh) | G27: MPANs | H27: Import capacity (kVA) | I27: Exceeded capacity (kVA) | J27: Reactive power units (MVArh) | K27: Rate 1 units (MWh) | L27: Rate 2 units (MWh) | M27: Rate 3 units (MWh) | N27: MPANs | O27: Import capacity (kVA) | P27: Exceeded capacity (kVA) | Q27: Reactive power units (MVArh) | R27: Rate 1 units (MWh) | S27: Rate 2 units (MWh) | T27: Rate 3 units (MWh) | U27: MPANs | V27: Import capacity (kVA) | W27: Exceeded capacity (kVA) | X27: Reactive power units (MVArh) | Y27: Rate 1 units (MWh) | Z27: Rate 2 units (MWh) | AA27: Rate 3 units (MWh) | AB27: MPANs | AC27: Import capacity (kVA) | AD27: Exceeded capacity (kVA) | AE27: Reactive power units (MVArh) | AF27: Rate 1 units (MWh) | AG27: Rate 2 units (MWh) | AH27: Rate 3 units (MWh) | AI27: MPANs | AJ27: Import capacity (kVA) | AK27: Exceeded capacity (kVA) | AL27: Reactive power units (MVArh)
A28: 1 | C28: > Domestic Unrestricted
A29: =A28+1 -> 2 | B29: 1 | C29: Domestic Unrestricted | D29: ='[2]CDCM Volume Forecasts'!D29 -> 7033994.4 | E29: ='[2]CDCM Volume Forecasts'!E29 -> 0 | F29: ='[2]CDCM Volume Forecasts'!F29 -> 0 | G29: ='[2]CDCM Volume Forecasts'!G29 -> 1997624.996 | H29: ='[2]CDCM Volume Forecasts'!H29 -> 0 | I29: ='[2]CDCM Volume Forecasts'!I29 -> 0 | J29: ='[2]CDCM Volume Forecasts'!J29 -> 0 | K29: =IF(D29,((VLOOKUP($B29,$E$7:$AI$16,4)+1)*D29),) -> 7033994.4 | L29: =IF(E29,((VLOOKUP($B29,$E$7:$AI$16,8)+1)*E29),) -> 0 | M29: =IF(F29,((VLOOKUP($B29,$E$7:$AI$16,12)+1)*F29),) -> 0 | N29: =IF(G29,((VLOOKUP($B29,$E$7:$AI$16,16)+1)*G29),) -> 1997624.996 | O29: =IF(H29,((VLOOKUP($B29,$E$7:$AI$16,20)+1)*H29),) -> 0 | R29: =IF(D29,((VLOOKUP($B29,$E$7:$AI$16,5)+1)*K29),) -> 7033994.4 | S29: =IF(E29,((VLOOKUP($B29,$E$7:$AI$16,5+4)+1)*L29),) -> 0 | T29: =IF(F29,((VLOOKUP($B29,$E$7:$AI$16,5+8)+1)*M29),) -> 0 | U29: =IF(G29,((VLOOKUP($B29,$E$7:$AI$16,5+12)+1)*N29),) -> 1997624.996 | V29: =IF(H29,((VLOOKUP($B29,$E$7:$AI$16,5+16)+1)*O29),) -> 0 | Y29: =IF(D29,((VLOOKUP($B29,$E$7:$AI$16,6)+1)*R29),) -> 7033994.4 | Z29: =IF(E29,((VLOOKUP($B29,$E$7:$AI$16,6+4)+1)*S29),) -> 0 | AA29: =IF(F29,((VLOOKUP($B29,$E$7:$AI$16,6+8)+1)*T29),) -> 0 | AB29: =IF(G29,((VLOOKUP($B29,$E$7:$AI$16,6+12)+1)*U29),) -> 1997624.996 | AC29: =IF(H29,((VLOOKUP($B29,$E$7:$AI$16,6+16)+1)*V29),) -> 0 | AF29: =IF(D29,((VLOOKUP($B29,$E$7:$AI$16,7)+1)*Y29),) -> 7033994.4 | AG29: =IF(E29,((VLOOKUP($B29,$E$7:$AI$16,7+4)+1)*Z29),) -> 0 | AH29: =IF(F29,((VLOOKUP($B29,$E$7:$AI$16,7+8)+1)*AA29),) -> 0 | AI29: =IF(G29,((VLOOKUP($B29,$E$7:$AI$16,7+12)+1)*AB29),) -> 1997624.996 | AJ29: =IF(H29,((VLOOKUP($B29,$E$7:$AI$16,7+16)+1)*AC29),) -> 0
A30: =A29+1 -> 3 | B30: 1 | C30: LDNO LV: Domestic Unrestricted | D30: ='[2]CDCM Volume Forecasts'!D30 -> 45904.23547 | E30: ='[2]CDCM Volume Forecasts'!E30 -> 0 | F30: ='[2]CDCM Volume Forecasts'!F30 -> 0 | G30: ='[2]CDCM Volume Forecasts'!G30 -> 15951.34727 | H30: ='[2]CDCM Volume Forecasts'!H30 -> 0 | I30: ='[2]CDCM Volume Forecasts'!I30 -> 0 | J30: ='[2]CDCM Volume Forecasts'!J30 -> 0 | K30: =IF(D30,((VLOOKUP($B30,$E$7:$AI$16,4)+1)*D30),) -> 45904.23547 | L30: =IF(E30,((VLOOKUP($B30,$E$7:$AI$16,8)+1)*E30),) -> 0 | M30: =IF(F30,((VLOOKUP($B30,$E$7:$AI$16,12)+1)*F30),) -> 0 | N30: =IF(G30,((VLOOKUP($B30,$E$7:$AI$16,16)+1)*G30),) -> 15951.34727 | O30: =IF(H30,((VLOOKUP($B30,$E$7:$AI$16,20)+1)*H30),) -> 0 | R30: =IF(D30,((VLOOKUP($B30,$E$7:$AI$16,5)+1)*K30),) -> 45904.23547 | S30: =IF(E30,((VLOOKUP($B30,$E$7:$AI$16,5+4)+1)*L30),) -> 0 | T30: =IF(F30,((VLOOKUP($B30,$E$7:$AI$16,5+8)+1)*M30),) -> 0 | U30: =IF(G30,((VLOOKUP($B30,$E$7:$AI$16,5+12)+1)*N30),) -> 15951.34727 | V30: =IF(H30,((VLOOKUP($B30,$E$7:$AI$16,5+16)+1)*O30),) -> 0 | Y30: =IF(D30,((VLOOKUP($B30,$E$7:$AI$16,6)+1)*R30),) -> 45904.23547 | Z30: =IF(E30,((VLOOKUP($B30,$E$7:$AI$16,6+4)+1)*S30),) -> 0 | AA30: =IF(F30,((VLOOKUP($B30,$E$7:$AI$16,6+8)+1)*T30),) -> 0 | AB30: =IF(G30,((VLOOKUP($B30,$E$7:$AI$16,6+12)+1)*U30),) -> 15951.34727 | AC30: =IF(H30,((VLOOKUP($B30,$E$7:$AI$16,6+16)+1)*V30),) -> 0 | AF30: =IF(D30,((VLOOKUP($B30,$E$7:$AI$16,7)+1)*Y30),) -> 45904.23547 | AG30: =IF(E30,((VLOOKUP($B30,$E$7:$AI$16,7+4)+1)*Z30),) -> 0 | AH30: =IF(F30,((VLOOKUP($B30,$E$7:$AI$16,7+8)+1)*AA30),) -> 0 | AI30: =IF(G30,((VLOOKUP($B30,$E$7:$AI$16,7+12)+1)*AB30),) -> 15951.34727 | AJ30: =IF(H30,((VLOOKUP($B30,$E$7:$AI$16,7+16)+1)*AC30),) -> 0
A31: 4 | B31: 1 | C31: LDNO HV: Domestic Unrestricted | D31: ='[2]CDCM Volume Forecasts'!D31 -> 85598.42734 | E31: ='[2]CDCM Volume Forecasts'!E31 -> 0 | F31: ='[2]CDCM Volume Forecasts'!F31 -> 0 | G31: ='[2]CDCM Volume Forecasts'!G31 -> 29809.59942 | H31: ='[2]CDCM Volume Forecasts'!H31 -> 0 | I31: ='[2]CDCM Volume Forecasts'!I31 -> 0 | J31: ='[2]CDCM Volume Forecasts'!J31 -> 0 | K31: 85598.42734 | L31: 0 | M31: 0 | N31: 29809.59942 | O31: 0 | R31: 85598.42734 | S31: 0 | T31: 0 | U31: 29809.59942 | V31: 0 | Y31: 85598.42734 | Z31: 0 | AA31: 0 | AB31: 29809.59942 | AC31: 0 | AF31: 85598.42734 | AG31: 0 | AH31: 0 | AI31: 29809.59942 | AJ31: 0
A32: 5 | C32: > Domestic Two Rate | D32: ='[2]CDCM Volume Forecasts'!D32 -> 0 | E32: ='[2]CDCM Volume Forecasts'!E32 -> 0 | F32: ='[2]CDCM Volume Forecasts'!F32 -> 0 | G32: ='[2]CDCM Volume Forecasts'!G32 -> 0 | H32: ='[2]CDCM Volume Forecasts'!H32 -> 0 | I32: ='[2]CDCM Volume Forecasts'!I32 -> 0 | J32: ='[2]CDCM Volume Forecasts'!J32 -> 0 | K32: 0 | L32: 0 | M32: 0 | N32: 0 | O32: 0 | R32: 0 | S32: 0 | T32: 0 | U32: 0 | V32: 0 | Y32: 0 | Z32: 0 | AA32: 0 | AB32: 0 | AC32: 0 | AF32: 0 | AG32: 0 | AH32: 0 | AI32: 0 | AJ32: 0
A33: 6 | B33: 1 | C33: Domestic Two Rate | D33: ='[2]CDCM Volume Forecasts'!D33 -> 856868.8814 | E33: ='[2]CDCM Volume Forecasts'!E33 -> 637095.4706 | F33: ='[2]CDCM Volume Forecasts'!F33 -> 0 | G33: ='[2]CDCM Volume Forecasts'!G33 -> 280164.5453 | H33: ='[2]CDCM Volume Forecasts'!H33 -> 0 | I33: ='[2]CDCM Volume Forecasts'!I33 -> 0 | J33: ='[2]CDCM Volume Forecasts'!J33 -> 0 | K33: 856868.8814 | L33: 637095.4706 | M33: 0 | N33: 280164.5453 | O33: 0 | R33: 856868.8814 | S33: 637095.4706 | T33: 0 | U33: 280164.5453 | V33: 0 | Y33: 856868.8814 | Z33: 637095.4706 | AA33: 0 | AB33: 280164.5453 | AC33: 0 | AF33: 856868.8814 | AG33: 637095.4706 | AH33: 0 | AI33: 280164.5453 | AJ33: 0
A34: 7 | B34: 1 | C34: LDNO LV: Domestic Two Rate | D34: ='[2]CDCM Volume Forecasts'!D34 -> 2842.04014 | E34: ='[2]CDCM Volume Forecasts'!E34 -> 957.6069374 | F34: ='[2]CDCM Volume Forecasts'!F34 -> 0 | G34: ='[2]CDCM Volume Forecasts'!G34 -> 979.4869911 | H34: ='[2]CDCM Volume Forecasts'!H34 -> 0 | I34: ='[2]CDCM Volume Forecasts'!I34 -> 0 | J34: ='[2]CDCM Volume Forecasts'!J34 -> 0 | K34: 2842.04014 | L34: 957.6069374 | M34: 0 | N34: 979.4869911 | O34: 0 | R34: 2842.04014 | S34: 957.6069374 | T34: 0 | U34: 979.4869911 | V34: 0 | Y34: 2842.04014 | Z34: 957.6069374 | AA34: 0 | AB34: 979.4869911 | AC34: 0 | AF34: 2842.04014 | AG34: 957.6069374 | AH34: 0 | AI34: 979.4869911 | AJ34: 0
A35: 8 | B35: 1 | C35: LDNO HV: Domestic Two Rate | D35: ='[2]CDCM Volume Forecasts'!D35 -> 4257.851945 | E35: ='[2]CDCM Volume Forecasts'!E35 -> 1631.694081 | F35: ='[2]CDCM Volume Forecasts'!F35 -> 0 | G35: ='[2]CDCM Volume Forecasts'!G35 -> 1369.862435 | H35: ='[2]CDCM Volume Forecasts'!H35 -> 0 | I35: ='[2]CDCM Volume Forecasts'!I35 -> 0 | J35: ='[2]CDCM Volume Forecasts'!J35 -> 0 | K35: 4257.851945 | L35: 1631.694081 | M35: 0 | N35: 1369.862435 | O35: 0 | R35: 4257.851945 | S35: 1631.694081 | T35: 0 | U35: 1369.862435 | V35: 0 | Y35: 4257.851945 | Z35: 1631.694081 | AA35: 0 | AB35: 1369.862435 | AC35: 0 | AF35: 4257.851945 | AG35: 1631.694081 | AH35: 0 | AI35: 1369.862435 | AJ35: 0
A36: 9 | C36: > Domestic Off Peak (related MPAN) | D36: ='[2]CDCM Volume Forecasts'!D36 -> 0 | E36: ='[2]CDCM Volume Forecasts'!E36 -> 0 | F36: ='[2]CDCM Volume Forecasts'!F36 -> 0 | G36: ='[2]CDCM Volume Forecasts'!G36 -> 0 | H36: ='[2]CDCM Volume Forecasts'!H36 -> 0 | I36: ='[2]CDCM Volume Forecasts'!I36 -> 0 | J36: ='[2]CDCM Volume Forecasts'!J36 -> 0 | K36: 0 | L36: 0 | M36: 0 | N36: 0 | O36: 0 | R36: 0 | S36: 0 | T36: 0 | U36: 0 | V36: 0 | Y36: 0 | Z36: 0 | AA36: 0 | AB36: 0 | AC36: 0 | AF36: 0 | AG36: 0 | AH36: 0 | AI36: 0 | AJ36: 0
A37: 10 | B37: 1 | C37: Domestic Off Peak (related MPAN) | D37: ='[2]CDCM Volume Forecasts'!D37 -> 22924.72439 | E37: ='[2]CDCM Volume Forecasts'!E37 -> 0 | F37: ='[2]CDCM Volume Forecasts'!F37 -> 0 | G37: ='[2]CDCM Volume Forecasts'!G37 -> 9842 | H37: ='[2]CDCM Volume Forecasts'!H37 -> 0 | I37: ='[2]CDCM Volume Forecasts'!I37 -> 0 | J37: ='[2]CDCM Volume Forecasts'!J37 -> 0 | K37: 22924.72439 | L37: 0 | M37: 0 | N37: 9842 | O37: 0 | R37: 22924.72439 | S37: 0 | T37: 0 | U37: 9842 | V37: 0 | Y37: 22924.72439 | Z37: 0 | AA37: 0 | AB37: 9842 | AC37: 0 | AF37: 22924.72439 | AG37: 0 | AH37: 0 | AI37: 9842 | AJ37: 0
A38: 11 | B38: 1 | C38: LDNO LV: Domestic Off Peak (related MPAN) | D38: ='[2]CDCM Volume Forecasts'!D38 -> 0 | E38: ='[2]CDCM Volume Forecasts'!E38 -> 0 | F38: ='[2]CDCM Volume Forecasts'!F38 -> 0 | G38: ='[2]CDCM Volume Forecasts'!G38 -> 0 | H38: ='[2]CDCM Volume Forecasts'!H38 -> 0 | I38: ='[2]CDCM Volume Forecasts'!I38 -> 0 | J38: ='[2]CDCM Volume Forecasts'!J38 -> 0 | K38: 0 | L38: 0 | M38: 0 | N38: 0 | O38: 0 | R38: 0 | S38: 0 | T38: 0 | U38: 0 | V38: 0 | Y38: 0 | Z38: 0 | AA38: 0 | AB38: 0 | AC38: 0 | AF38: 0 | AG38: 0 | AH38: 0 | AI38: 0 | AJ38: 0
A39: 12 | B39: 1 | C39: LDNO HV: Domestic Off Peak (related MPAN) | D39: ='[2]CDCM Volume Forecasts'!D39 -> 0 | E39: ='[2]CDCM Volume Forecasts'!E39 -> 0 | F39: ='[2]CDCM Volume Forecasts'!F39 -> 0 | G39: ='[2]CDCM Volume Forecasts'!G39 -> 0 | H39: ='[2]CDCM Volume Forecasts'!H39 -> 0 | I39: ='[2]CDCM Volume Forecasts'!I39 -> 0 | J39: ='[2]CDCM Volume Forecasts'!J39 -> 0 | K39: 0 | L39: 0 | M39: 0 | N39: 0 | O39: 0 | R39: 0 | S39: 0 | T39: 0 | U39: 0 | V39: 0 | Y39: 0 | Z39: 0 | AA39: 0 | AB39: 0 | AC39: 0 | AF39: 0 | AG39: 0 | AH39: 0 | AI39: 0 | AJ39: 0
A40: 13 | C40: > Small Non Domestic Unrestricted | D40: ='[2]CDCM Volume Forecasts'!D40 -> 0 | E40: ='[2]CDCM Volume Forecasts'!E40 -> 0 | F40: ='[2]CDCM Volume Forecasts'!F40 -> 0 | G40: ='[2]CDCM Volume Forecasts'!G40 -> 0 | H40: ='[2]CDCM Volume Forecasts'!H40 -> 0 | I40: ='[2]CDCM Volume Forecasts'!I40 -> 0 | J40: ='[2]CDCM Volume Forecasts'!J40 -> 0 | K40: 0 | L40: 0 | M40: 0 | N40: 0 | O40: 0 | R40: 0 | S40: 0 | T40: 0 | U40: 0 | V40: 0 | Y40: 0 | Z40: 0 | AA40: 0 | AB40: 0 | AC40: 0 | AF40: 0 | AG40: 0 | AH40: 0 | AI40: 0 | AJ40: 0
A41: 14 | B41: 1 | C41: Small Non Domestic Unrestricted | D41: ='[2]CDCM Volume Forecasts'!D41 -> 1595722.248 | E41: ='[2]CDCM Volume Forecasts'!E41 -> 0 | F41: ='[2]CDCM Volume Forecasts'!F41 -> 0 | G41: ='[2]CDCM Volume Forecasts'!G41 -> 134131.8698 | H41: ='[2]CDCM Volume Forecasts'!H41 -> 0 | I41: ='[2]CDCM Volume Forecasts'!I41 -> 0 | J41: ='[2]CDCM Volume Forecasts'!J41 -> 0 | K41: 1595722.248 | L41: 0 | M41: 0 | N41: 134131.8698 | O41: 0 | R41: 1595722.248 | S41: 0 | T41: 0 | U41: 134131.8698 | V41: 0 | Y41: 1595722.248 | Z41: 0 | AA41: 0 | AB41: 134131.8698 | AC41: 0 | AF41: 1595722.248 | AG41: 0 | AH41: 0 | AI41: 134131.8698 | AJ41: 0
A42: 15 | B42: 1 | C42: LDNO LV: Small Non Domestic Unrestricted | D42: ='[2]CDCM Volume Forecasts'!D42 -> 2554.765909 | E42: ='[2]CDCM Volume Forecasts'!E42 -> 0 | F42: ='[2]CDCM Volume Forecasts'!F42 -> 0 | G42: ='[2]CDCM Volume Forecasts'!G42 -> 314.3652103 | H42: ='[2]CDCM Volume Forecasts'!H42 -> 0 | I42: ='[2]CDCM Volume Forecasts'!I42 -> 0 | J42: ='[2]CDCM Volume Forecasts'!J42 -> 0 | K42: 2554.765909 | L42: 0 | M42: 0 | N42: 314.3652103 | O42: 0 | R42: 2554.765909 | S42: 0 | T42: 0 | U42: 314.3652103 | V42: 0 | Y42: 2554.765909 | Z42: 0 | AA42: 0 | AB42: 314.3652103 | AC42: 0 | AF42: 2554.765909 | AG42: 0 | AH42: 0 | AI42: 314.3652103 | AJ42: 0
A43: 16 | B43: 1 | C43: LDNO HV: Small Non Domestic Unrestricted | D43: ='[2]CDCM Volume Forecasts'!D43 -> 16791.71137 | E43: ='[2]CDCM Volume Forecasts'!E43 -> 0 | F43: ='[2]CDCM Volume Forecasts'!F43 -> 0 | G43: ='[2]CDCM Volume Forecasts'!G43 -> 1122.055919 | H43: ='[2]CDCM Volume Forecasts'!H43 -> 0 | I43: ='[2]CDCM Volume Forecasts'!I43 -> 0 | J43: ='[2]CDCM Volume Forecasts'!J43 -> 0 | K43: 16791.71137 | L43: 0 | M43: 0 | N43: 1122.055919 | O43: 0 | R43: 16791.71137 | S43: 0 | T43: 0 | U43: 1122.055919 | V43: 0 | Y43: 16791.71137 | Z43: 0 | AA43: 0 | AB43: 1122.055919 | AC43: 0 | AF43: 16791.71137 | AG43: 0 | AH43: 0 | AI43: 1122.055919 | AJ43: 0
A44: 17 | C44: > Small Non Domestic Two Rate | D44: ='[2]CDCM Volume Forecasts'!D44 -> 0 | E44: ='[2]CDCM Volume Forecasts'!E44 -> 0 | F44: ='[2]CDCM Volume Forecasts'!F44 -> 0 | G44: ='[2]CDCM Volume Forecasts'!G44 -> 0 | H44: ='[2]CDCM Volume Forecasts'!H44 -> 0 | I44: ='[2]CDCM Volume Forecasts'!I44 -> 0 | J44: ='[2]CDCM Volume Forecasts'!J44 -> 0 | K44: 0 | L44: 0 | M44: 0 | N44: 0 | O44: 0 | R44: 0 | S44: 0 | T44: 0 | U44: 0 | V44: 0 | Y44: 0 | Z44: 0 | AA44: 0 | AB44: 0 | AC44: 0 | AF44: 0 | AG44: 0 | AH44: 0 | AI44: 0 | AJ44: 0
A45: 18 | B45: 1 | C45: Small Non Domestic Two Rate | D45: ='[2]CDCM Volume Forecasts'!D45 -> 534582.056 | E45: ='[2]CDCM Volume Forecasts'!E45 -> 204605.9085 | F45: ='[2]CDCM Volume Forecasts'!F45 -> 0 | G45: ='[2]CDCM Volume Forecasts'!G45 -> 36566.2175 | H45: ='[2]CDCM Volume Forecasts'!H45 -> 0 | I45: ='[2]CDCM Volume Forecasts'!I45 -> 0 | J45: ='[2]CDCM Volume Forecasts'!J45 -> 0 | K45: 534582.056 | L45: 204605.9085 | M45: 0 | N45: 36566.2175 | O45: 0 | R45: 534582.056 | S45: 204605.9085 | T45: 0 | U45: 36566.2175 | V45: 0 | Y45: 534582.056 | Z45: 204605.9085 | AA45: 0 | AB45: 36566.2175 | AC45: 0 | AF45: 534582.056 | AG45: 204605.9085 | AH45: 0 | AI45: 36566.2175 | AJ45: 0
A46: 19 | B46: 1 | C46: LDNO LV: Small Non Domestic Two Rate | D46: ='[2]CDCM Volume Forecasts'!D46 -> 711.0320014 | E46: ='[2]CDCM Volume Forecasts'!E46 -> 227.9927185 | F46: ='[2]CDCM Volume Forecasts'!F46 -> 0 | G46: ='[2]CDCM Volume Forecasts'!G46 -> 15.91368493 | H46: ='[2]CDCM Volume Forecasts'!H46 -> 0 | I46: ='[2]CDCM Volume Forecasts'!I46 -> 0 | J46: ='[2]CDCM Volume Forecasts'!J46 -> 0 | K46: 711.0320014 | L46: 227.9927185 | M46: 0 | N46: 15.91368493 | O46: 0 | R46: 711.0320014 | S46: 227.9927185 | T46: 0 | U46: 15.91368493 | V46: 0 | Y46: 711.0320014 | Z46: 227.9927185 | AA46: 0 | AB46: 15.91368493 | AC46: 0 | AF46: 711.0320014 | AG46: 227.9927185 | AH46: 0 | AI46: 15.91368493 | AJ46: 0
A47: 20 | B47: 1 | C47: LDNO HV: Small Non Domestic Two Rate | D47: ='[2]CDCM Volume Forecasts'!D47 -> 3255.513566 | E47: ='[2]CDCM Volume Forecasts'!E47 -> 967.1046856 | F47: ='[2]CDCM Volume Forecasts'!F47 -> 0 | G47: ='[2]CDCM Volume Forecasts'!G47 -> 81.95073082 | H47: ='[2]CDCM Volume Forecasts'!H47 -> 0 | I47: ='[2]CDCM Volume Forecasts'!I47 -> 0 | J47: ='[2]CDCM Volume Forecasts'!J47 -> 0 | K47: 3255.513566 | L47: 967.1046856 | M47: 0 | N47: 81.95073082 | O47: 0 | R47: 3255.513566 | S47: 967.1046856 | T47: 0 | U47: 81.95073082 | V47: 0 | Y47: 3255.513566 | Z47: 967.1046856 | AA47: 0 | AB47: 81.95073082 | AC47: 0 | AF47: 3255.513566 | AG47: 967.1046856 | AH47: 0 | AI47: 81.95073082 | AJ47: 0
A48: 21 | C48: > Small Non Domestic Off Peak (related MPAN) | D48: ='[2]CDCM Volume Forecasts'!D48 -> 0 | E48: ='[2]CDCM Volume Forecasts'!E48 -> 0 | F48: ='[2]CDCM Volume Forecasts'!F48 -> 0 | G48: ='[2]CDCM Volume Forecasts'!G48 -> 0 | H48: ='[2]CDCM Volume Forecasts'!H48 -> 0 | I48: ='[2]CDCM Volume Forecasts'!I48 -> 0 | J48: ='[2]CDCM Volume Forecasts'!J48 -> 0 | K48: 0 | L48: 0 | M48: 0 | N48: 0 | O48: 0 | R48: 0 | S48: 0 | T48: 0 | U48: 0 | V48: 0 | Y48: 0 | Z48: 0 | AA48: 0 | AB48: 0 | AC48: 0 | AF48: 0 | AG48: 0 | AH48: 0 | AI48: 0 | AJ48: 0
A49: 22 | B49: 1 | C49: Small Non Domestic Off Peak (related MPAN) | D49: ='[2]CDCM Volume Forecasts'!D49 -> 4352.980773 | E49: ='[2]CDCM Volume Forecasts'!E49 -> 0 | F49: ='[2]CDCM Volume Forecasts'!F49 -> 0 | G49: ='[2]CDCM Volume Forecasts'!G49 -> 864 | H49: ='[2]CDCM Volume Forecasts'!H49 -> 0 | I49: ='[2]CDCM Volume Forecasts'!I49 -> 0 | J49: ='[2]CDCM Volume Forecasts'!J49 -> 0 | K49: 4352.980773 | L49: 0 | M49: 0 | N49: 864 | O49: 0 | R49: 4352.980773 | S49: 0 | T49: 0 | U49: 864 | V49: 0 | Y49: 4352.980773 | Z49: 0 | AA49: 0 | AB49: 864 | AC49: 0 | AF49: 4352.980773 | AG49: 0 | AH49: 0 | AI49: 864 | AJ49: 0
A50: 23 | B50: 1 | C50: LDNO LV: Small Non Domestic Off Peak (related MPAN) | D50: ='[2]CDCM Volume Forecasts'!D50 -> 0 | E50: ='[2]CDCM Volume Forecasts'!E50 -> 0 | F50: ='[2]CDCM Volume Forecasts'!F50 -> 0 | G50: ='[2]CDCM Volume Forecasts'!G50 -> 0 | H50: ='[2]CDCM Volume Forecasts'!H50 -> 0 | I50: ='[2]CDCM Volume Forecasts'!I50 -> 0 | J50: ='[2]CDCM Volume Forecasts'!J50 -> 0 | K50: 0 | L50: 0 | M50: 0 | N50: 0 | O50: 0 | R50: 0 | S50: 0 | T50: 0 | U50: 0 | V50: 0 | Y50: 0 | Z50: 0 | AA50: 0 | AB50: 0 | AC50: 0 | AF50: 0 | AG50: 0 | AH50: 0 | AI50: 0 | AJ50: 0
A51: 24 | B51: 1 | C51: LDNO HV: Small Non Domestic Off Peak (related MPAN) | D51: ='[2]CDCM Volume Forecasts'!D51 -> 0 | E51: ='[2]CDCM Volume Forecasts'!E51 -> 0 | F51: ='[2]CDCM Volume Forecasts'!F51 -> 0 | G51: ='[2]CDCM Volume Forecasts'!G51 -> 0 | H51: ='[2]CDCM Volume Forecasts'!H51 -> 0 | I51: ='[2]CDCM Volume Forecasts'!I51 -> 0 | J51: ='[2]CDCM Volume Forecasts'!J51 -> 0 | K51: 0 | L51: 0 | M51: 0 | N51: 0 | O51: 0 | R51: 0 | S51: 0 | T51: 0 | U51: 0 | V51: 0 | Y51: 0 | Z51: 0 | AA51: 0 | AB51: 0 | AC51: 0 | AF51: 0 | AG51: 0 | AH51: 0 | AI51: 0 | AJ51: 0
A52: 25 | C52: > LV Medium Non-Domestic | D52: ='[2]CDCM Volume Forecasts'!D52 -> 0 | E52: ='[2]CDCM Volume Forecasts'!E52 -> 0 | F52: ='[2]CDCM Volume Forecasts'!F52 -> 0 | G52: ='[2]CDCM Volume Forecasts'!G52 -> 0 | H52: ='[2]CDCM Volume Forecasts'!H52 -> 0 | I52: ='[2]CDCM Volume Forecasts'!I52 -> 0 | J52: ='[2]CDCM Volume Forecasts'!J52 -> 0 | K52: 0 | L52: 0 | M52: 0 | N52: 0 | O52: 0 | R52: 0 | S52: 0 | T52: 0 | U52: 0 | V52: 0 | Y52: 0 | Z52: 0 | AA52: 0 | AB52: 0 | AC52: 0 | AF52: 0 | AG52: 0 | AH52: 0 | AI52: 0 | AJ52: 0
A53: 26 | B53: 1 | C53: LV Medium Non-Domestic | D53: ='[2]CDCM Volume Forecasts'!D53 -> 0.0008021560811 | E53: ='[2]CDCM Volume Forecasts'!E53 -> 0.0001978439189 | F53: ='[2]CDCM Volume Forecasts'!F53 -> 0 | G53: ='[2]CDCM Volume Forecasts'!G53 -> 1.204888627e-05 | H53: ='[2]CDCM Volume Forecasts'!H53 -> 0 | I53: ='[2]CDCM Volume Forecasts'!I53 -> 0 | J53: ='[2]CDCM Volume Forecasts'!J53 -> 0 | K53: 0.0008021560811 | L53: 0.0001978439189 | M53: 0 | N53: 1.204888627e-05 | O53: 0 | R53: 0.0008021560811 | S53: 0.0001978439189 | T53: 0 | U53: 1.204888627e-05 | V53: 0 | Y53: 0.0008021560811 | Z53: 0.0001978439189 | AA53: 0 | AB53: 1.204888627e-05 | AC53: 0 | AF53: 0.0008021560811 | AG53: 0.0001978439189 | AH53: 0 | AI53: 1.204888627e-05 | AJ53: 0
A54: 27 | B54: 1 | C54: LDNO LV: LV Medium Non-Domestic | D54: ='[2]CDCM Volume Forecasts'!D54 -> 0 | E54: ='[2]CDCM Volume Forecasts'!E54 -> 0 | F54: ='[2]CDCM Volume Forecasts'!F54 -> 0 | G54: ='[2]CDCM Volume Forecasts'!G54 -> 0 | H54: ='[2]CDCM Volume Forecasts'!H54 -> 0 | I54: ='[2]CDCM Volume Forecasts'!I54 -> 0 | J54: ='[2]CDCM Volume Forecasts'!J54 -> 0 | K54: 0 | L54: 0 | M54: 0 | N54: 0 | O54: 0 | R54: 0 | S54: 0 | T54: 0 | U54: 0 | V54: 0 | Y54: 0 | Z54: 0 | AA54: 0 | AB54: 0 | AC54: 0 | AF54: 0 | AG54: 0 | AH54: 0 | AI54: 0 | AJ54: 0
A55: 28 | B55: 1 | C55: LDNO HV: LV Medium Non-Domestic | D55: ='[2]CDCM Volume Forecasts'!D55 -> 0 | E55: ='[2]CDCM Volume Forecasts'!E55 -> 0 | F55: ='[2]CDCM Volume Forecasts'!F55 -> 0 | G55: ='[2]CDCM Volume Forecasts'!G55 -> 0 | H55: ='[2]CDCM Volume Forecasts'!H55 -> 0 | I55: ='[2]CDCM Volume Forecasts'!I55 -> 0 | J55: ='[2]CDCM Volume Forecasts'!J55 -> 0 | K55: 0 | L55: 0 | M55: 0 | N55: 0 | O55: 0 | R55: 0 | S55: 0 | T55: 0 | U55: 0 | V55: 0 | Y55: 0 | Z55: 0 | AA55: 0 | AB55: 0 | AC55: 0 | AF55: 0 | AG55: 0 | AH55: 0 | AI55: 0 | AJ55: 0
A56: 29 | C56: > LV Sub Medium Non-Domestic | D56: ='[2]CDCM Volume Forecasts'!D56 -> 0 | E56: ='[2]CDCM Volume Forecasts'!E56 -> 0 | F56: ='[2]CDCM Volume Forecasts'!F56 -> 0 | G56: ='[2]CDCM Volume Forecasts'!G56 -> 0 | H56: ='[2]CDCM Volume Forecasts'!H56 -> 0 | I56: ='[2]CDCM Volume Forecasts'!I56 -> 0 | J56: ='[2]CDCM Volume Forecasts'!J56 -> 0 | K56: 0 | L56: 0 | M56: 0 | N56: 0 | O56: 0 | R56: 0 | S56: 0 | T56: 0 | U56: 0 | V56: 0 | Y56: 0 | Z56: 0 | AA56: 0 | AB56: 0 | AC56: 0 | AF56: 0 | AG56: 0 | AH56: 0 | AI56: 0 | AJ56: 0
A57: 30 | B57: 1 | C57: LV Sub Medium Non-Domestic | D57: ='[2]CDCM Volume Forecasts'!D57 -> 0.0007604348072 | E57: ='[2]CDCM Volume Forecasts'!E57 -> 0.0002395651928 | F57: ='[2]CDCM Volume Forecasts'!F57 -> 0 | G57: ='[2]CDCM Volume Forecasts'!G57 -> 1.253614406e-05 | H57: ='[2]CDCM Volume Forecasts'!H57 -> 0 | I57: ='[2]CDCM Volume Forecasts'!I57 -> 0 | J57: ='[2]CDCM Volume Forecasts'!J57 -> 0 | K57: 0.0007604348072 | L57: 0.0002395651928 | M57: 0 | N57: 1.253614406e-05 | O57: 0 | R57: 0.0007604348072 | S57: 0.0002395651928 | T57: 0 | U57: 1.253614406e-05 | V57: 0 | Y57: 0.0007604348072 | Z57: 0.0002395651928 | AA57: 0 | AB57: 1.253614406e-05 | AC57: 0 | AF57: 0.0007604348072 | AG57: 0.0002395651928 | AH57: 0 | AI57: 1.253614406e-05 | AJ57: 0
A58: 31 | C58: > HV Medium Non-Domestic | D58: ='[2]CDCM Volume Forecasts'!D58 -> 0 | E58: ='[2]CDCM Volume Forecasts'!E58 -> 0 | F58: ='[2]CDCM Volume Forecasts'!F58 -> 0 | G58: ='[2]CDCM Volume Forecasts'!G58 -> 0 | H58: ='[2]CDCM Volume Forecasts'!H58 -> 0 | I58: ='[2]CDCM Volume Forecasts'!I58 -> 0 | J58: ='[2]CDCM Volume Forecasts'!J58 -> 0 | K58: 0 | L58: 0 | M58: 0 | N58: 0 | O58: 0 | R58: 0 | S58: 0 | T58: 0 | U58: 0 | V58: 0 | Y58: 0 | Z58: 0 | AA58: 0 | AB58: 0 | AC58: 0 | AF58: 0 | AG58: 0 | AH58: 0 | AI58: 0 | AJ58: 0
A59: 32 | B59: 1 | C59: HV Medium Non-Domestic | D59: ='[2]CDCM Volume Forecasts'!D59 -> 0.0007934541655 | E59: ='[2]CDCM Volume Forecasts'!E59 -> 0.0002065458345 | F59: ='[2]CDCM Volume Forecasts'!F59 -> 0 | G59: ='[2]CDCM Volume Forecasts'!G59 -> 6.152863457e-06 | H59: ='[2]CDCM Volume Forecasts'!H59 -> 0 | I59: ='[2]CDCM Volume Forecasts'!I59 -> 0 | J59: ='[2]CDCM Volume Forecasts'!J59 -> 0 | K59: 0.0007934541655 | L59: 0.0002065458345 | M59: 0 | N59: 6.152863457e-06 | O59: 0 | R59: 0.0007934541655 | S59: 0.0002065458345 | T59: 0 | U59: 6.152863457e-06 | V59: 0 | Y59: 0.0007934541655 | Z59: 0.0002065458345 | AA59: 0 | AB59: 6.152863457e-06 | AC59: 0 | AF59: 0.0007934541655 | AG59: 0.0002065458345 | AH59: 0 | AI59: 6.152863457e-06 | AJ59: 0
A60: 33 | C60: > LV Network Domestic | D60: ='[2]CDCM Volume Forecasts'!D60 -> 0 | E60: ='[2]CDCM Volume Forecasts'!E60 -> 0 | F60: ='[2]CDCM Volume Forecasts'!F60 -> 0 | G60: ='[2]CDCM Volume Forecasts'!G60 -> 0 | H60: ='[2]CDCM Volume Forecasts'!H60 -> 0 | I60: ='[2]CDCM Volume Forecasts'!I60 -> 0 | J60: ='[2]CDCM Volume Forecasts'!J60 -> 0 | K60: 0 | L60: 0 | M60: 0 | N60: 0 | O60: 0 | R60: 0 | S60: 0 | T60: 0 | U60: 0 | V60: 0 | Y60: 0 | Z60: 0 | AA60: 0 | AB60: 0 | AC60: 0 | AF60: 0 | AG60: 0 | AH60: 0 | AI60: 0 | AJ60: 0
A61: 34 | B61: 1 | C61: LV Network Domestic | D61: ='[2]CDCM Volume Forecasts'!D61 -> 0 | E61: ='[2]CDCM Volume Forecasts'!E61 -> 0 | F61: ='[2]CDCM Volume Forecasts'!F61 -> 0 | G61: ='[2]CDCM Volume Forecasts'!G61 -> 0 | H61: ='[2]CDCM Volume Forecasts'!H61 -> 0 | I61: ='[2]CDCM Volume Forecasts'!I61 -> 0 | J61: ='[2]CDCM Volume Forecasts'!J61 -> 0 | K61: 0 | L61: 0 | M61: 0 | N61: 0 | O61: 0 | R61: 0 | S61: 0 | T61: 0 | U61: 0 | V61: 0 | Y61: 0 | Z61: 0 | AA61: 0 | AB61: 0 | AC61: 0 | AF61: 0 | AG61: 0 | AH61: 0 | AI61: 0 | AJ61: 0
A62: 35 | B62: 1 | C62: LDNO LV: LV Network Domestic | D62: ='[2]CDCM Volume Forecasts'!D62 -> 0 | E62: ='[2]CDCM Volume Forecasts'!E62 -> 0 | F62: ='[2]CDCM Volume Forecasts'!F62 -> 0 | G62: ='[2]CDCM Volume Forecasts'!G62 -> 0 | H62: ='[2]CDCM Volume Forecasts'!H62 -> 0 | I62: ='[2]CDCM Volume Forecasts'!I62 -> 0 | J62: ='[2]CDCM Volume Forecasts'!J62 -> 0 | K62: 0 | L62: 0 | M62: 0 | N62: 0 | O62: 0 | R62: 0 | S62: 0 | T62: 0 | U62: 0 | V62: 0 | Y62: 0 | Z62: 0 | AA62: 0 | AB62: 0 | AC62: 0 | AF62: 0 | AG62: 0 | AH62: 0 | AI62: 0 | AJ62: 0
A63: 36 | B63: 1 | C63: LDNO HV: LV Network Domestic | D63: ='[2]CDCM Volume Forecasts'!D63 -> 0 | E63: ='[2]CDCM Volume Forecasts'!E63 -> 0 | F63: ='[2]CDCM Volume Forecasts'!F63 -> 0 | G63: ='[2]CDCM Volume Forecasts'!G63 -> 0 | H63: ='[2]CDCM Volume Forecasts'!H63 -> 0 | I63: ='[2]CDCM Volume Forecasts'!I63 -> 0 | J63: ='[2]CDCM Volume Forecasts'!J63 -> 0 | K63: 0 | L63: 0 | M63: 0 | N63: 0 | O63: 0 | R63: 0 | S63: 0 | T63: 0 | U63: 0 | V63: 0 | Y63: 0 | Z63: 0 | AA63: 0 | AB63: 0 | AC63: 0 | AF63: 0 | AG63: 0 | AH63: 0 | AI63: 0 | AJ63: 0
A64: 37 | C64: > LV Network Non-Domestic Non-CT | D64: ='[2]CDCM Volume Forecasts'!D64 -> 0 | E64: ='[2]CDCM Volume Forecasts'!E64 -> 0 | F64: ='[2]CDCM Volume Forecasts'!F64 -> 0 | G64: ='[2]CDCM Volume Forecasts'!G64 -> 0 | H64: ='[2]CDCM Volume Forecasts'!H64 -> 0 | I64: ='[2]CDCM Volume Forecasts'!I64 -> 0 | J64: ='[2]CDCM Volume Forecasts'!J64 -> 0 | K64: 0 | L64: 0 | M64: 0 | N64: 0 | O64: 0 | R64: 0 | S64: 0 | T64: 0 | U64: 0 | V64: 0 | Y64: 0 | Z64: 0 | AA64: 0 | AB64: 0 | AC64: 0 | AF64: 0 | AG64: 0 | AH64: 0 | AI64: 0 | AJ64: 0
A65: 38 | B65: 1 | C65: LV Network Non-Domestic Non-CT | D65: ='[2]CDCM Volume Forecasts'!D65 -> 65468.6899 | E65: ='[2]CDCM Volume Forecasts'!E65 -> 249307.5613 | F65: ='[2]CDCM Volume Forecasts'!F65 -> 277392.908 | G65: ='[2]CDCM Volume Forecasts'!G65 -> 9933.790145 | H65: ='[2]CDCM Volume Forecasts'!H65 -> 0 | I65: ='[2]CDCM Volume Forecasts'!I65 -> 0 | J65: ='[2]CDCM Volume Forecasts'!J65 -> 0 | K65: 65468.6899 | L65: 249307.5613 | M65: 277392.908 | N65: 9933.790145 | O65: 0 | R65: 65468.6899 | S65: 249307.5613 | T65: 277392.908 | U65: 9933.790145 | V65: 0 | Y65: 65468.6899 | Z65: 249307.5613 | AA65: 277392.908 | AB65: 9933.790145 | AC65: 0 | AF65: 65468.6899 | AG65: 249307.5613 | AH65: 277392.908 | AI65: 9933.790145 | AJ65: 0
A66: 39 | B66: 1 | C66: LDNO LV: LV Network Non-Domestic Non-CT | D66: ='[2]CDCM Volume Forecasts'!D66 -> 88.13739864 | E66: ='[2]CDCM Volume Forecasts'!E66 -> 336.660181 | F66: ='[2]CDCM Volume Forecasts'!F66 -> 420.4146581 | G66: ='[2]CDCM Volume Forecasts'!G66 -> 16.99439951 | H66: ='[2]CDCM Volume Forecasts'!H66 -> 0 | I66: ='[2]CDCM Volume Forecasts'!I66 -> 0 | J66: ='[2]CDCM Volume Forecasts'!J66 -> 0 | K66: 88.13739864 | L66: 336.660181 | M66: 420.4146581 | N66: 16.99439951 | O66: 0 | R66: 88.13739864 | S66: 336.660181 | T66: 420.4146581 | U66: 16.99439951 | V66: 0 | Y66: 88.13739864 | Z66: 336.660181 | AA66: 420.4146581 | AB66: 16.99439951 | AC66: 0 | AF66: 88.13739864 | AG66: 336.660181 | AH66: 420.4146581 | AI66: 16.99439951 | AJ66: 0
A67: 40 | B67: 1 | C67: LDNO HV: LV Network Non-Domestic Non-CT | D67: ='[2]CDCM Volume Forecasts'!D67 -> 781.199553 | E67: ='[2]CDCM Volume Forecasts'!E67 -> 2964.670605 | F67: ='[2]CDCM Volume Forecasts'!F67 -> 3270.356125 | G67: ='[2]CDCM Volume Forecasts'!G67 -> 106.4677634 | H67: ='[2]CDCM Volume Forecasts'!H67 -> 0 | I67: ='[2]CDCM Volume Forecasts'!I67 -> 0 | J67: ='[2]CDCM Volume Forecasts'!J67 -> 0 | K67: 781.199553 | L67: 2964.670605 | M67: 3270.356125 | N67: 106.4677634 | O67: 0 | R67: 781.199553 | S67: 2964.670605 | T67: 3270.356125 | U67: 106.4677634 | V67: 0 | Y67: 781.199553 | Z67: 2964.670605 | AA67: 3270.356125 | AB67: 106.4677634 | AC67: 0 | AF67: 781.199553 | AG67: 2964.670605 | AH67: 3270.356125 | AI67: 106.4677634 | AJ67: 0
A68: 41 | C68: > LV HH Metered | D68: ='[2]CDCM Volume Forecasts'!D68 -> 0 | E68: ='[2]CDCM Volume Forecasts'!E68 -> 0 | F68: ='[2]CDCM Volume Forecasts'!F68 -> 0 | G68: ='[2]CDCM Volume Forecasts'!G68 -> 0 | H68: ='[2]CDCM Volume Forecasts'!H68 -> 0 | I68: ='[2]CDCM Volume Forecasts'!I68 -> 0 | J68: ='[2]CDCM Volume Forecasts'!J68 -> 0 | K68: 0 | L68: 0 | M68: 0 | N68: 0 | O68: 0 | R68: 0 | S68: 0 | T68: 0 | U68: 0 | V68: 0 | Y68: 0 | Z68: 0 | AA68: 0 | AB68: 0 | AC68: 0 | AF68: 0 | AG68: 0 | AH68: 0 | AI68: 0 | AJ68: 0
A69: 42 | B69: 2 | C69: LV HH Metered | D69: ='[2]CDCM Volume Forecasts'!D69 -> 288136.9236 | E69: ='[2]CDCM Volume Forecasts'!E69 -> 1133767.484 | F69: ='[2]CDCM Volume Forecasts'!F69 -> 1217827.25 | G69: ='[2]CDCM Volume Forecasts'!G69 -> 13739.24605 | H69: ='[2]CDCM Volume Forecasts'!H69 -> 1443798.065 | I69: ='[2]CDCM Volume Forecasts'!I69 -> 19185.24781 | J69: ='[2]CDCM Volume Forecasts'!J69 -> 185922.1109 | K69: 288136.9236 | L69: 1133767.484 | M69: 1217827.25 | N69: 13739.24605 | O69: 1443798.065 | P69: =IF(I69,((VLOOKUP($B69,$E$7:$AI$16,24)+1)*I69),) -> 19185.24781 | Q69: =IF(J69,((VLOOKUP($B69,$E$7:$AI$16,28)+1)*J69),) -> 185922.1109 | R69: 288136.9236 | S69: 1133767.484 | T69: 1217827.25 | U69: 13739.24605 | V69: 1443798.065 | W69: =IF(I69,((VLOOKUP($B69,$E$7:$AI$16,5+20)+1)*P69),) -> 19185.24781 | X69: =IF(J69,((VLOOKUP($B69,$E$7:$AI$16,5+24)+1)*Q69),) -> 185922.1109 | Y69: 288136.9236 | Z69: 1133767.484 | AA69: 1217827.25 | AB69: 13739.24605 | AC69: 1443798.065 | AD69: =IF(I69,((VLOOKUP($B69,$E$7:$AI$16,6+20)+1)*W69),) -> 19185.24781 | AE69: =IF(J69,((VLOOKUP($B69,$E$7:$AI$16,6+24)+1)*X69),) -> 185922.1109 | AF69: 288136.9236 | AG69: 1133767.484 | AH69: 1217827.25 | AI69: 13739.24605 | AJ69: 1443798.065 | AK69: =IF(I69,((VLOOKUP($B69,$E$7:$AI$16,7+20)+1)*AD69),) -> 19185.24781 | AL69: =IF(J69,((VLOOKUP($B69,$E$7:$AI$16,7+24)+1)*AE69),) -> 185922.1109
A70: 43 | B70: 2 | C70: LDNO LV: LV HH Metered | D70: ='[2]CDCM Volume Forecasts'!D70 -> 294.9219867 | E70: ='[2]CDCM Volume Forecasts'!E70 -> 1148.164231 | F70: ='[2]CDCM Volume Forecasts'!F70 -> 1503.991493 | G70: ='[2]CDCM Volume Forecasts'!G70 -> 29.531532 | H70: ='[2]CDCM Volume Forecasts'!H70 -> 1938.272743 | I70: ='[2]CDCM Volume Forecasts'!I70 -> 35.5619437 | J70: ='[2]CDCM Volume Forecasts'!J70 -> 156.0091652 | K70: 294.9219867 | L70: 1148.164231 | M70: 1503.991493 | N70: 29.531532 | O70: 1938.272743 | P70: =IF(I70,((VLOOKUP($B70,$E$7:$AI$16,24)+1)*I70),) -> 35.5619437 | Q70: =IF(J70,((VLOOKUP($B70,$E$7:$AI$16,28)+1)*J70),) -> 156.0091652 | R70: 294.9219867 | S70: 1148.164231 | T70: 1503.991493 | U70: 29.531532 | V70: 1938.272743 | W70: =IF(I70,((VLOOKUP($B70,$E$7:$AI$16,5+20)+1)*P70),) -> 35.5619437 | X70: =IF(J70,((VLOOKUP($B70,$E$7:$AI$16,5+24)+1)*Q70),) -> 156.0091652 | Y70: 294.9219867 | Z70: 1148.164231 | AA70: 1503.991493 | AB70: 29.531532 | AC70: 1938.272743 | AD70: =IF(I70,((VLOOKUP($B70,$E$7:$AI$16,6+20)+1)*W70),) -> 35.5619437 | AE70: =IF(J70,((VLOOKUP($B70,$E$7:$AI$16,6+24)+1)*X70),) -> 156.0091652 | AF70: 294.9219867 | AG70: 1148.164231 | AH70: 1503.991493 | AI70: 29.531532 | AJ70: 1938.272743 | AK70: =IF(I70,((VLOOKUP($B70,$E$7:$AI$16,7+20)+1)*AD70),) -> 35.5619437 | AL70: =IF(J70,((VLOOKUP($B70,$E$7:$AI$16,7+24)+1)*AE70),) -> 156.0091652
A71: 44 | B71: 2 | C71: LDNO HV: LV HH Metered | D71: ='[2]CDCM Volume Forecasts'!D71 -> 14846.67041 | E71: ='[2]CDCM Volume Forecasts'!E71 -> 52731.66599 | F71: ='[2]CDCM Volume Forecasts'!F71 -> 61521.53703 | G71: ='[2]CDCM Volume Forecasts'!G71 -> 377.1264647 | H71: ='[2]CDCM Volume Forecasts'!H71 -> 77687.27363 | I71: ='[2]CDCM Volume Forecasts'!I71 -> 1090.348891 | J71: ='[2]CDCM Volume Forecasts'!J71 -> 3547.967832 | K71: 14846.67041 | L71: 52731.66599 | M71: 61521.53703 | N71: 377.1264647 | O71: 77687.27363 | P71: 1090.348891 | Q71: 3547.967832 | R71: 14846.67041 | S71: 52731.66599 | T71: 61521.53703 | U71: 377.1264647 | V71: 77687.27363 | W71: 1090.348891 | X71: 3547.967832 | Y71: 14846.67041 | Z71: 52731.66599 | AA71: 61521.53703 | AB71: 377.1264647 | AC71: 77687.27363 | AD71: 1090.348891 | AE71: 3547.967832 | AF71: 14846.67041 | AG71: 52731.66599 | AH71: 61521.53703 | AI71: 377.1264647 | AJ71: 77687.27363 | AK71: 1090.348891 | AL71: 3547.967832
A72: 45 | C72: > LV Sub HH Metered | D72: ='[2]CDCM Volume Forecasts'!D72 -> 0 | E72: ='[2]CDCM Volume Forecasts'!E72 -> 0 | F72: ='[2]CDCM Volume Forecasts'!F72 -> 0 | G72: ='[2]CDCM Volume Forecasts'!G72 -> 0 | H72: ='[2]CDCM Volume Forecasts'!H72 -> 0 | I72: ='[2]CDCM Volume Forecasts'!I72 -> 0 | J72: ='[2]CDCM Volume Forecasts'!J72 -> 0 | K72: 0 | L72: 0 | M72: 0 | N72: 0 | O72: 0 | R72: 0 | S72: 0 | T72: 0 | U72: 0 | V72: 0 | Y72: 0 | Z72: 0 | AA72: 0 | AB72: 0 | AC72: 0 | AF72: 0 | AG72: 0 | AH72: 0 | AI72: 0 | AJ72: 0
A73: 46 | B73: 2 | C73: LV Sub HH Metered | D73: ='[2]CDCM Volume Forecasts'!D73 -> 15765.23217 | E73: ='[2]CDCM Volume Forecasts'!E73 -> 61475.58004 | F73: ='[2]CDCM Volume Forecasts'!F73 -> 67543.84453 | G73: ='[2]CDCM Volume Forecasts'!G73 -> 263.4385041 | H73: ='[2]CDCM Volume Forecasts'!H73 -> 103428.7736 | I73: ='[2]CDCM Volume Forecasts'!I73 -> 472.5795212 | J73: ='[2]CDCM Volume Forecasts'!J73 -> 9098.971149 | K73: 15765.23217 | L73: 61475.58004 | M73: 67543.84453 | N73: 263.4385041 | O73: 103428.7736 | P73: =IF(I73,((VLOOKUP($B73,$E$7:$AI$16,24)+1)*I73),) -> 472.5795212 | Q73: =IF(J73,((VLOOKUP($B73,$E$7:$AI$16,28)+1)*J73),) -> 9098.971149 | R73: 15765.23217 | S73: 61475.58004 | T73: 67543.84453 | U73: 263.4385041 | V73: 103428.7736 | W73: =IF(I73,((VLOOKUP($B73,$E$7:$AI$16,5+20)+1)*P73),) -> 472.5795212 | X73: =IF(J73,((VLOOKUP($B73,$E$7:$AI$16,5+24)+1)*Q73),) -> 9098.971149 | Y73: 15765.23217 | Z73: 61475.58004 | AA73: 67543.84453 | AB73: 263.4385041 | AC73: 103428.7736 | AD73: =IF(I73,((VLOOKUP($B73,$E$7:$AI$16,6+20)+1)*W73),) -> 472.5795212 | AE73: =IF(J73,((VLOOKUP($B73,$E$7:$AI$16,6+24)+1)*X73),) -> 9098.971149 | AF73: 15765.23217 | AG73: 61475.58004 | AH73: 67543.84453 | AI73: 263.4385041 | AJ73: 103428.7736 | AK73: =IF(I73,((VLOOKUP($B73,$E$7:$AI$16,7+20)+1)*AD73),) -> 472.5795212 | AL73: =IF(J73,((VLOOKUP($B73,$E$7:$AI$16,7+24)+1)*AE73),) -> 9098.971149
A74: 47 | B74: 2 | C74: LDNO HV: LV Sub HH Metered | D74: ='[2]CDCM Volume Forecasts'!D74 -> 582.1097601 | E74: ='[2]CDCM Volume Forecasts'!E74 -> 2261.471294 | F74: ='[2]CDCM Volume Forecasts'!F74 -> 3383.087099 | G74: ='[2]CDCM Volume Forecasts'!G74 -> 7.120179452 | H74: ='[2]CDCM Volume Forecasts'!H74 -> 4589.013565 | I74: ='[2]CDCM Volume Forecasts'!I74 -> 0 | J74: ='[2]CDCM Volume Forecasts'!J74 -> 1686.527735 | K74: 582.1097601 | L74: 2261.471294 | M74: 3383.087099 | N74: 7.120179452 | O74: 4589.013565 | P74: 0 | Q74: 1686.527735 | R74: 582.1097601 | S74: 2261.471294 | T74: 3383.087099 | U74: 7.120179452 | V74: 4589.013565 | W74: 0 | X74: 1686.527735 | Y74: 582.1097601 | Z74: 2261.471294 | AA74: 3383.087099 | AB74: 7.120179452 | AC74: 4589.013565 | AD74: 0 | AE74: 1686.527735 | AF74: 582.1097601 | AG74: 2261.471294 | AH74: 3383.087099 | AI74: 7.120179452 | AJ74: 4589.013565 | AK74: =IF(I74,((VLOOKUP($B74,$E$7:$AI$16,7+20)+1)*AD74),) -> 0 | AL74: =IF(J74,((VLOOKUP($B74,$E$7:$AI$16,7+24)+1)*AE74),) -> 1686.527735
A75: 48 | C75: > HV HH Metered | D75: ='[2]CDCM Volume Forecasts'!D75 -> 0 | E75: ='[2]CDCM Volume Forecasts'!E75 -> 0 | F75: ='[2]CDCM Volume Forecasts'!F75 -> 0 | G75: ='[2]CDCM Volume Forecasts'!G75 -> 0 | H75: ='[2]CDCM Volume Forecasts'!H75 -> 0 | I75: ='[2]CDCM Volume Forecasts'!I75 -> 0 | J75: ='[2]CDCM Volume Forecasts'!J75 -> 0 | K75: 0 | L75: 0 | M75: 0 | N75: 0 | O75: 0 | R75: 0 | S75: 0 | T75: 0 | U75: 0 | V75: 0 | Y75: 0 | Z75: 0 | AA75: 0 | AB75: 0 | AC75: 0 | AF75: 0 | AG75: 0 | AH75: 0 | AI75: 0 | AJ75: 0
A76: 49 | B76: 2 | C76: HV HH Metered | D76: ='[2]CDCM Volume Forecasts'!D76 -> 741861.9568 | E76: ='[2]CDCM Volume Forecasts'!E76 -> 2955179.536 | F76: ='[2]CDCM Volume Forecasts'!F76 -> 3857333.695 | G76: ='[2]CDCM Volume Forecasts'!G76 -> 4142.610957 | H76: ='[2]CDCM Volume Forecasts'!H76 -> 2873647.675 | I76: ='[2]CDCM Volume Forecasts'!I76 -> 60724.31855 | J76: ='[2]CDCM Volume Forecasts'!J76 -> 952251.1994 | K76: 741861.9568 | L76: 2955179.536 | M76: 3857333.695 | N76: 4142.610957 | O76: 2873647.675 | P76: =IF(I76,((VLOOKUP($B76,$E$7:$AI$16,24)+1)*I76),) -> 60724.31855 | Q76: =IF(J76,((VLOOKUP($B76,$E$7:$AI$16,28)+1)*J76),) -> 952251.1994 | R76: 741861.9568 | S76: 2955179.536 | T76: 3857333.695 | U76: 4142.610957 | V76: 2873647.675 | W76: =IF(I76,((VLOOKUP($B76,$E$7:$AI$16,5+20)+1)*P76),) -> 60724.31855 | X76: =IF(J76,((VLOOKUP($B76,$E$7:$AI$16,5+24)+1)*Q76),) -> 952251.1994 | Y76: 741861.9568 | Z76: 2955179.536 | AA76: 3857333.695 | AB76: 4142.610957 | AC76: 2873647.675 | AD76: =IF(I76,((VLOOKUP($B76,$E$7:$AI$16,6+20)+1)*W76),) -> 60724.31855 | AE76: =IF(J76,((VLOOKUP($B76,$E$7:$AI$16,6+24)+1)*X76),) -> 952251.1994 | AF76: 741861.9568 | AG76: 2955179.536 | AH76: 3857333.695 | AI76: 4142.610957 | AJ76: 2873647.675 | AK76: =IF(I76,((VLOOKUP($B76,$E$7:$AI$16,7+20)+1)*AD76),) -> 60724.31855 | AL76: =IF(J76,((VLOOKUP($B76,$E$7:$AI$16,7+24)+1)*AE76),) -> 952251.1994
A77: 50 | B77: 2 | C77: LDNO HV: HV HH Metered | D77: ='[2]CDCM Volume Forecasts'!D77 -> 4122.254147 | E77: ='[2]CDCM Volume Forecasts'!E77 -> 14297.78756 | F77: ='[2]CDCM Volume Forecasts'!F77 -> 16574.46071 | G77: ='[2]CDCM Volume Forecasts'!G77 -> 32.52052808 | H77: ='[2]CDCM Volume Forecasts'!H77 -> 27960.50628 | I77: ='[2]CDCM Volume Forecasts'!I77 -> 0 | J77: ='[2]CDCM Volume Forecasts'!J77 -> 685.7313926 | K77: 4122.254147 | L77: 14297.78756 | M77: 16574.46071 | N77: 32.52052808 | O77: 27960.50628 | P77: 0 | Q77: 685.7313926 | R77: 4122.254147 | S77: 14297.78756 | T77: 16574.46071 | U77: 32.52052808 | V77: 27960.50628 | W77: 0 | X77: 685.7313926 | Y77: 4122.254147 | Z77: 14297.78756 | AA77: 16574.46071 | AB77: 32.52052808 | AC77: 27960.50628 | AD77: 0 | AE77: 685.7313926 | AF77: 4122.254147 | AG77: 14297.78756 | AH77: 16574.46071 | AI77: 32.52052808 | AJ77: 27960.50628 | AK77: =IF(I77,((VLOOKUP($B77,$E$7:$AI$16,7+20)+1)*AD77),) -> 0 | AL77: =IF(J77,((VLOOKUP($B77,$E$7:$AI$16,7+24)+1)*AE77),) -> 685.7313926
A78: 51 | C78: > NHH UMS category A | D78: ='[2]CDCM Volume Forecasts'!D78 -> 0 | E78: ='[2]CDCM Volume Forecasts'!E78 -> 0 | F78: ='[2]CDCM Volume Forecasts'!F78 -> 0 | G78: ='[2]CDCM Volume Forecasts'!G78 -> 0 | H78: ='[2]CDCM Volume Forecasts'!H78 -> 0 | I78: ='[2]CDCM Volume Forecasts'!I78 -> 0 | J78: ='[2]CDCM Volume Forecasts'!J78 -> 0 | K78: 0 | L78: 0 | M78: 0 | N78: 0 | O78: 0 | R78: 0 | S78: 0 | T78: 0 | U78: 0 | V78: 0 | Y78: 0 | Z78: 0 | AA78: 0 | AB78: 0 | AC78: 0 | AF78: 0 | AG78: 0 | AH78: 0 | AI78: 0 | AJ78: 0
A79: 52 | B79: 1 | C79: NHH UMS category A | D79: ='[2]CDCM Volume Forecasts'!D79 -> 59176.0714 | E79: ='[2]CDCM Volume Forecasts'!E79 -> 0 | F79: ='[2]CDCM Volume Forecasts'!F79 -> 0 | G79: ='[2]CDCM Volume Forecasts'!G79 -> 948 | H79: ='[2]CDCM Volume Forecasts'!H79 -> 0 | I79: ='[2]CDCM Volume Forecasts'!I79 -> 0 | J79: ='[2]CDCM Volume Forecasts'!J79 -> 0 | K79: 59176.0714 | L79: 0 | M79: 0 | N79: 948 | O79: 0 | R79: 59176.0714 | S79: 0 | T79: 0 | U79: 948 | V79: 0 | Y79: 59176.0714 | Z79: 0 | AA79: 0 | AB79: 948 | AC79: 0 | AF79: 59176.0714 | AG79: 0 | AH79: 0 | AI79: 948 | AJ79: 0
A80: 53 | B80: 1 | C80: LDNO LV: NHH UMS category A | D80: ='[2]CDCM Volume Forecasts'!D80 -> 36.24811575 | E80: ='[2]CDCM Volume Forecasts'!E80 -> 0 | F80: ='[2]CDCM Volume Forecasts'!F80 -> 0 | G80: ='[2]CDCM Volume Forecasts'!G80 -> 0 | H80: ='[2]CDCM Volume Forecasts'!H80 -> 0 | I80: ='[2]CDCM Volume Forecasts'!I80 -> 0 | J80: ='[2]CDCM Volume Forecasts'!J80 -> 0 | K80: 36.24811575 | L80: 0 | M80: 0 | N80: 0 | O80: 0 | R80: 36.24811575 | S80: 0 | T80: 0 | U80: 0 | V80: 0 | Y80: 36.24811575 | Z80: 0 | AA80: 0 | AB80: 0 | AC80: 0 | AF80: 36.24811575 | AG80: 0 | AH80: 0 | AI80: 0 | AJ80: 0
A81: 54 | B81: 1 | C81: LDNO HV: NHH UMS category A | D81: ='[2]CDCM Volume Forecasts'!D81 -> 85.36014954 | E81: ='[2]CDCM Volume Forecasts'!E81 -> 0 | F81: ='[2]CDCM Volume Forecasts'!F81 -> 0 | G81: ='[2]CDCM Volume Forecasts'!G81 -> 0 | H81: ='[2]CDCM Volume Forecasts'!H81 -> 0 | I81: ='[2]CDCM Volume Forecasts'!I81 -> 0 | J81: ='[2]CDCM Volume Forecasts'!J81 -> 0 | K81: 85.36014954 | L81: 0 | M81: 0 | N81: 0 | O81: 0 | R81: 85.36014954 | S81: 0 | T81: 0 | U81: 0 | V81: 0 | Y81: 85.36014954 | Z81: 0 | AA81: 0 | AB81: 0 | AC81: 0 | AF81: 85.36014954 | AG81: 0 | AH81: 0 | AI81: 0 | AJ81: 0
A82: 55 | C82: > NHH UMS category B | D82: ='[2]CDCM Volume Forecasts'!D82 -> 0 | E82: ='[2]CDCM Volume Forecasts'!E82 -> 0 | F82: ='[2]CDCM Volume Forecasts'!F82 -> 0 | G82: ='[2]CDCM Volume Forecasts'!G82 -> 0 | H82: ='[2]CDCM Volume Forecasts'!H82 -> 0 | I82: ='[2]CDCM Volume Forecasts'!I82 -> 0 | J82: ='[2]CDCM Volume Forecasts'!J82 -> 0 | K82: 0 | L82: 0 | M82: 0 | N82: 0 | O82: 0 | R82: 0 | S82: 0 | T82: 0 | U82: 0 | V82: 0 | Y82: 0 | Z82: 0 | AA82: 0 | AB82: 0 | AC82: 0 | AF82: 0 | AG82: 0 | AH82: 0 | AI82: 0 | AJ82: 0
A83: 56 | B83: 1 | C83: NHH UMS category B | D83: ='[2]CDCM Volume Forecasts'!D83 -> 10874.20717 | E83: ='[2]CDCM Volume Forecasts'!E83 -> 0 | F83: ='[2]CDCM Volume Forecasts'!F83 -> 0 | G83: ='[2]CDCM Volume Forecasts'!G83 -> 694 | H83: ='[2]CDCM Volume Forecasts'!H83 -> 0 | I83: ='[2]CDCM Volume Forecasts'!I83 -> 0 | J83: ='[2]CDCM Volume Forecasts'!J83 -> 0 | K83: 10874.20717 | L83: 0 | M83: 0 | N83: 694 | O83: 0 | R83: 10874.20717 | S83: 0 | T83: 0 | U83: 694 | V83: 0 | Y83: 10874.20717 | Z83: 0 | AA83: 0 | AB83: 694 | AC83: 0 | AF83: 10874.20717 | AG83: 0 | AH83: 0 | AI83: 694 | AJ83: 0
A84: 57 | B84: 1 | C84: LDNO LV: NHH UMS category B | D84: ='[2]CDCM Volume Forecasts'!D84 -> 200.2006923 | E84: ='[2]CDCM Volume Forecasts'!E84 -> 0 | F84: ='[2]CDCM Volume Forecasts'!F84 -> 0 | G84: ='[2]CDCM Volume Forecasts'!G84 -> 0 | H84: ='[2]CDCM Volume Forecasts'!H84 -> 0 | I84: ='[2]CDCM Volume Forecasts'!I84 -> 0 | J84: ='[2]CDCM Volume Forecasts'!J84 -> 0 | K84: 200.2006923 | L84: 0 | M84: 0 | N84: 0 | O84: 0 | R84: 200.2006923 | S84: 0 | T84: 0 | U84: 0 | V84: 0 | Y84: 200.2006923 | Z84: 0 | AA84: 0 | AB84: 0 | AC84: 0 | AF84: 200.2006923 | AG84: 0 | AH84: 0 | AI84: 0 | AJ84: 0
A85: 58 | B85: 1 | C85: LDNO HV: NHH UMS category B | D85: ='[2]CDCM Volume Forecasts'!D85 -> 544.4360659 | E85: ='[2]CDCM Volume Forecasts'!E85 -> 0 | F85: ='[2]CDCM Volume Forecasts'!F85 -> 0 | G85: ='[2]CDCM Volume Forecasts'!G85 -> 0 | H85: ='[2]CDCM Volume Forecasts'!H85 -> 0 | I85: ='[2]CDCM Volume Forecasts'!I85 -> 0 | J85: ='[2]CDCM Volume Forecasts'!J85 -> 0 | K85: 544.4360659 | L85: 0 | M85: 0 | N85: 0 | O85: 0 | R85: 544.4360659 | S85: 0 | T85: 0 | U85: 0 | V85: 0 | Y85: 544.4360659 | Z85: 0 | AA85: 0 | AB85: 0 | AC85: 0 | AF85: 544.4360659 | AG85: 0 | AH85: 0 | AI85: 0 | AJ85: 0
A86: 59 | C86: > NHH UMS category C | D86: ='[2]CDCM Volume Forecasts'!D86 -> 0 | E86: ='[2]CDCM Volume Forecasts'!E86 -> 0 | F86: ='[2]CDCM Volume Forecasts'!F86 -> 0 | G86: ='[2]CDCM Volume Forecasts'!G86 -> 0 | H86: ='[2]CDCM Volume Forecasts'!H86 -> 0 | I86: ='[2]CDCM Volume Forecasts'!I86 -> 0 | J86: ='[2]CDCM Volume Forecasts'!J86 -> 0 | K86: 0 | L86: 0 | M86: 0 | N86: 0 | O86: 0 | R86: 0 | S86: 0 | T86: 0 | U86: 0 | V86: 0 | Y86: 0 | Z86: 0 | AA86: 0 | AB86: 0 | AC86: 0 | AF86: 0 | AG86: 0 | AH86: 0 | AI86: 0 | AJ86: 0
A87: 60 | B87: 1 | C87: NHH UMS category C | D87: ='[2]CDCM Volume Forecasts'!D87 -> 974.6595118 | E87: ='[2]CDCM Volume Forecasts'!E87 -> 0 | F87: ='[2]CDCM Volume Forecasts'!F87 -> 0 | G87: ='[2]CDCM Volume Forecasts'!G87 -> 135 | H87: ='[2]CDCM Volume Forecasts'!H87 -> 0 | I87: ='[2]CDCM Volume Forecasts'!I87 -> 0 | J87: ='[2]CDCM Volume Forecasts'!J87 -> 0 | K87: 974.6595118 | L87: 0 | M87: 0 | N87: 135 | O87: 0 | R87: 974.6595118 | S87: 0 | T87: 0 | U87: 135 | V87: 0 | Y87: 974.6595118 | Z87: 0 | AA87: 0 | AB87: 135 | AC87: 0 | AF87: 974.6595118 | AG87: 0 | AH87: 0 | AI87: 135 | AJ87: 0
A88: 61 | B88: 1 | C88: LDNO LV: NHH UMS category C | D88: ='[2]CDCM Volume Forecasts'!D88 -> 0 | E88: ='[2]CDCM Volume Forecasts'!E88 -> 0 | F88: ='[2]CDCM Volume Forecasts'!F88 -> 0 | G88: ='[2]CDCM Volume Forecasts'!G88 -> 0 | H88: ='[2]CDCM Volume Forecasts'!H88 -> 0 | I88: ='[2]CDCM Volume Forecasts'!I88 -> 0 | J88: ='[2]CDCM Volume Forecasts'!J88 -> 0 | K88: 0 | L88: 0 | M88: 0 | N88: 0 | O88: 0 | R88: 0 | S88: 0 | T88: 0 | U88: 0 | V88: 0 | Y88: 0 | Z88: 0 | AA88: 0 | AB88: 0 | AC88: 0 | AF88: 0 | AG88: 0 | AH88: 0 | AI88: 0 | AJ88: 0
A89: 62 | B89: 1 | C89: LDNO HV: NHH UMS category C | D89: ='[2]CDCM Volume Forecasts'!D89 -> 25.76916716 | E89: ='[2]CDCM Volume Forecasts'!E89 -> 0 | F89: ='[2]CDCM Volume Forecasts'!F89 -> 0 | G89: ='[2]CDCM Volume Forecasts'!G89 -> 0 | H89: ='[2]CDCM Volume Forecasts'!H89 -> 0 | I89: ='[2]CDCM Volume Forecasts'!I89 -> 0 | J89: ='[2]CDCM Volume Forecasts'!J89 -> 0 | K89: 25.76916716 | L89: 0 | M89: 0 | N89: 0 | O89: 0 | R89: 25.76916716 | S89: 0 | T89: 0 | U89: 0 | V89: 0 | Y89: 25.76916716 | Z89: 0 | AA89: 0 | AB89: 0 | AC89: 0 | AF89: 25.76916716 | AG89: 0 | AH89: 0 | AI89: 0 | AJ89: 0
A90: 63 | C90: > NHH UMS category D | D90: ='[2]CDCM Volume Forecasts'!D90 -> 0 | E90: ='[2]CDCM Volume Forecasts'!E90 -> 0 | F90: ='[2]CDCM Volume Forecasts'!F90 -> 0 | G90: ='[2]CDCM Volume Forecasts'!G90 -> 0 | H90: ='[2]CDCM Volume Forecasts'!H90 -> 0 | I90: ='[2]CDCM Volume Forecasts'!I90 -> 0 | J90: ='[2]CDCM Volume Forecasts'!J90 -> 0 | K90: 0 | L90: 0 | M90: 0 | N90: 0 | O90: 0 | R90: 0 | S90: 0 | T90: 0 | U90: 0 | V90: 0 | Y90: 0 | Z90: 0 | AA90: 0 | AB90: 0 | AC90: 0 | AF90: 0 | AG90: 0 | AH90: 0 | AI90: 0 | AJ90: 0
A91: 64 | B91: 1 | C91: NHH UMS category D | D91: ='[2]CDCM Volume Forecasts'!D91 -> 6690.979313 | E91: ='[2]CDCM Volume Forecasts'!E91 -> 0 | F91: ='[2]CDCM Volume Forecasts'!F91 -> 0 | G91: ='[2]CDCM Volume Forecasts'!G91 -> 40 | H91: ='[2]CDCM Volume Forecasts'!H91 -> 0 | I91: ='[2]CDCM Volume Forecasts'!I91 -> 0 | J91: ='[2]CDCM Volume Forecasts'!J91 -> 0 | K91: 6690.979313 | L91: 0 | M91: 0 | N91: 40 | O91: 0 | R91: 6690.979313 | S91: 0 | T91: 0 | U91: 40 | V91: 0 | Y91: 6690.979313 | Z91: 0 | AA91: 0 | AB91: 40 | AC91: 0 | AF91: 6690.979313 | AG91: 0 | AH91: 0 | AI91: 40 | AJ91: 0
A92: 65 | B92: 1 | C92: LDNO LV: NHH UMS category D | D92: ='[2]CDCM Volume Forecasts'!D92 -> 0 | E92: ='[2]CDCM Volume Forecasts'!E92 -> 0 | F92: ='[2]CDCM Volume Forecasts'!F92 -> 0 | G92: ='[2]CDCM Volume Forecasts'!G92 -> 0 | H92: ='[2]CDCM Volume Forecasts'!H92 -> 0 | I92: ='[2]CDCM Volume Forecasts'!I92 -> 0 | J92: ='[2]CDCM Volume Forecasts'!J92 -> 0 | K92: 0 | L92: 0 | M92: 0 | N92: 0 | O92: 0 | R92: 0 | S92: 0 | T92: 0 | U92: 0 | V92: 0 | Y92: 0 | Z92: 0 | AA92: 0 | AB92: 0 | AC92: 0 | AF92: 0 | AG92: 0 | AH92: 0 | AI92: 0 | AJ92: 0
A93: 66 | B93: 1 | C93: LDNO HV: NHH UMS category D | D93: ='[2]CDCM Volume Forecasts'!D93 -> 0 | E93: ='[2]CDCM Volume Forecasts'!E93 -> 0 | F93: ='[2]CDCM Volume Forecasts'!F93 -> 0 | G93: ='[2]CDCM Volume Forecasts'!G93 -> 0 | H93: ='[2]CDCM Volume Forecasts'!H93 -> 0 | I93: ='[2]CDCM Volume Forecasts'!I93 -> 0 | J93: ='[2]CDCM Volume Forecasts'!J93 -> 0 | K93: 0 | L93: 0 | M93: 0 | N93: 0 | O93: 0 | R93: 0 | S93: 0 | T93: 0 | U93: 0 | V93: 0 | Y93: 0 | Z93: 0 | AA93: 0 | AB93: 0 | AC93: 0 | AF93: 0 | AG93: 0 | AH93: 0 | AI93: 0 | AJ93: 0
A94: =A93+1 -> 67 | C94: > LV UMS (Pseudo HH Metered) | D94: ='[2]CDCM Volume Forecasts'!D94 -> 0 | E94: ='[2]CDCM Volume Forecasts'!E94 -> 0 | F94: ='[2]CDCM Volume Forecasts'!F94 -> 0 | G94: ='[2]CDCM Volume Forecasts'!G94 -> 0 | H94: ='[2]CDCM Volume Forecasts'!H94 -> 0 | I94: ='[2]CDCM Volume Forecasts'!I94 -> 0 | J94: ='[2]CDCM Volume Forecasts'!J94 -> 0 | K94: =IF(D94,((VLOOKUP($B94,$E$7:$AI$16,4)+1)*D94),) -> 0 | L94: =IF(E94,((VLOOKUP($B94,$E$7:$AI$16,8)+1)*E94),) -> 0 | M94: =IF(F94,((VLOOKUP($B94,$E$7:$AI$16,12)+1)*F94),) -> 0 | N94: =IF(G94,((VLOOKUP($B94,$E$7:$AI$16,16)+1)*G94),) -> 0 | O94: =IF(H94,((VLOOKUP($B94,$E$7:$AI$16,20)+1)*H94),) -> 0 | R94: =IF(D94,((VLOOKUP($B94,$E$7:$AI$16,5)+1)*K94),) -> 0 | S94: =IF(E94,((VLOOKUP($B94,$E$7:$AI$16,5+4)+1)*L94),) -> 0 | T94: =IF(F94,((VLOOKUP($B94,$E$7:$AI$16,5+8)+1)*M94),) -> 0 | U94: =IF(G94,((VLOOKUP($B94,$E$7:$AI$16,5+12)+1)*N94),) -> 0 | V94: =IF(H94,((VLOOKUP($B94,$E$7:$AI$16,5+16)+1)*O94),) -> 0 | Y94: =IF(D94,((VLOOKUP($B94,$E$7:$AI$16,6)+1)*R94),) -> 0 | Z94: =IF(E94,((VLOOKUP($B94,$E$7:$AI$16,6+4)+1)*S94),) -> 0 | AA94: =IF(F94,((VLOOKUP($B94,$E$7:$AI$16,6+8)+1)*T94),) -> 0 | AB94: =IF(G94,((VLOOKUP($B94,$E$7:$AI$16,6+12)+1)*U94),) -> 0 | AC94: =IF(H94,((VLOOKUP($B94,$E$7:$AI$16,6+16)+1)*V94),) -> 0 | AF94: =IF(D94,((VLOOKUP($B94,$E$7:$AI$16,7)+1)*Y94),) -> 0 | AG94: =IF(E94,((VLOOKUP($B94,$E$7:$AI$16,7+4)+1)*Z94),) -> 0 | AH94: =IF(F94,((VLOOKUP($B94,$E$7:$AI$16,7+8)+1)*AA94),) -> 0 | AI94: =IF(G94,((VLOOKUP($B94,$E$7:$AI$16,7+12)+1)*AB94),) -> 0 | AJ94: =IF(H94,((VLOOKUP($B94,$E$7:$AI$16,7+16)+1)*AC94),) -> 0
A95: 68 | B95: 2 | C95: LV UMS (Pseudo HH Metered) | D95: ='[2]CDCM Volume Forecasts'!D95 -> 12297.71888 | E95: ='[2]CDCM Volume Forecasts'!E95 -> 40044.12241 | F95: ='[2]CDCM Volume Forecasts'!F95 -> 215732.4022 | G95: ='[2]CDCM Volume Forecasts'!G95 -> 42.93545574 | H95: ='[2]CDCM Volume Forecasts'!H95 -> 0 | I95: ='[2]CDCM Volume Forecasts'!I95 -> 0 | J95: ='[2]CDCM Volume Forecasts'!J95 -> 0 | K95: 12297.71888 | L95: 40044.12241 | M95: 215732.4022 | N95: 42.93545574 | O95: 0 | R95: 12297.71888 | S95: 40044.12241 | T95: 215732.4022 | U95: 42.93545574 | V95: 0 | Y95: 12297.71888 | Z95: 40044.12241 | AA95: 215732.4022 | AB95: 42.93545574 | AC95: 0 | AF95: 12297.71888 | AG95: 40044.12241 | AH95: 215732.4022 | AI95: 42.93545574 | AJ95: 0
A96: 69 | B96: 2 | C96: LDNO LV: LV UMS (Pseudo HH Metered) | D96: ='[2]CDCM Volume Forecasts'!D96 -> 0 | E96: ='[2]CDCM Volume Forecasts'!E96 -> 0 | F96: ='[2]CDCM Volume Forecasts'!F96 -> 0 | G96: ='[2]CDCM Volume Forecasts'!G96 -> 0 | H96: ='[2]CDCM Volume Forecasts'!H96 -> 0 | I96: ='[2]CDCM Volume Forecasts'!I96 -> 0 | J96: ='[2]CDCM Volume Forecasts'!J96 -> 0 | K96: 0 | L96: 0 | M96: 0 | N96: 0 | O96: 0 | R96: 0 | S96: 0 | T96: 0 | U96: 0 | V96: 0 | Y96: 0 | Z96: 0 | AA96: 0 | AB96: 0 | AC96: 0 | AF96: 0 | AG96: 0 | AH96: 0 | AI96: 0 | AJ96: 0
A97: 70 | B97: 2 | C97: LDNO HV: LV UMS (Pseudo HH Metered) | D97: ='[2]CDCM Volume Forecasts'!D97 -> 0 | E97: ='[2]CDCM Volume Forecasts'!E97 -> 0 | F97: ='[2]CDCM Volume Forecasts'!F97 -> 0 | G97: ='[2]CDCM Volume Forecasts'!G97 -> 0 | H97: ='[2]CDCM Volume Forecasts'!H97 -> 0 | I97: ='[2]CDCM Volume Forecasts'!I97 -> 0 | J97: ='[2]CDCM Volume Forecasts'!J97 -> 0 | K97: 0 | L97: 0 | M97: 0 | N97: 0 | O97: 0 | R97: 0 | S97: 0 | T97: 0 | U97: 0 | V97: 0 | Y97: 0 | Z97: 0 | AA97: 0 | AB97: 0 | AC97: 0 | AF97: 0 | AG97: 0 | AH97: 0 | AI97: 0 | AJ97: 0
A98: 71 | C98: > LV Generation NHH or Aggregate HH | D98: ='[2]CDCM Volume Forecasts'!D98 -> 0 | E98: ='[2]CDCM Volume Forecasts'!E98 -> 0 | F98: ='[2]CDCM Volume Forecasts'!F98 -> 0 | G98: ='[2]CDCM Volume Forecasts'!G98 -> 0 | H98: ='[2]CDCM Volume Forecasts'!H98 -> 0 | I98: ='[2]CDCM Volume Forecasts'!I98 -> 0 | J98: ='[2]CDCM Volume Forecasts'!J98 -> 0 | K98: 0 | L98: 0 | M98: 0 | N98: 0 | O98: 0 | R98: 0 | S98: 0 | T98: 0 | U98: 0 | V98: 0 | Y98: 0 | Z98: 0 | AA98: 0 | AB98: 0 | AC98: 0 | AF98: 0 | AG98: 0 | AH98: 0 | AI98: 0 | AJ98: 0
A99: 72 | B99: 4 | C99: LV Generation NHH or Aggregate HH | D99: ='[2]CDCM Volume Forecasts'!D99 -> 1307.116212 | E99: ='[2]CDCM Volume Forecasts'!E99 -> 0 | F99: ='[2]CDCM Volume Forecasts'!F99 -> 0 | G99: ='[2]CDCM Volume Forecasts'!G99 -> 125 | H99: ='[2]CDCM Volume Forecasts'!H99 -> 0 | I99: ='[2]CDCM Volume Forecasts'!I99 -> 0 | J99: ='[2]CDCM Volume Forecasts'!J99 -> 0 | K99: 1307.116212 | L99: 0 | M99: 0 | N99: 125 | O99: 0 | R99: 1307.116212 | S99: 0 | T99: 0 | U99: 125 | V99: 0 | Y99: 1307.116212 | Z99: 0 | AA99: 0 | AB99: 125 | AC99: 0 | AF99: 1307.116212 | AG99: 0 | AH99: 0 | AI99: 125 | AJ99: 0
A100: 73 | B100: 4 | C100: LDNO LV: LV Generation NHH or Aggregate HH | D100: ='[2]CDCM Volume Forecasts'!D100 -> 0 | E100: ='[2]CDCM Volume Forecasts'!E100 -> 0 | F100: ='[2]CDCM Volume Forecasts'!F100 -> 0 | G100: ='[2]CDCM Volume Forecasts'!G100 -> 0 | H100: ='[2]CDCM Volume Forecasts'!H100 -> 0 | I100: ='[2]CDCM Volume Forecasts'!I100 -> 0 | J100: ='[2]CDCM Volume Forecasts'!J100 -> 0 | K100: 0 | L100: 0 | M100: 0 | N100: 0 | O100: 0 | R100: 0 | S100: 0 | T100: 0 | U100: 0 | V100: 0 | Y100: 0 | Z100: 0 | AA100: 0 | AB100: 0 | AC100: 0 | AF100: 0 | AG100: 0 | AH100: 0 | AI100: 0 | AJ100: 0
A101: 74 | B101: 4 | C101: LDNO HV: LV Generation NHH or Aggregate HH | D101: ='[2]CDCM Volume Forecasts'!D101 -> 0 | E101: ='[2]CDCM Volume Forecasts'!E101 -> 0 | F101: ='[2]CDCM Volume Forecasts'!F101 -> 0 | G101: ='[2]CDCM Volume Forecasts'!G101 -> 0 | H101: ='[2]CDCM Volume Forecasts'!H101 -> 0 | I101: ='[2]CDCM Volume Forecasts'!I101 -> 0 | J101: ='[2]CDCM Volume Forecasts'!J101 -> 0 | K101: 0 | L101: 0 | M101: 0 | N101: 0 | O101: 0 | R101: 0 | S101: 0 | T101: 0 | U101: 0 | V101: 0 | Y101: 0 | Z101: 0 | AA101: 0 | AB101: 0 | AC101: 0 | AF101: 0 | AG101: 0 | AH101: 0 | AI101: 0 | AJ101: 0
A102: 75 | C102: > LV Sub Generation NHH | D102: ='[2]CDCM Volume Forecasts'!D102 -> 0 | E102: ='[2]CDCM Volume Forecasts'!E102 -> 0 | F102: ='[2]CDCM Volume Forecasts'!F102 -> 0 | G102: ='[2]CDCM Volume Forecasts'!G102 -> 0 | H102: ='[2]CDCM Volume Forecasts'!H102 -> 0 | I102: ='[2]CDCM Volume Forecasts'!I102 -> 0 | J102: ='[2]CDCM Volume Forecasts'!J102 -> 0 | K102: 0 | L102: 0 | M102: 0 | N102: 0 | O102: 0 | R102: 0 | S102: 0 | T102: 0 | U102: 0 | V102: 0 | Y102: 0 | Z102: 0 | AA102: 0 | AB102: 0 | AC102: 0 | AF102: 0 | AG102: 0 | AH102: 0 | AI102: 0 | AJ102: 0
A103: 76 | B103: 4 | C103: LV Sub Generation NHH | D103: ='[2]CDCM Volume Forecasts'!D103 -> 133.5197066 | E103: ='[2]CDCM Volume Forecasts'!E103 -> 0 | F103: ='[2]CDCM Volume Forecasts'!F103 -> 0 | G103: ='[2]CDCM Volume Forecasts'!G103 -> 1 | H103: ='[2]CDCM Volume Forecasts'!H103 -> 0 | I103: ='[2]CDCM Volume Forecasts'!I103 -> 0 | J103: ='[2]CDCM Volume Forecasts'!J103 -> 0 | K103: 133.5197066 | L103: 0 | M103: 0 | N103: 1 | O103: 0 | R103: 133.5197066 | S103: 0 | T103: 0 | U103: 1 | V103: 0 | Y103: 133.5197066 | Z103: 0 | AA103: 0 | AB103: 1 | AC103: 0 | AF103: 133.5197066 | AG103: 0 | AH103: 0 | AI103: 1 | AJ103: 0
A104: 77 | B104: 4 | C104: LDNO HV: LV Sub Generation NHH | D104: ='[2]CDCM Volume Forecasts'!D104 -> 0 | E104: ='[2]CDCM Volume Forecasts'!E104 -> 0 | F104: ='[2]CDCM Volume Forecasts'!F104 -> 0 | G104: ='[2]CDCM Volume Forecasts'!G104 -> 0 | H104: ='[2]CDCM Volume Forecasts'!H104 -> 0 | I104: ='[2]CDCM Volume Forecasts'!I104 -> 0 | J104: ='[2]CDCM Volume Forecasts'!J104 -> 0 | K104: 0 | L104: 0 | M104: 0 | N104: 0 | O104: 0 | R104: 0 | S104: 0 | T104: 0 | U104: 0 | V104: 0 | Y104: 0 | Z104: 0 | AA104: 0 | AB104: 0 | AC104: 0 | AF104: 0 | AG104: 0 | AH104: 0 | AI104: 0 | AJ104: 0
A105: 78 | C105: > LV Generation Intermittent | D105: ='[2]CDCM Volume Forecasts'!D105 -> 0 | E105: ='[2]CDCM Volume Forecasts'!E105 -> 0 | F105: ='[2]CDCM Volume Forecasts'!F105 -> 0 | G105: ='[2]CDCM Volume Forecasts'!G105 -> 0 | H105: ='[2]CDCM Volume Forecasts'!H105 -> 0 | I105: ='[2]CDCM Volume Forecasts'!I105 -> 0 | J105: ='[2]CDCM Volume Forecasts'!J105 -> 0 | K105: 0 | L105: 0 | M105: 0 | N105: 0 | O105: 0 | R105: 0 | S105: 0 | T105: 0 | U105: 0 | V105: 0 | Y105: 0 | Z105: 0 | AA105: 0 | AB105: 0 | AC105: 0 | AF105: 0 | AG105: 0 | AH105: 0 | AI105: 0 | AJ105: 0
A106: 79 | B106: 4 | C106: LV Generation Intermittent | D106: ='[2]CDCM Volume Forecasts'!D106 -> 32745.26219 | E106: ='[2]CDCM Volume Forecasts'!E106 -> 0 | F106: ='[2]CDCM Volume Forecasts'!F106 -> 0 | G106: ='[2]CDCM Volume Forecasts'!G106 -> 462.3004582 | H106: ='[2]CDCM Volume Forecasts'!H106 -> 0 | I106: ='[2]CDCM Volume Forecasts'!I106 -> 0 | J106: ='[2]CDCM Volume Forecasts'!J106 -> 2521.674988 | K106: 32745.26219 | L106: 0 | M106: 0 | N106: 462.3004582 | O106: 0 | Q106: =IF(J106,((VLOOKUP($B106,$E$7:$AI$16,28)+1)*J106),) -> 2521.674988 | R106: 32745.26219 | S106: 0 | T106: 0 | U106: 462.3004582 | V106: 0 | X106: =IF(J106,((VLOOKUP($B106,$E$7:$AI$16,5+24)+1)*Q106),) -> 2521.674988 | Y106: 32745.26219 | Z106: 0 | AA106: 0 | AB106: 462.3004582 | AC106: 0 | AE106: =IF(J106,((VLOOKUP($B106,$E$7:$AI$16,6+24)+1)*X106),) -> 2521.674988 | AF106: 32745.26219 | AG106: 0 | AH106: 0 | AI106: 462.3004582 | AJ106: 0 | AL106: =IF(J106,((VLOOKUP($B106,$E$7:$AI$16,7+24)+1)*AE106),) -> 2521.674988
A107: 80 | B107: 4 | C107: LDNO LV: LV Generation Intermittent | D107: ='[2]CDCM Volume Forecasts'!D107 -> 0 | E107: ='[2]CDCM Volume Forecasts'!E107 -> 0 | F107: ='[2]CDCM Volume Forecasts'!F107 -> 0 | G107: ='[2]CDCM Volume Forecasts'!G107 -> 0 | H107: ='[2]CDCM Volume Forecasts'!H107 -> 0 | I107: ='[2]CDCM Volume Forecasts'!I107 -> 0 | J107: ='[2]CDCM Volume Forecasts'!J107 -> 0 | K107: 0 | L107: 0 | M107: 0 | N107: 0 | O107: 0 | Q107: 0 | R107: 0 | S107: 0 | T107: 0 | U107: 0 | V107: 0 | X107: 0 | Y107: 0 | Z107: 0 | AA107: 0 | AB107: 0 | AC107: 0 | AE107: 0 | AF107: 0 | AG107: 0 | AH107: 0 | AI107: 0 | AJ107: 0 | AL107: 0
A108: 81 | B108: 4 | C108: LDNO HV: LV Generation Intermittent | D108: ='[2]CDCM Volume Forecasts'!D108 -> 181.6971582 | E108: ='[2]CDCM Volume Forecasts'!E108 -> 0 | F108: ='[2]CDCM Volume Forecasts'!F108 -> 0 | G108: ='[2]CDCM Volume Forecasts'!G108 -> 1.558300685 | H108: ='[2]CDCM Volume Forecasts'!H108 -> 0 | I108: ='[2]CDCM Volume Forecasts'!I108 -> 0 | J108: ='[2]CDCM Volume Forecasts'!J108 -> 46.95845664 | K108: 181.6971582 | L108: 0 | M108: 0 | N108: 1.558300685 | O108: 0 | Q108: 46.95845664 | R108: 181.6971582 | S108: 0 | T108: 0 | U108: 1.558300685 | V108: 0 | X108: 46.95845664 | Y108: 181.6971582 | Z108: 0 | AA108: 0 | AB108: 1.558300685 | AC108: 0 | AE108: 46.95845664 | AF108: 181.6971582 | AG108: 0 | AH108: 0 | AI108: 1.558300685 | AJ108: 0 | AL108: 46.95845664
A109: 82 | C109: > LV Generation Intermittent no RP charge | D109: ='[2]CDCM Volume Forecasts'!D109 -> 0 | E109: ='[2]CDCM Volume Forecasts'!E109 -> 0 | F109: ='[2]CDCM Volume Forecasts'!F109 -> 0 | G109: ='[2]CDCM Volume Forecasts'!G109 -> 0 | H109: ='[2]CDCM Volume Forecasts'!H109 -> 0 | I109: ='[2]CDCM Volume Forecasts'!I109 -> 0 | J109: ='[2]CDCM Volume Forecasts'!J109 -> 0 | K109: 0 | L109: 0 | M109: 0 | N109: 0 | O109: 0 | R109: 0 | S109: 0 | T109: 0 | U109: 0 | V109: 0 | Y109: 0 | Z109: 0 | AA109: 0 | AB109: 0 | AC109: 0 | AF109: 0 | AG109: 0 | AH109: 0 | AI109: 0 | AJ109: 0
A110: 83 | B110: 4 | C110: LV Generation Intermittent no RP charge | D110: ='[2]CDCM Volume Forecasts'!D110 -> 0 | E110: ='[2]CDCM Volume Forecasts'!E110 -> 0 | F110: ='[2]CDCM Volume Forecasts'!F110 -> 0 | G110: ='[2]CDCM Volume Forecasts'!G110 -> 0 | H110: ='[2]CDCM Volume Forecasts'!H110 -> 0 | I110: ='[2]CDCM Volume Forecasts'!I110 -> 0 | J110: ='[2]CDCM Volume Forecasts'!J110 -> 0 | K110: 0 | L110: 0 | M110: 0 | N110: 0 | O110: 0 | R110: 0 | S110: 0 | T110: 0 | U110: 0 | V110: 0 | Y110: 0 | Z110: 0 | AA110: 0 | AB110: 0 | AC110: 0 | AF110: 0 | AG110: 0 | AH110: 0 | AI110: 0 | AJ110: 0
A111: 84 | C111: > LV Generation Non-Intermittent | D111: ='[2]CDCM Volume Forecasts'!D111 -> 0 | E111: ='[2]CDCM Volume Forecasts'!E111 -> 0 | F111: ='[2]CDCM Volume Forecasts'!F111 -> 0 | G111: ='[2]CDCM Volume Forecasts'!G111 -> 0 | H111: ='[2]CDCM Volume Forecasts'!H111 -> 0 | I111: ='[2]CDCM Volume Forecasts'!I111 -> 0 | J111: ='[2]CDCM Volume Forecasts'!J111 -> 0 | K111: 0 | L111: 0 | M111: 0 | N111: 0 | O111: 0 | R111: 0 | S111: 0 | T111: 0 | U111: 0 | V111: 0 | Y111: 0 | Z111: 0 | AA111: 0 | AB111: 0 | AC111: 0 | AF111: 0 | AG111: 0 | AH111: 0 | AI111: 0 | AJ111: 0
A112: 85 | B112: 4 | C112: LV Generation Non-Intermittent | D112: ='[2]CDCM Volume Forecasts'!D112 -> 1134.869272 | E112: ='[2]CDCM Volume Forecasts'!E112 -> 4849.275407 | F112: ='[2]CDCM Volume Forecasts'!F112 -> 6752.988157 | G112: ='[2]CDCM Volume Forecasts'!G112 -> 116.0263952 | H112: ='[2]CDCM Volume Forecasts'!H112 -> 0 | I112: ='[2]CDCM Volume Forecasts'!I112 -> 0 | J112: ='[2]CDCM Volume Forecasts'!J112 -> 628.0777766 | K112: 1134.869272 | L112: 4849.275407 | M112: 6752.988157 | N112: 116.0263952 | O112: 0 | Q112: =IF(J112,((VLOOKUP($B112,$E$7:$AI$16,28)+1)*J112),) -> 628.0777766 | R112: 1134.869272 | S112: 4849.275407 | T112: 6752.988157 | U112: 116.0263952 | V112: 0 | X112: =IF(J112,((VLOOKUP($B112,$E$7:$AI$16,5+24)+1)*Q112),) -> 628.0777766 | Y112: 1134.869272 | Z112: 4849.275407 | AA112: 6752.988157 | AB112: 116.0263952 | AC112: 0 | AE112: =IF(J112,((VLOOKUP($B112,$E$7:$AI$16,6+24)+1)*X112),) -> 628.0777766 | AF112: 1134.869272 | AG112: 4849.275407 | AH112: 6752.988157 | AI112: 116.0263952 | AJ112: 0 | AL112: =IF(J112,((VLOOKUP($B112,$E$7:$AI$16,7+24)+1)*AE112),) -> 628.0777766
A113: 86 | B113: 4 | C113: LDNO LV: LV Generation Non-Intermittent | D113: ='[2]CDCM Volume Forecasts'!D113 -> 0 | E113: ='[2]CDCM Volume Forecasts'!E113 -> 0 | F113: ='[2]CDCM Volume Forecasts'!F113 -> 0 | G113: ='[2]CDCM Volume Forecasts'!G113 -> 0 | H113: ='[2]CDCM Volume Forecasts'!H113 -> 0 | I113: ='[2]CDCM Volume Forecasts'!I113 -> 0 | J113: ='[2]CDCM Volume Forecasts'!J113 -> 0 | K113: 0 | L113: 0 | M113: 0 | N113: 0 | O113: 0 | Q113: 0 | R113: 0 | S113: 0 | T113: 0 | U113: 0 | V113: 0 | X113: 0 | Y113: 0 | Z113: 0 | AA113: 0 | AB113: 0 | AC113: 0 | AE113: 0 | AF113: 0 | AG113: 0 | AH113: 0 | AI113: 0 | AJ113: 0 | AL113: 0
A114: 87 | B114: 4 | C114: LDNO HV: LV Generation Non-Intermittent | D114: ='[2]CDCM Volume Forecasts'!D114 -> 0.1260368479 | E114: ='[2]CDCM Volume Forecasts'!E114 -> 2.547883809 | F114: ='[2]CDCM Volume Forecasts'!F114 -> 2.114948103 | G114: ='[2]CDCM Volume Forecasts'!G114 -> 1.161170548 | H114: ='[2]CDCM Volume Forecasts'!H114 -> 0 | I114: ='[2]CDCM Volume Forecasts'!I114 -> 0 | J114: ='[2]CDCM Volume Forecasts'!J114 -> 1.565058455 | K114: 0.1260368479 | L114: 2.547883809 | M114: 2.114948103 | N114: 1.161170548 | O114: 0 | Q114: 1.565058455 | R114: 0.1260368479 | S114: 2.547883809 | T114: 2.114948103 | U114: 1.161170548 | V114: 0 | X114: 1.565058455 | Y114: 0.1260368479 | Z114: 2.547883809 | AA114: 2.114948103 | AB114: 1.161170548 | AC114: 0 | AE114: 1.565058455 | AF114: 0.1260368479 | AG114: 2.547883809 | AH114: 2.114948103 | AI114: 1.161170548 | AJ114: 0 | AL114: =IF(J114,((VLOOKUP($B114,$E$7:$AI$16,7+24)+1)*AE114),) -> 1.565058455
A115: 88 | C115: > LV Generation Non-Intermittent no RP charge | D115: ='[2]CDCM Volume Forecasts'!D115 -> 0 | E115: ='[2]CDCM Volume Forecasts'!E115 -> 0 | F115: ='[2]CDCM Volume Forecasts'!F115 -> 0 | G115: ='[2]CDCM Volume Forecasts'!G115 -> 0 | H115: ='[2]CDCM Volume Forecasts'!H115 -> 0 | I115: ='[2]CDCM Volume Forecasts'!I115 -> 0 | J115: ='[2]CDCM Volume Forecasts'!J115 -> 0 | K115: 0 | L115: 0 | M115: 0 | N115: 0 | O115: 0 | R115: 0 | S115: 0 | T115: 0 | U115: 0 | V115: 0 | Y115: 0 | Z115: 0 | AA115: 0 | AB115: 0 | AC115: 0 | AF115: 0 | AG115: 0 | AH115: 0 | AI115: 0 | AJ115: 0
A116: 89 | B116: 4 | C116: LV Generation Non-Intermittent no RP charge | D116: ='[2]CDCM Volume Forecasts'!D116 -> 0 | E116: ='[2]CDCM Volume Forecasts'!E116 -> 0 | F116: ='[2]CDCM Volume Forecasts'!F116 -> 0 | G116: ='[2]CDCM Volume Forecasts'!G116 -> 0 | H116: ='[2]CDCM Volume Forecasts'!H116 -> 0 | I116: ='[2]CDCM Volume Forecasts'!I116 -> 0 | J116: ='[2]CDCM Volume Forecasts'!J116 -> 0 | K116: 0 | L116: 0 | M116: 0 | N116: 0 | O116: 0 | R116: 0 | S116: 0 | T116: 0 | U116: 0 | V116: 0 | Y116: 0 | Z116: 0 | AA116: 0 | AB116: 0 | AC116: 0 | AF116: 0 | AG116: 0 | AH116: 0 | AI116: 0 | AJ116: 0
A117: 90 | C117: > LV Sub Generation Intermittent | D117: ='[2]CDCM Volume Forecasts'!D117 -> 0 | E117: ='[2]CDCM Volume Forecasts'!E117 -> 0 | F117: ='[2]CDCM Volume Forecasts'!F117 -> 0 | G117: ='[2]CDCM Volume Forecasts'!G117 -> 0 | H117: ='[2]CDCM Volume Forecasts'!H117 -> 0 | I117: ='[2]CDCM Volume Forecasts'!I117 -> 0 | J117: ='[2]CDCM Volume Forecasts'!J117 -> 0 | K117: 0 | L117: 0 | M117: 0 | N117: 0 | O117: 0 | R117: 0 | S117: 0 | T117: 0 | U117: 0 | V117: 0 | Y117: 0 | Z117: 0 | AA117: 0 | AB117: 0 | AC117: 0 | AF117: 0 | AG117: 0 | AH117: 0 | AI117: 0 | AJ117: 0
A118: 91 | B118: 4 | C118: LV Sub Generation Intermittent | D118: ='[2]CDCM Volume Forecasts'!D118 -> 1529.529875 | E118: ='[2]CDCM Volume Forecasts'!E118 -> 0 | F118: ='[2]CDCM Volume Forecasts'!F118 -> 0 | G118: ='[2]CDCM Volume Forecasts'!G118 -> 12.52731986 | H118: ='[2]CDCM Volume Forecasts'!H118 -> 0 | I118: ='[2]CDCM Volume Forecasts'!I118 -> 0 | J118: ='[2]CDCM Volume Forecasts'!J118 -> 146.6685014 | K118: 1529.529875 | L118: 0 | M118: 0 | N118: 12.52731986 | O118: 0 | Q118: =IF(J118,((VLOOKUP($B118,$E$7:$AI$16,28)+1)*J118),) -> 146.6685014 | R118: 1529.529875 | S118: 0 | T118: 0 | U118: 12.52731986 | V118: 0 | X118: =IF(J118,((VLOOKUP($B118,$E$7:$AI$16,5+24)+1)*Q118),) -> 146.6685014 | Y118: 1529.529875 | Z118: 0 | AA118: 0 | AB118: 12.52731986 | AC118: 0 | AE118: =IF(J118,((VLOOKUP($B118,$E$7:$AI$16,6+24)+1)*X118),) -> 146.6685014 | AF118: 1529.529875 | AG118: 0 | AH118: 0 | AI118: 12.52731986 | AJ118: 0 | AL118: =IF(J118,((VLOOKUP($B118,$E$7:$AI$16,7+24)+1)*AE118),) -> 146.6685014
A119: 92 | B119: 4 | C119: LDNO HV: LV Sub Generation Intermittent | D119: ='[2]CDCM Volume Forecasts'!D119 -> 0 | E119: ='[2]CDCM Volume Forecasts'!E119 -> 0 | F119: ='[2]CDCM Volume Forecasts'!F119 -> 0 | G119: ='[2]CDCM Volume Forecasts'!G119 -> 0 | H119: ='[2]CDCM Volume Forecasts'!H119 -> 0 | I119: ='[2]CDCM Volume Forecasts'!I119 -> 0 | J119: ='[2]CDCM Volume Forecasts'!J119 -> 0 | K119: 0 | L119: 0 | M119: 0 | N119: 0 | O119: 0 | Q119: 0 | R119: 0 | S119: 0 | T119: 0 | U119: 0 | V119: 0 | X119: 0 | Y119: 0 | Z119: 0 | AA119: 0 | AB119: 0 | AC119: 0 | AE119: 0 | AF119: 0 | AG119: 0 | AH119: 0 | AI119: 0 | AJ119: 0 | AL119: 0
A120: 93 | C120: > LV Sub Generation Intermittent no RP charge | D120: ='[2]CDCM Volume Forecasts'!D120 -> 0 | E120: ='[2]CDCM Volume Forecasts'!E120 -> 0 | F120: ='[2]CDCM Volume Forecasts'!F120 -> 0 | G120: ='[2]CDCM Volume Forecasts'!G120 -> 0 | H120: ='[2]CDCM Volume Forecasts'!H120 -> 0 | I120: ='[2]CDCM Volume Forecasts'!I120 -> 0 | J120: ='[2]CDCM Volume Forecasts'!J120 -> 0 | K120: 0 | L120: 0 | M120: 0 | N120: 0 | O120: 0 | R120: 0 | S120: 0 | T120: 0 | U120: 0 | V120: 0 | Y120: 0 | Z120: 0 | AA120: 0 | AB120: 0 | AC120: 0 | AF120: 0 | AG120: 0 | AH120: 0 | AI120: 0 | AJ120: 0
A121: 94 | B121: 4 | C121: LV Sub Generation Intermittent no RP charge | D121: ='[2]CDCM Volume Forecasts'!D121 -> 0 | E121: ='[2]CDCM Volume Forecasts'!E121 -> 0 | F121: ='[2]CDCM Volume Forecasts'!F121 -> 0 | G121: ='[2]CDCM Volume Forecasts'!G121 -> 0 | H121: ='[2]CDCM Volume Forecasts'!H121 -> 0 | I121: ='[2]CDCM Volume Forecasts'!I121 -> 0 | J121: ='[2]CDCM Volume Forecasts'!J121 -> 0 | K121: 0 | L121: 0 | M121: 0 | N121: 0 | O121: 0 | R121: 0 | S121: 0 | T121: 0 | U121: 0 | V121: 0 | Y121: 0 | Z121: 0 | AA121: 0 | AB121: 0 | AC121: 0 | AF121: 0 | AG121: 0 | AH121: 0 | AI121: 0 | AJ121: 0
A122: 95 | C122: > LV Sub Generation Non-Intermittent | D122: ='[2]CDCM Volume Forecasts'!D122 -> 0 | E122: ='[2]CDCM Volume Forecasts'!E122 -> 0 | F122: ='[2]CDCM Volume Forecasts'!F122 -> 0 | G122: ='[2]CDCM Volume Forecasts'!G122 -> 0 | H122: ='[2]CDCM Volume Forecasts'!H122 -> 0 | I122: ='[2]CDCM Volume Forecasts'!I122 -> 0 | J122: ='[2]CDCM Volume Forecasts'!J122 -> 0 | K122: 0 | L122: 0 | M122: 0 | N122: 0 | O122: 0 | R122: 0 | S122: 0 | T122: 0 | U122: 0 | V122: 0 | Y122: 0 | Z122: 0 | AA122: 0 | AB122: 0 | AC122: 0 | AF122: 0 | AG122: 0 | AH122: 0 | AI122: 0 | AJ122: 0
A123: 96 | B123: 4 | C123: LV Sub Generation Non-Intermittent | D123: ='[2]CDCM Volume Forecasts'!D123 -> 951.4447182 | E123: ='[2]CDCM Volume Forecasts'!E123 -> 3315.209157 | F123: ='[2]CDCM Volume Forecasts'!F123 -> 6437.515755 | G123: ='[2]CDCM Volume Forecasts'!G123 -> 6.875097945 | H123: ='[2]CDCM Volume Forecasts'!H123 -> 0 | I123: ='[2]CDCM Volume Forecasts'!I123 -> 0 | J123: ='[2]CDCM Volume Forecasts'!J123 -> 6.455167552 | K123: 951.4447182 | L123: 3315.209157 | M123: 6437.515755 | N123: 6.875097945 | O123: 0 | Q123: =IF(J123,((VLOOKUP($B123,$E$7:$AI$16,28)+1)*J123),) -> 6.455167552 | R123: 951.4447182 | S123: 3315.209157 | T123: 6437.515755 | U123: 6.875097945 | V123: 0 | X123: =IF(J123,((VLOOKUP($B123,$E$7:$AI$16,5+24)+1)*Q123),) -> 6.455167552 | Y123: 951.4447182 | Z123: 3315.209157 | AA123: 6437.515755 | AB123: 6.875097945 | AC123: 0 | AE123: =IF(J123,((VLOOKUP($B123,$E$7:$AI$16,6+24)+1)*X123),) -> 6.455167552 | AF123: 951.4447182 | AG123: 3315.209157 | AH123: 6437.515755 | AI123: 6.875097945 | AJ123: 0 | AL123: =IF(J123,((VLOOKUP($B123,$E$7:$AI$16,7+24)+1)*AE123),) -> 6.455167552
A124: 97 | B124: 4 | C124: LDNO HV: LV Sub Generation Non-Intermittent | D124: ='[2]CDCM Volume Forecasts'!D124 -> 0 | E124: ='[2]CDCM Volume Forecasts'!E124 -> 0 | F124: ='[2]CDCM Volume Forecasts'!F124 -> 0 | G124: ='[2]CDCM Volume Forecasts'!G124 -> 0 | H124: ='[2]CDCM Volume Forecasts'!H124 -> 0 | I124: ='[2]CDCM Volume Forecasts'!I124 -> 0 | J124: ='[2]CDCM Volume Forecasts'!J124 -> 0 | K124: 0 | L124: 0 | M124: 0 | N124: 0 | O124: 0 | Q124: 0 | R124: 0 | S124: 0 | T124: 0 | U124: 0 | V124: 0 | X124: 0 | Y124: 0 | Z124: 0 | AA124: 0 | AB124: 0 | AC124: 0 | AE124: 0 | AF124: 0 | AG124: 0 | AH124: 0 | AI124: 0 | AJ124: 0 | AL124: 0
A125: 98 | C125: > LV Sub Generation Non-Intermittent no RP charge | D125: ='[2]CDCM Volume Forecasts'!D125 -> 0 | E125: ='[2]CDCM Volume Forecasts'!E125 -> 0 | F125: ='[2]CDCM Volume Forecasts'!F125 -> 0 | G125: ='[2]CDCM Volume Forecasts'!G125 -> 0 | H125: ='[2]CDCM Volume Forecasts'!H125 -> 0 | I125: ='[2]CDCM Volume Forecasts'!I125 -> 0 | J125: ='[2]CDCM Volume Forecasts'!J125 -> 0 | K125: 0 | L125: 0 | M125: 0 | N125: 0 | O125: 0 | R125: 0 | S125: 0 | T125: 0 | U125: 0 | V125: 0 | Y125: 0 | Z125: 0 | AA125: 0 | AB125: 0 | AC125: 0 | AF125: 0 | AG125: 0 | AH125: 0 | AI125: 0 | AJ125: 0
A126: 99 | B126: 4 | C126: LV Sub Generation Non-Intermittent no RP charge | D126: ='[2]CDCM Volume Forecasts'!D126 -> 0 | E126: ='[2]CDCM Volume Forecasts'!E126 -> 0 | F126: ='[2]CDCM Volume Forecasts'!F126 -> 0 | G126: ='[2]CDCM Volume Forecasts'!G126 -> 0 | H126: ='[2]CDCM Volume Forecasts'!H126 -> 0 | I126: ='[2]CDCM Volume Forecasts'!I126 -> 0 | J126: ='[2]CDCM Volume Forecasts'!J126 -> 0 | K126: 0 | L126: 0 | M126: 0 | N126: 0 | O126: 0 | R126: 0 | S126: 0 | T126: 0 | U126: 0 | V126: 0 | Y126: 0 | Z126: 0 | AA126: 0 | AB126: 0 | AC126: 0 | AF126: 0 | AG126: 0 | AH126: 0 | AI126: 0 | AJ126: 0
A127: 100 | C127: > HV Generation Intermittent | D127: ='[2]CDCM Volume Forecasts'!D127 -> 0 | E127: ='[2]CDCM Volume Forecasts'!E127 -> 0 | F127: ='[2]CDCM Volume Forecasts'!F127 -> 0 | G127: ='[2]CDCM Volume Forecasts'!G127 -> 0 | H127: ='[2]CDCM Volume Forecasts'!H127 -> 0 | I127: ='[2]CDCM Volume Forecasts'!I127 -> 0 | J127: ='[2]CDCM Volume Forecasts'!J127 -> 0 | K127: 0 | L127: 0 | M127: 0 | N127: 0 | O127: 0 | R127: 0 | S127: 0 | T127: 0 | U127: 0 | V127: 0 | Y127: 0 | Z127: 0 | AA127: 0 | AB127: 0 | AC127: 0 | AF127: 0 | AG127: 0 | AH127: 0 | AI127: 0 | AJ127: 0
A128: 101 | B128: 4 | C128: HV Generation Intermittent | D128: ='[2]CDCM Volume Forecasts'!D128 -> 139370.2388 | E128: ='[2]CDCM Volume Forecasts'!E128 -> 0 | F128: ='[2]CDCM Volume Forecasts'!F128 -> 0 | G128: ='[2]CDCM Volume Forecasts'!G128 -> 115.6397075 | H128: ='[2]CDCM Volume Forecasts'!H128 -> 0 | I128: ='[2]CDCM Volume Forecasts'!I128 -> 0 | J128: ='[2]CDCM Volume Forecasts'!J128 -> 6439.172707 | K128: 139370.2388 | L128: 0 | M128: 0 | N128: 115.6397075 | O128: 0 | Q128: =IF(J128,((VLOOKUP($B128,$E$7:$AI$16,28)+1)*J128),) -> 6439.172707 | R128: 139370.2388 | S128: 0 | T128: 0 | U128: 115.6397075 | V128: 0 | X128: =IF(J128,((VLOOKUP($B128,$E$7:$AI$16,5+24)+1)*Q128),) -> 6439.172707 | Y128: 139370.2388 | Z128: 0 | AA128: 0 | AB128: 115.6397075 | AC128: 0 | AE128: =IF(J128,((VLOOKUP($B128,$E$7:$AI$16,6+24)+1)*X128),) -> 6439.172707 | AF128: 139370.2388 | AG128: 0 | AH128: 0 | AI128: 115.6397075 | AJ128: 0 | AL128: =IF(J128,((VLOOKUP($B128,$E$7:$AI$16,7+24)+1)*AE128),) -> 6439.172707
A129: 102 | B129: 4 | C129: LDNO HV: HV Generation Intermittent | D129: ='[2]CDCM Volume Forecasts'!D129 -> 0 | E129: ='[2]CDCM Volume Forecasts'!E129 -> 0 | F129: ='[2]CDCM Volume Forecasts'!F129 -> 0 | G129: ='[2]CDCM Volume Forecasts'!G129 -> 0 | H129: ='[2]CDCM Volume Forecasts'!H129 -> 0 | I129: ='[2]CDCM Volume Forecasts'!I129 -> 0 | J129: ='[2]CDCM Volume Forecasts'!J129 -> 0 | K129: 0 | L129: 0 | M129: 0 | N129: 0 | O129: 0 | Q129: 0 | R129: 0 | S129: 0 | T129: 0 | U129: 0 | V129: 0 | X129: 0 | Y129: 0 | Z129: 0 | AA129: 0 | AB129: 0 | AC129: 0 | AE129: 0 | AF129: 0 | AG129: 0 | AH129: 0 | AI129: 0 | AJ129: 0 | AL129: 0
A130: 103 | C130: > HV Generation Intermittent no RP charge | D130: ='[2]CDCM Volume Forecasts'!D130 -> 0 | E130: ='[2]CDCM Volume Forecasts'!E130 -> 0 | F130: ='[2]CDCM Volume Forecasts'!F130 -> 0 | G130: ='[2]CDCM Volume Forecasts'!G130 -> 0 | H130: ='[2]CDCM Volume Forecasts'!H130 -> 0 | I130: ='[2]CDCM Volume Forecasts'!I130 -> 0 | J130: ='[2]CDCM Volume Forecasts'!J130 -> 0 | K130: 0 | L130: 0 | M130: 0 | N130: 0 | O130: 0 | R130: 0 | S130: 0 | T130: 0 | U130: 0 | V130: 0 | Y130: 0 | Z130: 0 | AA130: 0 | AB130: 0 | AC130: 0 | AF130: 0 | AG130: 0 | AH130: 0 | AI130: 0 | AJ130: 0
A131: 104 | B131: 4 | C131: HV Generation Intermittent no RP charge | D131: ='[2]CDCM Volume Forecasts'!D131 -> 0 | E131: ='[2]CDCM Volume Forecasts'!E131 -> 0 | F131: ='[2]CDCM Volume Forecasts'!F131 -> 0 | G131: ='[2]CDCM Volume Forecasts'!G131 -> 0 | H131: ='[2]CDCM Volume Forecasts'!H131 -> 0 | I131: ='[2]CDCM Volume Forecasts'!I131 -> 0 | J131: ='[2]CDCM Volume Forecasts'!J131 -> 0 | K131: 0 | L131: 0 | M131: 0 | N131: 0 | O131: 0 | R131: 0 | S131: 0 | T131: 0 | U131: 0 | V131: 0 | Y131: 0 | Z131: 0 | AA131: 0 | AB131: 0 | AC131: 0 | AF131: 0 | AG131: 0 | AH131: 0 | AI131: 0 | AJ131: 0
A132: 105 | C132: > HV Generation Non-Intermittent | D132: ='[2]CDCM Volume Forecasts'!D132 -> 0 | E132: ='[2]CDCM Volume Forecasts'!E132 -> 0 | F132: ='[2]CDCM Volume Forecasts'!F132 -> 0 | G132: ='[2]CDCM Volume Forecasts'!G132 -> 0 | H132: ='[2]CDCM Volume Forecasts'!H132 -> 0 | I132: ='[2]CDCM Volume Forecasts'!I132 -> 0 | J132: ='[2]CDCM Volume Forecasts'!J132 -> 0 | K132: 0 | L132: 0 | M132: 0 | N132: 0 | O132: 0 | R132: 0 | S132: 0 | T132: 0 | U132: 0 | V132: 0 | Y132: 0 | Z132: 0 | AA132: 0 | AB132: 0 | AC132: 0 | AF132: 0 | AG132: 0 | AH132: 0 | AI132: 0 | AJ132: 0
A133: 106 | B133: 4 | C133: HV Generation Non-Intermittent | D133: ='[2]CDCM Volume Forecasts'!D133 -> 68147.94525 | E133: ='[2]CDCM Volume Forecasts'!E133 -> 220800.7552 | F133: ='[2]CDCM Volume Forecasts'!F133 -> 430993.0586 | G133: ='[2]CDCM Volume Forecasts'!G133 -> 160.7655575 | H133: ='[2]CDCM Volume Forecasts'!H133 -> 0 | I133: ='[2]CDCM Volume Forecasts'!I133 -> 0 | J133: ='[2]CDCM Volume Forecasts'!J133 -> 14609.40696 | K133: 68147.94525 | L133: 220800.7552 | M133: 430993.0586 | N133: 160.7655575 | O133: 0 | Q133: =IF(J133,((VLOOKUP($B133,$E$7:$AI$16,28)+1)*J133),) -> 14609.40696 | R133: 68147.94525 | S133: 220800.7552 | T133: 430993.0586 | U133: 160.7655575 | V133: 0 | X133: =IF(J133,((VLOOKUP($B133,$E$7:$AI$16,5+24)+1)*Q133),) -> 14609.40696 | Y133: 68147.94525 | Z133: 220800.7552 | AA133: 430993.0586 | AB133: 160.7655575 | AC133: 0 | AE133: =IF(J133,((VLOOKUP($B133,$E$7:$AI$16,6+24)+1)*X133),) -> 14609.40696 | AF133: 68147.94525 | AG133: 220800.7552 | AH133: 430993.0586 | AI133: 160.7655575 | AJ133: 0 | AL133: =IF(J133,((VLOOKUP($B133,$E$7:$AI$16,7+24)+1)*AE133),) -> 14609.40696
A134: 107 | B134: 4 | C134: LDNO HV: HV Generation Non-Intermittent | D134: ='[2]CDCM Volume Forecasts'!D134 -> 0 | E134: ='[2]CDCM Volume Forecasts'!E134 -> 0 | F134: ='[2]CDCM Volume Forecasts'!F134 -> 0 | G134: ='[2]CDCM Volume Forecasts'!G134 -> 0 | H134: ='[2]CDCM Volume Forecasts'!H134 -> 0 | I134: ='[2]CDCM Volume Forecasts'!I134 -> 0 | J134: ='[2]CDCM Volume Forecasts'!J134 -> 0 | K134: 0 | L134: 0 | M134: 0 | N134: 0 | O134: 0 | Q134: 0 | R134: 0 | S134: 0 | T134: 0 | U134: 0 | V134: 0 | X134: 0 | Y134: 0 | Z134: 0 | AA134: 0 | AB134: 0 | AC134: 0 | AE134: 0 | AF134: 0 | AG134: 0 | AH134: 0 | AI134: 0 | AJ134: 0 | AL134: 0
A135: 108 | C135: > HV Generation Non-Intermittent no RP charge | D135: ='[2]CDCM Volume Forecasts'!D135 -> 0 | E135: ='[2]CDCM Volume Forecasts'!E135 -> 0 | F135: ='[2]CDCM Volume Forecasts'!F135 -> 0 | G135: ='[2]CDCM Volume Forecasts'!G135 -> 0 | H135: ='[2]CDCM Volume Forecasts'!H135 -> 0 | I135: ='[2]CDCM Volume Forecasts'!I135 -> 0 | J135: ='[2]CDCM Volume Forecasts'!J135 -> 0 | K135: 0 | L135: 0 | M135: 0 | N135: 0 | O135: 0 | R135: 0 | S135: 0 | T135: 0 | U135: 0 | V135: 0 | Y135: 0 | Z135: 0 | AA135: 0 | AB135: 0 | AC135: 0 | AF135: 0 | AG135: 0 | AH135: 0 | AI135: 0 | AJ135: 0
A136: 109 | B136: 4 | C136: HV Generation Non-Intermittent no RP charge | D136: ='[2]CDCM Volume Forecasts'!D136 -> 0 | E136: ='[2]CDCM Volume Forecasts'!E136 -> 0 | F136: ='[2]CDCM Volume Forecasts'!F136 -> 0 | G136: ='[2]CDCM Volume Forecasts'!G136 -> 0 | H136: ='[2]CDCM Volume Forecasts'!H136 -> 0 | I136: ='[2]CDCM Volume Forecasts'!I136 -> 0 | J136: ='[2]CDCM Volume Forecasts'!J136 -> 0 | K136: 0 | L136: 0 | M136: 0 | N136: 0 | O136: 0 | R136: 0 | S136: 0 | T136: 0 | U136: 0 | V136: 0 | Y136: 0 | Z136: 0 | AA136: 0 | AB136: 0 | AC136: 0 | AF136: 0 | AG136: 0 | AH136: 0 | AI136: 0 | AJ136: 0

Sheet CDCM Timebands
B2: CDCM Timebands
C4: 2018/19
C5: WD (incl. bank holidays) | D5: WE | E5: 2019/20 | F5: 2020/21 | G5: 2021/22 | H5: 2022/23
B6: Red | C6: ='[2]CDCM Timebands'!C6 -> 16:00 to 19:00 | E6: ='[2]CDCM Timebands'!E6 -> No Change | F6: ='[2]CDCM Timebands'!F6 -> No Change | G6: ='[2]CDCM Timebands'!G6 -> No Change | H6: ='[2]CDCM Timebands'!H6 -> No Change
B8: Amber | C8: ='[2]CDCM Timebands'!C8 -> 07:30 to 16:00 | D8: ='[2]CDCM Timebands'!D8 -> 0
C9: ='[2]CDCM Timebands'!C9 -> 19:00 to 21:00
B11: Green | C11: ='[2]CDCM Timebands'!C11 -> 00:00 to 07:30 | D11: ='[2]CDCM Timebands'!D11 -> 00:00 to 24:00
C12: ='[2]CDCM Timebands'!C12 -> 21:00 to 24:00 | D12: ='[2]CDCM Timebands'!D12 -> 0
C14: 2018/19
C15: WD (incl. bank holidays) Nov to Feb | D15: WD (incl. bank holidays) Mar to Oct | E15: WE | F15: 2019/20 | G15: 2020/21 | H15: 2021/22 | I15: 2022/23
B16: Black | C16: ='[2]CDCM Timebands'!C16 -> 16:00 to 19:00 | F16: ='[2]CDCM Timebands'!F16 -> No Change | G16: ='[2]CDCM Timebands'!G16 -> No Change | H16: ='[2]CDCM Timebands'!H16 -> No Change | I16: ='[2]CDCM Timebands'!I16 -> No Change
B18: Yellow | C18: ='[2]CDCM Timebands'!C18 -> 07:30 to 16:00 | D18: ='[2]CDCM Timebands'!D18 -> 07:30 to 21:00 | E18: ='[2]CDCM Timebands'!E18 -> 0
C19: ='[2]CDCM Timebands'!C19 -> 19:00 to 21:00
B21: Green | C21: ='[2]CDCM Timebands'!C21 -> 00:00 to 07:30 | D21: ='[2]CDCM Timebands'!D21 -> 00:00 to 07:30 | E21: ='[2]CDCM Timebands'!E21 -> 00:00 to 24:00
C22: ='[2]CDCM Timebands'!C22 -> 21:00 to 24:00 | D22: ='[2]CDCM Timebands'!D22 -> 21:00 to 24:00 | E22: ='[2]CDCM Timebands'!E22 -> 0

Sheet (Y)
A1: Input data (Y)
A4: 1000. Company, charging year, data version
B6: Company | C6: Year | D6: Version
A7: Company, charging year, data version | B7: =VLOOKUP(Vlookup!B7,'CDCM Forecast Data'!$A$14:$I$271,5,FALSE) -> 0 | C7: =VLOOKUP(Vlookup!C7,'CDCM Forecast Data'!$A$14:$I$271,5,FALSE) -> 0 | D7: =VLOOKUP(Vlookup!D7,'CDCM Forecast Data'!$A$14:$I$271,5,FALSE) -> 0
A9: 1010. Financial and general assumptions
A11: Sources: financial assumptions; calendar; network model.
A12: These financial assumptions determine the annuity rate applied to convert the asset values of the network model into an annual charge.
B13: Rate of return | C13: Annualisation period (years) | D13: Annuity proportion for customer-contributed assets | E13: Power factor | F13: Days in the charging period
A14: Financial and general assumptions | B14: =VLOOKUP(Vlookup!B14,'CDCM Forecast Data'!$A$14:$I$271,5,FALSE) -> 0.0421 | C14: =VLOOKUP(Vlookup!C14,'CDCM Forecast Data'!$A$14:$I$271,5,FALSE) -> 40 | E14: =VLOOKUP(Vlookup!E14,'CDCM Forecast Data'!$A$14:$I$271,5,FALSE) -> 0.95 | F14: =VLOOKUP(Vlookup!F14,'CDCM Forecast Data'!$A$14:$I$271,5,FALSE) -> 365
A16: 1017. Diversity allowance between top and bottom of network level
A18: Source: operational data analysis and/or network model.
A19: The diversity figure against GSP is the diversity between GSP Group (the whole system) and individual GSPs.
A20: The diversity figure against 132kV is the diversity between GSPs (the top of the 132kV network) and 132kV/EHV bulk supply points (the bottom of the 132kV network).
A21: The diversity figure against EHV is the diversity between 132kV/EHV bulk supply points (the top of the EHV network) and EHV/HV primary substations (the bottom of the EHV network).
A22: The diversity figure against HV is the diversity between EHV/HV primary substations (the top of the HV network) and HV/LV substations (the bottom of the HV network).
B23: Diversity allowance between top and bottom of network level
A24: GSPs | B24: =VLOOKUP(Vlookup!B24,'CDCM Forecast Data'!$A$14:$I$271,5,FALSE) -> 0.05649040832
A25: 132kV | B25: =VLOOKUP(Vlookup!B25,'CDCM Forecast Data'!$A$14:$I$271,5,FALSE) -> 0.0255686825
A26: 132kV/EHV
A27: EHV | B27: =VLOOKUP(Vlookup!B27,'CDCM Forecast Data'!$A$14:$I$271,5,FALSE) -> 0.02663159667
A28: EHV/HV
A29: HV | B29: =VLOOKUP(Vlookup!B29,'CDCM Forecast Data'!$A$14:$I$271,5,FALSE) -> 0.34
A30: HV/LV
A31: LV circuits
A33: 1018. Proportion of relevant load going through 132kV/HV direct transformation
B35: 132kV/HV
A36: EHV/HV | B36: =VLOOKUP(Vlookup!B36,'CDCM Forecast Data'!$A$14:$I$271,5,FALSE) -> 0.6925656292
A38: 1019. Network model GSP peak demand (MW)
B40: Network model GSP peak demand (MW)
A41: Network model GSP peak demand (MW) | B41: =VLOOKUP(Vlookup!B41,'CDCM Forecast Data'!$A$14:$I$271,5,FALSE) -> 500
A43: 1020. Gross asset cost by network level (£)
B45: Gross assets £
A46: 132kV | B46: =VLOOKUP(Vlookup!B46,'CDCM Forecast Data'!$A$14:$I$271,5,FALSE) -> 50728089.89
A47: 132kV/EHV | B47: =VLOOKUP(Vlookup!B47,'CDCM Forecast Data'!$A$14:$I$271,5,FALSE) -> 11612362.98
A48: EHV | B48: =VLOOKUP(Vlookup!B48,'CDCM Forecast Data'!$A$14:$I$271,5,FALSE) -> 11965679.05
A49: EHV/HV | B49: =VLOOKUP(Vlookup!B49,'CDCM Forecast Data'!$A$14:$I$271,5,FALSE) -> 22611695.3
A50: 132kV/HV | B50: =VLOOKUP(Vlookup!B50,'CDCM Forecast Data'!$A$14:$I$271,5,FALSE) -> 24105274.38
A51: HV | B51: =VLOOKUP(Vlookup!B51,'CDCM Forecast Data'!$A$14:$I$271,5,FALSE) -> 156529234.2
A52: HV/LV | B52: =VLOOKUP(Vlookup!B52,'CDCM Forecast Data'!$A$14:$I$271,5,FALSE) -> 70627404.17
A53: LV circuits | B53: =VLOOKUP(Vlookup!B53,'CDCM Forecast Data'!$A$14:$I$271,5,FALSE) -> 160930439.5
A55: 1022. LV service model asset cost (£)
B57: LV service model 1 | C57: LV service model 2 | D57: LV service model 3 | E57: LV service model 4 | F57: LV service model 5 | G57: LV service model 6 | H57: LV service model 7 | I57: LV service model 8
A58: LV service model asset cost (£) | B58: =VLOOKUP(Vlookup!B58,'CDCM Forecast Data'!$A$14:$I$271,5,FALSE) -> 5423.972352 | C58: =VLOOKUP(Vlookup!C58,'CDCM Forecast Data'!$A$14:$I$271,5,FALSE) -> 610.1426613 | D58: =VLOOKUP(Vlookup!D58,'CDCM Forecast Data'!$A$14:$I$271,5,FALSE) -> 742.8443432 | E58: =VLOOKUP(Vlookup!E58,'CDCM Forecast Data'!$A$14:$I$271,5,FALSE) -> 550.9081976 | F58: =VLOOKUP(Vlookup!F58,'CDCM Forecast Data'!$A$14:$I$271,5,FALSE) -> 1252.336934 | G58: =VLOOKUP(Vlookup!G58,'CDCM Forecast Data'!$A$14:$I$271,5,FALSE) -> 964.5662989 | H58: =VLOOKUP(Vlookup!H58,'CDCM Forecast Data'!$A$14:$I$271,5,FALSE) -> 0 | I58: =VLOOKUP(Vlookup!I58,'CDCM Forecast Data'!$A$14:$I$271,5,FALSE) -> 504.4738018
A60: 1023. HV service model asset cost (£)
B62: HV service model 1 | C62: HV service model 2 | D62: HV service model 3 | E62: HV service model 4 | F62: HV service model 5
A63: HV service model asset cost (£) | B63: =VLOOKUP(Vlookup!B63,'CDCM Forecast Data'!$A$14:$I$271,5,FALSE) -> 9569.616935 | C63: =VLOOKUP(Vlookup!C63,'CDCM Forecast Data'!$A$14:$I$271,5,FALSE) -> 4613.835597 | D63: =VLOOKUP(Vlookup!D63,'CDCM Forecast Data'!$A$14:$I$271,5,FALSE) -> 0 | E63: =VLOOKUP(Vlookup!E63,'CDCM Forecast Data'!$A$14:$I$271,5,FALSE) -> 0 | F63: =VLOOKUP(Vlookup!F63,'CDCM Forecast Data'!$A$14:$I$271,5,FALSE) -> 0
A65: 1025. Matrix of applicability of LV service models to tariffs with fixed charges
B66: 2 | C66: =B66+1 -> 3 | D66: 4 | E66: 5 | F66: 6 | G66: 7 | H66: 8 | I66: 9
B67: LV service model 1 | C67: LV service model 2 | D67: LV service model 3 | E67: LV service model 4 | F67: LV service model 5 | G67: LV service model 6 | H67: LV service model 7 | I67: LV service model 8
A68: Domestic Unrestricted | B68: =VLOOKUP($A68,'Mat of App'!$B$7:$AP$43,B$66,FALSE) -> 0.05 | C68: =VLOOKUP($A68,'Mat of App'!$B$7:$AP$43,C$66,FALSE) -> 0 | D68: =VLOOKUP($A68,'Mat of App'!$B$7:$AP$43,D$66,FALSE) -> 0 | E68: =VLOOKUP($A68,'Mat of App'!$B$7:$AP$43,E$66,FALSE) -> 0 | F68: =VLOOKUP($A68,'Mat of App'!$B$7:$AP$43,F$66,FALSE) -> 0 | G68: =VLOOKUP($A68,'Mat of App'!$B$7:$AP$43,G$66,FALSE) -> 0 | H68: =VLOOKUP($A68,'Mat of App'!$B$7:$AP$43,H$66,FALSE) -> 0 | I68: =VLOOKUP($A68,'Mat of App'!$B$7:$AP$43,I$66,FALSE) -> 0
A69: Domestic Two Rate | B69: =VLOOKUP($A69,'Mat of App'!$B$7:$AP$43,B$66,FALSE) -> 0.05 | C69: =VLOOKUP($A69,'Mat of App'!$B$7:$AP$43,C$66,FALSE) -> 0 | D69: =VLOOKUP($A69,'Mat of App'!$B$7:$AP$43,D$66,FALSE) -> 0 | E69: =VLOOKUP($A69,'Mat of App'!$B$7:$AP$43,E$66,FALSE) -> 0 | F69: =VLOOKUP($A69,'Mat of App'!$B$7:$AP$43,F$66,FALSE) -> 0 | G69: =VLOOKUP($A69,'Mat of App'!$B$7:$AP$43,G$66,FALSE) -> 0 | H69: =VLOOKUP($A69,'Mat of App'!$B$7:$AP$43,H$66,FALSE) -> 0 | I69: =VLOOKUP($A69,'Mat of App'!$B$7:$AP$43,I$66,FALSE) -> 0
A70: Small Non Domestic Unrestricted | B70: =VLOOKUP($A70,'Mat of App'!$B$7:$AP$43,B$66,FALSE) -> 0 | C70: =VLOOKUP($A70,'Mat of App'!$B$7:$AP$43,C$66,FALSE) -> 1 | D70: =VLOOKUP($A70,'Mat of App'!$B$7:$AP$43,D$66,FALSE) -> 0 | E70: =VLOOKUP($A70,'Mat of App'!$B$7:$AP$43,E$66,FALSE) -> 0 | F70: =VLOOKUP($A70,'Mat of App'!$B$7:$AP$43,F$66,FALSE) -> 0 | G70: =VLOOKUP($A70,'Mat of App'!$B$7:$AP$43,G$66,FALSE) -> 0 | H70: =VLOOKUP($A70,'Mat of App'!$B$7:$AP$43,H$66,FALSE) -> 0 | I70: =VLOOKUP($A70,'Mat of App'!$B$7:$AP$43,I$66,FALSE) -> 0
A71: Small Non Domestic Two Rate | B71: =VLOOKUP($A71,'Mat of App'!$B$7:$AP$43,B$66,FALSE) -> 0 | C71: =VLOOKUP($A71,'Mat of App'!$B$7:$AP$43,C$66,FALSE) -> 1 | D71: =VLOOKUP($A71,'Mat of App'!$B$7:$AP$43,D$66,FALSE) -> 0 | E71: =VLOOKUP($A71,'Mat of App'!$B$7:$AP$43,E$66,FALSE) -> 0 | F71: =VLOOKUP($A71,'Mat of App'!$B$7:$AP$43,F$66,FALSE) -> 0 | G71: =VLOOKUP($A71,'Mat of App'!$B$7:$AP$43,G$66,FALSE) -> 0 | H71: =VLOOKUP($A71,'Mat of App'!$B$7:$AP$43,H$66,FALSE) -> 0 | I71: =VLOOKUP($A71,'Mat of App'!$B$7:$AP$43,I$66,FALSE) -> 0
A72: LV Medium Non-Domestic | B72: =VLOOKUP($A72,'Mat of App'!$B$7:$AP$43,B$66,FALSE) -> 0 | C72: =VLOOKUP($A72,'Mat of App'!$B$7:$AP$43,C$66,FALSE) -> 0 | D72: =VLOOKUP($A72,'Mat of App'!$B$7:$AP$43,D$66,FALSE) -> 1 | E72: =VLOOKUP($A72,'Mat of App'!$B$7:$AP$43,E$66,FALSE) -> 0 | F72: =VLOOKUP($A72,'Mat of App'!$B$7:$AP$43,F$66,FALSE) -> 0 | G72: =VLOOKUP($A72,'Mat of App'!$B$7:$AP$43,G$66,FALSE) -> 0 | H72: =VLOOKUP($A72,'Mat of App'!$B$7:$AP$43,H$66,FALSE) -> 0 | I72: =VLOOKUP($A72,'Mat of App'!$B$7:$AP$43,I$66,FALSE) -> 0
A73: LV Sub Medium Non-Domestic | B73: =VLOOKUP($A73,'Mat of App'!$B$7:$AP$43,B$66,FALSE) -> 0 | C73: =VLOOKUP($A73,'Mat of App'!$B$7:$AP$43,C$66,FALSE) -> 0 | D73: =VLOOKUP($A73,'Mat of App'!$B$7:$AP$43,D$66,FALSE) -> 0 | E73: =VLOOKUP($A73,'Mat of App'!$B$7:$AP$43,E$66,FALSE) -> 1 | F73: =VLOOKUP($A73,'Mat of App'!$B$7:$AP$43,F$66,FALSE) -> 0 | G73: =VLOOKUP($A73,'Mat of App'!$B$7:$AP$43,G$66,FALSE) -> 0 | H73: =VLOOKUP($A73,'Mat of App'!$B$7:$AP$43,H$66,FALSE) -> 0 | I73: =VLOOKUP($A73,'Mat of App'!$B$7:$AP$43,I$66,FALSE) -> 0
A74: LV Network Domestic | B74: =VLOOKUP($A74,'Mat of App'!$B$7:$AP$43,B$66,FALSE) -> 0.05 | C74: =VLOOKUP($A74,'Mat of App'!$B$7:$AP$43,C$66,FALSE) -> 0 | D74: =VLOOKUP($A74,'Mat of App'!$B$7:$AP$43,D$66,FALSE) -> 0 | E74: =VLOOKUP($A74,'Mat of App'!$B$7:$AP$43,E$66,FALSE) -> 0 | F74: =VLOOKUP($A74,'Mat of App'!$B$7:$AP$43,F$66,FALSE) -> 0 | G74: =VLOOKUP($A74,'Mat of App'!$B$7:$AP$43,G$66,FALSE) -> 0 | H74: =VLOOKUP($A74,'Mat of App'!$B$7:$AP$43,H$66,FALSE) -> 0 | I74: =VLOOKUP($A74,'Mat of App'!$B$7:$AP$43,I$66,FALSE) -> 0
A75: LV Network Non-Domestic Non-CT | B75: =VLOOKUP($A75,'Mat of App'!$B$7:$AP$43,B$66,FALSE) -> 0 | C75: =VLOOKUP($A75,'Mat of App'!$B$7:$AP$43,C$66,FALSE) -> 1 | D75: =VLOOKUP($A75,'Mat of App'!$B$7:$AP$43,D$66,FALSE) -> 0 | E75: =VLOOKUP($A75,'Mat of App'!$B$7:$AP$43,E$66,FALSE) -> 0 | F75: =VLOOKUP($A75,'Mat of App'!$B$7:$AP$43,F$66,FALSE) -> 0 | G75: =VLOOKUP($A75,'Mat of App'!$B$7:$AP$43,G$66,FALSE) -> 0 | H75: =VLOOKUP($A75,'Mat of App'!$B$7:$AP$43,H$66,FALSE) -> 0 | I75: =VLOOKUP($A75,'Mat of App'!$B$7:$AP$43,I$66,FALSE) -> 0
A76: LV HH Metered | B76: =VLOOKUP($A76,'Mat of App'!$B$7:$AP$43,B$66,FALSE) -> 0 | C76: =VLOOKUP($A76,'Mat of App'!$B$7:$AP$43,C$66,FALSE) -> 0 | D76: =VLOOKUP($A76,'Mat of App'!$B$7:$AP$43,D$66,FALSE) -> 0 | E76: =VLOOKUP($A76,'Mat of App'!$B$7:$AP$43,E$66,FALSE) -> 0 | F76: =VLOOKUP($A76,'Mat of App'!$B$7:$AP$43,F$66,FALSE) -> 1 | G76: =VLOOKUP($A76,'Mat of App'!$B$7:$AP$43,G$66,FALSE) -> 0 | H76: =VLOOKUP($A76,'Mat of App'!$B$7:$AP$43,H$66,FALSE) -> 0 | I76: =VLOOKUP($A76,'Mat of App'!$B$7:$AP$43,I$66,FALSE) -> 0
A77: LV Sub HH Metered | B77: =VLOOKUP($A77,'Mat of App'!$B$7:$AP$43,B$66,FALSE) -> 0 | C77: =VLOOKUP($A77,'Mat of App'!$B$7:$AP$43,C$66,FALSE) -> 0 | D77: =VLOOKUP($A77,'Mat of App'!$B$7:$AP$43,D$66,FALSE) -> 0 | E77: =VLOOKUP($A77,'Mat of App'!$B$7:$AP$43,E$66,FALSE) -> 0 | F77: =VLOOKUP($A77,'Mat of App'!$B$7:$AP$43,F$66,FALSE) -> 0 | G77: =VLOOKUP($A77,'Mat of App'!$B$7:$AP$43,G$66,FALSE) -> 1 | H77: =VLOOKUP($A77,'Mat of App'!$B$7:$AP$43,H$66,FALSE) -> 0 | I77: =VLOOKUP($A77,'Mat of App'!$B$7:$AP$43,I$66,FALSE) -> 0
A78: LV Generation NHH or Aggregate HH | B78: =VLOOKUP($A78,'Mat of App'!$B$7:$AP$43,B$66,FALSE) -> 0 | C78: =VLOOKUP($A78,'Mat of App'!$B$7:$AP$43,C$66,FALSE) -> 0 | D78: =VLOOKUP($A78,'Mat of App'!$B$7:$AP$43,D$66,FALSE) -> 0 | E78: =VLOOKUP($A78,'Mat of App'!$B$7:$AP$43,E$66,FALSE) -> 0 | F78: =VLOOKUP($A78,'Mat of App'!$B$7:$AP$43,F$66,FALSE) -> 0 | G78: =VLOOKUP($A78,'Mat of App'!$B$7:$AP$43,G$66,FALSE) -> 0 | H78: =VLOOKUP($A78,'Mat of App'!$B$7:$AP$43,H$66,FALSE) -> 1 | I78: =VLOOKUP($A78,'Mat of App'!$B$7:$AP$43,I$66,FALSE) -> 0
A79: LV Sub Generation NHH | B79: =VLOOKUP($A79,'Mat of App'!$B$7:$AP$43,B$66,FALSE) -> 0 | C79: =VLOOKUP($A79,'Mat of App'!$B$7:$AP$43,C$66,FALSE) -> 0 | D79: =VLOOKUP($A79,'Mat of App'!$B$7:$AP$43,D$66,FALSE) -> 0 | E79: =VLOOKUP($A79,'Mat of App'!$B$7:$AP$43,E$66,FALSE) -> 0 | F79: =VLOOKUP($A79,'Mat of App'!$B$7:$AP$43,F$66,FALSE) -> 0 | G79: =VLOOKUP($A79,'Mat of App'!$B$7:$AP$43,G$66,FALSE) -> 0 | H79: =VLOOKUP($A79,'Mat of App'!$B$7:$AP$43,H$66,FALSE) -> 1 | I79: =VLOOKUP($A79,'Mat of App'!$B$7:$AP$43,I$66,FALSE) -> 0
A80: LV Generation Intermittent | B80: =VLOOKUP($A80,'Mat of App'!$B$7:$AP$43,B$66,FALSE) -> 0 | C80: =VLOOKUP($A80,'Mat of App'!$B$7:$AP$43,C$66,FALSE) -> 0 | D80: =VLOOKUP($A80,'Mat of App'!$B$7:$AP$43,D$66,FALSE) -> 0 | E80: =VLOOKUP($A80,'Mat of App'!$B$7:$AP$43,E$66,FALSE) -> 0 | F80: =VLOOKUP($A80,'Mat of App'!$B$7:$AP$43,F$66,FALSE) -> 0 | G80: =VLOOKUP($A80,'Mat of App'!$B$7:$AP$43,G$66,FALSE) -> 0 | H80: =VLOOKUP($A80,'Mat of App'!$B$7:$AP$43,H$66,FALSE) -> 1 | I80: =VLOOKUP($A80,'Mat of App'!$B$7:$AP$43,I$66,FALSE) -> 0
A81: LV Generation Intermittent no RP charge | B81: =VLOOKUP($A81,'Mat of App'!$B$7:$AP$43,B$66,FALSE) -> 0 | C81: =VLOOKUP($A81,'Mat of App'!$B$7:$AP$43,C$66,FALSE) -> 0 | D81: =VLOOKUP($A81,'Mat of App'!$B$7:$AP$43,D$66,FALSE) -> 0 | E81: =VLOOKUP($A81,'Mat of App'!$B$7:$AP$43,E$66,FALSE) -> 0 | F81: =VLOOKUP($A81,'Mat of App'!$B$7:$AP$43,F$66,FALSE) -> 0 | G81: =VLOOKUP($A81,'Mat of App'!$B$7:$AP$43,G$66,FALSE) -> 0 | H81: =VLOOKUP($A81,'Mat of App'!$B$7:$AP$43,H$66,FALSE) -> 1 | I81: =VLOOKUP($A81,'Mat of App'!$B$7:$AP$43,I$66,FALSE) -> 0
A82: LV Generation Non-Intermittent | B82: =VLOOKUP($A82,'Mat of App'!$B$7:$AP$43,B$66,FALSE) -> 0 | C82: =VLOOKUP($A82,'Mat of App'!$B$7:$AP$43,C$66,FALSE) -> 0 | D82: =VLOOKUP($A82,'Mat of App'!$B$7:$AP$43,D$66,FALSE) -> 0 | E82: =VLOOKUP($A82,'Mat of App'!$B$7:$AP$43,E$66,FALSE) -> 0 | F82: =VLOOKUP($A82,'Mat of App'!$B$7:$AP$43,F$66,FALSE) -> 0 | G82: =VLOOKUP($A82,'Mat of App'!$B$7:$AP$43,G$66,FALSE) -> 0 | H82: =VLOOKUP($A82,'Mat of App'!$B$7:$AP$43,H$66,FALSE) -> 0 | I82: =VLOOKUP($A82,'Mat of App'!$B$7:$AP$43,I$66,FALSE) -> 0
A83: LV Generation Non-Intermittent no RP charge | B83: =VLOOKUP($A83,'Mat of App'!$B$7:$AP$43,B$66,FALSE) -> 0 | C83: =VLOOKUP($A83,'Mat of App'!$B$7:$AP$43,C$66,FALSE) -> 0 | D83: =VLOOKUP($A83,'Mat of App'!$B$7:$AP$43,D$66,FALSE) -> 0 | E83: =VLOOKUP($A83,'Mat of App'!$B$7:$AP$43,E$66,FALSE) -> 0 | F83: =VLOOKUP($A83,'Mat of App'!$B$7:$AP$43,F$66,FALSE) -> 0 | G83: =VLOOKUP($A83,'Mat of App'!$B$7:$AP$43,G$66,FALSE) -> 0 | H83: =VLOOKUP($A83,'Mat of App'!$B$7:$AP$43,H$66,FALSE) -> 0 | I83: =VLOOKUP($A83,'Mat of App'!$B$7:$AP$43,I$66,FALSE) -> 0
A84: LV Sub Generation Intermittent | B84: =VLOOKUP($A84,'Mat of App'!$B$7:$AP$43,B$66,FALSE) -> 0 | C84: =VLOOKUP($A84,'Mat of App'!$B$7:$AP$43,C$66,FALSE) -> 0 | D84: =VLOOKUP($A84,'Mat of App'!$B$7:$AP$43,D$66,FALSE) -> 0 | E84: =VLOOKUP($A84,'Mat of App'!$B$7:$AP$43,E$66,FALSE) -> 0 | F84: =VLOOKUP($A84,'Mat of App'!$B$7:$AP$43,F$66,FALSE) -> 0 | G84: =VLOOKUP($A84,'Mat of App'!$B$7:$AP$43,G$66,FALSE) -> 0 | H84: =VLOOKUP($A84,'Mat of App'!$B$7:$AP$43,H$66,FALSE) -> 0 | I84: =VLOOKUP($A84,'Mat of App'!$B$7:$AP$43,I$66,FALSE) -> 0
A85: LV Sub Generation Intermittent no RP charge | B85: =VLOOKUP($A85,'Mat of App'!$B$7:$AP$43,B$66,FALSE) -> 0 | C85: =VLOOKUP($A85,'Mat of App'!$B$7:$AP$43,C$66,FALSE) -> 0 | D85: =VLOOKUP($A85,'Mat of App'!$B$7:$AP$43,D$66,FALSE) -> 0 | E85: =VLOOKUP($A85,'Mat of App'!$B$7:$AP$43,E$66,FALSE) -> 0 | F85: =VLOOKUP($A85,'Mat of App'!$B$7:$AP$43,F$66,FALSE) -> 0 | G85: =VLOOKUP($A85,'Mat of App'!$B$7:$AP$43,G$66,FALSE) -> 0 | H85: =VLOOKUP($A85,'Mat of App'!$B$7:$AP$43,H$66,FALSE) -> 0 | I85: =VLOOKUP($A85,'Mat of App'!$B$7:$AP$43,I$66,FALSE) -> 0
A86: LV Sub Generation Non-Intermittent | B86: =VLOOKUP($A86,'Mat of App'!$B$7:$AP$43,B$66,FALSE) -> 0 | C86: =VLOOKUP($A86,'Mat of App'!$B$7:$AP$43,C$66,FALSE) -> 0 | D86: =VLOOKUP($A86,'Mat of App'!$B$7:$AP$43,D$66,FALSE) -> 0 | E86: =VLOOKUP($A86,'Mat of App'!$B$7:$AP$43,E$66,FALSE) -> 0 | F86: =VLOOKUP($A86,'Mat of App'!$B$7:$AP$43,F$66,FALSE) -> 0 | G86: =VLOOKUP($A86,'Mat of App'!$B$7:$AP$43,G$66,FALSE) -> 0 | H86: =VLOOKUP($A86,'Mat of App'!$B$7:$AP$43,H$66,FALSE) -> 0 | I86: =VLOOKUP($A86,'Mat of App'!$B$7:$AP$43,I$66,FALSE) -> 0
A87: LV Sub Generation Non-Intermittent no RP charge | B87: =VLOOKUP($A87,'Mat of App'!$B$7:$AP$43,B$66,FALSE) -> 0 | C87: =VLOOKUP($A87,'Mat of App'!$B$7:$AP$43,C$66,FALSE) -> 0 | D87: =VLOOKUP($A87,'Mat of App'!$B$7:$AP$43,D$66,FALSE) -> 0 | E87: =VLOOKUP($A87,'Mat of App'!$B$7:$AP$43,E$66,FALSE) -> 0 | F87: =VLOOKUP($A87,'Mat of App'!$B$7:$AP$43,F$66,FALSE) -> 0 | G87: =VLOOKUP($A87,'Mat of App'!$B$7:$AP$43,G$66,FALSE) -> 0 | H87: =VLOOKUP($A87,'Mat of App'!$B$7:$AP$43,H$66,FALSE) -> 0 | I87: =VLOOKUP($A87,'Mat of App'!$B$7:$AP$43,I$66,FALSE) -> 0
A89: 1026. Matrix of applicability of LV service models to unmetered tariffs
A91: Source: service models
A92: Proportion of service model involved in connecting load of 1 MWh/year
B93: LV service model 1 | C93: LV service model 2 | D93: LV service model 3 | E93: LV service model 4 | F93: LV service model 5 | G93: LV service model 6 | H93: LV service model 7 | I93: LV service model 8
A94: All LV unmetered tariffs | B94: =VLOOKUP($A94,'Mat of App'!$B$7:$AP$43,B$66,FALSE) -> 0 | C94: =VLOOKUP($A94,'Mat of App'!$B$7:$AP$43,C$66,FALSE) -> 0 | D94: =VLOOKUP($A94,'Mat of App'!$B$7:$AP$43,D$66,FALSE) -> 0 | E94: =VLOOKUP($A94,'Mat of App'!$B$7:$AP$43,E$66,FALSE) -> 0 | F94: =VLOOKUP($A94,'Mat of App'!$B$7:$AP$43,F$66,FALSE) -> 0 | G94: =VLOOKUP($A94,'Mat of App'!$B$7:$AP$43,G$66,FALSE) -> 0 | H94: =VLOOKUP($A94,'Mat of App'!$B$7:$AP$43,H$66,FALSE) -> 0 | I94: =VLOOKUP($A94,'Mat of App'!$B$7:$AP$43,I$66,FALSE) -> 0.488
A96: 1028. Matrix of applicability of HV service models to tariffs with fixed charges
B97: 2 | C97: =B97+1 -> 3 | D97: =C97+1 -> 4 | E97: =D97+1 -> 5 | F97: =E97+1 -> 6
B98: HV service model 1 | C98: HV service model 2 | D98: HV service model 3 | E98: HV service model 4 | F98: HV service model 5
A99: HV Medium Non-Domestic | B99: =VLOOKUP($A99,'Mat of App'!$B$7:$AP$43,B$97,FALSE) -> 1 | C99: =VLOOKUP($A99,'Mat of App'!$B$7:$AP$43,C$97,FALSE) -> 0 | D99: =VLOOKUP($A99,'Mat of App'!$B$7:$AP$43,D$97,FALSE) -> 0 | E99: =VLOOKUP($A99,'Mat of App'!$B$7:$AP$43,E$97,FALSE) -> 0 | F99: =VLOOKUP($A99,'Mat of App'!$B$7:$AP$43,F$97,FALSE) -> 0
A100: HV HH Metered | B100: =VLOOKUP($A100,'Mat of App'!$B$7:$AP$43,B$97,FALSE) -> 1 | C100: =VLOOKUP($A100,'Mat of App'!$B$7:$AP$43,C$97,FALSE) -> 0 | D100: =VLOOKUP($A100,'Mat of App'!$B$7:$AP$43,D$97,FALSE) -> 0 | E100: =VLOOKUP($A100,'Mat of App'!$B$7:$AP$43,E$97,FALSE) -> 0 | F100: =VLOOKUP($A100,'Mat of App'!$B$7:$AP$43,F$97,FALSE) -> 0
A101: HV Generation Intermittent | B101: =VLOOKUP($A101,'Mat of App'!$B$7:$AP$43,B$97,FALSE) -> 0 | C101: =VLOOKUP($A101,'Mat of App'!$B$7:$AP$43,C$97,FALSE) -> 1 | D101: =VLOOKUP($A101,'Mat of App'!$B$7:$AP$43,D$97,FALSE) -> 0 | E101: =VLOOKUP($A101,'Mat of App'!$B$7:$AP$43,E$97,FALSE) -> 0 | F101: =VLOOKUP($A101,'Mat of App'!$B$7:$AP$43,F$97,FALSE) -> 0
A102: HV Generation Intermittent no RP charge | B102: =VLOOKUP($A102,'Mat of App'!$B$7:$AP$43,B$97,FALSE) -> 0 | C102: =VLOOKUP($A102,'Mat of App'!$B$7:$AP$43,C$97,FALSE) -> 1 | D102: =VLOOKUP($A102,'Mat of App'!$B$7:$AP$43,D$97,FALSE) -> 0 | E102: =VLOOKUP($A102,'Mat of App'!$B$7:$AP$43,E$97,FALSE) -> 0 | F102: =VLOOKUP($A102,'Mat of App'!$B$7:$AP$43,F$97,FALSE) -> 0
A103: HV Generation Non-Intermittent | B103: =VLOOKUP($A103,'Mat of App'!$B$7:$AP$43,B$97,FALSE) -> 0 | C103: =VLOOKUP($A103,'Mat of App'!$B$7:$AP$43,C$97,FALSE) -> 1 | D103: =VLOOKUP($A103,'Mat of App'!$B$7:$AP$43,D$97,FALSE) -> 0 | E103: =VLOOKUP($A103,'Mat of App'!$B$7:$AP$43,E$97,FALSE) -> 0 | F103: =VLOOKUP($A103,'Mat of App'!$B$7:$AP$43,F$97,FALSE) -> 0
A104: HV Generation Non-Intermittent no RP charge | B104: =VLOOKUP($A104,'Mat of App'!$B$7:$AP$43,B$97,FALSE) -> 0 | C104: =VLOOKUP($A104,'Mat of App'!$B$7:$AP$43,C$97,FALSE) -> 1 | D104: =VLOOKUP($A104,'Mat of App'!$B$7:$AP$43,D$97,FALSE) -> 0 | E104: =VLOOKUP($A104,'Mat of App'!$B$7:$AP$43,E$97,FALSE) -> 0 | F104: =VLOOKUP($A104,'Mat of App'!$B$7:$AP$43,F$97,FALSE) -> 0
A106: 1032. Loss adjustment factors to transmission
A108: Source: losses model or loss adjustment factors at time of system peak.
B109: 132kV | C109: 132kV/EHV | D109: EHV | E109: EHV/HV | F109: HV | G109: HV/LV | H109: LV circuits
A110: Loss adjustment factor | B110: =VLOOKUP(Vlookup!B69,'CDCM Forecast Data'!$A$14:$I$271,5,FALSE) -> 1.002 | C110: =VLOOKUP(Vlookup!C69,'CDCM Forecast Data'!$A$14:$I$271,5,FALSE) -> 1.007 | D110: =VLOOKUP(Vlookup!D69,'CDCM Forecast Data'!$A$14:$I$271,5,FALSE) -> 1.016 | E110: =VLOOKUP(Vlookup!E69,'CDCM Forecast Data'!$A$14:$I$271,5,FALSE) -> 1.023 | F110: =VLOOKUP(Vlookup!F69,'CDCM Forecast Data'!$A$14:$I$271,5,FALSE) -> 1.051 | G110: =VLOOKUP(Vlookup!G69,'CDCM Forecast Data'!$A$14:$I$271,5,FALSE) -> 1.07 | H110: =VLOOKUP(Vlookup!H69,'CDCM Forecast Data'!$A$14:$I$271,5,FALSE) -> 1.087
A112: 1037. Embedded network (LDNO) discounts
A114: Source: separate price control disaggregation model.
B115: No discount | C115: LDNO LV: LV user | D115: LDNO HV: LV user | E115: LDNO HV: LV sub user | F115: LDNO HV: HV user
A116: LDNO discount | C116: =VLOOKUP(Vlookup!C75,'CDCM Forecast Data'!$A$14:$I$271,5,FALSE) -> 0.3329917567 | D116: =VLOOKUP(Vlookup!D75,'CDCM Forecast Data'!$A$14:$I$271,5,FALSE) -> 0.5129546512 | E116: =VLOOKUP(Vlookup!E75,'CDCM Forecast Data'!$A$14:$I$271,5,FALSE) -> 0.2532516803 | F116: =VLOOKUP(Vlookup!F75,'CDCM Forecast Data'!$A$14:$I$271,5,FALSE) -> 0.1433961861
A118: 1041. Load profile data for demand users
A120: Source: load data analysis.
B121: Coincidence factor | C121: Load factor
A122: Domestic Unrestricted | B122: =VLOOKUP(Vlookup!B81,'CDCM Forecast Data'!$A$14:$I$271,5,FALSE) -> 0.924290325 | C122: =VLOOKUP(Vlookup!C81,'CDCM Forecast Data'!$A$14:$I$271,5,FALSE) -> 0.4311592511
A123: Domestic Two Rate | B123: =VLOOKUP(Vlookup!B82,'CDCM Forecast Data'!$A$14:$I$271,5,FALSE) -> 0.4479462839 | C123: =VLOOKUP(Vlookup!C82,'CDCM Forecast Data'!$A$14:$I$271,5,FALSE) -> 0.3074209847
A124: Domestic Off Peak (related MPAN) | C124: =VLOOKUP(Vlookup!C83,'CDCM Forecast Data'!$A$14:$I$271,5,FALSE) -> 0.1798757717
A125: Small Non Domestic Unrestricted | B125: =VLOOKUP(Vlookup!B84,'CDCM Forecast Data'!$A$14:$I$271,5,FALSE) -> 0.6367467464 | C125: =VLOOKUP(Vlookup!C84,'CDCM Forecast Data'!$A$14:$I$271,5,FALSE) -> 0.3976203328
A126: Small Non Domestic Two Rate | B126: =VLOOKUP(Vlookup!B85,'CDCM Forecast Data'!$A$14:$I$271,5,FALSE) -> 0.749844377 | C126: =VLOOKUP(Vlookup!C85,'CDCM Forecast Data'!$A$14:$I$271,5,FALSE) -> 0.5330198646
A127: Small Non Domestic Off Peak (related MPAN) | C127: =VLOOKUP(Vlookup!C86,'CDCM Forecast Data'!$A$14:$I$271,5,FALSE) -> 0.2128151592
A128: LV Medium Non-Domestic | B128: =VLOOKUP(Vlookup!B87,'CDCM Forecast Data'!$A$14:$I$271,5,FALSE) -> 0.8260462352 | C128: =VLOOKUP(Vlookup!C87,'CDCM Forecast Data'!$A$14:$I$271,5,FALSE) -> 0.5355232849
A129: LV Sub Medium Non-Domestic | B129: =VLOOKUP(Vlookup!B88,'CDCM Forecast Data'!$A$14:$I$271,5,FALSE) -> 0.8260462352 | C129: =VLOOKUP(Vlookup!C88,'CDCM Forecast Data'!$A$14:$I$271,5,FALSE) -> 0.5355232849
A130: HV Medium Non-Domestic | B130: =VLOOKUP(Vlookup!B89,'CDCM Forecast Data'!$A$14:$I$271,5,FALSE) -> 0.6841202482 | C130: =VLOOKUP(Vlookup!C89,'CDCM Forecast Data'!$A$14:$I$271,5,FALSE) -> 0.479986234
A131: LV Network Domestic | B131: =VLOOKUP(Vlookup!B90,'CDCM Forecast Data'!$A$14:$I$271,5,FALSE) -> 0.8603133383 | C131: =VLOOKUP(Vlookup!C90,'CDCM Forecast Data'!$A$14:$I$271,5,FALSE) -> 0.4134633694
A132: LV Network Non-Domestic Non-CT | B132: =VLOOKUP(Vlookup!B91,'CDCM Forecast Data'!$A$14:$I$271,5,FALSE) -> 0.6589269349 | C132: =VLOOKUP(Vlookup!C91,'CDCM Forecast Data'!$A$14:$I$271,5,FALSE) -> 0.4230843118
A133: LV HH Metered | B133: =VLOOKUP(Vlookup!B92,'CDCM Forecast Data'!$A$14:$I$271,5,FALSE) -> 0.7544906485 | C133: =VLOOKUP(Vlookup!C92,'CDCM Forecast Data'!$A$14:$I$271,5,FALSE) -> 0.5362840031
A134: LV Sub HH Metered | B134: =VLOOKUP(Vlookup!B93,'CDCM Forecast Data'!$A$14:$I$271,5,FALSE) -> 0.7877409445 | C134: =VLOOKUP(Vlookup!C93,'CDCM Forecast Data'!$A$14:$I$271,5,FALSE) -> 0.5181753998
A135: HV HH Metered | B135: =VLOOKUP(Vlookup!B94,'CDCM Forecast Data'!$A$14:$I$271,5,FALSE) -> 0.7715753997 | C135: =VLOOKUP(Vlookup!C94,'CDCM Forecast Data'!$A$14:$I$271,5,FALSE) -> 0.6647478958
A136: NHH UMS category A | B136: =VLOOKUP(Vlookup!B95,'CDCM Forecast Data'!$A$14:$I$271,5,FALSE) -> 1 | C136: =VLOOKUP(Vlookup!C95,'CDCM Forecast Data'!$A$14:$I$271,5,FALSE) -> 1
A137: NHH UMS category B | B137: =VLOOKUP(Vlookup!B96,'CDCM Forecast Data'!$A$14:$I$271,5,FALSE) -> 0.9930142079 | C137: =VLOOKUP(Vlookup!C96,'CDCM Forecast Data'!$A$14:$I$271,5,FALSE) -> 0.46831761
A138: NHH UMS category C | B138: =VLOOKUP(Vlookup!B97,'CDCM Forecast Data'!$A$14:$I$271,5,FALSE) -> 0.9521347884 | C138: =VLOOKUP(Vlookup!C97,'CDCM Forecast Data'!$A$14:$I$271,5,FALSE) -> 0.2508349656
A139: NHH UMS category D | B139: =VLOOKUP(Vlookup!B98,'CDCM Forecast Data'!$A$14:$I$271,5,FALSE) -> 0.001286764706 | C139: =VLOOKUP(Vlookup!C98,'CDCM Forecast Data'!$A$14:$I$271,5,FALSE) -> 0.5162235966
A140: LV UMS (Pseudo HH Metered) | B140: =VLOOKUP(Vlookup!B99,'CDCM Forecast Data'!$A$14:$I$271,5,FALSE) -> 0.93763764 | C140: =VLOOKUP(Vlookup!C99,'CDCM Forecast Data'!$A$14:$I$271,5,FALSE) -> 0.4686694612
A142: 1053. Volume forecasts for the charging year
B143: 4 | C143: 5 | D143: 6 | E143: 7 | F143: 8 | G143: 9 | H143: 10
A144: Source: forecast.
A145: Please include MPAN counts for tariffs with no fixed charge (e.g. off-peak tariffs),
A146: but exclude MPANs on tariffs with a fixed charge that are not subject to a fixed charge due to a site grouping arrangement.
B147: Rate 1 units (MWh) | C147: Rate 2 units (MWh) | D147: Rate 3 units (MWh) | E147: MPANs | F147: Import capacity (kVA) | G147: Exceeded capacity (kVA) | H147: Reactive power units (MVArh)
A148: > Domestic Unrestricted | B148: =VLOOKUP(Vlookup!$B107,'CDCM Volume Forecasts'!$A$28:$AL$136,B$143,FALSE) -> 0 | C148: =VLOOKUP(Vlookup!$B107,'CDCM Volume Forecasts'!$A$28:$AL$136,C$143,FALSE) -> 0 | D148: =VLOOKUP(Vlookup!$B107,'CDCM Volume Forecasts'!$A$28:$AL$136,D$143,FALSE) -> 0 | E148: =VLOOKUP(Vlookup!$B107,'CDCM Volume Forecasts'!$A$28:$AL$136,E$143,FALSE) -> 0 | F148: =VLOOKUP(Vlookup!$B107,'CDCM Volume Forecasts'!$A$28:$AL$136,F$143,FALSE) -> 0 | H148: =VLOOKUP(Vlookup!$B107,'CDCM Volume Forecasts'!$A$28:$AL$136,G$143,FALSE) -> 0
A149: Domestic Unrestricted | B149: =VLOOKUP(Vlookup!$B108,'CDCM Volume Forecasts'!$A$28:$AL$136,B$143,FALSE) -> 7033994.4 | E149: =VLOOKUP(Vlookup!$B108,'CDCM Volume Forecasts'!$A$28:$AL$136,E$143,FALSE) -> 1997624.996
A150: LDNO LV: Domestic Unrestricted | B150: =VLOOKUP(Vlookup!$B109,'CDCM Volume Forecasts'!$A$28:$AL$136,B$143,FALSE) -> 45904.23547 | E150: =VLOOKUP(Vlookup!$B109,'CDCM Volume Forecasts'!$A$28:$AL$136,E$143,FALSE) -> 15951.34727
A151: LDNO HV: Domestic Unrestricted | B151: =VLOOKUP(Vlookup!$B110,'CDCM Volume Forecasts'!$A$28:$AL$136,B$143,FALSE) -> 85598.42734 | E151: =VLOOKUP(Vlookup!$B110,'CDCM Volume Forecasts'!$A$28:$AL$136,E$143,FALSE) -> 29809.59942
A152: > Domestic Two Rate
A153: Domestic Two Rate | B153: =VLOOKUP(Vlookup!$B112,'CDCM Volume Forecasts'!$A$28:$AL$136,B$143,FALSE) -> 856868.8814 | C153: =VLOOKUP(Vlookup!$B112,'CDCM Volume Forecasts'!$A$28:$AL$136,C$143,FALSE) -> 637095.4706 | E153: =VLOOKUP(Vlookup!$B112,'CDCM Volume Forecasts'!$A$28:$AL$136,E$143,FALSE) -> 280164.5453
A154: LDNO LV: Domestic Two Rate | B154: =VLOOKUP(Vlookup!$B113,'CDCM Volume Forecasts'!$A$28:$AL$136,B$143,FALSE) -> 2842.04014 | C154: =VLOOKUP(Vlookup!$B113,'CDCM Volume Forecasts'!$A$28:$AL$136,C$143,FALSE) -> 957.6069374 | E154: =VLOOKUP(Vlookup!$B113,'CDCM Volume Forecasts'!$A$28:$AL$136,E$143,FALSE) -> 979.4869911
A155: LDNO HV: Domestic Two Rate | B155: =VLOOKUP(Vlookup!$B114,'CDCM Volume Forecasts'!$A$28:$AL$136,B$143,FALSE) -> 4257.851945 | C155: =VLOOKUP(Vlookup!$B114,'CDCM Volume Forecasts'!$A$28:$AL$136,C$143,FALSE) -> 1631.694081 | E155: =VLOOKUP(Vlookup!$B114,'CDCM Volume Forecasts'!$A$28:$AL$136,E$143,FALSE) -> 1369.862435
A156: > Domestic Off Peak (related MPAN)
A157: Domestic Off Peak (related MPAN) | B157: =VLOOKUP(Vlookup!$B116,'CDCM Volume Forecasts'!$A$28:$AL$136,B$143,FALSE) -> 22924.72439 | E157: =VLOOKUP(Vlookup!$B116,'CDCM Volume Forecasts'!$A$28:$AL$136,E$143,FALSE) -> 9842
A158: LDNO LV: Domestic Off Peak (related MPAN) | B158: =VLOOKUP(Vlookup!$B117,'CDCM Volume Forecasts'!$A$28:$AL$136,B$143,FALSE) -> 0 | E158: =VLOOKUP(Vlookup!$B117,'CDCM Volume Forecasts'!$A$28:$AL$136,E$143,FALSE) -> 0
A159: LDNO HV: Domestic Off Peak (related MPAN) | B159: =VLOOKUP(Vlookup!$B118,'CDCM Volume Forecasts'!$A$28:$AL$136,B$143,FALSE) -> 0 | E159: =VLOOKUP(Vlookup!$B118,'CDCM Volume Forecasts'!$A$28:$AL$136,E$143,FALSE) -> 0
A160: > Small Non Domestic Unrestricted
A161: Small Non Domestic Unrestricted | B161: =VLOOKUP(Vlookup!$B120,'CDCM Volume Forecasts'!$A$28:$AL$136,B$143,FALSE) -> 1595722.248 | E161: =VLOOKUP(Vlookup!$B120,'CDCM Volume Forecasts'!$A$28:$AL$136,E$143,FALSE) -> 134131.8698
A162: LDNO LV: Small Non Domestic Unrestricted | B162: =VLOOKUP(Vlookup!$B121,'CDCM Volume Forecasts'!$A$28:$AL$136,B$143,FALSE) -> 2554.765909 | E162: =VLOOKUP(Vlookup!$B121,'CDCM Volume Forecasts'!$A$28:$AL$136,E$143,FALSE) -> 314.3652103
A163: LDNO HV: Small Non Domestic Unrestricted | B163: =VLOOKUP(Vlookup!$B122,'CDCM Volume Forecasts'!$A$28:$AL$136,B$143,FALSE) -> 16791.71137 | E163: =VLOOKUP(Vlookup!$B122,'CDCM Volume Forecasts'!$A$28:$AL$136,E$143,FALSE) -> 1122.055919
A164: > Small Non Domestic Two Rate
A165: Small Non Domestic Two Rate | B165: =VLOOKUP(Vlookup!$B124,'CDCM Volume Forecasts'!$A$28:$AL$136,B$143,FALSE) -> 534582.056 | C165: =VLOOKUP(Vlookup!$B124,'CDCM Volume Forecasts'!$A$28:$AL$136,C$143,FALSE) -> 204605.9085 | E165: =VLOOKUP(Vlookup!$B124,'CDCM Volume Forecasts'!$A$28:$AL$136,E$143,FALSE) -> 36566.2175
A166: LDNO LV: Small Non Domestic Two Rate | B166: =VLOOKUP(Vlookup!$B125,'CDCM Volume Forecasts'!$A$28:$AL$136,B$143,FALSE) -> 711.0320014 | C166: =VLOOKUP(Vlookup!$B125,'CDCM Volume Forecasts'!$A$28:$AL$136,C$143,FALSE) -> 227.9927185 | E166: =VLOOKUP(Vlookup!$B125,'CDCM Volume Forecasts'!$A$28:$AL$136,E$143,FALSE) -> 15.91368493
A167: LDNO HV: Small Non Domestic Two Rate | B167: =VLOOKUP(Vlookup!$B126,'CDCM Volume Forecasts'!$A$28:$AL$136,B$143,FALSE) -> 3255.513566 | C167: =VLOOKUP(Vlookup!$B126,'CDCM Volume Forecasts'!$A$28:$AL$136,C$143,FALSE) -> 967.1046856 | E167: =VLOOKUP(Vlookup!$B126,'CDCM Volume Forecasts'!$A$28:$AL$136,E$143,FALSE) -> 81.95073082
A168: > Small Non Domestic Off Peak (related MPAN)
A169: Small Non Domestic Off Peak (related MPAN) | B169: =VLOOKUP(Vlookup!$B128,'CDCM Volume Forecasts'!$A$28:$AL$136,B$143,FALSE) -> 4352.980773 | E169: =VLOOKUP(Vlookup!$B128,'CDCM Volume Forecasts'!$A$28:$AL$136,E$143,FALSE) -> 864
A170: LDNO LV: Small Non Domestic Off Peak (related MPAN) | B170: =VLOOKUP(Vlookup!$B129,'CDCM Volume Forecasts'!$A$28:$AL$136,B$143,FALSE) -> 0 | E170: =VLOOKUP(Vlookup!$B129,'CDCM Volume Forecasts'!$A$28:$AL$136,E$143,FALSE) -> 0
A171: LDNO HV: Small Non Domestic Off Peak (related MPAN) | B171: =VLOOKUP(Vlookup!$B130,'CDCM Volume Forecasts'!$A$28:$AL$136,B$143,FALSE) -> 0 | E171: =VLOOKUP(Vlookup!$B130,'CDCM Volume Forecasts'!$A$28:$AL$136,E$143,FALSE) -> 0
A172: > LV Medium Non-Domestic
A173: LV Medium Non-Domestic | B173: =VLOOKUP(Vlookup!$B132,'CDCM Volume Forecasts'!$A$28:$AL$136,B$143,FALSE) -> 0.0008021560811 | C173: =VLOOKUP(Vlookup!$B132,'CDCM Volume Forecasts'!$A$28:$AL$136,C$143,FALSE) -> 0.0001978439189 | E173: =VLOOKUP(Vlookup!$B132,'CDCM Volume Forecasts'!$A$28:$AL$136,E$143,FALSE) -> 1.204888627e-05
A174: LDNO LV: LV Medium Non-Domestic | B174: =VLOOKUP(Vlookup!$B133,'CDCM Volume Forecasts'!$A$28:$AL$136,B$143,FALSE) -> 0 | C174: =VLOOKUP(Vlookup!$B133,'CDCM Volume Forecasts'!$A$28:$AL$136,C$143,FALSE) -> 0 | E174: =VLOOKUP(Vlookup!$B133,'CDCM Volume Forecasts'!$A$28:$AL$136,E$143,FALSE) -> 0
A175: LDNO HV: LV Medium Non-Domestic | B175: =VLOOKUP(Vlookup!$B134,'CDCM Volume Forecasts'!$A$28:$AL$136,B$143,FALSE) -> 0 | C175: =VLOOKUP(Vlookup!$B134,'CDCM Volume Forecasts'!$A$28:$AL$136,C$143,FALSE) -> 0 | E175: =VLOOKUP(Vlookup!$B134,'CDCM Volume Forecasts'!$A$28:$AL$136,E$143,FALSE) -> 0
A176: > LV Sub Medium Non-Domestic
A177: LV Sub Medium Non-Domestic | B177: =VLOOKUP(Vlookup!$B136,'CDCM Volume Forecasts'!$A$28:$AL$136,B$143,FALSE) -> 0.0007604348072 | C177: =VLOOKUP(Vlookup!$B136,'CDCM Volume Forecasts'!$A$28:$AL$136,C$143,FALSE) -> 0.0002395651928 | E177: =VLOOKUP(Vlookup!$B136,'CDCM Volume Forecasts'!$A$28:$AL$136,E$143,FALSE) -> 1.253614406e-05
A178: > HV Medium Non-Domestic
A179: HV Medium Non-Domestic | B179: =VLOOKUP(Vlookup!$B138,'CDCM Volume Forecasts'!$A$28:$AL$136,B$143,FALSE) -> 0.0007934541655 | C179: =VLOOKUP(Vlookup!$B138,'CDCM Volume Forecasts'!$A$28:$AL$136,C$143,FALSE) -> 0.0002065458345 | E179: =VLOOKUP(Vlookup!$B138,'CDCM Volume Forecasts'!$A$28:$AL$136,E$143,FALSE) -> 6.152863457e-06
A180: > LV Network Domestic
A181: LV Network Domestic | B181: =VLOOKUP(Vlookup!$B140,'CDCM Volume Forecasts'!$A$28:$AL$136,B$143,FALSE) -> 0 | C181: =VLOOKUP(Vlookup!$B140,'CDCM Volume Forecasts'!$A$28:$AL$136,C$143,FALSE) -> 0 | D181: =VLOOKUP(Vlookup!$B140,'CDCM Volume Forecasts'!$A$28:$AL$136,D$143,FALSE) -> 0 | E181: =VLOOKUP(Vlookup!$B140,'CDCM Volume Forecasts'!$A$28:$AL$136,E$143,FALSE) -> 0
A182: LDNO LV: LV Network Domestic | B182: =VLOOKUP(Vlookup!$B141,'CDCM Volume Forecasts'!$A$28:$AL$136,B$143,FALSE) -> 0 | C182: =VLOOKUP(Vlookup!$B141,'CDCM Volume Forecasts'!$A$28:$AL$136,C$143,FALSE) -> 0 | D182: =VLOOKUP(Vlookup!$B141,'CDCM Volume Forecasts'!$A$28:$AL$136,D$143,FALSE) -> 0 | E182: =VLOOKUP(Vlookup!$B141,'CDCM Volume Forecasts'!$A$28:$AL$136,E$143,FALSE) -> 0
A183: LDNO HV: LV Network Domestic | B183: =VLOOKUP(Vlookup!$B142,'CDCM Volume Forecasts'!$A$28:$AL$136,B$143,FALSE) -> 0 | C183: =VLOOKUP(Vlookup!$B142,'CDCM Volume Forecasts'!$A$28:$AL$136,C$143,FALSE) -> 0 | D183: =VLOOKUP(Vlookup!$B142,'CDCM Volume Forecasts'!$A$28:$AL$136,D$143,FALSE) -> 0 | E183: =VLOOKUP(Vlookup!$B142,'CDCM Volume Forecasts'!$A$28:$AL$136,E$143,FALSE) -> 0
A184: > LV Network Non-Domestic Non-CT
A185: LV Network Non-Domestic Non-CT | B185: =VLOOKUP(Vlookup!$B144,'CDCM Volume Forecasts'!$A$28:$AL$136,B$143,FALSE) -> 65468.6899 | C185: =VLOOKUP(Vlookup!$B144,'CDCM Volume Forecasts'!$A$28:$AL$136,C$143,FALSE) -> 249307.5613 | D185: =VLOOKUP(Vlookup!$B144,'CDCM Volume Forecasts'!$A$28:$AL$136,D$143,FALSE) -> 277392.908 | E185: =VLOOKUP(Vlookup!$B144,'CDCM Volume Forecasts'!$A$28:$AL$136,E$143,FALSE) -> 9933.790145
A186: LDNO LV: LV Network Non-Domestic Non-CT | B186: =VLOOKUP(Vlookup!$B145,'CDCM Volume Forecasts'!$A$28:$AL$136,B$143,FALSE) -> 88.13739864 | C186: =VLOOKUP(Vlookup!$B145,'CDCM Volume Forecasts'!$A$28:$AL$136,C$143,FALSE) -> 336.660181 | D186: =VLOOKUP(Vlookup!$B145,'CDCM Volume Forecasts'!$A$28:$AL$136,D$143,FALSE) -> 420.4146581 | E186: =VLOOKUP(Vlookup!$B145,'CDCM Volume Forecasts'!$A$28:$AL$136,E$143,FALSE) -> 16.99439951
A187: LDNO HV: LV Network Non-Domestic Non-CT | B187: =VLOOKUP(Vlookup!$B146,'CDCM Volume Forecasts'!$A$28:$AL$136,B$143,FALSE) -> 781.199553 | C187: =VLOOKUP(Vlookup!$B146,'CDCM Volume Forecasts'!$A$28:$AL$136,C$143,FALSE) -> 2964.670605 | D187: =VLOOKUP(Vlookup!$B146,'CDCM Volume Forecasts'!$A$28:$AL$136,D$143,FALSE) -> 3270.356125 | E187: =VLOOKUP(Vlookup!$B146,'CDCM Volume Forecasts'!$A$28:$AL$136,E$143,FALSE) -> 106.4677634
A188: > LV HH Metered
A189: LV HH Metered | B189: =VLOOKUP(Vlookup!$B148,'CDCM Volume Forecasts'!$A$28:$AL$136,B$143,FALSE) -> 288136.9236 | C189: =VLOOKUP(Vlookup!$B148,'CDCM Volume Forecasts'!$A$28:$AL$136,C$143,FALSE) -> 1133767.484 | D189: =VLOOKUP(Vlookup!$B148,'CDCM Volume Forecasts'!$A$28:$AL$136,D$143,FALSE) -> 1217827.25 | E189: =VLOOKUP(Vlookup!$B148,'CDCM Volume Forecasts'!$A$28:$AL$136,E$143,FALSE) -> 13739.24605 | F189: =VLOOKUP(Vlookup!$B148,'CDCM Volume Forecasts'!$A$28:$AL$136,F$143,FALSE) -> 1443798.065 | G189: =VLOOKUP(Vlookup!$B148,'CDCM Volume Forecasts'!$A$28:$AL$136,G$143,FALSE) -> 19185.24781 | H189: =VLOOKUP(Vlookup!$B148,'CDCM Volume Forecasts'!$A$28:$AL$136,H$143,FALSE) -> 185922.1109
A190: LDNO LV: LV HH Metered | B190: =VLOOKUP(Vlookup!$B149,'CDCM Volume Forecasts'!$A$28:$AL$136,B$143,FALSE) -> 294.9219867 | C190: =VLOOKUP(Vlookup!$B149,'CDCM Volume Forecasts'!$A$28:$AL$136,C$143,FALSE) -> 1148.164231 | D190: =VLOOKUP(Vlookup!$B149,'CDCM Volume Forecasts'!$A$28:$AL$136,D$143,FALSE) -> 1503.991493 | E190: =VLOOKUP(Vlookup!$B149,'CDCM Volume Forecasts'!$A$28:$AL$136,E$143,FALSE) -> 29.531532 | F190: =VLOOKUP(Vlookup!$B149,'CDCM Volume Forecasts'!$A$28:$AL$136,F$143,FALSE) -> 1938.272743 | G190: =VLOOKUP(Vlookup!$B149,'CDCM Volume Forecasts'!$A$28:$AL$136,G$143,FALSE) -> 35.5619437 | H190: =VLOOKUP(Vlookup!$B149,'CDCM Volume Forecasts'!$A$28:$AL$136,H$143,FALSE) -> 156.0091652
A191: LDNO HV: LV HH Metered | B191: =VLOOKUP(Vlookup!$B150,'CDCM Volume Forecasts'!$A$28:$AL$136,B$143,FALSE) -> 14846.67041 | C191: =VLOOKUP(Vlookup!$B150,'CDCM Volume Forecasts'!$A$28:$AL$136,C$143,FALSE) -> 52731.66599 | D191: =VLOOKUP(Vlookup!$B150,'CDCM Volume Forecasts'!$A$28:$AL$136,D$143,FALSE) -> 61521.53703 | E191: =VLOOKUP(Vlookup!$B150,'CDCM Volume Forecasts'!$A$28:$AL$136,E$143,FALSE) -> 377.1264647 | F191: =VLOOKUP(Vlookup!$B150,'CDCM Volume Forecasts'!$A$28:$AL$136,F$143,FALSE) -> 77687.27363 | G191: =VLOOKUP(Vlookup!$B150,'CDCM Volume Forecasts'!$A$28:$AL$136,G$143,FALSE) -> 1090.348891 | H191: =VLOOKUP(Vlookup!$B150,'CDCM Volume Forecasts'!$A$28:$AL$136,H$143,FALSE) -> 3547.967832
A192: > LV Sub HH Metered
A193: LV Sub HH Metered | B193: =VLOOKUP(Vlookup!$B152,'CDCM Volume Forecasts'!$A$28:$AL$136,B$143,FALSE) -> 15765.23217 | C193: =VLOOKUP(Vlookup!$B152,'CDCM Volume Forecasts'!$A$28:$AL$136,C$143,FALSE) -> 61475.58004 | D193: =VLOOKUP(Vlookup!$B152,'CDCM Volume Forecasts'!$A$28:$AL$136,D$143,FALSE) -> 67543.84453 | E193: =VLOOKUP(Vlookup!$B152,'CDCM Volume Forecasts'!$A$28:$AL$136,E$143,FALSE) -> 263.4385041 | F193: =VLOOKUP(Vlookup!$B152,'CDCM Volume Forecasts'!$A$28:$AL$136,F$143,FALSE) -> 103428.7736 | G193: =VLOOKUP(Vlookup!$B152,'CDCM Volume Forecasts'!$A$28:$AL$136,G$143,FALSE) -> 472.5795212 | H193: =VLOOKUP(Vlookup!$B152,'CDCM Volume Forecasts'!$A$28:$AL$136,H$143,FALSE) -> 9098.971149
A194: LDNO HV: LV Sub HH Metered | B194: =VLOOKUP(Vlookup!$B153,'CDCM Volume Forecasts'!$A$28:$AL$136,B$143,FALSE) -> 582.1097601 | C194: =VLOOKUP(Vlookup!$B153,'CDCM Volume Forecasts'!$A$28:$AL$136,C$143,FALSE) -> 2261.471294 | D194: =VLOOKUP(Vlookup!$B153,'CDCM Volume Forecasts'!$A$28:$AL$136,D$143,FALSE) -> 3383.087099 | E194: =VLOOKUP(Vlookup!$B153,'CDCM Volume Forecasts'!$A$28:$AL$136,E$143,FALSE) -> 7.120179452 | F194: =VLOOKUP(Vlookup!$B153,'CDCM Volume Forecasts'!$A$28:$AL$136,F$143,FALSE) -> 4589.013565 | G194: =VLOOKUP(Vlookup!$B153,'CDCM Volume Forecasts'!$A$28:$AL$136,G$143,FALSE) -> 0 | H194: =VLOOKUP(Vlookup!$B153,'CDCM Volume Forecasts'!$A$28:$AL$136,H$143,FALSE) -> 1686.527735
A195: > HV HH Metered
A196: HV HH Metered | B196: =VLOOKUP(Vlookup!$B155,'CDCM Volume Forecasts'!$A$28:$AL$136,B$143,FALSE) -> 741861.9568 | C196: =VLOOKUP(Vlookup!$B155,'CDCM Volume Forecasts'!$A$28:$AL$136,C$143,FALSE) -> 2955179.536 | D196: =VLOOKUP(Vlookup!$B155,'CDCM Volume Forecasts'!$A$28:$AL$136,D$143,FALSE) -> 3857333.695 | E196: =VLOOKUP(Vlookup!$B155,'CDCM Volume Forecasts'!$A$28:$AL$136,E$143,FALSE) -> 4142.610957 | F196: =VLOOKUP(Vlookup!$B155,'CDCM Volume Forecasts'!$A$28:$AL$136,F$143,FALSE) -> 2873647.675 | G196: =VLOOKUP(Vlookup!$B155,'CDCM Volume Forecasts'!$A$28:$AL$136,G$143,FALSE) -> 60724.31855 | H196: =VLOOKUP(Vlookup!$B155,'CDCM Volume Forecasts'!$A$28:$AL$136,H$143,FALSE) -> 952251.1994
A197: LDNO HV: HV HH Metered | B197: =VLOOKUP(Vlookup!$B156,'CDCM Volume Forecasts'!$A$28:$AL$136,B$143,FALSE) -> 4122.254147 | C197: =VLOOKUP(Vlookup!$B156,'CDCM Volume Forecasts'!$A$28:$AL$136,C$143,FALSE) -> 14297.78756 | D197: =VLOOKUP(Vlookup!$B156,'CDCM Volume Forecasts'!$A$28:$AL$136,D$143,FALSE) -> 16574.46071 | E197: =VLOOKUP(Vlookup!$B156,'CDCM Volume Forecasts'!$A$28:$AL$136,E$143,FALSE) -> 32.52052808 | F197: =VLOOKUP(Vlookup!$B156,'CDCM Volume Forecasts'!$A$28:$AL$136,F$143,FALSE) -> 27960.50628 | G197: =VLOOKUP(Vlookup!$B156,'CDCM Volume Forecasts'!$A$28:$AL$136,G$143,FALSE) -> 0 | H197: =VLOOKUP(Vlookup!$B156,'CDCM Volume Forecasts'!$A$28:$AL$136,H$143,FALSE) -> 685.7313926
A198: > NHH UMS category A
A199: NHH UMS category A | B199: =VLOOKUP(Vlookup!$B158,'CDCM Volume Forecasts'!$A$28:$AL$136,B$143,FALSE) -> 59176.0714 | E199: =VLOOKUP(Vlookup!$B158,'CDCM Volume Forecasts'!$A$28:$AL$136,E$143,FALSE) -> 948
A200: LDNO LV: NHH UMS category A | B200: =VLOOKUP(Vlookup!$B159,'CDCM Volume Forecasts'!$A$28:$AL$136,B$143,FALSE) -> 36.24811575 | E200: =VLOOKUP(Vlookup!$B159,'CDCM Volume Forecasts'!$A$28:$AL$136,E$143,FALSE) -> 0
A201: LDNO HV: NHH UMS category A | B201: =VLOOKUP(Vlookup!$B160,'CDCM Volume Forecasts'!$A$28:$AL$136,B$143,FALSE) -> 85.36014954 | E201: =VLOOKUP(Vlookup!$B160,'CDCM Volume Forecasts'!$A$28:$AL$136,E$143,FALSE) -> 0
A202: > NHH UMS category B
A203: NHH UMS category B | B203: =VLOOKUP(Vlookup!$B162,'CDCM Volume Forecasts'!$A$28:$AL$136,B$143,FALSE) -> 10874.20717 | E203: =VLOOKUP(Vlookup!$B162,'CDCM Volume Forecasts'!$A$28:$AL$136,E$143,FALSE) -> 694
A204: LDNO LV: NHH UMS category B | B204: =VLOOKUP(Vlookup!$B163,'CDCM Volume Forecasts'!$A$28:$AL$136,B$143,FALSE) -> 200.2006923 | E204: =VLOOKUP(Vlookup!$B163,'CDCM Volume Forecasts'!$A$28:$AL$136,E$143,FALSE) -> 0
A205: LDNO HV: NHH UMS category B | B205: =VLOOKUP(Vlookup!$B164,'CDCM Volume Forecasts'!$A$28:$AL$136,B$143,FALSE) -> 544.4360659 | E205: =VLOOKUP(Vlookup!$B164,'CDCM Volume Forecasts'!$A$28:$AL$136,E$143,FALSE) -> 0
A206: > NHH UMS category C
A207: NHH UMS category C | B207: =VLOOKUP(Vlookup!$B166,'CDCM Volume Forecasts'!$A$28:$AL$136,B$143,FALSE) -> 974.6595118 | E207: =VLOOKUP(Vlookup!$B166,'CDCM Volume Forecasts'!$A$28:$AL$136,E$143,FALSE) -> 135
A208: LDNO LV: NHH UMS category C | B208: =VLOOKUP(Vlookup!$B167,'CDCM Volume Forecasts'!$A$28:$AL$136,B$143,FALSE) -> 0 | E208: =VLOOKUP(Vlookup!$B167,'CDCM Volume Forecasts'!$A$28:$AL$136,E$143,FALSE) -> 0
A209: LDNO HV: NHH UMS category C | B209: =VLOOKUP(Vlookup!$B168,'CDCM Volume Forecasts'!$A$28:$AL$136,B$143,FALSE) -> 25.76916716 | E209: =VLOOKUP(Vlookup!$B168,'CDCM Volume Forecasts'!$A$28:$AL$136,E$143,FALSE) -> 0
A210: > NHH UMS category D
A211: NHH UMS category D | B211: =VLOOKUP(Vlookup!$B170,'CDCM Volume Forecasts'!$A$28:$AL$136,B$143,FALSE) -> 6690.979313 | E211: =VLOOKUP(Vlookup!$B170,'CDCM Volume Forecasts'!$A$28:$AL$136,E$143,FALSE) -> 40
A212: LDNO LV: NHH UMS category D | B212: =VLOOKUP(Vlookup!$B171,'CDCM Volume Forecasts'!$A$28:$AL$136,B$143,FALSE) -> 0 | E212: =VLOOKUP(Vlookup!$B171,'CDCM Volume Forecasts'!$A$28:$AL$136,E$143,FALSE) -> 0
A213: LDNO HV: NHH UMS category D | B213: =VLOOKUP(Vlookup!$B172,'CDCM Volume Forecasts'!$A$28:$AL$136,B$143,FALSE) -> 0 | E213: =VLOOKUP(Vlookup!$B172,'CDCM Volume Forecasts'!$A$28:$AL$136,E$143,FALSE) -> 0
A214: > LV UMS (Pseudo HH Metered)
A215: LV UMS (Pseudo HH Metered) | B215: =VLOOKUP(Vlookup!$B174,'CDCM Volume Forecasts'!$A$28:$AL$136,B$143,FALSE) -> 12297.71888 | C215: =VLOOKUP(Vlookup!$B174,'CDCM Volume Forecasts'!$A$28:$AL$136,C$143,FALSE) -> 40044.12241 | D215: =VLOOKUP(Vlookup!$B174,'CDCM Volume Forecasts'!$A$28:$AL$136,D$143,FALSE) -> 215732.4022 | E215: =VLOOKUP(Vlookup!$B174,'CDCM Volume Forecasts'!$A$28:$AL$136,E$143,FALSE) -> 42.93545574
A216: LDNO LV: LV UMS (Pseudo HH Metered) | B216: =VLOOKUP(Vlookup!$B175,'CDCM Volume Forecasts'!$A$28:$AL$136,B$143,FALSE) -> 0 | C216: =VLOOKUP(Vlookup!$B175,'CDCM Volume Forecasts'!$A$28:$AL$136,C$143,FALSE) -> 0 | D216: =VLOOKUP(Vlookup!$B175,'CDCM Volume Forecasts'!$A$28:$AL$136,D$143,FALSE) -> 0 | E216: =VLOOKUP(Vlookup!$B175,'CDCM Volume Forecasts'!$A$28:$AL$136,E$143,FALSE) -> 0
A217: LDNO HV: LV UMS (Pseudo HH Metered) | B217: =VLOOKUP(Vlookup!$B176,'CDCM Volume Forecasts'!$A$28:$AL$136,B$143,FALSE) -> 0 | C217: =VLOOKUP(Vlookup!$B176,'CDCM Volume Forecasts'!$A$28:$AL$136,C$143,FALSE) -> 0 | D217: =VLOOKUP(Vlookup!$B176,'CDCM Volume Forecasts'!$A$28:$AL$136,D$143,FALSE) -> 0 | E217: =VLOOKUP(Vlookup!$B176,'CDCM Volume Forecasts'!$A$28:$AL$136,E$143,FALSE) -> 0
A218: > LV Generation NHH or Aggregate HH
A219: LV Generation NHH or Aggregate HH | B219: =VLOOKUP(Vlookup!$B178,'CDCM Volume Forecasts'!$A$28:$AL$136,B$143,FALSE) -> 1307.116212 | E219: =VLOOKUP(Vlookup!$B178,'CDCM Volume Forecasts'!$A$28:$AL$136,E$143,FALSE) -> 125
A220: LDNO LV: LV Generation NHH or Aggregate HH | B220: =VLOOKUP(Vlookup!$B179,'CDCM Volume Forecasts'!$A$28:$AL$136,B$143,FALSE) -> 0 | E220: =VLOOKUP(Vlookup!$B179,'CDCM Volume Forecasts'!$A$28:$AL$136,E$143,FALSE) -> 0
A221: LDNO HV: LV Generation NHH or Aggregate HH | B221: =VLOOKUP(Vlookup!$B180,'CDCM Volume Forecasts'!$A$28:$AL$136,B$143,FALSE) -> 0 | E221: =VLOOKUP(Vlookup!$B180,'CDCM Volume Forecasts'!$A$28:$AL$136,E$143,FALSE) -> 0
A222: > LV Sub Generation NHH
A223: LV Sub Generation NHH | B223: =VLOOKUP(Vlookup!$B182,'CDCM Volume Forecasts'!$A$28:$AL$136,B$143,FALSE) -> 133.5197066 | E223: =VLOOKUP(Vlookup!$B182,'CDCM Volume Forecasts'!$A$28:$AL$136,E$143,FALSE) -> 1
A224: LDNO HV: LV Sub Generation NHH | B224: =VLOOKUP(Vlookup!$B183,'CDCM Volume Forecasts'!$A$28:$AL$136,B$143,FALSE) -> 0 | E224: =VLOOKUP(Vlookup!$B183,'CDCM Volume Forecasts'!$A$28:$AL$136,E$143,FALSE) -> 0
A225: > LV Generation Intermittent
A226: LV Generation Intermittent | B226: =VLOOKUP(Vlookup!$B185,'CDCM Volume Forecasts'!$A$28:$AL$136,B$143,FALSE) -> 32745.26219 | E226: =VLOOKUP(Vlookup!$B185,'CDCM Volume Forecasts'!$A$28:$AL$136,E$143,FALSE) -> 462.3004582 | H226: =VLOOKUP(Vlookup!$B185,'CDCM Volume Forecasts'!$A$28:$AL$136,H$143,FALSE) -> 2521.674988
A227: LDNO LV: LV Generation Intermittent | B227: =VLOOKUP(Vlookup!$B186,'CDCM Volume Forecasts'!$A$28:$AL$136,B$143,FALSE) -> 0 | E227: =VLOOKUP(Vlookup!$B186,'CDCM Volume Forecasts'!$A$28:$AL$136,E$143,FALSE) -> 0 | H227: =VLOOKUP(Vlookup!$B186,'CDCM Volume Forecasts'!$A$28:$AL$136,H$143,FALSE) -> 0
A228: LDNO HV: LV Generation Intermittent | B228: =VLOOKUP(Vlookup!$B187,'CDCM Volume Forecasts'!$A$28:$AL$136,B$143,FALSE) -> 181.6971582 | E228: =VLOOKUP(Vlookup!$B187,'CDCM Volume Forecasts'!$A$28:$AL$136,E$143,FALSE) -> 1.558300685 | H228: =VLOOKUP(Vlookup!$B187,'CDCM Volume Forecasts'!$A$28:$AL$136,H$143,FALSE) -> 46.95845664
... 99 more rows

Sheet (Y+1)
A1: Input data (Y+1)
A4: 1000. Company, charging year, data version
B6: Company | C6: Year | D6: Version
A7: Company, charging year, data version | B7: =VLOOKUP(Vlookup!B7,'CDCM Forecast Data'!$A$14:$I$271,6,FALSE) -> 0 | C7: =VLOOKUP(Vlookup!C7,'CDCM Forecast Data'!$A$14:$I$271,6,FALSE) -> 0 | D7: =VLOOKUP(Vlookup!D7,'CDCM Forecast Data'!$A$14:$I$271,6,FALSE) -> 0
A9: 1010. Financial and general assumptions
A11: Sources: financial assumptions; calendar; network model.
A12: These financial assumptions determine the annuity rate applied to convert the asset values of the network model into an annual charge.
B13: Rate of return | C13: Annualisation period (years) | D13: Annuity proportion for customer-contributed assets | E13: Power factor | F13: Days in the charging period
A14: Financial and general assumptions | B14: =VLOOKUP(Vlookup!B14,'CDCM Forecast Data'!$A$14:$I$271,6,FALSE) -> 0.0421 | C14: =VLOOKUP(Vlookup!C14,'CDCM Forecast Data'!$A$14:$I$271,6,FALSE) -> 40 | E14: =VLOOKUP(Vlookup!E14,'CDCM Forecast Data'!$A$14:$I$271,6,FALSE) -> 0.95 | F14: =VLOOKUP(Vlookup!F14,'CDCM Forecast Data'!$A$14:$I$271,6,FALSE) -> 365
A16: 1017. Diversity allowance between top and bottom of network level
A18: Source: operational data analysis and/or network model.
A19: The diversity figure against GSP is the diversity between GSP Group (the whole system) and individual GSPs.
A20: The diversity figure against 132kV is the diversity between GSPs (the top of the 132kV network) and 132kV/EHV bulk supply points (the bottom of the 132kV network).
A21: The diversity figure against EHV is the diversity between 132kV/EHV bulk supply points (the top of the EHV network) and EHV/HV primary substations (the bottom of the EHV network).
A22: The diversity figure against HV is the diversity between EHV/HV primary substations (the top of the HV network) and HV/LV substations (the bottom of the HV network).
B23: Diversity allowance between top and bottom of network level
A24: GSPs | B24: =VLOOKUP(Vlookup!B24,'CDCM Forecast Data'!$A$14:$I$271,6,FALSE) -> 0.05649040832
A25: 132kV | B25: =VLOOKUP(Vlookup!B25,'CDCM Forecast Data'!$A$14:$I$271,6,FALSE) -> 0.0255686825
A26: 132kV/EHV
A27: EHV | B27: =VLOOKUP(Vlookup!B27,'CDCM Forecast Data'!$A$14:$I$271,6,FALSE) -> 0.02663159667
A28: EHV/HV
A29: HV | B29: =VLOOKUP(Vlookup!B29,'CDCM Forecast Data'!$A$14:$I$271,6,FALSE) -> 0.34
A30: HV/LV
A31: LV circuits
A33: 1018. Proportion of relevant load going through 132kV/HV direct transformation
B35: 132kV/HV
A36: EHV/HV | B36: =VLOOKUP(Vlookup!B36,'CDCM Forecast Data'!$A$14:$I$271,6,FALSE) -> 0.6925656292
A38: 1019. Network model GSP peak demand (MW)
B40: Network model GSP peak demand (MW)
A41: Network model GSP peak demand (MW) | B41: =VLOOKUP(Vlookup!B41,'CDCM Forecast Data'!$A$14:$I$271,6,FALSE) -> 500
A43: 1020. Gross asset cost by network level (£)
B45: Gross assets £
A46: 132kV | B46: =VLOOKUP(Vlookup!B46,'CDCM Forecast Data'!$A$14:$I$271,6,FALSE) -> 52265304.73
A47: 132kV/EHV | B47: =VLOOKUP(Vlookup!B47,'CDCM Forecast Data'!$A$14:$I$271,6,FALSE) -> 11964252.77
A48: EHV | B48: =VLOOKUP(Vlookup!B48,'CDCM Forecast Data'!$A$14:$I$271,6,FALSE) -> 12328275.38
A49: EHV/HV | B49: =VLOOKUP(Vlookup!B49,'CDCM Forecast Data'!$A$14:$I$271,6,FALSE) -> 23296898.18
A50: 132kV/HV | B50: =VLOOKUP(Vlookup!B50,'CDCM Forecast Data'!$A$14:$I$271,6,FALSE) -> 24835737.24
A51: HV | B51: =VLOOKUP(Vlookup!B51,'CDCM Forecast Data'!$A$14:$I$271,6,FALSE) -> 161272544.4
A52: HV/LV | B52: =VLOOKUP(Vlookup!B52,'CDCM Forecast Data'!$A$14:$I$271,6,FALSE) -> 72767628.54
A53: LV circuits | B53: =VLOOKUP(Vlookup!B53,'CDCM Forecast Data'!$A$14:$I$271,6,FALSE) -> 165807119.5
A55: 1022. LV service model asset cost (£)
B57: LV service model 1 | C57: LV service model 2 | D57: LV service model 3 | E57: LV service model 4 | F57: LV service model 5 | G57: LV service model 6 | H57: LV service model 7 | I57: LV service model 8
A58: LV service model asset cost (£) | B58: =VLOOKUP(Vlookup!B58,'CDCM Forecast Data'!$A$14:$I$271,6,FALSE) -> 5588.33515 | C58: =VLOOKUP(Vlookup!C58,'CDCM Forecast Data'!$A$14:$I$271,6,FALSE) -> 628.6318329 | D58: =VLOOKUP(Vlookup!D58,'CDCM Forecast Data'!$A$14:$I$271,6,FALSE) -> 765.3547778 | E58: =VLOOKUP(Vlookup!E58,'CDCM Forecast Data'!$A$14:$I$271,6,FALSE) -> 567.6023854 | F58: =VLOOKUP(Vlookup!F58,'CDCM Forecast Data'!$A$14:$I$271,6,FALSE) -> 1290.286538 | G58: =VLOOKUP(Vlookup!G58,'CDCM Forecast Data'!$A$14:$I$271,6,FALSE) -> 993.7955807 | H58: =VLOOKUP(Vlookup!H58,'CDCM Forecast Data'!$A$14:$I$271,6,FALSE) -> 0 | I58: =VLOOKUP(Vlookup!I58,'CDCM Forecast Data'!$A$14:$I$271,6,FALSE) -> 519.7608867
A60: 1023. HV service model asset cost (£)
B62: HV service model 1 | C62: HV service model 2 | D62: HV service model 3 | E62: HV service model 4 | F62: HV service model 5
A63: HV service model asset cost (£) | B63: =VLOOKUP(Vlookup!B63,'CDCM Forecast Data'!$A$14:$I$271,6,FALSE) -> 9859.605327 | C63: =VLOOKUP(Vlookup!C63,'CDCM Forecast Data'!$A$14:$I$271,6,FALSE) -> 4753.648797 | D63: =VLOOKUP(Vlookup!D63,'CDCM Forecast Data'!$A$14:$I$271,6,FALSE) -> 0 | E63: =VLOOKUP(Vlookup!E63,'CDCM Forecast Data'!$A$14:$I$271,6,FALSE) -> 0 | F63: =VLOOKUP(Vlookup!F63,'CDCM Forecast Data'!$A$14:$I$271,6,FALSE) -> 0
A65: 1025. Matrix of applicability of LV service models to tariffs with fixed charges
B66: 10 | C66: =B66+1 -> 11 | D66: 12 | E66: 13 | F66: 14 | G66: 15 | H66: 16 | I66: 17
B67: LV service model 1 | C67: LV service model 2 | D67: LV service model 3 | E67: LV service model 4 | F67: LV service model 5 | G67: LV service model 6 | H67: LV service model 7 | I67: LV service model 8
A68: Domestic Unrestricted | B68: =VLOOKUP($A68,'Mat of App'!$B$7:$AP$43,B$66,FALSE) -> 0.05 | C68: =VLOOKUP($A68,'Mat of App'!$B$7:$AP$43,C$66,FALSE) -> 0 | D68: =VLOOKUP($A68,'Mat of App'!$B$7:$AP$43,D$66,FALSE) -> 0 | E68: =VLOOKUP($A68,'Mat of App'!$B$7:$AP$43,E$66,FALSE) -> 0 | F68: =VLOOKUP($A68,'Mat of App'!$B$7:$AP$43,F$66,FALSE) -> 0 | G68: =VLOOKUP($A68,'Mat of App'!$B$7:$AP$43,G$66,FALSE) -> 0 | H68: =VLOOKUP($A68,'Mat of App'!$B$7:$AP$43,H$66,FALSE) -> 0 | I68: =VLOOKUP($A68,'Mat of App'!$B$7:$AP$43,I$66,FALSE) -> 0
A69: Domestic Two Rate | B69: =VLOOKUP($A69,'Mat of App'!$B$7:$AP$43,B$66,FALSE) -> 0.05 | C69: =VLOOKUP($A69,'Mat of App'!$B$7:$AP$43,C$66,FALSE) -> 0 | D69: =VLOOKUP($A69,'Mat of App'!$B$7:$AP$43,D$66,FALSE) -> 0 | E69: =VLOOKUP($A69,'Mat of App'!$B$7:$AP$43,E$66,FALSE) -> 0 | F69: =VLOOKUP($A69,'Mat of App'!$B$7:$AP$43,F$66,FALSE) -> 0 | G69: =VLOOKUP($A69,'Mat of App'!$B$7:$AP$43,G$66,FALSE) -> 0 | H69: =VLOOKUP($A69,'Mat of App'!$B$7:$AP$43,H$66,FALSE) -> 0 | I69: =VLOOKUP($A69,'Mat of App'!$B$7:$AP$43,I$66,FALSE) -> 0
A70: Small Non Domestic Unrestricted | B70: =VLOOKUP($A70,'Mat of App'!$B$7:$AP$43,B$66,FALSE) -> 0 | C70: =VLOOKUP($A70,'Mat of App'!$B$7:$AP$43,C$66,FALSE) -> 1 | D70: =VLOOKUP($A70,'Mat of App'!$B$7:$AP$43,D$66,FALSE) -> 0 | E70: =VLOOKUP($A70,'Mat of App'!$B$7:$AP$43,E$66,FALSE) -> 0 | F70: =VLOOKUP($A70,'Mat of App'!$B$7:$AP$43,F$66,FALSE) -> 0 | G70: =VLOOKUP($A70,'Mat of App'!$B$7:$AP$43,G$66,FALSE) -> 0 | H70: =VLOOKUP($A70,'Mat of App'!$B$7:$AP$43,H$66,FALSE) -> 0 | I70: =VLOOKUP($A70,'Mat of App'!$B$7:$AP$43,I$66,FALSE) -> 0
A71: Small Non Domestic Two Rate | B71: =VLOOKUP($A71,'Mat of App'!$B$7:$AP$43,B$66,FALSE) -> 0 | C71: =VLOOKUP($A71,'Mat of App'!$B$7:$AP$43,C$66,FALSE) -> 1 | D71: =VLOOKUP($A71,'Mat of App'!$B$7:$AP$43,D$66,FALSE) -> 0 | E71: =VLOOKUP($A71,'Mat of App'!$B$7:$AP$43,E$66,FALSE) -> 0 | F71: =VLOOKUP($A71,'Mat of App'!$B$7:$AP$43,F$66,FALSE) -> 0 | G71: =VLOOKUP($A71,'Mat of App'!$B$7:$AP$43,G$66,FALSE) -> 0 | H71: =VLOOKUP($A71,'Mat of App'!$B$7:$AP$43,H$66,FALSE) -> 0 | I71: =VLOOKUP($A71,'Mat of App'!$B$7:$AP$43,I$66,FALSE) -> 0
A72: LV Medium Non-Domestic | B72: =VLOOKUP($A72,'Mat of App'!$B$7:$AP$43,B$66,FALSE) -> 0 | C72: =VLOOKUP($A72,'Mat of App'!$B$7:$AP$43,C$66,FALSE) -> 0 | D72: =VLOOKUP($A72,'Mat of App'!$B$7:$AP$43,D$66,FALSE) -> 1 | E72: =VLOOKUP($A72,'Mat of App'!$B$7:$AP$43,E$66,FALSE) -> 0 | F72: =VLOOKUP($A72,'Mat of App'!$B$7:$AP$43,F$66,FALSE) -> 0 | G72: =VLOOKUP($A72,'Mat of App'!$B$7:$AP$43,G$66,FALSE) -> 0 | H72: =VLOOKUP($A72,'Mat of App'!$B$7:$AP$43,H$66,FALSE) -> 0 | I72: =VLOOKUP($A72,'Mat of App'!$B$7:$AP$43,I$66,FALSE) -> 0
A73: LV Sub Medium Non-Domestic | B73: =VLOOKUP($A73,'Mat of App'!$B$7:$AP$43,B$66,FALSE) -> 0 | C73: =VLOOKUP($A73,'Mat of App'!$B$7:$AP$43,C$66,FALSE) -> 0 | D73: =VLOOKUP($A73,'Mat of App'!$B$7:$AP$43,D$66,FALSE) -> 0 | E73: =VLOOKUP($A73,'Mat of App'!$B$7:$AP$43,E$66,FALSE) -> 1 | F73: =VLOOKUP($A73,'Mat of App'!$B$7:$AP$43,F$66,FALSE) -> 0 | G73: =VLOOKUP($A73,'Mat of App'!$B$7:$AP$43,G$66,FALSE) -> 0 | H73: =VLOOKUP($A73,'Mat of App'!$B$7:$AP$43,H$66,FALSE) -> 0 | I73: =VLOOKUP($A73,'Mat of App'!$B$7:$AP$43,I$66,FALSE) -> 0
A74: LV Network Domestic | B74: =VLOOKUP($A74,'Mat of App'!$B$7:$AP$43,B$66,FALSE) -> 0.05 | C74: =VLOOKUP($A74,'Mat of App'!$B$7:$AP$43,C$66,FALSE) -> 0 | D74: =VLOOKUP($A74,'Mat of App'!$B$7:$AP$43,D$66,FALSE) -> 0 | E74: =VLOOKUP($A74,'Mat of App'!$B$7:$AP$43,E$66,FALSE) -> 0 | F74: =VLOOKUP($A74,'Mat of App'!$B$7:$AP$43,F$66,FALSE) -> 0 | G74: =VLOOKUP($A74,'Mat of App'!$B$7:$AP$43,G$66,FALSE) -> 0 | H74: =VLOOKUP($A74,'Mat of App'!$B$7:$AP$43,H$66,FALSE) -> 0 | I74: =VLOOKUP($A74,'Mat of App'!$B$7:$AP$43,I$66,FALSE) -> 0
A75: LV Network Non-Domestic Non-CT | B75: =VLOOKUP($A75,'Mat of App'!$B$7:$AP$43,B$66,FALSE) -> 0 | C75: =VLOOKUP($A75,'Mat of App'!$B$7:$AP$43,C$66,FALSE) -> 1 | D75: =VLOOKUP($A75,'Mat of App'!$B$7:$AP$43,D$66,FALSE) -> 0 | E75: =VLOOKUP($A75,'Mat of App'!$B$7:$AP$43,E$66,FALSE) -> 0 | F75: =VLOOKUP($A75,'Mat of App'!$B$7:$AP$43,F$66,FALSE) -> 0 | G75: =VLOOKUP($A75,'Mat of App'!$B$7:$AP$43,G$66,FALSE) -> 0 | H75: =VLOOKUP($A75,'Mat of App'!$B$7:$AP$43,H$66,FALSE) -> 0 | I75: =VLOOKUP($A75,'Mat of App'!$B$7:$AP$43,I$66,FALSE) -> 0
A76: LV HH Metered | B76: =VLOOKUP($A76,'Mat of App'!$B$7:$AP$43,B$66,FALSE) -> 0 | C76: =VLOOKUP($A76,'Mat of App'!$B$7:$AP$43,C$66,FALSE) -> 0 | D76: =VLOOKUP($A76,'Mat of App'!$B$7:$AP$43,D$66,FALSE) -> 0 | E76: =VLOOKUP($A76,'Mat of App'!$B$7:$AP$43,E$66,FALSE) -> 0 | F76: =VLOOKUP($A76,'Mat of App'!$B$7:$AP$43,F$66,FALSE) -> 1 | G76: =VLOOKUP($A76,'Mat of App'!$B$7:$AP$43,G$66,FALSE) -> 0 | H76: =VLOOKUP($A76,'Mat of App'!$B$7:$AP$43,H$66,FALSE) -> 0 | I76: =VLOOKUP($A76,'Mat of App'!$B$7:$AP$43,I$66,FALSE) -> 0
A77: LV Sub HH Metered | B77: =VLOOKUP($A77,'Mat of App'!$B$7:$AP$43,B$66,FALSE) -> 0 | C77: =VLOOKUP($A77,'Mat of App'!$B$7:$AP$43,C$66,FALSE) -> 0 | D77: =VLOOKUP($A77,'Mat of App'!$B$7:$AP$43,D$66,FALSE) -> 0 | E77: =VLOOKUP($A77,'Mat of App'!$B$7:$AP$43,E$66,FALSE) -> 0 | F77: =VLOOKUP($A77,'Mat of App'!$B$7:$AP$43,F$66,FALSE) -> 0 | G77: =VLOOKUP($A77,'Mat of App'!$B$7:$AP$43,G$66,FALSE) -> 1 | H77: =VLOOKUP($A77,'Mat of App'!$B$7:$AP$43,H$66,FALSE) -> 0 | I77: =VLOOKUP($A77,'Mat of App'!$B$7:$AP$43,I$66,FALSE) -> 0
A78: LV Generation NHH or Aggregate HH | B78: =VLOOKUP($A78,'Mat of App'!$B$7:$AP$43,B$66,FALSE) -> 0 | C78: =VLOOKUP($A78,'Mat of App'!$B$7:$AP$43,C$66,FALSE) -> 0 | D78: =VLOOKUP($A78,'Mat of App'!$B$7:$AP$43,D$66,FALSE) -> 0 | E78: =VLOOKUP($A78,'Mat of App'!$B$7:$AP$43,E$66,FALSE) -> 0 | F78: =VLOOKUP($A78,'Mat of App'!$B$7:$AP$43,F$66,FALSE) -> 0 | G78: =VLOOKUP($A78,'Mat of App'!$B$7:$AP$43,G$66,FALSE) -> 0 | H78: =VLOOKUP($A78,'Mat of App'!$B$7:$AP$43,H$66,FALSE) -> 1 | I78: =VLOOKUP($A78,'Mat of App'!$B$7:$AP$43,I$66,FALSE) -> 0
A79: LV Sub Generation NHH | B79: =VLOOKUP($A79,'Mat of App'!$B$7:$AP$43,B$66,FALSE) -> 0 | C79: =VLOOKUP($A79,'Mat of App'!$B$7:$AP$43,C$66,FALSE) -> 0 | D79: =VLOOKUP($A79,'Mat of App'!$B$7:$AP$43,D$66,FALSE) -> 0 | E79: =VLOOKUP($A79,'Mat of App'!$B$7:$AP$43,E$66,FALSE) -> 0 | F79: =VLOOKUP($A79,'Mat of App'!$B$7:$AP$43,F$66,FALSE) -> 0 | G79: =VLOOKUP($A79,'Mat of App'!$B$7:$AP$43,G$66,FALSE) -> 0 | H79: =VLOOKUP($A79,'Mat of App'!$B$7:$AP$43,H$66,FALSE) -> 1 | I79: =VLOOKUP($A79,'Mat of App'!$B$7:$AP$43,I$66,FALSE) -> 0
A80: LV Generation Intermittent | B80: =VLOOKUP($A80,'Mat of App'!$B$7:$AP$43,B$66,FALSE) -> 0 | C80: =VLOOKUP($A80,'Mat of App'!$B$7:$AP$43,C$66,FALSE) -> 0 | D80: =VLOOKUP($A80,'Mat of App'!$B$7:$AP$43,D$66,FALSE) -> 0 | E80: =VLOOKUP($A80,'Mat of App'!$B$7:$AP$43,E$66,FALSE) -> 0 | F80: =VLOOKUP($A80,'Mat of App'!$B$7:$AP$43,F$66,FALSE) -> 0 | G80: =VLOOKUP($A80,'Mat of App'!$B$7:$AP$43,G$66,FALSE) -> 0 | H80: =VLOOKUP($A80,'Mat of App'!$B$7:$AP$43,H$66,FALSE) -> 1 | I80: =VLOOKUP($A80,'Mat of App'!$B$7:$AP$43,I$66,FALSE) -> 0
A81: LV Generation Intermittent no RP charge | B81: =VLOOKUP($A81,'Mat of App'!$B$7:$AP$43,B$66,FALSE) -> 0 | C81: =VLOOKUP($A81,'Mat of App'!$B$7:$AP$43,C$66,FALSE) -> 0 | D81: =VLOOKUP($A81,'Mat of App'!$B$7:$AP$43,D$66,FALSE) -> 0 | E81: =VLOOKUP($A81,'Mat of App'!$B$7:$AP$43,E$66,FALSE) -> 0 | F81: =VLOOKUP($A81,'Mat of App'!$B$7:$AP$43,F$66,FALSE) -> 0 | G81: =VLOOKUP($A81,'Mat of App'!$B$7:$AP$43,G$66,FALSE) -> 0 | H81: =VLOOKUP($A81,'Mat of App'!$B$7:$AP$43,H$66,FALSE) -> 1 | I81: =VLOOKUP($A81,'Mat of App'!$B$7:$AP$43,I$66,FALSE) -> 0
A82: LV Generation Non-Intermittent | B82: =VLOOKUP($A82,'Mat of App'!$B$7:$AP$43,B$66,FALSE) -> 0 | C82: =VLOOKUP($A82,'Mat of App'!$B$7:$AP$43,C$66,FALSE) -> 0 | D82: =VLOOKUP($A82,'Mat of App'!$B$7:$AP$43,D$66,FALSE) -> 0 | E82: =VLOOKUP($A82,'Mat of App'!$B$7:$AP$43,E$66,FALSE) -> 0 | F82: =VLOOKUP($A82,'Mat of App'!$B$7:$AP$43,F$66,FALSE) -> 0 | G82: =VLOOKUP($A82,'Mat of App'!$B$7:$AP$43,G$66,FALSE) -> 0 | H82: =VLOOKUP($A82,'Mat of App'!$B$7:$AP$43,H$66,FALSE) -> 0 | I82: =VLOOKUP($A82,'Mat of App'!$B$7:$AP$43,I$66,FALSE) -> 0
A83: LV Generation Non-Intermittent no RP charge | B83: =VLOOKUP($A83,'Mat of App'!$B$7:$AP$43,B$66,FALSE) -> 0 | C83: =VLOOKUP($A83,'Mat of App'!$B$7:$AP$43,C$66,FALSE) -> 0 | D83: =VLOOKUP($A83,'Mat of App'!$B$7:$AP$43,D$66,FALSE) -> 0 | E83: =VLOOKUP($A83,'Mat of App'!$B$7:$AP$43,E$66,FALSE) -> 0 | F83: =VLOOKUP($A83,'Mat of App'!$B$7:$AP$43,F$66,FALSE) -> 0 | G83: =VLOOKUP($A83,'Mat of App'!$B$7:$AP$43,G$66,FALSE) -> 0 | H83: =VLOOKUP($A83,'Mat of App'!$B$7:$AP$43,H$66,FALSE) -> 0 | I83: =VLOOKUP($A83,'Mat of App'!$B$7:$AP$43,I$66,FALSE) -> 0
A84: LV Sub Generation Intermittent | B84: =VLOOKUP($A84,'Mat of App'!$B$7:$AP$43,B$66,FALSE) -> 0 | C84: =VLOOKUP($A84,'Mat of App'!$B$7:$AP$43,C$66,FALSE) -> 0 | D84: =VLOOKUP($A84,'Mat of App'!$B$7:$AP$43,D$66,FALSE) -> 0 | E84: =VLOOKUP($A84,'Mat of App'!$B$7:$AP$43,E$66,FALSE) -> 0 | F84: =VLOOKUP($A84,'Mat of App'!$B$7:$AP$43,F$66,FALSE) -> 0 | G84: =VLOOKUP($A84,'Mat of App'!$B$7:$AP$43,G$66,FALSE) -> 0 | H84: =VLOOKUP($A84,'Mat of App'!$B$7:$AP$43,H$66,FALSE) -> 0 | I84: =VLOOKUP($A84,'Mat of App'!$B$7:$AP$43,I$66,FALSE) -> 0
A85: LV Sub Generation Intermittent no RP charge | B85: =VLOOKUP($A85,'Mat of App'!$B$7:$AP$43,B$66,FALSE) -> 0 | C85: =VLOOKUP($A85,'Mat of App'!$B$7:$AP$43,C$66,FALSE) -> 0 | D85: =VLOOKUP($A85,'Mat of App'!$B$7:$AP$43,D$66,FALSE) -> 0 | E85: =VLOOKUP($A85,'Mat of App'!$B$7:$AP$43,E$66,FALSE) -> 0 | F85: =VLOOKUP($A85,'Mat of App'!$B$7:$AP$43,F$66,FALSE) -> 0 | G85: =VLOOKUP($A85,'Mat of App'!$B$7:$AP$43,G$66,FALSE) -> 0 | H85: =VLOOKUP($A85,'Mat of App'!$B$7:$AP$43,H$66,FALSE) -> 0 | I85: =VLOOKUP($A85,'Mat of App'!$B$7:$AP$43,I$66,FALSE) -> 0
A86: LV Sub Generation Non-Intermittent | B86: =VLOOKUP($A86,'Mat of App'!$B$7:$AP$43,B$66,FALSE) -> 0 | C86: =VLOOKUP($A86,'Mat of App'!$B$7:$AP$43,C$66,FALSE) -> 0 | D86: =VLOOKUP($A86,'Mat of App'!$B$7:$AP$43,D$66,FALSE) -> 0 | E86: =VLOOKUP($A86,'Mat of App'!$B$7:$AP$43,E$66,FALSE) -> 0 | F86: =VLOOKUP($A86,'Mat of App'!$B$7:$AP$43,F$66,FALSE) -> 0 | G86: =VLOOKUP($A86,'Mat of App'!$B$7:$AP$43,G$66,FALSE) -> 0 | H86: =VLOOKUP($A86,'Mat of App'!$B$7:$AP$43,H$66,FALSE) -> 0 | I86: =VLOOKUP($A86,'Mat of App'!$B$7:$AP$43,I$66,FALSE) -> 0
A87: LV Sub Generation Non-Intermittent no RP charge | B87: =VLOOKUP($A87,'Mat of App'!$B$7:$AP$43,B$66,FALSE) -> 0 | C87: =VLOOKUP($A87,'Mat of App'!$B$7:$AP$43,C$66,FALSE) -> 0 | D87: =VLOOKUP($A87,'Mat of App'!$B$7:$AP$43,D$66,FALSE) -> 0 | E87: =VLOOKUP($A87,'Mat of App'!$B$7:$AP$43,E$66,FALSE) -> 0 | F87: =VLOOKUP($A87,'Mat of App'!$B$7:$AP$43,F$66,FALSE) -> 0 | G87: =VLOOKUP($A87,'Mat of App'!$B$7:$AP$43,G$66,FALSE) -> 0 | H87: =VLOOKUP($A87,'Mat of App'!$B$7:$AP$43,H$66,FALSE) -> 0 | I87: =VLOOKUP($A87,'Mat of App'!$B$7:$AP$43,I$66,FALSE) -> 0
A89: 1026. Matrix of applicability of LV service models to unmetered tariffs
A91: Source: service models
A92: Proportion of service model involved in connecting load of 1 MWh/year
B93: LV service model 1 | C93: LV service model 2 | D93: LV service model 3 | E93: LV service model 4 | F93: LV service model 5 | G93: LV service model 6 | H93: LV service model 7 | I93: LV service model 8
A94: All LV unmetered tariffs | B94: =VLOOKUP($A94,'Mat of App'!$B$7:$AP$43,B$66,FALSE) -> 0 | C94: =VLOOKUP($A94,'Mat of App'!$B$7:$AP$43,C$66,FALSE) -> 0 | D94: =VLOOKUP($A94,'Mat of App'!$B$7:$AP$43,D$66,FALSE) -> 0 | E94: =VLOOKUP($A94,'Mat of App'!$B$7:$AP$43,E$66,FALSE) -> 0 | F94: =VLOOKUP($A94,'Mat of App'!$B$7:$AP$43,F$66,FALSE) -> 0 | G94: =VLOOKUP($A94,'Mat of App'!$B$7:$AP$43,G$66,FALSE) -> 0 | H94: =VLOOKUP($A94,'Mat of App'!$B$7:$AP$43,H$66,FALSE) -> 0 | I94: =VLOOKUP($A94,'Mat of App'!$B$7:$AP$43,I$66,FALSE) -> 0.488
A96: 1028. Matrix of applicability of HV service models to tariffs with fixed charges
B97: 7 | C97: =B97+1 -> 8 | D97: =C97+1 -> 9 | E97: =D97+1 -> 10 | F97: =E97+1 -> 11
B98: HV service model 1 | C98: HV service model 2 | D98: HV service model 3 | E98: HV service model 4 | F98: HV service model 5
A99: HV Medium Non-Domestic | B99: =VLOOKUP($A99,'Mat of App'!$B$7:$AP$43,B$97,FALSE) -> 1 | C99: =VLOOKUP($A99,'Mat of App'!$B$7:$AP$43,C$97,FALSE) -> 0 | D99: =VLOOKUP($A99,'Mat of App'!$B$7:$AP$43,D$97,FALSE) -> 0 | E99: =VLOOKUP($A99,'Mat of App'!$B$7:$AP$43,E$97,FALSE) -> 0 | F99: =VLOOKUP($A99,'Mat of App'!$B$7:$AP$43,F$97,FALSE) -> 0
A100: HV HH Metered | B100: =VLOOKUP($A100,'Mat of App'!$B$7:$AP$43,B$97,FALSE) -> 1 | C100: =VLOOKUP($A100,'Mat of App'!$B$7:$AP$43,C$97,FALSE) -> 0 | D100: =VLOOKUP($A100,'Mat of App'!$B$7:$AP$43,D$97,FALSE) -> 0 | E100: =VLOOKUP($A100,'Mat of App'!$B$7:$AP$43,E$97,FALSE) -> 0 | F100: =VLOOKUP($A100,'Mat of App'!$B$7:$AP$43,F$97,FALSE) -> 0
A101: HV Generation Intermittent | B101: =VLOOKUP($A101,'Mat of App'!$B$7:$AP$43,B$97,FALSE) -> 0 | C101: =VLOOKUP($A101,'Mat of App'!$B$7:$AP$43,C$97,FALSE) -> 1 | D101: =VLOOKUP($A101,'Mat of App'!$B$7:$AP$43,D$97,FALSE) -> 0 | E101: =VLOOKUP($A101,'Mat of App'!$B$7:$AP$43,E$97,FALSE) -> 0 | F101: =VLOOKUP($A101,'Mat of App'!$B$7:$AP$43,F$97,FALSE) -> 0
A102: HV Generation Intermittent no RP charge | B102: =VLOOKUP($A102,'Mat of App'!$B$7:$AP$43,B$97,FALSE) -> 0 | C102: =VLOOKUP($A102,'Mat of App'!$B$7:$AP$43,C$97,FALSE) -> 1 | D102: =VLOOKUP($A102,'Mat of App'!$B$7:$AP$43,D$97,FALSE) -> 0 | E102: =VLOOKUP($A102,'Mat of App'!$B$7:$AP$43,E$97,FALSE) -> 0 | F102: =VLOOKUP($A102,'Mat of App'!$B$7:$AP$43,F$97,FALSE) -> 0
A103: HV Generation Non-Intermittent | B103: =VLOOKUP($A103,'Mat of App'!$B$7:$AP$43,B$97,FALSE) -> 0 | C103: =VLOOKUP($A103,'Mat of App'!$B$7:$AP$43,C$97,FALSE) -> 1 | D103: =VLOOKUP($A103,'Mat of App'!$B$7:$AP$43,D$97,FALSE) -> 0 | E103: =VLOOKUP($A103,'Mat of App'!$B$7:$AP$43,E$97,FALSE) -> 0 | F103: =VLOOKUP($A103,'Mat of App'!$B$7:$AP$43,F$97,FALSE) -> 0
A104: HV Generation Non-Intermittent no RP charge | B104: =VLOOKUP($A104,'Mat of App'!$B$7:$AP$43,B$97,FALSE) -> 0 | C104: =VLOOKUP($A104,'Mat of App'!$B$7:$AP$43,C$97,FALSE) -> 1 | D104: =VLOOKUP($A104,'Mat of App'!$B$7:$AP$43,D$97,FALSE) -> 0 | E104: =VLOOKUP($A104,'Mat of App'!$B$7:$AP$43,E$97,FALSE) -> 0 | F104: =VLOOKUP($A104,'Mat of App'!$B$7:$AP$43,F$97,FALSE) -> 0
A106: 1032. Loss adjustment factors to transmission
A108: Source: losses model or loss adjustment factors at time of system peak.
B109: 132kV | C109: 132kV/EHV | D109: EHV | E109: EHV/HV | F109: HV | G109: HV/LV | H109: LV circuits
A110: Loss adjustment factor | B110: =VLOOKUP(Vlookup!B69,'CDCM Forecast Data'!$A$14:$I$271,6,FALSE) -> 1.002 | C110: =VLOOKUP(Vlookup!C69,'CDCM Forecast Data'!$A$14:$I$271,6,FALSE) -> 1.007 | D110: =VLOOKUP(Vlookup!D69,'CDCM Forecast Data'!$A$14:$I$271,6,FALSE) -> 1.016 | E110: =VLOOKUP(Vlookup!E69,'CDCM Forecast Data'!$A$14:$I$271,6,FALSE) -> 1.023 | F110: =VLOOKUP(Vlookup!F69,'CDCM Forecast Data'!$A$14:$I$271,6,FALSE) -> 1.051 | G110: =VLOOKUP(Vlookup!G69,'CDCM Forecast Data'!$A$14:$I$271,6,FALSE) -> 1.07 | H110: =VLOOKUP(Vlookup!H69,'CDCM Forecast Data'!$A$14:$I$271,6,FALSE) -> 1.087
A112: 1037. Embedded network (LDNO) discounts
A114: Source: separate price control disaggregation model.
B115: No discount | C115: LDNO LV: LV user | D115: LDNO HV: LV user | E115: LDNO HV: LV sub user | F115: LDNO HV: HV user
A116: LDNO discount | C116: =VLOOKUP(Vlookup!C75,'CDCM Forecast Data'!$A$14:$I$271,6,FALSE) -> 0.3329917567 | D116: =VLOOKUP(Vlookup!D75,'CDCM Forecast Data'!$A$14:$I$271,6,FALSE) -> 0.5129546512 | E116: =VLOOKUP(Vlookup!E75,'CDCM Forecast Data'!$A$14:$I$271,6,FALSE) -> 0.2532516803 | F116: =VLOOKUP(Vlookup!F75,'CDCM Forecast Data'!$A$14:$I$271,6,FALSE) -> 0.1433961861
A118: 1041. Load profile data for demand users
A120: Source: load data analysis.
B121: Coincidence factor | C121: Load factor
A122: Domestic Unrestricted | B122: =VLOOKUP(Vlookup!B81,'CDCM Forecast Data'!$A$14:$I$271,6,FALSE) -> 0.924290325 | C122: =VLOOKUP(Vlookup!C81,'CDCM Forecast Data'!$A$14:$I$271,6,FALSE) -> 0.4311592511
A123: Domestic Two Rate | B123: =VLOOKUP(Vlookup!B82,'CDCM Forecast Data'!$A$14:$I$271,6,FALSE) -> 0.4479462839 | C123: =VLOOKUP(Vlookup!C82,'CDCM Forecast Data'!$A$14:$I$271,6,FALSE) -> 0.3074209847
A124: Domestic Off Peak (related MPAN) | C124: =VLOOKUP(Vlookup!C83,'CDCM Forecast Data'!$A$14:$I$271,6,FALSE) -> 0.1798757717
A125: Small Non Domestic Unrestricted | B125: =VLOOKUP(Vlookup!B84,'CDCM Forecast Data'!$A$14:$I$271,6,FALSE) -> 0.6367467464 | C125: =VLOOKUP(Vlookup!C84,'CDCM Forecast Data'!$A$14:$I$271,6,FALSE) -> 0.3976203328
A126: Small Non Domestic Two Rate | B126: =VLOOKUP(Vlookup!B85,'CDCM Forecast Data'!$A$14:$I$271,6,FALSE) -> 0.749844377 | C126: =VLOOKUP(Vlookup!C85,'CDCM Forecast Data'!$A$14:$I$271,6,FALSE) -> 0.5330198646
A127: Small Non Domestic Off Peak (related MPAN) | C127: =VLOOKUP(Vlookup!C86,'CDCM Forecast Data'!$A$14:$I$271,6,FALSE) -> 0.2128151592
A128: LV Medium Non-Domestic | B128: =VLOOKUP(Vlookup!B87,'CDCM Forecast Data'!$A$14:$I$271,6,FALSE) -> 0.8260462352 | C128: =VLOOKUP(Vlookup!C87,'CDCM Forecast Data'!$A$14:$I$271,6,FALSE) -> 0.5355232849
A129: LV Sub Medium Non-Domestic | B129: =VLOOKUP(Vlookup!B88,'CDCM Forecast Data'!$A$14:$I$271,6,FALSE) -> 0.8260462352 | C129: =VLOOKUP(Vlookup!C88,'CDCM Forecast Data'!$A$14:$I$271,6,FALSE) -> 0.5355232849
A130: HV Medium Non-Domestic | B130: =VLOOKUP(Vlookup!B89,'CDCM Forecast Data'!$A$14:$I$271,6,FALSE) -> 0.6841202482 | C130: =VLOOKUP(Vlookup!C89,'CDCM Forecast Data'!$A$14:$I$271,6,FALSE) -> 0.479986234
A131: LV Network Domestic | B131: =VLOOKUP(Vlookup!B90,'CDCM Forecast Data'!$A$14:$I$271,6,FALSE) -> 0.8603133383 | C131: =VLOOKUP(Vlookup!C90,'CDCM Forecast Data'!$A$14:$I$271,6,FALSE) -> 0.4134633694
A132: LV Network Non-Domestic Non-CT | B132: =VLOOKUP(Vlookup!B91,'CDCM Forecast Data'!$A$14:$I$271,6,FALSE) -> 0.6589269349 | C132: =VLOOKUP(Vlookup!C91,'CDCM Forecast Data'!$A$14:$I$271,6,FALSE) -> 0.4230843118
A133: LV HH Metered | B133: =VLOOKUP(Vlookup!B92,'CDCM Forecast Data'!$A$14:$I$271,6,FALSE) -> 0.7544906485 | C133: =VLOOKUP(Vlookup!C92,'CDCM Forecast Data'!$A$14:$I$271,6,FALSE) -> 0.5362840031
A134: LV Sub HH Metered | B134: =VLOOKUP(Vlookup!B93,'CDCM Forecast Data'!$A$14:$I$271,6,FALSE) -> 0.7877409445 | C134: =VLOOKUP(Vlookup!C93,'CDCM Forecast Data'!$A$14:$I$271,6,FALSE) -> 0.5181753998
A135: HV HH Metered | B135: =VLOOKUP(Vlookup!B94,'CDCM Forecast Data'!$A$14:$I$271,6,FALSE) -> 0.7715753997 | C135: =VLOOKUP(Vlookup!C94,'CDCM Forecast Data'!$A$14:$I$271,6,FALSE) -> 0.6647478958
A136: NHH UMS category A | B136: =VLOOKUP(Vlookup!B95,'CDCM Forecast Data'!$A$14:$I$271,6,FALSE) -> 1 | C136: =VLOOKUP(Vlookup!C95,'CDCM Forecast Data'!$A$14:$I$271,6,FALSE) -> 1
A137: NHH UMS category B | B137: =VLOOKUP(Vlookup!B96,'CDCM Forecast Data'!$A$14:$I$271,6,FALSE) -> 0.9930142079 | C137: =VLOOKUP(Vlookup!C96,'CDCM Forecast Data'!$A$14:$I$271,6,FALSE) -> 0.46831761
A138: NHH UMS category C | B138: =VLOOKUP(Vlookup!B97,'CDCM Forecast Data'!$A$14:$I$271,6,FALSE) -> 0.9521347884 | C138: =VLOOKUP(Vlookup!C97,'CDCM Forecast Data'!$A$14:$I$271,6,FALSE) -> 0.2508349656
A139: NHH UMS category D | B139: =VLOOKUP(Vlookup!B98,'CDCM Forecast Data'!$A$14:$I$271,6,FALSE) -> 0.001286764706 | C139: =VLOOKUP(Vlookup!C98,'CDCM Forecast Data'!$A$14:$I$271,6,FALSE) -> 0.5162235966
A140: LV UMS (Pseudo HH Metered) | B140: =VLOOKUP(Vlookup!B99,'CDCM Forecast Data'!$A$14:$I$271,6,FALSE) -> 0.93763764 | C140: =VLOOKUP(Vlookup!C99,'CDCM Forecast Data'!$A$14:$I$271,6,FALSE) -> 0.4686694612
A142: 1053. Volume forecasts for the charging year
B143: 11 | C143: 12 | D143: 13 | E143: 14 | F143: 15 | G143: 16 | H143: 17
A144: Source: forecast.
A145: Please include MPAN counts for tariffs with no fixed charge (e.g. off-peak tariffs),
A146: but exclude MPANs on tariffs with a fixed charge that are not subject to a fixed charge due to a site grouping arrangement.
B147: Rate 1 units (MWh) | C147: Rate 2 units (MWh) | D147: Rate 3 units (MWh) | E147: MPANs | F147: Import capacity (kVA) | G147: Exceeded capacity (kVA) | H147: Reactive power units (MVArh)
A148: > Domestic Unrestricted | B148: =VLOOKUP(Vlookup!$B107,'CDCM Volume Forecasts'!$A$28:$AL$136,B$143,FALSE) -> 0 | C148: =VLOOKUP(Vlookup!$B107,'CDCM Volume Forecasts'!$A$28:$AL$136,C$143,FALSE) -> 0 | D148: =VLOOKUP(Vlookup!$B107,'CDCM Volume Forecasts'!$A$28:$AL$136,D$143,FALSE) -> 0 | E148: =VLOOKUP(Vlookup!$B107,'CDCM Volume Forecasts'!$A$28:$AL$136,E$143,FALSE) -> 0 | F148: =VLOOKUP(Vlookup!$B107,'CDCM Volume Forecasts'!$A$28:$AL$136,F$143,FALSE) -> 0 | H148: =VLOOKUP(Vlookup!$B107,'CDCM Volume Forecasts'!$A$28:$AL$136,G$143,FALSE) -> 0
A149: Domestic Unrestricted | B149: =VLOOKUP(Vlookup!$B108,'CDCM Volume Forecasts'!$A$28:$AL$136,B$143,FALSE) -> 7033994.4 | E149: =VLOOKUP(Vlookup!$B108,'CDCM Volume Forecasts'!$A$28:$AL$136,E$143,FALSE) -> 1997624.996
A150: LDNO LV: Domestic Unrestricted | B150: =VLOOKUP(Vlookup!$B109,'CDCM Volume Forecasts'!$A$28:$AL$136,B$143,FALSE) -> 45904.23547 | E150: =VLOOKUP(Vlookup!$B109,'CDCM Volume Forecasts'!$A$28:$AL$136,E$143,FALSE) -> 15951.34727
A151: LDNO HV: Domestic Unrestricted | B151: =VLOOKUP(Vlookup!$B110,'CDCM Volume Forecasts'!$A$28:$AL$136,B$143,FALSE) -> 85598.42734 | E151: =VLOOKUP(Vlookup!$B110,'CDCM Volume Forecasts'!$A$28:$AL$136,E$143,FALSE) -> 29809.59942
A152: > Domestic Two Rate
A153: Domestic Two Rate | B153: =VLOOKUP(Vlookup!$B112,'CDCM Volume Forecasts'!$A$28:$AL$136,B$143,FALSE) -> 856868.8814 | C153: =VLOOKUP(Vlookup!$B112,'CDCM Volume Forecasts'!$A$28:$AL$136,C$143,FALSE) -> 637095.4706 | E153: =VLOOKUP(Vlookup!$B112,'CDCM Volume Forecasts'!$A$28:$AL$136,E$143,FALSE) -> 280164.5453
A154: LDNO LV: Domestic Two Rate | B154: =VLOOKUP(Vlookup!$B113,'CDCM Volume Forecasts'!$A$28:$AL$136,B$143,FALSE) -> 2842.04014 | C154: =VLOOKUP(Vlookup!$B113,'CDCM Volume Forecasts'!$A$28:$AL$136,C$143,FALSE) -> 957.6069374 | E154: =VLOOKUP(Vlookup!$B113,'CDCM Volume Forecasts'!$A$28:$AL$136,E$143,FALSE) -> 979.4869911
A155: LDNO HV: Domestic Two Rate | B155: =VLOOKUP(Vlookup!$B114,'CDCM Volume Forecasts'!$A$28:$AL$136,B$143,FALSE) -> 4257.851945 | C155: =VLOOKUP(Vlookup!$B114,'CDCM Volume Forecasts'!$A$28:$AL$136,C$143,FALSE) -> 1631.694081 | E155: =VLOOKUP(Vlookup!$B114,'CDCM Volume Forecasts'!$A$28:$AL$136,E$143,FALSE) -> 1369.862435
A156: > Domestic Off Peak (related MPAN)
A157: Domestic Off Peak (related MPAN) | B157: =VLOOKUP(Vlookup!$B116,'CDCM Volume Forecasts'!$A$28:$AL$136,B$143,FALSE) -> 22924.72439 | E157: =VLOOKUP(Vlookup!$B116,'CDCM Volume Forecasts'!$A$28:$AL$136,E$143,FALSE) -> 9842
A158: LDNO LV: Domestic Off Peak (related MPAN) | B158: =VLOOKUP(Vlookup!$B117,'CDCM Volume Forecasts'!$A$28:$AL$136,B$143,FALSE) -> 0 | E158: =VLOOKUP(Vlookup!$B117,'CDCM Volume Forecasts'!$A$28:$AL$136,E$143,FALSE) -> 0
A159: LDNO HV: Domestic Off Peak (related MPAN) | B159: =VLOOKUP(Vlookup!$B118,'CDCM Volume Forecasts'!$A$28:$AL$136,B$143,FALSE) -> 0 | E159: =VLOOKUP(Vlookup!$B118,'CDCM Volume Forecasts'!$A$28:$AL$136,E$143,FALSE) -> 0
A160: > Small Non Domestic Unrestricted
A161: Small Non Domestic Unrestricted | B161: =VLOOKUP(Vlookup!$B120,'CDCM Volume Forecasts'!$A$28:$AL$136,B$143,FALSE) -> 1595722.248 | E161: =VLOOKUP(Vlookup!$B120,'CDCM Volume Forecasts'!$A$28:$AL$136,E$143,FALSE) -> 134131.8698
A162: LDNO LV: Small Non Domestic Unrestricted | B162: =VLOOKUP(Vlookup!$B121,'CDCM Volume Forecasts'!$A$28:$AL$136,B$143,FALSE) -> 2554.765909 | E162: =VLOOKUP(Vlookup!$B121,'CDCM Volume Forecasts'!$A$28:$AL$136,E$143,FALSE) -> 314.3652103
A163: LDNO HV: Small Non Domestic Unrestricted | B163: =VLOOKUP(Vlookup!$B122,'CDCM Volume Forecasts'!$A$28:$AL$136,B$143,FALSE) -> 16791.71137 | E163: =VLOOKUP(Vlookup!$B122,'CDCM Volume Forecasts'!$A$28:$AL$136,E$143,FALSE) -> 1122.055919
A164: > Small Non Domestic Two Rate
A165: Small Non Domestic Two Rate | B165: =VLOOKUP(Vlookup!$B124,'CDCM Volume Forecasts'!$A$28:$AL$136,B$143,FALSE) -> 534582.056 | C165: =VLOOKUP(Vlookup!$B124,'CDCM Volume Forecasts'!$A$28:$AL$136,C$143,FALSE) -> 204605.9085 | E165: =VLOOKUP(Vlookup!$B124,'CDCM Volume Forecasts'!$A$28:$AL$136,E$143,FALSE) -> 36566.2175
A166: LDNO LV: Small Non Domestic Two Rate | B166: =VLOOKUP(Vlookup!$B125,'CDCM Volume Forecasts'!$A$28:$AL$136,B$143,FALSE) -> 711.0320014 | C166: =VLOOKUP(Vlookup!$B125,'CDCM Volume Forecasts'!$A$28:$AL$136,C$143,FALSE) -> 227.9927185 | E166: =VLOOKUP(Vlookup!$B125,'CDCM Volume Forecasts'!$A$28:$AL$136,E$143,FALSE) -> 15.91368493
A167: LDNO HV: Small Non Domestic Two Rate | B167: =VLOOKUP(Vlookup!$B126,'CDCM Volume Forecasts'!$A$28:$AL$136,B$143,FALSE) -> 3255.513566 | C167: =VLOOKUP(Vlookup!$B126,'CDCM Volume Forecasts'!$A$28:$AL$136,C$143,FALSE) -> 967.1046856 | E167: =VLOOKUP(Vlookup!$B126,'CDCM Volume Forecasts'!$A$28:$AL$136,E$143,FALSE) -> 81.95073082
A168: > Small Non Domestic Off Peak (related MPAN)
A169: Small Non Domestic Off Peak (related MPAN) | B169: =VLOOKUP(Vlookup!$B128,'CDCM Volume Forecasts'!$A$28:$AL$136,B$143,FALSE) -> 4352.980773 | E169: =VLOOKUP(Vlookup!$B128,'CDCM Volume Forecasts'!$A$28:$AL$136,E$143,FALSE) -> 864
A170: LDNO LV: Small Non Domestic Off Peak (related MPAN) | B170: =VLOOKUP(Vlookup!$B129,'CDCM Volume Forecasts'!$A$28:$AL$136,B$143,FALSE) -> 0 | E170: =VLOOKUP(Vlookup!$B129,'CDCM Volume Forecasts'!$A$28:$AL$136,E$143,FALSE) -> 0
A171: LDNO HV: Small Non Domestic Off Peak (related MPAN) | B171: =VLOOKUP(Vlookup!$B130,'CDCM Volume Forecasts'!$A$28:$AL$136,B$143,FALSE) -> 0 | E171: =VLOOKUP(Vlookup!$B130,'CDCM Volume Forecasts'!$A$28:$AL$136,E$143,FALSE) -> 0
A172: > LV Medium Non-Domestic
A173: LV Medium Non-Domestic | B173: =VLOOKUP(Vlookup!$B132,'CDCM Volume Forecasts'!$A$28:$AL$136,B$143,FALSE) -> 0.0008021560811 | C173: =VLOOKUP(Vlookup!$B132,'CDCM Volume Forecasts'!$A$28:$AL$136,C$143,FALSE) -> 0.0001978439189 | E173: =VLOOKUP(Vlookup!$B132,'CDCM Volume Forecasts'!$A$28:$AL$136,E$143,FALSE) -> 1.204888627e-05
A174: LDNO LV: LV Medium Non-Domestic | B174: =VLOOKUP(Vlookup!$B133,'CDCM Volume Forecasts'!$A$28:$AL$136,B$143,FALSE) -> 0 | C174: =VLOOKUP(Vlookup!$B133,'CDCM Volume Forecasts'!$A$28:$AL$136,C$143,FALSE) -> 0 | E174: =VLOOKUP(Vlookup!$B133,'CDCM Volume Forecasts'!$A$28:$AL$136,E$143,FALSE) -> 0
A175: LDNO HV: LV Medium Non-Domestic | B175: =VLOOKUP(Vlookup!$B134,'CDCM Volume Forecasts'!$A$28:$AL$136,B$143,FALSE) -> 0 | C175: =VLOOKUP(Vlookup!$B134,'CDCM Volume Forecasts'!$A$28:$AL$136,C$143,FALSE) -> 0 | E175: =VLOOKUP(Vlookup!$B134,'CDCM Volume Forecasts'!$A$28:$AL$136,E$143,FALSE) -> 0
A176: > LV Sub Medium Non-Domestic
A177: LV Sub Medium Non-Domestic | B177: =VLOOKUP(Vlookup!$B136,'CDCM Volume Forecasts'!$A$28:$AL$136,B$143,FALSE) -> 0.0007604348072 | C177: =VLOOKUP(Vlookup!$B136,'CDCM Volume Forecasts'!$A$28:$AL$136,C$143,FALSE) -> 0.0002395651928 | E177: =VLOOKUP(Vlookup!$B136,'CDCM Volume Forecasts'!$A$28:$AL$136,E$143,FALSE) -> 1.253614406e-05
A178: > HV Medium Non-Domestic
A179: HV Medium Non-Domestic | B179: =VLOOKUP(Vlookup!$B138,'CDCM Volume Forecasts'!$A$28:$AL$136,B$143,FALSE) -> 0.0007934541655 | C179: =VLOOKUP(Vlookup!$B138,'CDCM Volume Forecasts'!$A$28:$AL$136,C$143,FALSE) -> 0.0002065458345 | E179: =VLOOKUP(Vlookup!$B138,'CDCM Volume Forecasts'!$A$28:$AL$136,E$143,FALSE) -> 6.152863457e-06
A180: > LV Network Domestic
A181: LV Network Domestic | B181: =VLOOKUP(Vlookup!$B140,'CDCM Volume Forecasts'!$A$28:$AL$136,B$143,FALSE) -> 0 | C181: =VLOOKUP(Vlookup!$B140,'CDCM Volume Forecasts'!$A$28:$AL$136,C$143,FALSE) -> 0 | D181: =VLOOKUP(Vlookup!$B140,'CDCM Volume Forecasts'!$A$28:$AL$136,D$143,FALSE) -> 0 | E181: =VLOOKUP(Vlookup!$B140,'CDCM Volume Forecasts'!$A$28:$AL$136,E$143,FALSE) -> 0
A182: LDNO LV: LV Network Domestic | B182: =VLOOKUP(Vlookup!$B141,'CDCM Volume Forecasts'!$A$28:$AL$136,B$143,FALSE) -> 0 | C182: =VLOOKUP(Vlookup!$B141,'CDCM Volume Forecasts'!$A$28:$AL$136,C$143,FALSE) -> 0 | D182: =VLOOKUP(Vlookup!$B141,'CDCM Volume Forecasts'!$A$28:$AL$136,D$143,FALSE) -> 0 | E182: =VLOOKUP(Vlookup!$B141,'CDCM Volume Forecasts'!$A$28:$AL$136,E$143,FALSE) -> 0
A183: LDNO HV: LV Network Domestic | B183: =VLOOKUP(Vlookup!$B142,'CDCM Volume Forecasts'!$A$28:$AL$136,B$143,FALSE) -> 0 | C183: =VLOOKUP(Vlookup!$B142,'CDCM Volume Forecasts'!$A$28:$AL$136,C$143,FALSE) -> 0 | D183: =VLOOKUP(Vlookup!$B142,'CDCM Volume Forecasts'!$A$28:$AL$136,D$143,FALSE) -> 0 | E183: =VLOOKUP(Vlookup!$B142,'CDCM Volume Forecasts'!$A$28:$AL$136,E$143,FALSE) -> 0
A184: > LV Network Non-Domestic Non-CT
A185: LV Network Non-Domestic Non-CT | B185: =VLOOKUP(Vlookup!$B144,'CDCM Volume Forecasts'!$A$28:$AL$136,B$143,FALSE) -> 65468.6899 | C185: =VLOOKUP(Vlookup!$B144,'CDCM Volume Forecasts'!$A$28:$AL$136,C$143,FALSE) -> 249307.5613 | D185: =VLOOKUP(Vlookup!$B144,'CDCM Volume Forecasts'!$A$28:$AL$136,D$143,FALSE) -> 277392.908 | E185: =VLOOKUP(Vlookup!$B144,'CDCM Volume Forecasts'!$A$28:$AL$136,E$143,FALSE) -> 9933.790145
A186: LDNO LV: LV Network Non-Domestic Non-CT | B186: =VLOOKUP(Vlookup!$B145,'CDCM Volume Forecasts'!$A$28:$AL$136,B$143,FALSE) -> 88.13739864 | C186: =VLOOKUP(Vlookup!$B145,'CDCM Volume Forecasts'!$A$28:$AL$136,C$143,FALSE) -> 336.660181 | D186: =VLOOKUP(Vlookup!$B145,'CDCM Volume Forecasts'!$A$28:$AL$136,D$143,FALSE) -> 420.4146581 | E186: =VLOOKUP(Vlookup!$B145,'CDCM Volume Forecasts'!$A$28:$AL$136,E$143,FALSE) -> 16.99439951
A187: LDNO HV: LV Network Non-Domestic Non-CT | B187: =VLOOKUP(Vlookup!$B146,'CDCM Volume Forecasts'!$A$28:$AL$136,B$143,FALSE) -> 781.199553 | C187: =VLOOKUP(Vlookup!$B146,'CDCM Volume Forecasts'!$A$28:$AL$136,C$143,FALSE) -> 2964.670605 | D187: =VLOOKUP(Vlookup!$B146,'CDCM Volume Forecasts'!$A$28:$AL$136,D$143,FALSE) -> 3270.356125 | E187: =VLOOKUP(Vlookup!$B146,'CDCM Volume Forecasts'!$A$28:$AL$136,E$143,FALSE) -> 106.4677634
A188: > LV HH Metered
A189: LV HH Metered | B189: =VLOOKUP(Vlookup!$B148,'CDCM Volume Forecasts'!$A$28:$AL$136,B$143,FALSE) -> 288136.9236 | C189: =VLOOKUP(Vlookup!$B148,'CDCM Volume Forecasts'!$A$28:$AL$136,C$143,FALSE) -> 1133767.484 | D189: =VLOOKUP(Vlookup!$B148,'CDCM Volume Forecasts'!$A$28:$AL$136,D$143,FALSE) -> 1217827.25 | E189: =VLOOKUP(Vlookup!$B148,'CDCM Volume Forecasts'!$A$28:$AL$136,E$143,FALSE) -> 13739.24605 | F189: =VLOOKUP(Vlookup!$B148,'CDCM Volume Forecasts'!$A$28:$AL$136,F$143,FALSE) -> 1443798.065 | G189: =VLOOKUP(Vlookup!$B148,'CDCM Volume Forecasts'!$A$28:$AL$136,G$143,FALSE) -> 19185.24781 | H189: =VLOOKUP(Vlookup!$B148,'CDCM Volume Forecasts'!$A$28:$AL$136,H$143,FALSE) -> 185922.1109
A190: LDNO LV: LV HH Metered | B190: =VLOOKUP(Vlookup!$B149,'CDCM Volume Forecasts'!$A$28:$AL$136,B$143,FALSE) -> 294.9219867 | C190: =VLOOKUP(Vlookup!$B149,'CDCM Volume Forecasts'!$A$28:$AL$136,C$143,FALSE) -> 1148.164231 | D190: =VLOOKUP(Vlookup!$B149,'CDCM Volume Forecasts'!$A$28:$AL$136,D$143,FALSE) -> 1503.991493 | E190: =VLOOKUP(Vlookup!$B149,'CDCM Volume Forecasts'!$A$28:$AL$136,E$143,FALSE) -> 29.531532 | F190: =VLOOKUP(Vlookup!$B149,'CDCM Volume Forecasts'!$A$28:$AL$136,F$143,FALSE) -> 1938.272743 | G190: =VLOOKUP(Vlookup!$B149,'CDCM Volume Forecasts'!$A$28:$AL$136,G$143,FALSE) -> 35.5619437 | H190: =VLOOKUP(Vlookup!$B149,'CDCM Volume Forecasts'!$A$28:$AL$136,H$143,FALSE) -> 156.0091652
A191: LDNO HV: LV HH Metered | B191: =VLOOKUP(Vlookup!$B150,'CDCM Volume Forecasts'!$A$28:$AL$136,B$143,FALSE) -> 14846.67041 | C191: =VLOOKUP(Vlookup!$B150,'CDCM Volume Forecasts'!$A$28:$AL$136,C$143,FALSE) -> 52731.66599 | D191: =VLOOKUP(Vlookup!$B150,'CDCM Volume Forecasts'!$A$28:$AL$136,D$143,FALSE) -> 61521.53703 | E191: =VLOOKUP(Vlookup!$B150,'CDCM Volume Forecasts'!$A$28:$AL$136,E$143,FALSE) -> 377.1264647 | F191: =VLOOKUP(Vlookup!$B150,'CDCM Volume Forecasts'!$A$28:$AL$136,F$143,FALSE) -> 77687.27363 | G191: =VLOOKUP(Vlookup!$B150,'CDCM Volume Forecasts'!$A$28:$AL$136,G$143,FALSE) -> 1090.348891 | H191: =VLOOKUP(Vlookup!$B150,'CDCM Volume Forecasts'!$A$28:$AL$136,H$143,FALSE) -> 3547.967832
A192: > LV Sub HH Metered
A193: LV Sub HH Metered | B193: =VLOOKUP(Vlookup!$B152,'CDCM Volume Forecasts'!$A$28:$AL$136,B$143,FALSE) -> 15765.23217 | C193: =VLOOKUP(Vlookup!$B152,'CDCM Volume Forecasts'!$A$28:$AL$136,C$143,FALSE) -> 61475.58004 | D193: =VLOOKUP(Vlookup!$B152,'CDCM Volume Forecasts'!$A$28:$AL$136,D$143,FALSE) -> 67543.84453 | E193: =VLOOKUP(Vlookup!$B152,'CDCM Volume Forecasts'!$A$28:$AL$136,E$143,FALSE) -> 263.4385041 | F193: =VLOOKUP(Vlookup!$B152,'CDCM Volume Forecasts'!$A$28:$AL$136,F$143,FALSE) -> 103428.7736 | G193: =VLOOKUP(Vlookup!$B152,'CDCM Volume Forecasts'!$A$28:$AL$136,G$143,FALSE) -> 472.5795212 | H193: =VLOOKUP(Vlookup!$B152,'CDCM Volume Forecasts'!$A$28:$AL$136,H$143,FALSE) -> 9098.971149
A194: LDNO HV: LV Sub HH Metered | B194: =VLOOKUP(Vlookup!$B153,'CDCM Volume Forecasts'!$A$28:$AL$136,B$143,FALSE) -> 582.1097601 | C194: =VLOOKUP(Vlookup!$B153,'CDCM Volume Forecasts'!$A$28:$AL$136,C$143,FALSE) -> 2261.471294 | D194: =VLOOKUP(Vlookup!$B153,'CDCM Volume Forecasts'!$A$28:$AL$136,D$143,FALSE) -> 3383.087099 | E194: =VLOOKUP(Vlookup!$B153,'CDCM Volume Forecasts'!$A$28:$AL$136,E$143,FALSE) -> 7.120179452 | F194: =VLOOKUP(Vlookup!$B153,'CDCM Volume Forecasts'!$A$28:$AL$136,F$143,FALSE) -> 4589.013565 | G194: =VLOOKUP(Vlookup!$B153,'CDCM Volume Forecasts'!$A$28:$AL$136,G$143,FALSE) -> 0 | H194: =VLOOKUP(Vlookup!$B153,'CDCM Volume Forecasts'!$A$28:$AL$136,H$143,FALSE) -> 1686.527735
A195: > HV HH Metered
A196: HV HH Metered | B196: =VLOOKUP(Vlookup!$B155,'CDCM Volume Forecasts'!$A$28:$AL$136,B$143,FALSE) -> 741861.9568 | C196: =VLOOKUP(Vlookup!$B155,'CDCM Volume Forecasts'!$A$28:$AL$136,C$143,FALSE) -> 2955179.536 | D196: =VLOOKUP(Vlookup!$B155,'CDCM Volume Forecasts'!$A$28:$AL$136,D$143,FALSE) -> 3857333.695 | E196: =VLOOKUP(Vlookup!$B155,'CDCM Volume Forecasts'!$A$28:$AL$136,E$143,FALSE) -> 4142.610957 | F196: =VLOOKUP(Vlookup!$B155,'CDCM Volume Forecasts'!$A$28:$AL$136,F$143,FALSE) -> 2873647.675 | G196: =VLOOKUP(Vlookup!$B155,'CDCM Volume Forecasts'!$A$28:$AL$136,G$143,FALSE) -> 60724.31855 | H196: =VLOOKUP(Vlookup!$B155,'CDCM Volume Forecasts'!$A$28:$AL$136,H$143,FALSE) -> 952251.1994
A197: LDNO HV: HV HH Metered | B197: =VLOOKUP(Vlookup!$B156,'CDCM Volume Forecasts'!$A$28:$AL$136,B$143,FALSE) -> 4122.254147 | C197: =VLOOKUP(Vlookup!$B156,'CDCM Volume Forecasts'!$A$28:$AL$136,C$143,FALSE) -> 14297.78756 | D197: =VLOOKUP(Vlookup!$B156,'CDCM Volume Forecasts'!$A$28:$AL$136,D$143,FALSE) -> 16574.46071 | E197: =VLOOKUP(Vlookup!$B156,'CDCM Volume Forecasts'!$A$28:$AL$136,E$143,FALSE) -> 32.52052808 | F197: =VLOOKUP(Vlookup!$B156,'CDCM Volume Forecasts'!$A$28:$AL$136,F$143,FALSE) -> 27960.50628 | G197: =VLOOKUP(Vlookup!$B156,'CDCM Volume Forecasts'!$A$28:$AL$136,G$143,FALSE) -> 0 | H197: =VLOOKUP(Vlookup!$B156,'CDCM Volume Forecasts'!$A$28:$AL$136,H$143,FALSE) -> 685.7313926
A198: > NHH UMS category A
A199: NHH UMS category A | B199: =VLOOKUP(Vlookup!$B158,'CDCM Volume Forecasts'!$A$28:$AL$136,B$143,FALSE) -> 59176.0714 | E199: =VLOOKUP(Vlookup!$B158,'CDCM Volume Forecasts'!$A$28:$AL$136,E$143,FALSE) -> 948
A200: LDNO LV: NHH UMS category A | B200: =VLOOKUP(Vlookup!$B159,'CDCM Volume Forecasts'!$A$28:$AL$136,B$143,FALSE) -> 36.24811575 | E200: =VLOOKUP(Vlookup!$B159,'CDCM Volume Forecasts'!$A$28:$AL$136,E$143,FALSE) -> 0
A201: LDNO HV: NHH UMS category A | B201: =VLOOKUP(Vlookup!$B160,'CDCM Volume Forecasts'!$A$28:$AL$136,B$143,FALSE) -> 85.36014954 | E201: =VLOOKUP(Vlookup!$B160,'CDCM Volume Forecasts'!$A$28:$AL$136,E$143,FALSE) -> 0
A202: > NHH UMS category B
A203: NHH UMS category B | B203: =VLOOKUP(Vlookup!$B162,'CDCM Volume Forecasts'!$A$28:$AL$136,B$143,FALSE) -> 10874.20717 | E203: =VLOOKUP(Vlookup!$B162,'CDCM Volume Forecasts'!$A$28:$AL$136,E$143,FALSE) -> 694
A204: LDNO LV: NHH UMS category B | B204: =VLOOKUP(Vlookup!$B163,'CDCM Volume Forecasts'!$A$28:$AL$136,B$143,FALSE) -> 200.2006923 | E204: =VLOOKUP(Vlookup!$B163,'CDCM Volume Forecasts'!$A$28:$AL$136,E$143,FALSE) -> 0
A205: LDNO HV: NHH UMS category B | B205: =VLOOKUP(Vlookup!$B164,'CDCM Volume Forecasts'!$A$28:$AL$136,B$143,FALSE) -> 544.4360659 | E205: =VLOOKUP(Vlookup!$B164,'CDCM Volume Forecasts'!$A$28:$AL$136,E$143,FALSE) -> 0
A206: > NHH UMS category C
A207: NHH UMS category C | B207: =VLOOKUP(Vlookup!$B166,'CDCM Volume Forecasts'!$A$28:$AL$136,B$143,FALSE) -> 974.6595118 | E207: =VLOOKUP(Vlookup!$B166,'CDCM Volume Forecasts'!$A$28:$AL$136,E$143,FALSE) -> 135
A208: LDNO LV: NHH UMS category C | B208: =VLOOKUP(Vlookup!$B167,'CDCM Volume Forecasts'!$A$28:$AL$136,B$143,FALSE) -> 0 | E208: =VLOOKUP(Vlookup!$B167,'CDCM Volume Forecasts'!$A$28:$AL$136,E$143,FALSE) -> 0
A209: LDNO HV: NHH UMS category C | B209: =VLOOKUP(Vlookup!$B168,'CDCM Volume Forecasts'!$A$28:$AL$136,B$143,FALSE) -> 25.76916716 | E209: =VLOOKUP(Vlookup!$B168,'CDCM Volume Forecasts'!$A$28:$AL$136,E$143,FALSE) -> 0
A210: > NHH UMS category D
A211: NHH UMS category D | B211: =VLOOKUP(Vlookup!$B170,'CDCM Volume Forecasts'!$A$28:$AL$136,B$143,FALSE) -> 6690.979313 | E211: =VLOOKUP(Vlookup!$B170,'CDCM Volume Forecasts'!$A$28:$AL$136,E$143,FALSE) -> 40
A212: LDNO LV: NHH UMS category D | B212: =VLOOKUP(Vlookup!$B171,'CDCM Volume Forecasts'!$A$28:$AL$136,B$143,FALSE) -> 0 | E212: =VLOOKUP(Vlookup!$B171,'CDCM Volume Forecasts'!$A$28:$AL$136,E$143,FALSE) -> 0
A213: LDNO HV: NHH UMS category D | B213: =VLOOKUP(Vlookup!$B172,'CDCM Volume Forecasts'!$A$28:$AL$136,B$143,FALSE) -> 0 | E213: =VLOOKUP(Vlookup!$B172,'CDCM Volume Forecasts'!$A$28:$AL$136,E$143,FALSE) -> 0
A214: > LV UMS (Pseudo HH Metered)
A215: LV UMS (Pseudo HH Metered) | B215: =VLOOKUP(Vlookup!$B174,'CDCM Volume Forecasts'!$A$28:$AL$136,B$143,FALSE) -> 12297.71888 | C215: =VLOOKUP(Vlookup!$B174,'CDCM Volume Forecasts'!$A$28:$AL$136,C$143,FALSE) -> 40044.12241 | D215: =VLOOKUP(Vlookup!$B174,'CDCM Volume Forecasts'!$A$28:$AL$136,D$143,FALSE) -> 215732.4022 | E215: =VLOOKUP(Vlookup!$B174,'CDCM Volume Forecasts'!$A$28:$AL$136,E$143,FALSE) -> 42.93545574
A216: LDNO LV: LV UMS (Pseudo HH Metered) | B216: =VLOOKUP(Vlookup!$B175,'CDCM Volume Forecasts'!$A$28:$AL$136,B$143,FALSE) -> 0 | C216: =VLOOKUP(Vlookup!$B175,'CDCM Volume Forecasts'!$A$28:$AL$136,C$143,FALSE) -> 0 | D216: =VLOOKUP(Vlookup!$B175,'CDCM Volume Forecasts'!$A$28:$AL$136,D$143,FALSE) -> 0 | E216: =VLOOKUP(Vlookup!$B175,'CDCM Volume Forecasts'!$A$28:$AL$136,E$143,FALSE) -> 0
A217: LDNO HV: LV UMS (Pseudo HH Metered) | B217: =VLOOKUP(Vlookup!$B176,'CDCM Volume Forecasts'!$A$28:$AL$136,B$143,FALSE) -> 0 | C217: =VLOOKUP(Vlookup!$B176,'CDCM Volume Forecasts'!$A$28:$AL$136,C$143,FALSE) -> 0 | D217: =VLOOKUP(Vlookup!$B176,'CDCM Volume Forecasts'!$A$28:$AL$136,D$143,FALSE) -> 0 | E217: =VLOOKUP(Vlookup!$B176,'CDCM Volume Forecasts'!$A$28:$AL$136,E$143,FALSE) -> 0
A218: > LV Generation NHH or Aggregate HH
A219: LV Generation NHH or Aggregate HH | B219: =VLOOKUP(Vlookup!$B178,'CDCM Volume Forecasts'!$A$28:$AL$136,B$143,FALSE) -> 1307.116212 | E219: =VLOOKUP(Vlookup!$B178,'CDCM Volume Forecasts'!$A$28:$AL$136,E$143,FALSE) -> 125
A220: LDNO LV: LV Generation NHH or Aggregate HH | B220: =VLOOKUP(Vlookup!$B179,'CDCM Volume Forecasts'!$A$28:$AL$136,B$143,FALSE) -> 0 | E220: =VLOOKUP(Vlookup!$B179,'CDCM Volume Forecasts'!$A$28:$AL$136,E$143,FALSE) -> 0
A221: LDNO HV: LV Generation NHH or Aggregate HH | B221: =VLOOKUP(Vlookup!$B180,'CDCM Volume Forecasts'!$A$28:$AL$136,B$143,FALSE) -> 0 | E221: =VLOOKUP(Vlookup!$B180,'CDCM Volume Forecasts'!$A$28:$AL$136,E$143,FALSE) -> 0
A222: > LV Sub Generation NHH
A223: LV Sub Generation NHH | B223: =VLOOKUP(Vlookup!$B182,'CDCM Volume Forecasts'!$A$28:$AL$136,B$143,FALSE) -> 133.5197066 | E223: =VLOOKUP(Vlookup!$B182,'CDCM Volume Forecasts'!$A$28:$AL$136,E$143,FALSE) -> 1
A224: LDNO HV: LV Sub Generation NHH | B224: =VLOOKUP(Vlookup!$B183,'CDCM Volume Forecasts'!$A$28:$AL$136,B$143,FALSE) -> 0 | E224: =VLOOKUP(Vlookup!$B183,'CDCM Volume Forecasts'!$A$28:$AL$136,E$143,FALSE) -> 0
A225: > LV Generation Intermittent
A226: LV Generation Intermittent | B226: =VLOOKUP(Vlookup!$B185,'CDCM Volume Forecasts'!$A$28:$AL$136,B$143,FALSE) -> 32745.26219 | E226: =VLOOKUP(Vlookup!$B185,'CDCM Volume Forecasts'!$A$28:$AL$136,E$143,FALSE) -> 462.3004582 | H226: =VLOOKUP(Vlookup!$B185,'CDCM Volume Forecasts'!$A$28:$AL$136,H$143,FALSE) -> 2521.674988
A227: LDNO LV: LV Generation Intermittent | B227: =VLOOKUP(Vlookup!$B186,'CDCM Volume Forecasts'!$A$28:$AL$136,B$143,FALSE) -> 0 | E227: =VLOOKUP(Vlookup!$B186,'CDCM Volume Forecasts'!$A$28:$AL$136,E$143,FALSE) -> 0 | H227: =VLOOKUP(Vlookup!$B186,'CDCM Volume Forecasts'!$A$28:$AL$136,H$143,FALSE) -> 0
A228: LDNO HV: LV Generation Intermittent | B228: =VLOOKUP(Vlookup!$B187,'CDCM Volume Forecasts'!$A$28:$AL$136,B$143,FALSE) -> 181.6971582 | E228: =VLOOKUP(Vlookup!$B187,'CDCM Volume Forecasts'!$A$28:$AL$136,E$143,FALSE) -> 1.558300685 | H228: =VLOOKUP(Vlookup!$B187,'CDCM Volume Forecasts'!$A$28:$AL$136,H$143,FALSE) -> 46.95845664
... 99 more rows

Sheet (Y+2)
A1: Input data (Y+2)
A4: 1000. Company, charging year, data version
B6: Company | C6: Year | D6: Version
A7: Company, charging year, data version | B7: =VLOOKUP(Vlookup!B7,'CDCM Forecast Data'!$A$14:$I$271,7,FALSE) -> 0 | C7: =VLOOKUP(Vlookup!C7,'CDCM Forecast Data'!$A$14:$I$271,7,FALSE) -> 0 | D7: =VLOOKUP(Vlookup!D7,'CDCM Forecast Data'!$A$14:$I$271,7,FALSE) -> 0
A9: 1010. Financial and general assumptions
A11: Sources: financial assumptions; calendar; network model.
A12: These financial assumptions determine the annuity rate applied to convert the asset values of the network model into an annual charge.
B13: Rate of return | C13: Annualisation period (years) | D13: Annuity proportion for customer-contributed assets | E13: Power factor | F13: Days in the charging period
A14: Financial and general assumptions | B14: =VLOOKUP(Vlookup!B14,'CDCM Forecast Data'!$A$14:$I$271,7,FALSE) -> 0.0421 | C14: =VLOOKUP(Vlookup!C14,'CDCM Forecast Data'!$A$14:$I$271,7,FALSE) -> 40 | E14: =VLOOKUP(Vlookup!E14,'CDCM Forecast Data'!$A$14:$I$271,7,FALSE) -> 0.95 | F14: =VLOOKUP(Vlookup!F14,'CDCM Forecast Data'!$A$14:$I$271,7,FALSE) -> 366
A16: 1017. Diversity allowance between top and bottom of network level
A18: Source: operational data analysis and/or network model.
A19: The diversity figure against GSP is the diversity between GSP Group (the whole system) and individual GSPs.
A20: The diversity figure against 132kV is the diversity between GSPs (the top of the 132kV network) and 132kV/EHV bulk supply points (the bottom of the 132kV network).
A21: The diversity figure against EHV is the diversity between 132kV/EHV bulk supply points (the top of the EHV network) and EHV/HV primary substations (the bottom of the EHV network).
A22: The diversity figure against HV is the diversity between EHV/HV primary substations (the top of the HV network) and HV/LV substations (the bottom of the HV network).
B23: Diversity allowance between top and bottom of network level
A24: GSPs | B24: =VLOOKUP(Vlookup!B24,'CDCM Forecast Data'!$A$14:$I$271,7,FALSE) -> 0.05649040832
A25: 132kV | B25: =VLOOKUP(Vlookup!B25,'CDCM Forecast Data'!$A$14:$I$271,7,FALSE) -> 0.0255686825
A26: 132kV/EHV
A27: EHV | B27: =VLOOKUP(Vlookup!B27,'CDCM Forecast Data'!$A$14:$I$271,7,FALSE) -> 0.02663159667
A28: EHV/HV
A29: HV | B29: =VLOOKUP(Vlookup!B29,'CDCM Forecast Data'!$A$14:$I$271,7,FALSE) -> 0.34
A30: HV/LV
A31: LV circuits
A33: 1018. Proportion of relevant load going through 132kV/HV direct transformation
B35: 132kV/HV
A36: EHV/HV | B36: =VLOOKUP(Vlookup!B36,'CDCM Forecast Data'!$A$14:$I$271,7,FALSE) -> 0.6925656292
A38: 1019. Network model GSP peak demand (MW)
B40: Network model GSP peak demand (MW)
A41: Network model GSP peak demand (MW) | B41: =VLOOKUP(Vlookup!B41,'CDCM Forecast Data'!$A$14:$I$271,7,FALSE) -> 500
A43: 1020. Gross asset cost by network level (£)
B45: Gross assets £
A46: 132kV | B46: =VLOOKUP(Vlookup!B46,'CDCM Forecast Data'!$A$14:$I$271,7,FALSE) -> 53890360.43
A47: 132kV/EHV | B47: =VLOOKUP(Vlookup!B47,'CDCM Forecast Data'!$A$14:$I$271,7,FALSE) -> 12336250.54
A48: EHV | B48: =VLOOKUP(Vlookup!B48,'CDCM Forecast Data'!$A$14:$I$271,7,FALSE) -> 12711591.51
A49: EHV/HV | B49: =VLOOKUP(Vlookup!B49,'CDCM Forecast Data'!$A$14:$I$271,7,FALSE) -> 24021255.52
A50: 132kV/HV | B50: =VLOOKUP(Vlookup!B50,'CDCM Forecast Data'!$A$14:$I$271,7,FALSE) -> 25607940.83
A51: HV | B51: =VLOOKUP(Vlookup!B51,'CDCM Forecast Data'!$A$14:$I$271,7,FALSE) -> 166286900.8
A52: HV/LV | B52: =VLOOKUP(Vlookup!B52,'CDCM Forecast Data'!$A$14:$I$271,7,FALSE) -> 75030151.44
A53: LV circuits | B53: =VLOOKUP(Vlookup!B53,'CDCM Forecast Data'!$A$14:$I$271,7,FALSE) -> 170962466.9
A55: 1022. LV service model asset cost (£)
B57: LV service model 1 | C57: LV service model 2 | D57: LV service model 3 | E57: LV service model 4 | F57: LV service model 5 | G57: LV service model 6 | H57: LV service model 7 | I57: LV service model 8
A58: LV service model asset cost (£) | B58: =VLOOKUP(Vlookup!B58,'CDCM Forecast Data'!$A$14:$I$271,7,FALSE) -> 5762.090109 | C58: =VLOOKUP(Vlookup!C58,'CDCM Forecast Data'!$A$14:$I$271,7,FALSE) -> 648.1775285 | D58: =VLOOKUP(Vlookup!D58,'CDCM Forecast Data'!$A$14:$I$271,7,FALSE) -> 789.151523 | E58: =VLOOKUP(Vlookup!E58,'CDCM Forecast Data'!$A$14:$I$271,7,FALSE) -> 585.2505268 | F58: =VLOOKUP(Vlookup!F58,'CDCM Forecast Data'!$A$14:$I$271,7,FALSE) -> 1330.404691 | G58: =VLOOKUP(Vlookup!G58,'CDCM Forecast Data'!$A$14:$I$271,7,FALSE) -> 1024.695107 | H58: =VLOOKUP(Vlookup!H58,'CDCM Forecast Data'!$A$14:$I$271,7,FALSE) -> 0 | I58: =VLOOKUP(Vlookup!I58,'CDCM Forecast Data'!$A$14:$I$271,7,FALSE) -> 535.9215193
A60: 1023. HV service model asset cost (£)
B62: HV service model 1 | C62: HV service model 2 | D62: HV service model 3 | E62: HV service model 4 | F62: HV service model 5
A63: HV service model asset cost (£) | B63: =VLOOKUP(Vlookup!B63,'CDCM Forecast Data'!$A$14:$I$271,7,FALSE) -> 10166.16448 | C63: =VLOOKUP(Vlookup!C63,'CDCM Forecast Data'!$A$14:$I$271,7,FALSE) -> 4901.451322 | D63: =VLOOKUP(Vlookup!D63,'CDCM Forecast Data'!$A$14:$I$271,7,FALSE) -> 0 | E63: =VLOOKUP(Vlookup!E63,'CDCM Forecast Data'!$A$14:$I$271,7,FALSE) -> 0 | F63: =VLOOKUP(Vlookup!F63,'CDCM Forecast Data'!$A$14:$I$271,7,FALSE) -> 0
A65: 1025. Matrix of applicability of LV service models to tariffs with fixed charges
B66: 18 | C66: =B66+1 -> 19 | D66: 20 | E66: 21 | F66: 22 | G66: 23 | H66: 24 | I66: 25
B67: LV service model 1 | C67: LV service model 2 | D67: LV service model 3 | E67: LV service model 4 | F67: LV service model 5 | G67: LV service model 6 | H67: LV service model 7 | I67: LV service model 8
A68: Domestic Unrestricted | B68: =VLOOKUP($A68,'Mat of App'!$B$7:$AP$43,B$66,FALSE) -> 0.05 | C68: =VLOOKUP($A68,'Mat of App'!$B$7:$AP$43,C$66,FALSE) -> 0 | D68: =VLOOKUP($A68,'Mat of App'!$B$7:$AP$43,D$66,FALSE) -> 0 | E68: =VLOOKUP($A68,'Mat of App'!$B$7:$AP$43,E$66,FALSE) -> 0 | F68: =VLOOKUP($A68,'Mat of App'!$B$7:$AP$43,F$66,FALSE) -> 0 | G68: =VLOOKUP($A68,'Mat of App'!$B$7:$AP$43,G$66,FALSE) -> 0 | H68: =VLOOKUP($A68,'Mat of App'!$B$7:$AP$43,H$66,FALSE) -> 0 | I68: =VLOOKUP($A68,'Mat of App'!$B$7:$AP$43,I$66,FALSE) -> 0
A69: Domestic Two Rate | B69: =VLOOKUP($A69,'Mat of App'!$B$7:$AP$43,B$66,FALSE) -> 0.05 | C69: =VLOOKUP($A69,'Mat of App'!$B$7:$AP$43,C$66,FALSE) -> 0 | D69: =VLOOKUP($A69,'Mat of App'!$B$7:$AP$43,D$66,FALSE) -> 0 | E69: =VLOOKUP($A69,'Mat of App'!$B$7:$AP$43,E$66,FALSE) -> 0 | F69: =VLOOKUP($A69,'Mat of App'!$B$7:$AP$43,F$66,FALSE) -> 0 | G69: =VLOOKUP($A69,'Mat of App'!$B$7:$AP$43,G$66,FALSE) -> 0 | H69: =VLOOKUP($A69,'Mat of App'!$B$7:$AP$43,H$66,FALSE) -> 0 | I69: =VLOOKUP($A69,'Mat of App'!$B$7:$AP$43,I$66,FALSE) -> 0
A70: Small Non Domestic Unrestricted | B70: =VLOOKUP($A70,'Mat of App'!$B$7:$AP$43,B$66,FALSE) -> 0 | C70: =VLOOKUP($A70,'Mat of App'!$B$7:$AP$43,C$66,FALSE) -> 1 | D70: =VLOOKUP($A70,'Mat of App'!$B$7:$AP$43,D$66,FALSE) -> 0 | E70: =VLOOKUP($A70,'Mat of App'!$B$7:$AP$43,E$66,FALSE) -> 0 | F70: =VLOOKUP($A70,'Mat of App'!$B$7:$AP$43,F$66,FALSE) -> 0 | G70: =VLOOKUP($A70,'Mat of App'!$B$7:$AP$43,G$66,FALSE) -> 0 | H70: =VLOOKUP($A70,'Mat of App'!$B$7:$AP$43,H$66,FALSE) -> 0 | I70: =VLOOKUP($A70,'Mat of App'!$B$7:$AP$43,I$66,FALSE) -> 0
A71: Small Non Domestic Two Rate | B71: =VLOOKUP($A71,'Mat of App'!$B$7:$AP$43,B$66,FALSE) -> 0 | C71: =VLOOKUP($A71,'Mat of App'!$B$7:$AP$43,C$66,FALSE) -> 1 | D71: =VLOOKUP($A71,'Mat of App'!$B$7:$AP$43,D$66,FALSE) -> 0 | E71: =VLOOKUP($A71,'Mat of App'!$B$7:$AP$43,E$66,FALSE) -> 0 | F71: =VLOOKUP($A71,'Mat of App'!$B$7:$AP$43,F$66,FALSE) -> 0 | G71: =VLOOKUP($A71,'Mat of App'!$B$7:$AP$43,G$66,FALSE) -> 0 | H71: =VLOOKUP($A71,'Mat of App'!$B$7:$AP$43,H$66,FALSE) -> 0 | I71: =VLOOKUP($A71,'Mat of App'!$B$7:$AP$43,I$66,FALSE) -> 0
A72: LV Medium Non-Domestic | B72: =VLOOKUP($A72,'Mat of App'!$B$7:$AP$43,B$66,FALSE) -> 0 | C72: =VLOOKUP($A72,'Mat of App'!$B$7:$AP$43,C$66,FALSE) -> 0 | D72: =VLOOKUP($A72,'Mat of App'!$B$7:$AP$43,D$66,FALSE) -> 1 | E72: =VLOOKUP($A72,'Mat of App'!$B$7:$AP$43,E$66,FALSE) -> 0 | F72: =VLOOKUP($A72,'Mat of App'!$B$7:$AP$43,F$66,FALSE) -> 0 | G72: =VLOOKUP($A72,'Mat of App'!$B$7:$AP$43,G$66,FALSE) -> 0 | H72: =VLOOKUP($A72,'Mat of App'!$B$7:$AP$43,H$66,FALSE) -> 0 | I72: =VLOOKUP($A72,'Mat of App'!$B$7:$AP$43,I$66,FALSE) -> 0
A73: LV Sub Medium Non-Domestic | B73: =VLOOKUP($A73,'Mat of App'!$B$7:$AP$43,B$66,FALSE) -> 0 | C73: =VLOOKUP($A73,'Mat of App'!$B$7:$AP$43,C$66,FALSE) -> 0 | D73: =VLOOKUP($A73,'Mat of App'!$B$7:$AP$43,D$66,FALSE) -> 0 | E73: =VLOOKUP($A73,'Mat of App'!$B$7:$AP$43,E$66,FALSE) -> 1 | F73: =VLOOKUP($A73,'Mat of App'!$B$7:$AP$43,F$66,FALSE) -> 0 | G73: =VLOOKUP($A73,'Mat of App'!$B$7:$AP$43,G$66,FALSE) -> 0 | H73: =VLOOKUP($A73,'Mat of App'!$B$7:$AP$43,H$66,FALSE) -> 0 | I73: =VLOOKUP($A73,'Mat of App'!$B$7:$AP$43,I$66,FALSE) -> 0
A74: LV Network Domestic | B74: =VLOOKUP($A74,'Mat of App'!$B$7:$AP$43,B$66,FALSE) -> 0.05 | C74: =VLOOKUP($A74,'Mat of App'!$B$7:$AP$43,C$66,FALSE) -> 0 | D74: =VLOOKUP($A74,'Mat of App'!$B$7:$AP$43,D$66,FALSE) -> 0 | E74: =VLOOKUP($A74,'Mat of App'!$B$7:$AP$43,E$66,FALSE) -> 0 | F74: =VLOOKUP($A74,'Mat of App'!$B$7:$AP$43,F$66,FALSE) -> 0 | G74: =VLOOKUP($A74,'Mat of App'!$B$7:$AP$43,G$66,FALSE) -> 0 | H74: =VLOOKUP($A74,'Mat of App'!$B$7:$AP$43,H$66,FALSE) -> 0 | I74: =VLOOKUP($A74,'Mat of App'!$B$7:$AP$43,I$66,FALSE) -> 0
A75: LV Network Non-Domestic Non-CT | B75: =VLOOKUP($A75,'Mat of App'!$B$7:$AP$43,B$66,FALSE) -> 0 | C75: =VLOOKUP($A75,'Mat of App'!$B$7:$AP$43,C$66,FALSE) -> 1 | D75: =VLOOKUP($A75,'Mat of App'!$B$7:$AP$43,D$66,FALSE) -> 0 | E75: =VLOOKUP($A75,'Mat of App'!$B$7:$AP$43,E$66,FALSE) -> 0 | F75: =VLOOKUP($A75,'Mat of App'!$B$7:$AP$43,F$66,FALSE) -> 0 | G75: =VLOOKUP($A75,'Mat of App'!$B$7:$AP$43,G$66,FALSE) -> 0 | H75: =VLOOKUP($A75,'Mat of App'!$B$7:$AP$43,H$66,FALSE) -> 0 | I75: =VLOOKUP($A75,'Mat of App'!$B$7:$AP$43,I$66,FALSE) -> 0
